{"text_format":"1","workbook":"xlsx","n_sheets":5,"sheets":["Instructions","Index","Price List","Websites","Changes"],"not_rendered":{"charts":0,"images":2,"macros":1,"external_links":0,"defined_names":19,"comments":0,"pivot_tables":0},"unopened":[],"bounds":{"document_bytes":16777216,"sheet_cells":100000,"rows_first":2000,"rows_last":500,"rows_between":2000,"halvings":0,"cell_chars":16384,"cell_head_chars":4096},"cells_cut":0,"cells_raw":0,"read":"whole","date_system":"1900"}

{"sheet":"Instructions","index":0,"n_rows":57,"n_cols":13,"rows_kept":57,"cut":false,"hidden":false,"merged":[[6,2,6,7],[35,3,35,4]]}
["Manufacturer","Florida Tile"]
["Product Code","G","File as:","F"]
["CCTD Effective Date","10/1/25"]
[]
[]
[]
["Enter your Company Name"]
[]
[null,"Click on \"Index\" to set the print area for the price list index"]
[null,"Then you can send it to print"]
[]
[]
[null,"Click on \"Suggested Price List\" to set the print area for Conestoga Tile's suggested price list."]
[null,"Then you can send it to print"]
[]
[]
[null,"Enter your discount codes if you want a personal net cost sheet."]
[]
[null,"Product"]
[null,"Code","Disc. %"]
[null,{"$f":"+B2","v":"G"}]
[]
[null,"Click on \"Your Cost\" to set the print area for your personal cost report."]
[null,"Then you can send it to print"]
[]
[]
["Discount: ","To help establish your price list, enter the gross profit percent for each type of product."]
[null,"If you want to use Conestoga Tile's list price, leave them blank."]
[]
["Round Nickel: ","If you always want your price to round to the nearest nickel, enter \"YES\"."]
[null,"If you enter \"NO\", it will NOT round to the nearest nickel."]
[]
["Ending Cents: ","If you always want your price to end with a certain cents, enter that cent value."]
[null,"If you leave it \"blank\" will NOT round to this cent value."]
[]
[null,"Group","GP Margin","GP Margin % for",null,"Round Nickel","add/subtract","Ending Cents"]
[null,1,null,"Field Tile",null,"No",0]
[null,2,null,"Trim",null,"No",0]
[null,3,null,"Decos",null,"No",0,null,null,null,null,null,"  "]
[null,4,null,"Builder - Field Tile",null,"No",0]
[null,5,null,"Builder - Trim",null,"No",0]
[null,6,null,"Builder - Decos",null,"No",0]
[null,7,null,0,null,"No",0]
[]
["If you want to manually adjust your price list, hit \"F5\" and go to \"Customer_Cost\" to manually adjust pricing."]
["You can enter a value in the column labeled \"Adj.\" to change your price manually."]
[]
[null,"Click on \"Your Price Calculation\" to set the print area for your personal cost calculation report."]
[null,"Then you can send it to print"]
[]
[]
[null,"Click on \"Your Price List\" to set the print area for your personal price list."]
[null,"Then you can send it to print"]
[null,null,null,null,null,null,null,"Yes"]
[]
["If you have any questions on how to best use this spreadsheet, please feel free to contact"]
["Jim Vogel at (800) 422-6860, ext. 4201 or via e-mail at jimvogel@cctd.com"]

{"sheet":"Index","index":1,"n_rows":52,"n_cols":15,"rows_kept":52,"cut":false,"hidden":false,"merged":[[4,0,4,10],[47,0,47,10],[49,0,49,10],[51,0,51,10]]}
[]
[null,null,null,null,null,null,null,null,null,null,{"$f":"\"File '\"&Instructions!D2&\"' - \"&Instructions!B1","v":"File 'F' - Florida Tile"}]
[]
[null,null,null,null,null,null,null,null,null,null," "]
[{"$f":"\"Price List Index - \"&Instructions!B3","v":"Price List Index - 10/1/25"}]
[]
[]
[]
[]
["Page",null,"Series",null,"Product Type",null,"Page",null,"Series",null,"Product Type"]
[1,null,"Ainslee ParkHDP",null,"Ceramic & Porcelain ",null,5,null,"MagnoliaHDP",null,"Color Body Porcelain"]
[1,null,"AlustraHDP",null,"Color Body Porcelain",null,5,null,"MineralHDP",null,"2cm Porcelain Pavers"]
["1-2",null,"Amplify",null,"Glazed Ceramic",null,5,null,"NY2LAHDP ",null,"Color Body Porcelain"]
[2,null,"Artecrete",null,"Color Body Porcelain",null,5,null,"NY2LAHDP",null,"2cm Porcelain Pavers"]
[2,null,"Aura",null,"Glazed Porcelain",null,6,null,"PassengerHDP",null,"Color Body Porcelain"]
[2,null,"Bellanova",null,"Color Body Porcelain",null,6,null,"PassengerHDP",null,"2cm Porcelain Pavers"]
[2,null,"BerkshireHDP",null,"Color Body Porcelain",null,6,null,"Pietra Art Pebbles",null,"Natural Stone"]
[2,null,"BlueRunHDP",null,"Color Body Porcelain",null,6,null,"PreciousHDP",null,"Ceramic & Porcelain "]
[2,null,"BlueRunHDP",null,"2cm Porcelain Pavers",null,6,null,"Rhyme",null,"Color Body Porcelain",null,null," "]
[2,null,"Canal StreetHDP",null,"Color Body Porcelain",null,7,null,"SequenceHDP",null,"Color Body Porcelain"]
[3,null,"CellarHDP",null,"Color Body Porcelain",null,7,null,"SerendipityHDP",null,"Color Body Porcelain"]
[3,null,"Claymont",null,"Glazed Porcelain",null,7,null,"Soho",null,"Ceramic Wall"]
[3,null,"Comfort",null,"Glazed Porcelain",null,7,null,"Soho",null,"Porcelain Mosaics"]
[3,null,"ContinentDP",null,"Glazed Porcelain",null,8,null,"Songbird",null,"Glazed Ceramic"]
[3,null,"Emotive",null,"Glazed Ceramic",null,8,null,"SpanHDP",null,"2cm Porcelain Pavers"]
["3-4",null,"EnchantHDP",null,"Glazed Porcelain",null,8,null,"Storied",null,"Glazed Ceramic"]
[4,null,"ExcursionHDP",null,"Glazed Porcelain",null,8,null,"Tempo",null,"Ceramic & Porcelain "]
[4,null,"Fluent",null,"Glazed Ceramic",null,8,null,"TidesHDP",null,"Glazed Porcelain"]
[4,null,"GravitateHDP",null,"Glazed Porcelain",null,"8-9",null,"Time 2.0 - Natural",null,"Through-Body Porcelain"]
[4,null,"High RidgeHDP",null,"Glazed Porcelain",null,9,null,"Time 2.0 - Polished",null,"Through-Body Porcelain"]
[4,null,"High RidgeHDP",null,"2cm Porcelain Pavers",null,9,null,"Tuscan VillaHDP",null,"Glazed Porcelain",null," "]
[5,null,"Indulge",null,"Color Body Porcelain",null,9,null,"Urban FoundryHDP",null,"Color Body Porcelain"]
[]
[]
[]
[]
[]
[]
[]
[null,null,null,null,null,null,null,null,null,null,null,null,null,null," "]
[null,null,null,null,null,null,null,null,null,null,null,null," "]
[]
[]
[null,null,null,null,null,null," "]
[]
[]
[]
["Metropolitan Quarry Tile…see price book File \"M\" - METROPOLITAN"]
[]
["This price list is available electronically on an Excel spreadsheet at www.conestogatile.com/pricelists."]
[]
["The spreadsheet has many special features to assist you.  Apply your discount to generate your net costs for your purchasing department.  Apply your standard gross margin percentage or custom prices to generate your own custom price list for your showroom.  Print out individual price list for each series that can be attached to the back of your sample boards for easy reference."]

{"sheet":"Price List","index":2,"n_rows":842,"n_cols":40,"rows_kept":842,"cut":false,"hidden":false,"merged":[[9,14,9,19],[831,3,831,4],[18,2,18,19],[17,14,17,15],[12,14,12,19],[14,13,15,19],[10,14,10,15],[828,2,828,19],[826,2,826,19],[13,30,13,32],[9,25,9,32],[12,22,12,23],[9,22,9,23]]}
[null,"Field Tile",null,null,"Size",null,"Field",null,null,null,null,null,null,null,null,"SF/CTN",null,null,{"$f":"IF(Suggested=\"Yes\",AA1,AG1)","v":0.05},"SF",{"$f":"+Instructions!$B$21","v":"G"},null,{"$f":"+Instructions!$C$21","v":0},{"$f":"IF(Instructions!$C$21=\"Group\",#REF!,IF(Instructions!$C$21=\"Carter\",#REF!,ROUNDUP($AA1*(1-W1),2)))","v":0.05},null,"new",0.05,{"$f":"+W1","v":0},0.05,{"$f":"(AG1-AC1)/AG1","v":0},null,1,{"$f":"SUM(AI1:AK1)+AE1","v":0.05},null,{"$f":"ROUND(AC1/(1-VLOOKUP(AF1,Group,2,FALSE)),2)","v":0.05},{"$f":"IF(VLOOKUP(AF1,Group,5,FALSE)=\"YES\",VLOOKUP(ROUND(ROUND(AI1,1)-AI1,2),Round,2,FALSE)+VLOOKUP(AF1,Group,6,FALSE),0)","v":0},{"$f":"IF(VLOOKUP(AF1,Group,7,FALSE)=\"\",0,ROUND(AI1-0.04999,1)-AI1+AL1)","v":0},{"$f":"IF(VLOOKUP(AF1,Group,7,FALSE)=\"\",\"\",VLOOKUP(AF1,Group,7,FALSE))","v":""},null,"X"]
[null,"Trim",null,null,"Size",null,"Shape",null,"Description",null,null,null,null,null,null,null,null,null,0.05,"EA",{"$f":"+Instructions!$B$21","v":"G"},null,{"$f":"+Instructions!$C$21","v":0},{"$f":"IF(Instructions!$C$21=\"Group\",#REF!,IF(Instructions!$C$21=\"Carter\",#REF!,ROUNDUP($AA2*(1-W2),2)))","v":0.05},null,"new",0.05,0,0.05,0,null,2,0.05,null,0.05,0,0,"",null,"X"]
[null,"Decos",null,null,"Size",null,"Shape",null,"Description",null,null,null,null,null,null,null,null,null,0.05,"EA",{"$f":"+Instructions!$B$21","v":"G"},null,{"$f":"+Instructions!$C$21","v":0},{"$f":"IF(Instructions!$C$21=\"Group\",#REF!,IF(Instructions!$C$21=\"Carter\",#REF!,ROUNDUP($AA3*(1-W3),2)))","v":0.05},null,"new",0.05,0,0.05,0,null,3,0.05,null,0.05,0,0,"",null,"X"]
[null,"Builder - Field Tile",null,null,"Size",null,"Shape",null,"Description",null,null,null,null,null,null,"SF/CTN",null,null,0.05,"SF","xx",null,{"$f":"IF(Instructions!$C$21=\"Group\",\"Group\",IF(Instructions!$C$21=\"Carter\",\"Carter\",50%))","v":0.5},{"$f":"IF(Instructions!$C$21=\"Group\",#REF!,IF(Instructions!$C$21=\"Carter\",#REF!,ROUNDUP($AA4*(1-W4),2)))","v":0.03},null,"new",0.05,0.5,0.03,0,null,4,0.03,null,0.03,0,0,"",null,"X"]
[null,"Builder - Trim",null,null,"Size",null,"Shape",null,"Description",null,null,null,null,null,null,null,null,null,0.05,"EA","xx",null,{"$f":"IF(Instructions!$C$21=\"Group\",\"Group\",IF(Instructions!$C$21=\"Carter\",\"Carter\",50%))","v":0.5},{"$f":"IF(Instructions!$C$21=\"Group\",#REF!,IF(Instructions!$C$21=\"Carter\",#REF!,ROUNDUP($AA5*(1-W5),2)))","v":0.03},null,"new",0.05,0.5,0.03,0,null,5,0.03,null,0.03,0,0,"",null,"X"]
[null,"Builder - Decos",null,null,"Size",null,"Shape",null,"Description",null,null,null,null,null,null,null,null,null,0.05,"EA","xx",null,{"$f":"IF(Instructions!$C$21=\"Group\",\"Group\",IF(Instructions!$C$21=\"Carter\",\"Carter\",50%))","v":0.5},{"$f":"IF(Instructions!$C$21=\"Group\",#REF!,IF(Instructions!$C$21=\"Carter\",#REF!,ROUNDUP($AA6*(1-W6),2)))","v":0.03},null,"new",0.05,0.5,0.03,0,null,6,0.03,null,0.03,0,0,"",null,"X"]
[null,0,null,null,"Size",null,"Shape",null,"Description",null,null,null,null,null,null,null,null,null,{"$f":"IF(Suggested=\"Yes\",'Price List'!AA7,'Price List'!AG7)","v":0},"EA","G",null,{"$f":"+Instructions!$C$21","v":0},{"$f":"IF(Instructions!$C$21=\"Group\",#REF!,ROUND($AA7*(1-W7)+0.004999,2))","v":0},null,"new",0,0,0,{"$error":"#DIV/0!"},null,7,0,null,0,0,0,"",null,"X"]
[null,"Format",null,null,null,null,null,null,null,null,null,null,null,null,null,null,"Stock","a",1000,"ABC",null,null,0.1,1000,null,"ABC",1000,0.1,1000,0.1,10,null,1000,null,null,null,null,null,null,"X"]
[null,null,null,null,null,null,null,null,null,null,null,null,null,null,null,null,null,null,null,null,null,null,null,null,null,null,null,null,null,null,null,null,null,null,null,null,null,null,null,"X"]
[null,null,null,null,null,null,null,null,null,null,null,null,null,null,"Price List",null,null,null,null,null,null,null,"Cust. Cost",null,null,"Customer Cost Calculation",null,null,null,null,null,null,null,null,null,null,null,null,null,"X"]
[null,null,null,"Sizes & Shapes",null,null,null,null,null,null,null,null,null,null,"Full Carton",null,"Stock","Note",{"$f":"IF(Suggested=\"Yes\",AA11,AG11)","v":"List Price"},"U/M","Code",null,"Disc.","Net",null,"Chg","List Price","Disc","Act. Cost","GP%","Adj.","Group","Price",null,"Calc Price",".05 Round","Cents","Round to",null,"X"]
[null,null,null,null,null,null,null,null,null,null,null,null,null,null,null,null,null,null,null,null,null,null,null,null,null,null,null,null,null,null,null,null,null,null,null,null,null,null,null,"X"]
[null,null,null,null,null,null,null,null,null,null,null,null,null,null,{"$f":"\"File '\"&Instructions!D2&\"' - \"&Instructions!B1","v":"File 'F' - Florida Tile"},null,null,null,null,null,null,null,"Cost",null,null,null,null,null,null,null,null,null,"Retail Price Calculations",null,null,null,null,null,null,"X"]
[null,null,null,null,null,null,null,null,null,null,null,null,null,null,null,null,null,null,null,{"$f":"+Instructions!B3","v":"10/1/25"},null,null,null,null,null,null,null,null,null,null,{"$f":"TODAY()","v":"2025-09-05"},null,null,null,null,null,null,null,null,"X"]
[null,null,null,null,null,null,null,null,null,null,null,null,null,{"$f":"IF(Instructions!C7=\"\",\"\",+Instructions!C7)","v":""},null,null,null,null,null,null,null,null,null,null,null,null,null,null,null,null,null,null,null,null,null,null,null,null,null,"X"]
[null,null,{"$f":"\"Product Code '\"&Instructions!B2&\"'\"","v":"Product Code 'G'"},null,null,null,null,null,null,null,null,null,null,null,null,null,null,null,null,null,null,null,null,null,null,null,null,null,null,null,null,null,{"$f":"IF(Instructions!$C$7=\"\",\"\",Instructions!$C$7)","v":""},null,null,null,null,null,null,"X"]
[null,null,null,null,null,null,null,null,null,null,null,null,null,null,null,null,null,null,null,null,null,null,null,null,null,null,null,null,null,null,null,null,null,null,null,null,null,null,null,"X"]
[null,null,"Sizes & Shapes",null,null,null,null,null,null,null,null,null,null,null,"Full Carton",null,"Stock","Note",{"$f":"+S$11","v":"List Price"},"U/M",{"$f":"+U$11","v":"Code"},null,"Disc.","Net",null,"Chg","List Price",{"$f":"+AB$11","v":"Disc"},"Act. Cost","GP%","Adj.",{"$f":"+AF$11","v":"Group"},"Price",null,"Calc Price",".05 Round","Cents","Round to",null,"X"]
[null,null,"ALL ITEMS MARKED WITH PACKAGING QUANTITY ARE SOLD IN MULTIPLES OF THAT QUANTITY ONLY",null,null,null,null,null,null,null,null,null,null,null,null,null,null,null,null,null,null,null,null,null,null,null,null,null,null,null,null,null,null,null,null,null,null,null,null,"X"]
[null,null,null,null,null,null,null,null,null,null,null,null," ",null,null,null,null,null,null,null,null,null,null,null,null,null,null,null,null,null,null,null,null,null,null,null,null,null,null,"X"]
[null,null,"AINSLEE PARKHDP - Glazed Porcelain Floor & Ceramic Wall",null,null,null,null,null,null,null,null,null,"  ",null,null,null,null,"Item # Lookup:","FTAIN",null,null,null,null,null,null,null,null,null,null,null,null,null,null,null,null," ",null,null,null,"X"]
[null,null,null,null,null,null,null,null,null,null,null,null,null,null,null,null,null,null,null,null,null,null,null,null,null,null,null,null,null,null,null,null,null,null,null,null,null,null,null,"X"]
[null,null,null,"Colors:","AIN10 Calacatta Gold",null,null,null,"AIN30 Zebrino Taupe",null,null," ","   ",null," ",null,null,null,null,null,null,null,null,null,null,null,null,null,null,null,null,null,null,null,null," ",null,null,null,"X"]
[null,null,null,null,"AIN20 Emperador Beige",null,null,null,"AIN40 Breccia Mist",null,null," ",null,null,null,null,null,null,null,null,null,null,null,null,null,null,null,null,null,null,null,null,null,null,null," ",null,null,null,"X"]
[]
[null,"Field Tile",null,"Floor:","3.75\" x 12\"",null,"Field",null,"Rectified",null,null,null,null,null,null,"6.12 SF/CTN",null,null,{"$f":"IF(Suggested=\"Yes\",AA26,AG26)","v":15.45},"SF",{"$f":"+Instructions!$B$21","v":"G"},null,{"$f":"+Instructions!$C$21","v":0},{"$f":"IF(Instructions!$C$21=\"Group\",#REF!,IF(Instructions!$C$21=\"Carter\",#REF!,ROUNDUP($AA26*(1-W26),2)))","v":15.45},null,"YES",15.45,{"$f":"+W26","v":0},15.45,{"$f":"(AG26-AC26)/AG26","v":0},null,1,{"$f":"SUM(AI26:AK26)+AE26","v":15.45},null,{"$f":"ROUND(AC26/(1-VLOOKUP(AF26,Group,2,FALSE)),2)","v":15.45},{"$f":"IF(VLOOKUP(AF26,Group,5,FALSE)=\"YES\",VLOOKUP(ROUND(ROUND(AI26,1)-AI26,2),Round,2,FALSE)+VLOOKUP(AF26,Group,6,FALSE),0)","v":0},{"$f":"IF(VLOOKUP(AF26,Group,7,FALSE)=\"\",0,ROUND(AI26-0.04999,1)-AI26+AL26)","v":0},{"$f":"IF(VLOOKUP(AF26,Group,7,FALSE)=\"\",\"\",VLOOKUP(AF26,Group,7,FALSE))","v":""},null,"X"]
[null,"Field Tile",null,null,"12\" x 12\"",null,"Field",null,null,null," ",null,null,null,null,"16.00 SF/CTN","Stock","a",{"$f":"IF(Suggested=\"Yes\",AA27,AG27)","v":5.5},"SF",{"$f":"+Instructions!$B$21","v":"G"},null,{"$f":"+Instructions!$C$21","v":0},{"$f":"IF(Instructions!$C$21=\"Group\",#REF!,IF(Instructions!$C$21=\"Carter\",#REF!,ROUNDUP($AA27*(1-W27),2)))","v":5.5},null,"YES",5.5,0,5.5,{"$f":"(AG27-AC27)/AG27","v":0},null,1,{"$f":"SUM(AI27:AK27)+AE27","v":5.5},null,{"$f":"ROUND(AC27/(1-VLOOKUP(AF27,Group,2,FALSE)),2)","v":5.5},{"$f":"IF(VLOOKUP(AF27,Group,5,FALSE)=\"YES\",VLOOKUP(ROUND(ROUND(AI27,1)-AI27,2),Round,2,FALSE)+VLOOKUP(AF27,Group,6,FALSE),0)","v":0},{"$f":"IF(VLOOKUP(AF27,Group,7,FALSE)=\"\",0,ROUND(AI27-0.04999,1)-AI27+AL27)","v":0},{"$f":"IF(VLOOKUP(AF27,Group,7,FALSE)=\"\",\"\",VLOOKUP(AF27,Group,7,FALSE))","v":""},null,"X"]
[null,"Field Tile",null,null,"12\" x 24\"",null,"Field",null,null,null,null,null,null,null,null,"15.30 SF/CTN","Stock","a",{"$f":"IF(Suggested=\"Yes\",AA28,AG28)","v":5.25},"SF",{"$f":"+Instructions!$B$21","v":"G"},null,{"$f":"+Instructions!$C$21","v":0},{"$f":"IF(Instructions!$C$21=\"Group\",#REF!,IF(Instructions!$C$21=\"Carter\",#REF!,ROUNDUP($AA28*(1-W28),2)))","v":5.25},null,"YES",5.25,0,5.25,{"$f":"(AG28-AC28)/AG28","v":0},null,1,{"$f":"SUM(AI28:AK28)+AE28","v":5.25},null,{"$f":"ROUND(AC28/(1-VLOOKUP(AF28,Group,2,FALSE)),2)","v":5.25},{"$f":"IF(VLOOKUP(AF28,Group,5,FALSE)=\"YES\",VLOOKUP(ROUND(ROUND(AI28,1)-AI28,2),Round,2,FALSE)+VLOOKUP(AF28,Group,6,FALSE),0)","v":0},{"$f":"IF(VLOOKUP(AF28,Group,7,FALSE)=\"\",0,ROUND(AI28-0.04999,1)-AI28+AL28)","v":0},{"$f":"IF(VLOOKUP(AF28,Group,7,FALSE)=\"\",\"\",VLOOKUP(AF28,Group,7,FALSE))","v":""},null,"X"]
[]
[null,"Decos",null,null,"12\" x 12\"",null,"M1x6STK",null,"Mosaic 1\" x 6\" Stack - AIN30 Zebrino Taupe",null,null,null,null,null,null,"5 EA/CTN",null,null,{"$f":"IF(Suggested=\"Yes\",AA30,AG30)","v":25.95},"EA",{"$f":"+Instructions!$B$21","v":"G"},null,{"$f":"+Instructions!$C$21","v":0},{"$f":"IF(Instructions!$C$21=\"Group\",#REF!,IF(Instructions!$C$21=\"Carter\",#REF!,ROUNDUP($AA30*(1-W30),2)))","v":25.95},null,"YES",25.95,{"$f":"+W30","v":0},25.95,{"$f":"(AG30-AC30)/AG30","v":0},null,3,{"$f":"SUM(AI30:AK30)+AE30","v":25.95},null,{"$f":"ROUND(AC30/(1-VLOOKUP(AF30,Group,2,FALSE)),2)","v":25.95},{"$f":"IF(VLOOKUP(AF30,Group,5,FALSE)=\"YES\",VLOOKUP(ROUND(ROUND(AI30,1)-AI30,2),Round,2,FALSE)+VLOOKUP(AF30,Group,6,FALSE),0)","v":0},{"$f":"IF(VLOOKUP(AF30,Group,7,FALSE)=\"\",0,ROUND(AI30-0.04999,1)-AI30+AL30)","v":0},{"$f":"IF(VLOOKUP(AF30,Group,7,FALSE)=\"\",\"\",VLOOKUP(AF30,Group,7,FALSE))","v":""},null,"X"]
[null,"Decos",null,null,"12\" x 12\"",null,"M122",null,"Mosaic 2\" x 2\" - AIN10 Calacatta Gold",null,null,null,null,null,null,"0.96 SF/SHEET","Stock",null,{"$f":"IF(Suggested=\"Yes\",AA31,AG31)","v":32.6},"EA",{"$f":"+Instructions!$B$21","v":"G"},null,{"$f":"+Instructions!$C$21","v":0},{"$f":"IF(Instructions!$C$21=\"Group\",#REF!,IF(Instructions!$C$21=\"Carter\",#REF!,ROUNDUP($AA31*(1-W31),2)))","v":32.6},null,"YES",32.6,0,32.6,{"$f":"(AG31-AC31)/AG31","v":0},null,3,{"$f":"SUM(AI31:AK31)+AE31","v":32.6},null,{"$f":"ROUND(AC31/(1-VLOOKUP(AF31,Group,2,FALSE)),2)","v":32.6},{"$f":"IF(VLOOKUP(AF31,Group,5,FALSE)=\"YES\",VLOOKUP(ROUND(ROUND(AI31,1)-AI31,2),Round,2,FALSE)+VLOOKUP(AF31,Group,6,FALSE),0)","v":0},{"$f":"IF(VLOOKUP(AF31,Group,7,FALSE)=\"\",0,ROUND(AI31-0.04999,1)-AI31+AL31)","v":0},{"$f":"IF(VLOOKUP(AF31,Group,7,FALSE)=\"\",\"\",VLOOKUP(AF31,Group,7,FALSE))","v":""},null,"X"]
[null,"Decos",null,null,"12\" x 12\"",null,"M122",null,"Mosaic 2\" x 2\" - AIN20 Emperador Beige",null,null,null,null,null,null,"5 EA/CTN",null,null,{"$f":"IF(Suggested=\"Yes\",AA32,AG32)","v":32.6},"EA",{"$f":"+Instructions!$B$21","v":"G"},null,{"$f":"+Instructions!$C$21","v":0},{"$f":"IF(Instructions!$C$21=\"Group\",#REF!,IF(Instructions!$C$21=\"Carter\",#REF!,ROUNDUP($AA32*(1-W32),2)))","v":32.6},null,"YES",32.6,0,32.6,{"$f":"(AG32-AC32)/AG32","v":0},null,3,{"$f":"SUM(AI32:AK32)+AE32","v":32.6},null,{"$f":"ROUND(AC32/(1-VLOOKUP(AF32,Group,2,FALSE)),2)","v":32.6},{"$f":"IF(VLOOKUP(AF32,Group,5,FALSE)=\"YES\",VLOOKUP(ROUND(ROUND(AI32,1)-AI32,2),Round,2,FALSE)+VLOOKUP(AF32,Group,6,FALSE),0)","v":0},{"$f":"IF(VLOOKUP(AF32,Group,7,FALSE)=\"\",0,ROUND(AI32-0.04999,1)-AI32+AL32)","v":0},{"$f":"IF(VLOOKUP(AF32,Group,7,FALSE)=\"\",\"\",VLOOKUP(AF32,Group,7,FALSE))","v":""},null,"X"]
[null,"Decos",null,null,"12\" x 12\"",null,"M122",null,"Mosaic 2\" x 2\" - AIN40 Breccia Mist",null,null,null,null,null,null,"5 EA/CTN",null,null,{"$f":"IF(Suggested=\"Yes\",AA33,AG33)","v":32.6},"EA",{"$f":"+Instructions!$B$21","v":"G"},null,{"$f":"+Instructions!$C$21","v":0},{"$f":"IF(Instructions!$C$21=\"Group\",#REF!,IF(Instructions!$C$21=\"Carter\",#REF!,ROUNDUP($AA33*(1-W33),2)))","v":32.6},null,"YES",32.6,0,32.6,{"$f":"(AG33-AC33)/AG33","v":0},null,3,{"$f":"SUM(AI33:AK33)+AE33","v":32.6},null,{"$f":"ROUND(AC33/(1-VLOOKUP(AF33,Group,2,FALSE)),2)","v":32.6},{"$f":"IF(VLOOKUP(AF33,Group,5,FALSE)=\"YES\",VLOOKUP(ROUND(ROUND(AI33,1)-AI33,2),Round,2,FALSE)+VLOOKUP(AF33,Group,6,FALSE),0)","v":0},{"$f":"IF(VLOOKUP(AF33,Group,7,FALSE)=\"\",0,ROUND(AI33-0.04999,1)-AI33+AL33)","v":0},{"$f":"IF(VLOOKUP(AF33,Group,7,FALSE)=\"\",\"\",VLOOKUP(AF33,Group,7,FALSE))","v":""},null,"X"]
[null,"Decos",null,null,"11\" x 12.5\"",null,"M4x4HEX",null,"Mosaic Hexagon - AIN55 Mix (0.84 SF/SHT)",null,null,null,null,null,null,"5 EA/CTN",null,null,{"$f":"IF(Suggested=\"Yes\",AA34,AG34)","v":56.2},"EA",{"$f":"+Instructions!$B$21","v":"G"},null,{"$f":"+Instructions!$C$21","v":0},{"$f":"IF(Instructions!$C$21=\"Group\",#REF!,IF(Instructions!$C$21=\"Carter\",#REF!,ROUNDUP($AA34*(1-W34),2)))","v":56.2},null,"YES",56.2,0,56.2,{"$f":"(AG34-AC34)/AG34","v":0},null,3,{"$f":"SUM(AI34:AK34)+AE34","v":56.2},null,{"$f":"ROUND(AC34/(1-VLOOKUP(AF34,Group,2,FALSE)),2)","v":56.2},{"$f":"IF(VLOOKUP(AF34,Group,5,FALSE)=\"YES\",VLOOKUP(ROUND(ROUND(AI34,1)-AI34,2),Round,2,FALSE)+VLOOKUP(AF34,Group,6,FALSE),0)","v":0},{"$f":"IF(VLOOKUP(AF34,Group,7,FALSE)=\"\",0,ROUND(AI34-0.04999,1)-AI34+AL34)","v":0},{"$f":"IF(VLOOKUP(AF34,Group,7,FALSE)=\"\",\"\",VLOOKUP(AF34,Group,7,FALSE))","v":""},null,"X"]
[]
[null,"Trim",null,null,"3\" x 12\"",null,"P43C9",null,"Bullnose",null,null,null,null," ",null,null,"Stock","a",{"$f":"IF(Suggested=\"Yes\",AA36,AG36)","v":10.75},"EA",{"$f":"+Instructions!$B$21","v":"G"},null,{"$f":"+Instructions!$C$21","v":0},{"$f":"IF(Instructions!$C$21=\"Group\",#REF!,IF(Instructions!$C$21=\"Carter\",#REF!,ROUNDUP($AA36*(1-W36),2)))","v":10.75},null,"YES",10.75,{"$f":"+W36","v":0},{"$f":"+X36","v":10.75},{"$f":"(AG36-AC36)/AG36","v":0},null,2,{"$f":"SUM(AI36:AK36)+AE36","v":10.75},null,{"$f":"ROUND(AC36/(1-VLOOKUP(AF36,Group,2,FALSE)),2)","v":10.75},{"$f":"IF(VLOOKUP(AF36,Group,5,FALSE)=\"YES\",VLOOKUP(ROUND(ROUND(AI36,1)-AI36,2),Round,2,FALSE)+VLOOKUP(AF36,Group,6,FALSE),0)","v":0},{"$f":"IF(VLOOKUP(AF36,Group,7,FALSE)=\"\",0,ROUND(AI36-0.04999,1)-AI36+AL36)","v":0},{"$f":"IF(VLOOKUP(AF36,Group,7,FALSE)=\"\",\"\",VLOOKUP(AF36,Group,7,FALSE))","v":""},null,"X"]
[null,null,null,null,null,null,null,null,null,null,null,null,null,null,null,null,null,null,null,null,null,null,null,null,null,null,null,null,null,null,null,null,null,null,null,null,null,null,null,"X"]
[null,null,null,"Colors:","AIN1W Calacatta Gold",null,null,null,"AIN3W Zebrino Taupe",null,null,null,null,null,null,null,null,null,null,null,null,null,null,null,null,null,null,null,null,null,null,null,null,null,null," ",null,null,null,"X"]
[null,null,null,null,"AIN2W Emperador Beige",null,null,null,"AIN4W Breccia Mist",null,null,null,null,null,null,null,null,null,null,null,null,null,null,null,null,null,null,null,null,null,null,null,null,null,null," ",null,null,null,"X"]
[]
[null,"Field Tile",null,"Wall:","12.1\" x 24.4\"",null,"Field",null,null,null,null,null,null,null,null,"16.58 SF/CTN","Stock","b,c",{"$f":"IF(Suggested=\"Yes\",AA41,AG41)","v":7.2},"SF",{"$f":"+Instructions!$B$21","v":"G"},null,{"$f":"+Instructions!$C$21","v":0},{"$f":"IF(Instructions!$C$21=\"Group\",#REF!,IF(Instructions!$C$21=\"Carter\",#REF!,ROUNDUP($AA41*(1-W41),2)))","v":7.2},null,"YES",7.2,{"$f":"+W41","v":0},{"$f":"+X41","v":7.2},{"$f":"(AG41-AC41)/AG41","v":0},null,1,{"$f":"SUM(AI41:AK41)+AE41","v":7.2},null,{"$f":"ROUND(AC41/(1-VLOOKUP(AF41,Group,2,FALSE)),2)","v":7.2},{"$f":"IF(VLOOKUP(AF41,Group,5,FALSE)=\"YES\",VLOOKUP(ROUND(ROUND(AI41,1)-AI41,2),Round,2,FALSE)+VLOOKUP(AF41,Group,6,FALSE),0)","v":0},{"$f":"IF(VLOOKUP(AF41,Group,7,FALSE)=\"\",0,ROUND(AI41-0.04999,1)-AI41+AL41)","v":0},{"$f":"IF(VLOOKUP(AF41,Group,7,FALSE)=\"\",\"\",VLOOKUP(AF41,Group,7,FALSE))","v":""},null,"X"]
[]
[null,"Decos",null,null,"2\" x 12\"",null,"L2x12",null,"Listello - AIN00 Brass",null,null,null,null,null,null,null,null,null,{"$f":"IF(Suggested=\"Yes\",AA43,AG43)","v":26.2},"EA",{"$f":"+Instructions!$B$21","v":"G"},null,{"$f":"+Instructions!$C$21","v":0},{"$f":"IF(Instructions!$C$21=\"Group\",#REF!,IF(Instructions!$C$21=\"Carter\",#REF!,ROUNDUP($AA43*(1-W43),2)))","v":26.2},null,"YES",26.2,{"$f":"+W43","v":0},{"$f":"+X43","v":26.2},{"$f":"(AG43-AC43)/AG43","v":0},null,3,{"$f":"SUM(AI43:AK43)+AE43","v":26.2},null,{"$f":"ROUND(AC43/(1-VLOOKUP(AF43,Group,2,FALSE)),2)","v":26.2},{"$f":"IF(VLOOKUP(AF43,Group,5,FALSE)=\"YES\",VLOOKUP(ROUND(ROUND(AI43,1)-AI43,2),Round,2,FALSE)+VLOOKUP(AF43,Group,6,FALSE),0)","v":0},{"$f":"IF(VLOOKUP(AF43,Group,7,FALSE)=\"\",0,ROUND(AI43-0.04999,1)-AI43+AL43)","v":0},{"$f":"IF(VLOOKUP(AF43,Group,7,FALSE)=\"\",\"\",VLOOKUP(AF43,Group,7,FALSE))","v":""},null,"X"]
[null,"Decos",null,null,"2\" x 12\"",null,"L2x12",null,"Listello - AIN01 Steel",null,null,null,null,null,null,null,null,null,{"$f":"IF(Suggested=\"Yes\",AA44,AG44)","v":26.2},"EA",{"$f":"+Instructions!$B$21","v":"G"},null,{"$f":"+Instructions!$C$21","v":0},{"$f":"IF(Instructions!$C$21=\"Group\",#REF!,IF(Instructions!$C$21=\"Carter\",#REF!,ROUNDUP($AA44*(1-W44),2)))","v":26.2},null,"YES",26.2,{"$f":"+W44","v":0},{"$f":"+X44","v":26.2},{"$f":"(AG44-AC44)/AG44","v":0},null,3,{"$f":"SUM(AI44:AK44)+AE44","v":26.2},null,{"$f":"ROUND(AC44/(1-VLOOKUP(AF44,Group,2,FALSE)),2)","v":26.2},{"$f":"IF(VLOOKUP(AF44,Group,5,FALSE)=\"YES\",VLOOKUP(ROUND(ROUND(AI44,1)-AI44,2),Round,2,FALSE)+VLOOKUP(AF44,Group,6,FALSE),0)","v":0},{"$f":"IF(VLOOKUP(AF44,Group,7,FALSE)=\"\",0,ROUND(AI44-0.04999,1)-AI44+AL44)","v":0},{"$f":"IF(VLOOKUP(AF44,Group,7,FALSE)=\"\",\"\",VLOOKUP(AF44,Group,7,FALSE))","v":""},null,"X"]
[]
[null,"Trim",null,null,"3\" x 12\"",null,"S43C9",null,"Bullnose",null,null,null,null,null,null,null,"Stock","c",{"$f":"IF(Suggested=\"Yes\",AA46,AG46)","v":10.7},"EA",{"$f":"+Instructions!$B$21","v":"G"},null,{"$f":"+Instructions!$C$21","v":0},{"$f":"IF(Instructions!$C$21=\"Group\",#REF!,IF(Instructions!$C$21=\"Carter\",#REF!,ROUNDUP($AA46*(1-W46),2)))","v":10.7},null,"YES",10.7,{"$f":"+W46","v":0},{"$f":"+X46","v":10.7},{"$f":"(AG46-AC46)/AG46","v":0},null,2,{"$f":"SUM(AI46:AK46)+AE46","v":10.7},null,{"$f":"ROUND(AC46/(1-VLOOKUP(AF46,Group,2,FALSE)),2)","v":10.7},{"$f":"IF(VLOOKUP(AF46,Group,5,FALSE)=\"YES\",VLOOKUP(ROUND(ROUND(AI46,1)-AI46,2),Round,2,FALSE)+VLOOKUP(AF46,Group,6,FALSE),0)","v":0},{"$f":"IF(VLOOKUP(AF46,Group,7,FALSE)=\"\",0,ROUND(AI46-0.04999,1)-AI46+AL46)","v":0},{"$f":"IF(VLOOKUP(AF46,Group,7,FALSE)=\"\",\"\",VLOOKUP(AF46,Group,7,FALSE))","v":""},null,"X"]
[null,"Trim",null,null,"3\" x 3\"",null,"SN4339",null,"Bullnose Corner",null,null,null,null,null,null,null,null,"d",{"$f":"IF(Suggested=\"Yes\",AA47,AG47)","v":9},"EA",{"$f":"+Instructions!$B$21","v":"G"},null,{"$f":"+Instructions!$C$21","v":0},{"$f":"IF(Instructions!$C$21=\"Group\",#REF!,IF(Instructions!$C$21=\"Carter\",#REF!,ROUNDUP($AA47*(1-W47),2)))","v":9},null,"YES",9,{"$f":"+W47","v":0},{"$f":"+X47","v":9},{"$f":"(AG47-AC47)/AG47","v":0},null,2,{"$f":"SUM(AI47:AK47)+AE47","v":9},null,{"$f":"ROUND(AC47/(1-VLOOKUP(AF47,Group,2,FALSE)),2)","v":9},{"$f":"IF(VLOOKUP(AF47,Group,5,FALSE)=\"YES\",VLOOKUP(ROUND(ROUND(AI47,1)-AI47,2),Round,2,FALSE)+VLOOKUP(AF47,Group,6,FALSE),0)","v":0},{"$f":"IF(VLOOKUP(AF47,Group,7,FALSE)=\"\",0,ROUND(AI47-0.04999,1)-AI47+AL47)","v":0},{"$f":"IF(VLOOKUP(AF47,Group,7,FALSE)=\"\",\"\",VLOOKUP(AF47,Group,7,FALSE))","v":""},null,"X"]
[null,null,null,null,null,null,null,null,null,null,null,null,null,null,null,null,null,null,null,null,null,null,null,null,null,null,null,null,null,null,null,null,null,null,null,null,null,null,null,"X"]
[null,null," ","Notes:","All Mosaics are Mesh-Mounted.",null,null,null,"a) Stocked in color AIN10 Calacatta Gold only.",null,null,null,null,null,null,null,null,null,null,null,null,null,null,null,null,null,null,null,null,null,null,null,null,null,null," ",null,null,null,"X"]
[null,null," ",null,"b) The 12.1\" x 24.4\" Wall Field Tile format is transitioning from 8.5mm to 7mm in thickness as inventories of the old",null,null,null,null,null,null,null,null,null,null,null,null,null,null,null,null,null,null,null,null,null,null,null,null,null,null,null,null,null,null," ",null,null,null,"X"]
[null,null," ",null,"thickness are depleted.  Packaging of the old 12\" x 24\" x 8.5mm Field Tile is 14.35 SF/CTN.  Also, most recently, the",null,null,null,null,null,null,null,null,null,null,null,null,null,null,null,null,null,null,null,null,null,null,null,null,null,null,null,null,null,null," ",null,null,null,"X"]
[null,null," ",null,"size is now changing from 12.1\" x 24.4\" to 12\" x 24\".  The new 12\" x 24\" size will be 7mm thick and 15.50 SF/CTN.",null,null,null,null,null,null,null,null,null,null,null,null,null,null,null,null,null,null,null,null,null,null,null,null,null,null,null,null,null,null," ",null,null,null,"X"]
[null,null," ",null,"Check with Customer Service to be sure which size and packaging amount you will be receiving.",null,null,null,null,null,null,null,null,null,null,null,null,null,null,null,null,null,null,null,null,null,null,null,null,null,null,null,null,null,null," ",null,null,null,"X"]
[null,null," ",null,"c) Stocked in color AIN1W Calacatta Gold only.",null,null,null,null,null,"d) Not available in color AIN3W Zebrino Taupe.",null,null,null,null,null,null,null,null,null,null,null,null,null,null,null,null,null,null,null,null,null,null,null,null," ",null,null,null,"X"]
[]
[null,null,"ALUSTRAHDP - Color Body Glazed Porcelain Floor & Wall (Rectified)",null,null,null,null,null,null,null,null,null,null,null,null,null,null,"Item # Lookup:","FTALU"]
[null,null,null,null,null,null,null,null,null,null,null,null,null,null,null,null,null,null,null,null,null,null,null,null,null,null,null,null,null,null,null,null,null,null,null,null,null,null,null,"X"]
[null,null,null,"Colors:","ALU10 Majestic White Lasa",null,null,null,"   ALU30 Opulent Beige Onyx",null,null,null,"    ALU50 Regal Black",null,null,null,null,null,null,null,null,null,null,null,null,null,null,null,null,null,null,null,null,null,null," ",null,null,null,"X"]
[null,null,null,null,"ALU20 Imperial Gold Calacatta",null,null,null,"   ALU40 Sovereign Gray"]
[]
[null,"Field Tile",null,null,"12\" x 24\"",null,"Field",null,"Matte",null,null,null,null,null,null,"15.62 SF/CTN","Stock",null,{"$f":"IF(Suggested=\"Yes\",AA61,AG61)","v":5.95},"SF",{"$f":"+Instructions!$B$21","v":"G"},null,{"$f":"+Instructions!$C$21","v":0},{"$f":"IF(Instructions!$C$21=\"Group\",#REF!,IF(Instructions!$C$21=\"Carter\",#REF!,ROUNDUP($AA61*(1-W61),2)))","v":5.95},null,"",5.95,{"$f":"+W61","v":0},5.95,{"$f":"(AG61-AC61)/AG61","v":0},null,1,{"$f":"SUM(AI61:AK61)+AE61","v":5.95},null,{"$f":"ROUND(AC61/(1-VLOOKUP(AF61,Group,2,FALSE)),2)","v":5.95},{"$f":"IF(VLOOKUP(AF61,Group,5,FALSE)=\"YES\",VLOOKUP(ROUND(ROUND(AI61,1)-AI61,2),Round,2,FALSE)+VLOOKUP(AF61,Group,6,FALSE),0)","v":0},{"$f":"IF(VLOOKUP(AF61,Group,7,FALSE)=\"\",0,ROUND(AI61-0.04999,1)-AI61+AL61)","v":0},{"$f":"IF(VLOOKUP(AF61,Group,7,FALSE)=\"\",\"\",VLOOKUP(AF61,Group,7,FALSE))","v":""},null,"X"]
[null,"Field Tile",null,null,"24\" x 24\"",null,"Field",null,"Matte",null,null,null,null,null,null,"15.58 SF/CTN",null,null,{"$f":"IF(Suggested=\"Yes\",AA62,AG62)","v":6.7},"SF",{"$f":"+Instructions!$B$21","v":"G"},null,{"$f":"+Instructions!$C$21","v":0},{"$f":"IF(Instructions!$C$21=\"Group\",#REF!,IF(Instructions!$C$21=\"Carter\",#REF!,ROUNDUP($AA62*(1-W62),2)))","v":6.7},null,"YES",6.7,0,6.7,{"$f":"(AG62-AC62)/AG62","v":0},null,1,{"$f":"SUM(AI62:AK62)+AE62","v":6.7},null,{"$f":"ROUND(AC62/(1-VLOOKUP(AF62,Group,2,FALSE)),2)","v":6.7},{"$f":"IF(VLOOKUP(AF62,Group,5,FALSE)=\"YES\",VLOOKUP(ROUND(ROUND(AI62,1)-AI62,2),Round,2,FALSE)+VLOOKUP(AF62,Group,6,FALSE),0)","v":0},{"$f":"IF(VLOOKUP(AF62,Group,7,FALSE)=\"\",0,ROUND(AI62-0.04999,1)-AI62+AL62)","v":0},{"$f":"IF(VLOOKUP(AF62,Group,7,FALSE)=\"\",\"\",VLOOKUP(AF62,Group,7,FALSE))","v":""},null,"X"]
[null,"Field Tile",null,null,"24\" x 48\"",null,"Field",null,"Matte",null,null,null,null,null,null,"15.39 SF/CTN","Stock","a",{"$f":"IF(Suggested=\"Yes\",AA63,AG63)","v":7.75},"SF",{"$f":"+Instructions!$B$21","v":"G"},null,{"$f":"+Instructions!$C$21","v":0},{"$f":"IF(Instructions!$C$21=\"Group\",#REF!,IF(Instructions!$C$21=\"Carter\",#REF!,ROUNDUP($AA63*(1-W63),2)))","v":7.75},null,"YES",7.75,0,7.75,{"$f":"(AG63-AC63)/AG63","v":0},null,1,{"$f":"SUM(AI63:AK63)+AE63","v":7.75},null,{"$f":"ROUND(AC63/(1-VLOOKUP(AF63,Group,2,FALSE)),2)","v":7.75},{"$f":"IF(VLOOKUP(AF63,Group,5,FALSE)=\"YES\",VLOOKUP(ROUND(ROUND(AI63,1)-AI63,2),Round,2,FALSE)+VLOOKUP(AF63,Group,6,FALSE),0)","v":0},{"$f":"IF(VLOOKUP(AF63,Group,7,FALSE)=\"\",0,ROUND(AI63-0.04999,1)-AI63+AL63)","v":0},{"$f":"IF(VLOOKUP(AF63,Group,7,FALSE)=\"\",\"\",VLOOKUP(AF63,Group,7,FALSE))","v":""},null,"X"]
[]
[null,"Decos",null,null,"12\" x 12\"",null,"M12",null,"Matte",null,"Mosaic 2-1/4\" x 2-1/4\" (0.97 SF/SHEET)",null,null,null,null,"5 EA/CTN",null,null,{"$f":"IF(Suggested=\"Yes\",AA65,AG65)","v":22},"EA",{"$f":"+Instructions!$B$21","v":"G"},null,{"$f":"+Instructions!$C$21","v":0},{"$f":"IF(Instructions!$C$21=\"Group\",#REF!,IF(Instructions!$C$21=\"Carter\",#REF!,ROUNDUP($AA65*(1-W65),2)))","v":22},null,"YES",22,{"$f":"+W65","v":0},{"$f":"+X65","v":22},{"$f":"(AG65-AC65)/AG65","v":0},null,3,{"$f":"SUM(AI65:AK65)+AE65","v":22},null,{"$f":"ROUND(AC65/(1-VLOOKUP(AF65,Group,2,FALSE)),2)","v":22},{"$f":"IF(VLOOKUP(AF65,Group,5,FALSE)=\"YES\",VLOOKUP(ROUND(ROUND(AI65,1)-AI65,2),Round,2,FALSE)+VLOOKUP(AF65,Group,6,FALSE),0)","v":0},{"$f":"IF(VLOOKUP(AF65,Group,7,FALSE)=\"\",0,ROUND(AI65-0.04999,1)-AI65+AL65)","v":0},{"$f":"IF(VLOOKUP(AF65,Group,7,FALSE)=\"\",\"\",VLOOKUP(AF65,Group,7,FALSE))","v":""},null,"X"]
[null,"Decos",null,null,"9\" x 16-3/4\"",null,"M2x6CHEV",null,"Matte",null,"Mosaic 2\" x 6\" Chevron (1.05 SF/SHEET)",null,null,null,null,"5 EA/CTN",null,null,{"$f":"IF(Suggested=\"Yes\",AA66,AG66)","v":49.65},"EA",{"$f":"+Instructions!$B$21","v":"G"},null,{"$f":"+Instructions!$C$21","v":0},{"$f":"IF(Instructions!$C$21=\"Group\",#REF!,IF(Instructions!$C$21=\"Carter\",#REF!,ROUNDUP($AA66*(1-W66),2)))","v":49.65},null,"YES",49.65,{"$f":"+W66","v":0},{"$f":"+X66","v":49.65},{"$f":"(AG66-AC66)/AG66","v":0},null,3,{"$f":"SUM(AI66:AK66)+AE66","v":49.65},null,{"$f":"ROUND(AC66/(1-VLOOKUP(AF66,Group,2,FALSE)),2)","v":49.65},{"$f":"IF(VLOOKUP(AF66,Group,5,FALSE)=\"YES\",VLOOKUP(ROUND(ROUND(AI66,1)-AI66,2),Round,2,FALSE)+VLOOKUP(AF66,Group,6,FALSE),0)","v":0},{"$f":"IF(VLOOKUP(AF66,Group,7,FALSE)=\"\",0,ROUND(AI66-0.04999,1)-AI66+AL66)","v":0},{"$f":"IF(VLOOKUP(AF66,Group,7,FALSE)=\"\",\"\",VLOOKUP(AF66,Group,7,FALSE))","v":""},null,"X"]
[null,"Decos",null,null,"10-1/4\" x 11-3/4\"",null,"M3x3HEX",null,"Matte",null,"Mosaic 3\" x 3\" Hex (0.83 SF/SHEET)",null,null,null,null,"5 EA/CTN",null,null,{"$f":"IF(Suggested=\"Yes\",AA67,AG67)","v":59.75},"EA",{"$f":"+Instructions!$B$21","v":"G"},null,{"$f":"+Instructions!$C$21","v":0},{"$f":"IF(Instructions!$C$21=\"Group\",#REF!,IF(Instructions!$C$21=\"Carter\",#REF!,ROUNDUP($AA67*(1-W67),2)))","v":59.75},null,"YES",59.75,{"$f":"+W67","v":0},{"$f":"+X67","v":59.75},{"$f":"(AG67-AC67)/AG67","v":0},null,3,{"$f":"SUM(AI67:AK67)+AE67","v":59.75},null,{"$f":"ROUND(AC67/(1-VLOOKUP(AF67,Group,2,FALSE)),2)","v":59.75},{"$f":"IF(VLOOKUP(AF67,Group,5,FALSE)=\"YES\",VLOOKUP(ROUND(ROUND(AI67,1)-AI67,2),Round,2,FALSE)+VLOOKUP(AF67,Group,6,FALSE),0)","v":0},{"$f":"IF(VLOOKUP(AF67,Group,7,FALSE)=\"\",0,ROUND(AI67-0.04999,1)-AI67+AL67)","v":0},{"$f":"IF(VLOOKUP(AF67,Group,7,FALSE)=\"\",\"\",VLOOKUP(AF67,Group,7,FALSE))","v":""},null,"X"]
[]
[null,"Trim",null,null,"3\" x 24\"",null,"P43N9",null,"Matte",null,"Bullnose",null,null,null,null,null,null,null,{"$f":"IF(Suggested=\"Yes\",AA69,AG69)","v":13.65},"EA",{"$f":"+Instructions!$B$21","v":"G"},null,{"$f":"+Instructions!$C$21","v":0},{"$f":"IF(Instructions!$C$21=\"Group\",#REF!,IF(Instructions!$C$21=\"Carter\",#REF!,ROUNDUP($AA69*(1-W69),2)))","v":13.65},null,"YES",13.65,{"$f":"+W69","v":0},{"$f":"+X69","v":13.65},{"$f":"(AG69-AC69)/AG69","v":0},null,2,{"$f":"SUM(AI69:AK69)+AE69","v":13.65},null,{"$f":"ROUND(AC69/(1-VLOOKUP(AF69,Group,2,FALSE)),2)","v":13.65},{"$f":"IF(VLOOKUP(AF69,Group,5,FALSE)=\"YES\",VLOOKUP(ROUND(ROUND(AI69,1)-AI69,2),Round,2,FALSE)+VLOOKUP(AF69,Group,6,FALSE),0)","v":0},{"$f":"IF(VLOOKUP(AF69,Group,7,FALSE)=\"\",0,ROUND(AI69-0.04999,1)-AI69+AL69)","v":0},{"$f":"IF(VLOOKUP(AF69,Group,7,FALSE)=\"\",\"\",VLOOKUP(AF69,Group,7,FALSE))","v":""},null,"X"]
[null,null,null,null,null,null,null,null,null,null,null,null,null,null,null,null,null,null,null,null,null,null,null,null,null,null,null,null,null,null,null,null,null,null,null,null,null,null,null,"X"]
[null,null,null,"Colors:","ALU10P Majestic White Lasa",null,null,null,"   ALU30P Opulent Beige Onyx",null,null,null,"    ALU50P Regal Black",null,null,null,null,null,null,null,null,null,null,null,null,null,null,null,null,null,null,null,null,null,null," ",null,null,null,"X"]
[null,null,null,null,"ALU20P Imperial Gold Calacatta",null,null,null,"   ALU40P Sovereign Gray"]
[]
[null,"Field Tile",null,null,"12\" x 24\"",null,"Field",null,"Polished",null,null,null,null,null,null,"15.62 SF/CTN","Stock",null,{"$f":"IF(Suggested=\"Yes\",AA74,AG74)","v":8.5500000000000007},"SF",{"$f":"+Instructions!$B$21","v":"G"},null,{"$f":"+Instructions!$C$21","v":0},{"$f":"IF(Instructions!$C$21=\"Group\",#REF!,IF(Instructions!$C$21=\"Carter\",#REF!,ROUNDUP($AA74*(1-W74),2)))","v":8.5500000000000007},null,"YES",8.5500000000000007,{"$f":"+W74","v":0},8.5500000000000007,{"$f":"(AG74-AC74)/AG74","v":0},null,1,{"$f":"SUM(AI74:AK74)+AE74","v":8.5500000000000007},null,{"$f":"ROUND(AC74/(1-VLOOKUP(AF74,Group,2,FALSE)),2)","v":8.5500000000000007},{"$f":"IF(VLOOKUP(AF74,Group,5,FALSE)=\"YES\",VLOOKUP(ROUND(ROUND(AI74,1)-AI74,2),Round,2,FALSE)+VLOOKUP(AF74,Group,6,FALSE),0)","v":0},{"$f":"IF(VLOOKUP(AF74,Group,7,FALSE)=\"\",0,ROUND(AI74-0.04999,1)-AI74+AL74)","v":0},{"$f":"IF(VLOOKUP(AF74,Group,7,FALSE)=\"\",\"\",VLOOKUP(AF74,Group,7,FALSE))","v":""},null,"X"]
[null,"Field Tile",null,null,"24\" x 24\"",null,"Field",null,"Polished",null,null,null,null,null,null,"15.50 SF/CTN",null,"b",{"$f":"IF(Suggested=\"Yes\",AA75,AG75)","v":9.0500000000000007},"SF",{"$f":"+Instructions!$B$21","v":"G"},null,{"$f":"+Instructions!$C$21","v":0},{"$f":"IF(Instructions!$C$21=\"Group\",#REF!,IF(Instructions!$C$21=\"Carter\",#REF!,ROUNDUP($AA75*(1-W75),2)))","v":9.0500000000000007},null,"YES",9.0500000000000007,0,9.0500000000000007,{"$f":"(AG75-AC75)/AG75","v":0},null,1,{"$f":"SUM(AI75:AK75)+AE75","v":9.0500000000000007},null,{"$f":"ROUND(AC75/(1-VLOOKUP(AF75,Group,2,FALSE)),2)","v":9.0500000000000007},{"$f":"IF(VLOOKUP(AF75,Group,5,FALSE)=\"YES\",VLOOKUP(ROUND(ROUND(AI75,1)-AI75,2),Round,2,FALSE)+VLOOKUP(AF75,Group,6,FALSE),0)","v":0},{"$f":"IF(VLOOKUP(AF75,Group,7,FALSE)=\"\",0,ROUND(AI75-0.04999,1)-AI75+AL75)","v":0},{"$f":"IF(VLOOKUP(AF75,Group,7,FALSE)=\"\",\"\",VLOOKUP(AF75,Group,7,FALSE))","v":""},null,"X"]
[null,"Field Tile",null,null,"24\" x 48\"",null,"Field",null,"Polished",null,null,null,null,null,null,"15.39 SF/CTN","Stock",null,{"$f":"IF(Suggested=\"Yes\",AA76,AG76)","v":9.4499999999999993},"SF",{"$f":"+Instructions!$B$21","v":"G"},null,{"$f":"+Instructions!$C$21","v":0},{"$f":"IF(Instructions!$C$21=\"Group\",#REF!,IF(Instructions!$C$21=\"Carter\",#REF!,ROUNDUP($AA76*(1-W76),2)))","v":9.4499999999999993},null,"YES",9.4499999999999993,0,9.4499999999999993,{"$f":"(AG76-AC76)/AG76","v":0},null,1,{"$f":"SUM(AI76:AK76)+AE76","v":9.4499999999999993},null,{"$f":"ROUND(AC76/(1-VLOOKUP(AF76,Group,2,FALSE)),2)","v":9.4499999999999993},{"$f":"IF(VLOOKUP(AF76,Group,5,FALSE)=\"YES\",VLOOKUP(ROUND(ROUND(AI76,1)-AI76,2),Round,2,FALSE)+VLOOKUP(AF76,Group,6,FALSE),0)","v":0},{"$f":"IF(VLOOKUP(AF76,Group,7,FALSE)=\"\",0,ROUND(AI76-0.04999,1)-AI76+AL76)","v":0},{"$f":"IF(VLOOKUP(AF76,Group,7,FALSE)=\"\",\"\",VLOOKUP(AF76,Group,7,FALSE))","v":""},null,"X"]
[]
[null,"Decos",null,null,"3/4\" x 24\"",null,"L3/4x24",null,"Polished",null,"Inlay Liner - Gold",null,null,null,null,null,null,"c",{"$f":"IF(Suggested=\"Yes\",AA78,AG78)","v":51.25},"EA",{"$f":"+Instructions!$B$21","v":"G"},null,{"$f":"+Instructions!$C$21","v":0},{"$f":"IF(Instructions!$C$21=\"Group\",#REF!,IF(Instructions!$C$21=\"Carter\",#REF!,ROUNDUP($AA78*(1-W78),2)))","v":51.25},null,"YES",51.25,{"$f":"+W78","v":0},{"$f":"+X78","v":51.25},{"$f":"(AG78-AC78)/AG78","v":0},null,3,{"$f":"SUM(AI78:AK78)+AE78","v":51.25},null,{"$f":"ROUND(AC78/(1-VLOOKUP(AF78,Group,2,FALSE)),2)","v":51.25},{"$f":"IF(VLOOKUP(AF78,Group,5,FALSE)=\"YES\",VLOOKUP(ROUND(ROUND(AI78,1)-AI78,2),Round,2,FALSE)+VLOOKUP(AF78,Group,6,FALSE),0)","v":0},{"$f":"IF(VLOOKUP(AF78,Group,7,FALSE)=\"\",0,ROUND(AI78-0.04999,1)-AI78+AL78)","v":0},{"$f":"IF(VLOOKUP(AF78,Group,7,FALSE)=\"\",\"\",VLOOKUP(AF78,Group,7,FALSE))","v":""},null,"X"]
[null,"Decos",null,null,"3/4\" x 24\"",null,"L3/4x24",null,"Polished",null,"Inlay Liner - Silver",null,null,null,null,null,null,"d",{"$f":"IF(Suggested=\"Yes\",AA79,AG79)","v":51.25},"EA",{"$f":"+Instructions!$B$21","v":"G"},null,{"$f":"+Instructions!$C$21","v":0},{"$f":"IF(Instructions!$C$21=\"Group\",#REF!,IF(Instructions!$C$21=\"Carter\",#REF!,ROUNDUP($AA79*(1-W79),2)))","v":51.25},null,"YES",51.25,{"$f":"+W79","v":0},{"$f":"+X79","v":51.25},{"$f":"(AG79-AC79)/AG79","v":0},null,3,{"$f":"SUM(AI79:AK79)+AE79","v":51.25},null,{"$f":"ROUND(AC79/(1-VLOOKUP(AF79,Group,2,FALSE)),2)","v":51.25},{"$f":"IF(VLOOKUP(AF79,Group,5,FALSE)=\"YES\",VLOOKUP(ROUND(ROUND(AI79,1)-AI79,2),Round,2,FALSE)+VLOOKUP(AF79,Group,6,FALSE),0)","v":0},{"$f":"IF(VLOOKUP(AF79,Group,7,FALSE)=\"\",0,ROUND(AI79-0.04999,1)-AI79+AL79)","v":0},{"$f":"IF(VLOOKUP(AF79,Group,7,FALSE)=\"\",\"\",VLOOKUP(AF79,Group,7,FALSE))","v":""},null,"X"]
[]
[null,"Decos",null,null,"10-1/2\" x 11-1/2\"",null,"M4x6ARCH",null,"Polished",null,"Mosaic 4\" x 6\" Arch (0.84 SF/SHEET)",null,null,null,null,"5 EA/CTN",null,null,{"$f":"IF(Suggested=\"Yes\",AA81,AG81)","v":57.4},"EA",{"$f":"+Instructions!$B$21","v":"G"},null,{"$f":"+Instructions!$C$21","v":0},{"$f":"IF(Instructions!$C$21=\"Group\",#REF!,IF(Instructions!$C$21=\"Carter\",#REF!,ROUNDUP($AA81*(1-W81),2)))","v":57.4},null,"YES",57.4,{"$f":"+W81","v":0},57.4,{"$f":"(AG81-AC81)/AG81","v":0},null,3,{"$f":"SUM(AI81:AK81)+AE81","v":57.4},null,{"$f":"ROUND(AC81/(1-VLOOKUP(AF81,Group,2,FALSE)),2)","v":57.4},{"$f":"IF(VLOOKUP(AF81,Group,5,FALSE)=\"YES\",VLOOKUP(ROUND(ROUND(AI81,1)-AI81,2),Round,2,FALSE)+VLOOKUP(AF81,Group,6,FALSE),0)","v":0},{"$f":"IF(VLOOKUP(AF81,Group,7,FALSE)=\"\",0,ROUND(AI81-0.04999,1)-AI81+AL81)","v":0},{"$f":"IF(VLOOKUP(AF81,Group,7,FALSE)=\"\",\"\",VLOOKUP(AF81,Group,7,FALSE))","v":""},null,"X"]
[null,"Decos",null,null,"9\" x 16-3/4\"",null,"M2x6CHEV",null,"Polished",null,"Mosaic 2\" x 6\" Chevron (1.05 SF/SHEET)",null,null,null,null,"5 EA/CTN",null,null,{"$f":"IF(Suggested=\"Yes\",AA82,AG82)","v":52.65},"EA",{"$f":"+Instructions!$B$21","v":"G"},null,{"$f":"+Instructions!$C$21","v":0},{"$f":"IF(Instructions!$C$21=\"Group\",#REF!,IF(Instructions!$C$21=\"Carter\",#REF!,ROUNDUP($AA82*(1-W82),2)))","v":52.65},null,"YES",52.65,0,52.65,{"$f":"(AG82-AC82)/AG82","v":0},null,3,{"$f":"SUM(AI82:AK82)+AE82","v":52.65},null,{"$f":"ROUND(AC82/(1-VLOOKUP(AF82,Group,2,FALSE)),2)","v":52.65},{"$f":"IF(VLOOKUP(AF82,Group,5,FALSE)=\"YES\",VLOOKUP(ROUND(ROUND(AI82,1)-AI82,2),Round,2,FALSE)+VLOOKUP(AF82,Group,6,FALSE),0)","v":0},{"$f":"IF(VLOOKUP(AF82,Group,7,FALSE)=\"\",0,ROUND(AI82-0.04999,1)-AI82+AL82)","v":0},{"$f":"IF(VLOOKUP(AF82,Group,7,FALSE)=\"\",\"\",VLOOKUP(AF82,Group,7,FALSE))","v":""},null,"X"]
[null,"Decos",null,null,"10-1/4\" x 11-3/4\"",null,"M3x3HEX",null,"Polished",null,"Mosaic 3\" x 3\" Hex (0.83 SF/SHEET)",null,null,null,null,"5 EA/CTN",null,null,{"$f":"IF(Suggested=\"Yes\",AA83,AG83)","v":62.6},"EA",{"$f":"+Instructions!$B$21","v":"G"},null,{"$f":"+Instructions!$C$21","v":0},{"$f":"IF(Instructions!$C$21=\"Group\",#REF!,IF(Instructions!$C$21=\"Carter\",#REF!,ROUNDUP($AA83*(1-W83),2)))","v":62.6},null,"YES",62.6,0,62.6,{"$f":"(AG83-AC83)/AG83","v":0},null,3,{"$f":"SUM(AI83:AK83)+AE83","v":62.6},null,{"$f":"ROUND(AC83/(1-VLOOKUP(AF83,Group,2,FALSE)),2)","v":62.6},{"$f":"IF(VLOOKUP(AF83,Group,5,FALSE)=\"YES\",VLOOKUP(ROUND(ROUND(AI83,1)-AI83,2),Round,2,FALSE)+VLOOKUP(AF83,Group,6,FALSE),0)","v":0},{"$f":"IF(VLOOKUP(AF83,Group,7,FALSE)=\"\",0,ROUND(AI83-0.04999,1)-AI83+AL83)","v":0},{"$f":"IF(VLOOKUP(AF83,Group,7,FALSE)=\"\",\"\",VLOOKUP(AF83,Group,7,FALSE))","v":""},null,"X"]
[]
[null,"Trim",null,null,"3\" x 24\"",null,"P43N9",null,"Polished",null,"Bullnose",null,null,null,null,null,"Stock","e",{"$f":"IF(Suggested=\"Yes\",AA85,AG85)","v":14.9},"EA",{"$f":"+Instructions!$B$21","v":"G"},null,{"$f":"+Instructions!$C$21","v":0},{"$f":"IF(Instructions!$C$21=\"Group\",#REF!,IF(Instructions!$C$21=\"Carter\",#REF!,ROUNDUP($AA85*(1-W85),2)))","v":14.9},null,"YES",14.9,{"$f":"+W85","v":0},{"$f":"+X85","v":14.9},{"$f":"(AG85-AC85)/AG85","v":0},null,2,{"$f":"SUM(AI85:AK85)+AE85","v":14.9},null,{"$f":"ROUND(AC85/(1-VLOOKUP(AF85,Group,2,FALSE)),2)","v":14.9},{"$f":"IF(VLOOKUP(AF85,Group,5,FALSE)=\"YES\",VLOOKUP(ROUND(ROUND(AI85,1)-AI85,2),Round,2,FALSE)+VLOOKUP(AF85,Group,6,FALSE),0)","v":0},{"$f":"IF(VLOOKUP(AF85,Group,7,FALSE)=\"\",0,ROUND(AI85-0.04999,1)-AI85+AL85)","v":0},{"$f":"IF(VLOOKUP(AF85,Group,7,FALSE)=\"\",\"\",VLOOKUP(AF85,Group,7,FALSE))","v":""},null,"X"]
[]
[null,null,null,"Notes:","All Mosaics are Mesh-Mounted.",null,null,null,"a) Stocked in colors ALU10 Majestic White Lasa and ALU20 Imperial Gold Calacatta only.",null,null,null,null,null,null,null,null,null,null,null,null,null,null,null,null,null,null,null,null,null,null,null,null,null,null," ",null,null,null,"X"]
[null,null,null,null,"b) Packaging is changing from 15.50 SF/CTN to 15.58 SF/CTN as inventory with old packaging is depleted.",null,null,null,null,null,null,null,null,null,null,null,null,null,null,null,null,null,null,null,null,null,null,null,null,null,null,null,null,null,null," ",null,null,null,"X"]
[null,null,null,null,"c) Available in colors ALU20P Imperial Gold Calacatta and ALU30P Opulent Beige Onyx only. ",null,null,null,null,null,null,null,null,null,null,null,null,null,null,null,null,null,null,null,null,null,null,null,null,null,null,null,null,null,null," ",null,null,null,"X"]
[null,null,null,null,"d) Available in colors ALU10P Majestic White Lasa, ALU40P Sovereign Gray and ALU50P Regal Black only. ",null,null,null,null,null,null,null,null,null,null,null,null,null,null,null,null,null,null,null,null,null,null,null,null,null,null,null,null,null,null," ",null,null,null,"X"]
[null,null,null,null,"e) Stocked in color ALU20P Imperial Gold Calacatta only."]
[]
[null,null,"AMPLIFY - Glazed Ceramic Wall (Rectified)",null,null,null,null,null,null,null,null," ",null,null,null,null,null,"Item # Lookup:","FTAM",null,null,null,null,null,null,null,null,null,null,null,null,null,null,null,null," ",null,null,null,"X"]
[null,null,null,null,null,null,null,null,null,null,null,null,null,null,null,null,null,null,null,null,null,null,null,null,null,null,null,null,null,null,null,null,null,null,null,null,null,null,null,"X"]
[null,null,null,"Colors:","Black (Matte)          Branco Brilho (Glossy)          Deep Blue (Matte)          White (Matte)",null,null,null,null,null,null,null,null,null,null,null,null,null,null,null,null,null,null,null,null,null,null,null,null,null,null,null,null,null,null," ",null,null,null,"X"]
[]
[null,"Field Tile",null,null,"12\" x 24\"",null,"Field",null,null,null,null,null,null,null,null,"15.50 SF/CTN",null,null,{"$f":"IF(Suggested=\"Yes\",AA97,AG97)","v":8.9499999999999993},"SF",{"$f":"+Instructions!$B$21","v":"G"},null,{"$f":"+Instructions!$C$21","v":0},{"$f":"IF(Instructions!$C$21=\"Group\",#REF!,IF(Instructions!$C$21=\"Carter\",#REF!,ROUNDUP($AA97*(1-W97),2)))","v":8.9499999999999993},null,"",8.9499999999999993,{"$f":"+W97","v":0},{"$f":"+X97","v":8.9499999999999993},{"$f":"(AG97-AC97)/AG97","v":0},null,1,{"$f":"SUM(AI97:AK97)+AE97","v":8.9499999999999993},null,{"$f":"ROUND(AC97/(1-VLOOKUP(AF97,Group,2,FALSE)),2)","v":8.9499999999999993},{"$f":"IF(VLOOKUP(AF97,Group,5,FALSE)=\"YES\",VLOOKUP(ROUND(ROUND(AI97,1)-AI97,2),Round,2,FALSE)+VLOOKUP(AF97,Group,6,FALSE),0)","v":0},{"$f":"IF(VLOOKUP(AF97,Group,7,FALSE)=\"\",0,ROUND(AI97-0.04999,1)-AI97+AL97)","v":0},{"$f":"IF(VLOOKUP(AF97,Group,7,FALSE)=\"\",\"\",VLOOKUP(AF97,Group,7,FALSE))","v":""},null,"X"]
[null,null,null,null,null,null,null,null,null,null,null,null,null,null,null,null,null,null,null,null,null,null,null,null,null,null,null,null,null,null,null,null,null,null,null,null,null,null,null,"X"]
[null,"Trim",null,null,"3\" x 12\"",null,"S43C9",null,"Bullnose",null,null,null,null,null,null,null,null,null,{"$f":"IF(Suggested=\"Yes\",AA99,AG99)","v":10.9},"EA",{"$f":"+Instructions!$B$21","v":"G"},null,{"$f":"+Instructions!$C$21","v":0},{"$f":"IF(Instructions!$C$21=\"Group\",#REF!,IF(Instructions!$C$21=\"Carter\",#REF!,ROUNDUP($AA99*(1-W99),2)))","v":10.9},null,"",10.9,{"$f":"+W99","v":0},{"$f":"+X99","v":10.9},{"$f":"(AG99-AC99)/AG99","v":0},null,2,{"$f":"SUM(AI99:AK99)+AE99","v":10.9},null,{"$f":"ROUND(AC99/(1-VLOOKUP(AF99,Group,2,FALSE)),2)","v":10.9},{"$f":"IF(VLOOKUP(AF99,Group,5,FALSE)=\"YES\",VLOOKUP(ROUND(ROUND(AI99,1)-AI99,2),Round,2,FALSE)+VLOOKUP(AF99,Group,6,FALSE),0)","v":0},{"$f":"IF(VLOOKUP(AF99,Group,7,FALSE)=\"\",0,ROUND(AI99-0.04999,1)-AI99+AL99)","v":0},{"$f":"IF(VLOOKUP(AF99,Group,7,FALSE)=\"\",\"\",VLOOKUP(AF99,Group,7,FALSE))","v":""},null,"X"]
[null,null,null,null,null,null,null,null,null,null,null,null,null,null,null,null,null,null,null,null,null,null,null,null,null,null,null,null,null,null,null,null,null,null,null,null,null,null,null,"X"]
[null,null,null,"Dimensional Patterns:",null,null,null,null,null,null,null,null,null,null,null,null,null,null,null,null,null,null,null,null,null,null,null,null,null,null,null,null,null,null,null," ",null,null,null,"X"]
[null,null,null,null,null,null,null,null,null,null,null,null,null,null,null,null,null,null,null,null,null,null,null,null,null,null,null,null,null,null,null,null,null,null,null,null,null,null,null,"X"]
[null,"Decos",null,null,"12\" x 24\"",null,"Field",null,"Arid - White (Glossy)",null,null,null,null,null,null,"15.50 SF/CTN",null,null,{"$f":"IF(Suggested=\"Yes\",AA103,AG103)","v":10.75},"SF",{"$f":"+Instructions!$B$21","v":"G"},null,{"$f":"+Instructions!$C$21","v":0},{"$f":"IF(Instructions!$C$21=\"Group\",#REF!,IF(Instructions!$C$21=\"Carter\",#REF!,ROUNDUP($AA103*(1-W103),2)))","v":10.75},null,"",10.75,{"$f":"+W103","v":0},10.75,{"$f":"(AG103-AC103)/AG103","v":0},null,3,{"$f":"SUM(AI103:AK103)+AE103","v":10.75},null,{"$f":"ROUND(AC103/(1-VLOOKUP(AF103,Group,2,FALSE)),2)","v":10.75},{"$f":"IF(VLOOKUP(AF103,Group,5,FALSE)=\"YES\",VLOOKUP(ROUND(ROUND(AI103,1)-AI103,2),Round,2,FALSE)+VLOOKUP(AF103,Group,6,FALSE),0)","v":0},{"$f":"IF(VLOOKUP(AF103,Group,7,FALSE)=\"\",0,ROUND(AI103-0.04999,1)-AI103+AL103)","v":0},{"$f":"IF(VLOOKUP(AF103,Group,7,FALSE)=\"\",\"\",VLOOKUP(AF103,Group,7,FALSE))","v":""},null,"X"]
[null,"Decos",null,null,"12\" x 24\"",null,"Field",null,"Reef - Deep Blue (Matte)",null,null,null,null,null,null,"13.56 SF/CTN",null,null,{"$f":"IF(Suggested=\"Yes\",AA104,AG104)","v":10.75},"SF",{"$f":"+Instructions!$B$21","v":"G"},null,{"$f":"+Instructions!$C$21","v":0},{"$f":"IF(Instructions!$C$21=\"Group\",#REF!,IF(Instructions!$C$21=\"Carter\",#REF!,ROUNDUP($AA104*(1-W104),2)))","v":10.75},null,"",10.75,0,10.75,{"$f":"(AG104-AC104)/AG104","v":0},null,3,{"$f":"SUM(AI104:AK104)+AE104","v":10.75},null,{"$f":"ROUND(AC104/(1-VLOOKUP(AF104,Group,2,FALSE)),2)","v":10.75},{"$f":"IF(VLOOKUP(AF104,Group,5,FALSE)=\"YES\",VLOOKUP(ROUND(ROUND(AI104,1)-AI104,2),Round,2,FALSE)+VLOOKUP(AF104,Group,6,FALSE),0)","v":0},{"$f":"IF(VLOOKUP(AF104,Group,7,FALSE)=\"\",0,ROUND(AI104-0.04999,1)-AI104+AL104)","v":0},{"$f":"IF(VLOOKUP(AF104,Group,7,FALSE)=\"\",\"\",VLOOKUP(AF104,Group,7,FALSE))","v":""},null,"X"]
[null,"Decos",null,null,"12\" x 24\"",null,"Field",null,"Reef - White (Matte)",null,null,null,null,null,null,"13.56 SF/CTN",null,null,{"$f":"IF(Suggested=\"Yes\",AA105,AG105)","v":10.75},"SF",{"$f":"+Instructions!$B$21","v":"G"},null,{"$f":"+Instructions!$C$21","v":0},{"$f":"IF(Instructions!$C$21=\"Group\",#REF!,IF(Instructions!$C$21=\"Carter\",#REF!,ROUNDUP($AA105*(1-W105),2)))","v":10.75},null,"",10.75,0,10.75,{"$f":"(AG105-AC105)/AG105","v":0},null,3,{"$f":"SUM(AI105:AK105)+AE105","v":10.75},null,{"$f":"ROUND(AC105/(1-VLOOKUP(AF105,Group,2,FALSE)),2)","v":10.75},{"$f":"IF(VLOOKUP(AF105,Group,5,FALSE)=\"YES\",VLOOKUP(ROUND(ROUND(AI105,1)-AI105,2),Round,2,FALSE)+VLOOKUP(AF105,Group,6,FALSE),0)","v":0},{"$f":"IF(VLOOKUP(AF105,Group,7,FALSE)=\"\",0,ROUND(AI105-0.04999,1)-AI105+AL105)","v":0},{"$f":"IF(VLOOKUP(AF105,Group,7,FALSE)=\"\",\"\",VLOOKUP(AF105,Group,7,FALSE))","v":""},null,"X"]
[null,null,null,null,null,null,null,null,null,null,null,null,null,null,null,null,null,null,null,null,null,null,null,null,null,null,null,null,null,null,null,null,null,null,null,null,null,null,null,"X"]
[null,null,null,"Colors:","Branco Brilho (Glossy)          White (Matte)",null,null,null,null,null,null,null,null,null,null,null,null,null,null,null,null,null,null,null,null,null,null,null,null,null,null,null,null,null,null," ",null,null,null,"X"]
[]
[null,"Field Tile",null,null,"14\" x 39\"",null,"Field",null,null,null,null,null,null,null,null,"15.07 SF/CTN",null,null,{"$f":"IF(Suggested=\"Yes\",AA109,AG109)","v":10.25},"SF",{"$f":"+Instructions!$B$21","v":"G"},null,{"$f":"+Instructions!$C$21","v":0},{"$f":"IF(Instructions!$C$21=\"Group\",#REF!,IF(Instructions!$C$21=\"Carter\",#REF!,ROUNDUP($AA109*(1-W109),2)))","v":10.25},null,"",10.25,{"$f":"+W109","v":0},{"$f":"+X109","v":10.25},{"$f":"(AG109-AC109)/AG109","v":0},null,1,{"$f":"SUM(AI109:AK109)+AE109","v":10.25},null,{"$f":"ROUND(AC109/(1-VLOOKUP(AF109,Group,2,FALSE)),2)","v":10.25},{"$f":"IF(VLOOKUP(AF109,Group,5,FALSE)=\"YES\",VLOOKUP(ROUND(ROUND(AI109,1)-AI109,2),Round,2,FALSE)+VLOOKUP(AF109,Group,6,FALSE),0)","v":0},{"$f":"IF(VLOOKUP(AF109,Group,7,FALSE)=\"\",0,ROUND(AI109-0.04999,1)-AI109+AL109)","v":0},{"$f":"IF(VLOOKUP(AF109,Group,7,FALSE)=\"\",\"\",VLOOKUP(AF109,Group,7,FALSE))","v":""},null,"X"]
[null,null,null,null,null,null,null,null,null,null,null,null,null,null,null,null,null,null,null,null,null,null,null,null,null,null,null,null,null,null,null,null,null,null,null,null,null,null,null,"X"]
[null,"Trim",null,null,"3\" x 14\"",null,"S43E9",null,"Bullnose",null,null,null,null,null,null,null,null,null,{"$f":"IF(Suggested=\"Yes\",AA111,AG111)","v":11.8},"EA",{"$f":"+Instructions!$B$21","v":"G"},null,{"$f":"+Instructions!$C$21","v":0},{"$f":"IF(Instructions!$C$21=\"Group\",#REF!,IF(Instructions!$C$21=\"Carter\",#REF!,ROUNDUP($AA111*(1-W111),2)))","v":11.8},null,"",11.8,{"$f":"+W111","v":0},{"$f":"+X111","v":11.8},{"$f":"(AG111-AC111)/AG111","v":0},null,2,{"$f":"SUM(AI111:AK111)+AE111","v":11.8},null,{"$f":"ROUND(AC111/(1-VLOOKUP(AF111,Group,2,FALSE)),2)","v":11.8},{"$f":"IF(VLOOKUP(AF111,Group,5,FALSE)=\"YES\",VLOOKUP(ROUND(ROUND(AI111,1)-AI111,2),Round,2,FALSE)+VLOOKUP(AF111,Group,6,FALSE),0)","v":0},{"$f":"IF(VLOOKUP(AF111,Group,7,FALSE)=\"\",0,ROUND(AI111-0.04999,1)-AI111+AL111)","v":0},{"$f":"IF(VLOOKUP(AF111,Group,7,FALSE)=\"\",\"\",VLOOKUP(AF111,Group,7,FALSE))","v":""},null,"X"]
[null,null,null,null,null,null,null,null,null,null,null,null,null,null,null,null,null,null,null,null,null,null,null,null,null,null,null,null,null,null,null,null,null,null,null,null,null,null,null,"X"]
["x",null,"continued on next page",null,null,null,null,null,null,null,null,null,null,null,null,null,null,null,null,null,null,null,null,null,null,null,null,null,null,null,null,null,null,null,null," ",null,null,null,"X"]
[null,null,"AMPLIFY - continued",null,null,null,null,null,null,null,null,null,null,null,null,null,null,"Item # Lookup:","FTAM",null,null,null,null,null,null,null,null,null,null,null,null,null,null,null,null," ",null,null,null,"X"]
[null,null,null,null,null,null,null,null,null,null,null,null,null,null,null,null,null,null,null,null,null,null,null,null,null,null,null,null,null,null,null,null,null,null,null,null,null,null,null,"X"]
[null,null,null,"Dimensional Patterns:",null,null,null,null,null,null,null,null,null,null,null,null,null,null,null,null,null,null,null,null,null,null,null,null,null,null,null,null,null,null,null," ",null,null,null,"X"]
[null,null,null,null,null,null,null,null,null,null,null,null,null,null,null,null,null,null,null,null,null,null,null,null,null,null,null,null,null,null,null,null,null,null,null,null,null,null,null,"X"]
[null,"Decos",null,null,"14\" x 39\"",null,"Field",null,"Dune - White (Matte)",null,null,null,null,null,null,"11.30 SF/CTN",null,null,{"$f":"IF(Suggested=\"Yes\",AA118,AG118)","v":11.95},"SF",{"$f":"+Instructions!$B$21","v":"G"},null,{"$f":"+Instructions!$C$21","v":0},{"$f":"IF(Instructions!$C$21=\"Group\",#REF!,IF(Instructions!$C$21=\"Carter\",#REF!,ROUNDUP($AA118*(1-W118),2)))","v":11.95},null,"",11.95,{"$f":"+W118","v":0},11.95,{"$f":"(AG118-AC118)/AG118","v":0},null,3,{"$f":"SUM(AI118:AK118)+AE118","v":11.95},null,{"$f":"ROUND(AC118/(1-VLOOKUP(AF118,Group,2,FALSE)),2)","v":11.95},{"$f":"IF(VLOOKUP(AF118,Group,5,FALSE)=\"YES\",VLOOKUP(ROUND(ROUND(AI118,1)-AI118,2),Round,2,FALSE)+VLOOKUP(AF118,Group,6,FALSE),0)","v":0},{"$f":"IF(VLOOKUP(AF118,Group,7,FALSE)=\"\",0,ROUND(AI118-0.04999,1)-AI118+AL118)","v":0},{"$f":"IF(VLOOKUP(AF118,Group,7,FALSE)=\"\",\"\",VLOOKUP(AF118,Group,7,FALSE))","v":""},null,"X"]
[null,"Decos",null,null,"14\" x 39\"",null,"Field",null,"Rise - White (Matte)",null,null,null,null,null,null,"11.30 SF/CTN",null,null,{"$f":"IF(Suggested=\"Yes\",AA119,AG119)","v":11.95},"SF",{"$f":"+Instructions!$B$21","v":"G"},null,{"$f":"+Instructions!$C$21","v":0},{"$f":"IF(Instructions!$C$21=\"Group\",#REF!,IF(Instructions!$C$21=\"Carter\",#REF!,ROUNDUP($AA119*(1-W119),2)))","v":11.95},null,"",11.95,0,11.95,{"$f":"(AG119-AC119)/AG119","v":0},null,3,{"$f":"SUM(AI119:AK119)+AE119","v":11.95},null,{"$f":"ROUND(AC119/(1-VLOOKUP(AF119,Group,2,FALSE)),2)","v":11.95},{"$f":"IF(VLOOKUP(AF119,Group,5,FALSE)=\"YES\",VLOOKUP(ROUND(ROUND(AI119,1)-AI119,2),Round,2,FALSE)+VLOOKUP(AF119,Group,6,FALSE),0)","v":0},{"$f":"IF(VLOOKUP(AF119,Group,7,FALSE)=\"\",0,ROUND(AI119-0.04999,1)-AI119+AL119)","v":0},{"$f":"IF(VLOOKUP(AF119,Group,7,FALSE)=\"\",\"\",VLOOKUP(AF119,Group,7,FALSE))","v":""},null,"X"]
[null,"Decos",null,null,"14\" x 39\"",null,"Field",null,"Wind - White (Matte)",null,null,null,null,null,null,"11.30 SF/CTN",null,null,{"$f":"IF(Suggested=\"Yes\",AA120,AG120)","v":11.95},"SF",{"$f":"+Instructions!$B$21","v":"G"},null,{"$f":"+Instructions!$C$21","v":0},{"$f":"IF(Instructions!$C$21=\"Group\",#REF!,IF(Instructions!$C$21=\"Carter\",#REF!,ROUNDUP($AA120*(1-W120),2)))","v":11.95},null,"",11.95,0,11.95,{"$f":"(AG120-AC120)/AG120","v":0},null,3,{"$f":"SUM(AI120:AK120)+AE120","v":11.95},null,{"$f":"ROUND(AC120/(1-VLOOKUP(AF120,Group,2,FALSE)),2)","v":11.95},{"$f":"IF(VLOOKUP(AF120,Group,5,FALSE)=\"YES\",VLOOKUP(ROUND(ROUND(AI120,1)-AI120,2),Round,2,FALSE)+VLOOKUP(AF120,Group,6,FALSE),0)","v":0},{"$f":"IF(VLOOKUP(AF120,Group,7,FALSE)=\"\",0,ROUND(AI120-0.04999,1)-AI120+AL120)","v":0},{"$f":"IF(VLOOKUP(AF120,Group,7,FALSE)=\"\",\"\",VLOOKUP(AF120,Group,7,FALSE))","v":""},null,"X"]
[null,null,null,null,null,null,null,null,null,null,null,null,null,null,null,null,null,null,null,null,null,null,null,null,null,null,null,null,null,null,null,null,null,null,null,null,null,null,null,"X"]
[null,null,null,"Dimensional Pattern:",null,null,null,null,null,null,null,null,null,null,null,null,null,null,null,null,null,null,null,null,null,null,null,null,null,null,null,null,null,null,null," ",null,null,null,"X"]
[null,null,null,null,null,null,null,null,null,null,null,null,null,null,null,null,null,null,null,null,null,null,null,null,null,null,null,null,null,null,null,null,null,null,null,null,null,null,null,"X"]
[null,"Decos",null,null,"9\" x 18\"",null,"Field (Pressed)",null,"Diamond - White (Glossy)",null,null,null,null,null,null,"11.94 SF/CTN",null,null,{"$f":"IF(Suggested=\"Yes\",AA124,AG124)","v":6.05},"SF",{"$f":"+Instructions!$B$21","v":"G"},null,{"$f":"+Instructions!$C$21","v":0},{"$f":"IF(Instructions!$C$21=\"Group\",#REF!,IF(Instructions!$C$21=\"Carter\",#REF!,ROUNDUP($AA124*(1-W124),2)))","v":6.05},null,"",6.05,{"$f":"+W124","v":0},{"$f":"+X124","v":6.05},{"$f":"(AG124-AC124)/AG124","v":0},null,3,{"$f":"SUM(AI124:AK124)+AE124","v":6.05},null,{"$f":"ROUND(AC124/(1-VLOOKUP(AF124,Group,2,FALSE)),2)","v":6.05},{"$f":"IF(VLOOKUP(AF124,Group,5,FALSE)=\"YES\",VLOOKUP(ROUND(ROUND(AI124,1)-AI124,2),Round,2,FALSE)+VLOOKUP(AF124,Group,6,FALSE),0)","v":0},{"$f":"IF(VLOOKUP(AF124,Group,7,FALSE)=\"\",0,ROUND(AI124-0.04999,1)-AI124+AL124)","v":0},{"$f":"IF(VLOOKUP(AF124,Group,7,FALSE)=\"\",\"\",VLOOKUP(AF124,Group,7,FALSE))","v":""},null,"X"]
[null,null,null,null,null,null,null,null,null,null,null,null,null,null,null,null,null,null,null,null,null,null,null,null,null,null,null,null,null,null,null,null,null,null,null,null,null,null,null,"X"]
[null,null,"ARTECRETE - Color Body Glazed Porcelain",null,null,null,null,null,null,null,null,"  ",null,null,null,null,null,"Item # Lookup:","FTAR"]
[null,null,null,null,null,null,null,null,null,null,null,null,null,null,null,null,null,null,null,null,null,null,null,null,null,null,null,null,null,null,null,null,null,null,null,null,null,null,null,"X"]
[null,null,null,"Colors:","Beige          Black          Gray          Greige          White",null,null,null,null,null,null,null,null,null,null,null,null,null,null,null,null,null,null,null,null,null,null,null,null,null,null,null,null,null,null," ",null,null,null,"X"]
[null,null,null,null,null,null,null,null,null,null,null,null,null,null,null,null,null,null,null,null,null,null,null,null,null,null,null,null,null,null,null,null,null,null,null,null,null,null,null,"X"]
[null,"Field Tile",null,null,"6\" x 24\"",null,"Field",null,null,null,null,null,null,null,null,"17.00 SF/CTN",null,null,{"$f":"IF(Suggested=\"Yes\",AA130,AG130)","v":5.45},"SF",{"$f":"+Instructions!$B$21","v":"G"},null,{"$f":"+Instructions!$C$21","v":0},{"$f":"IF(Instructions!$C$21=\"Group\",#REF!,IF(Instructions!$C$21=\"Carter\",#REF!,ROUNDUP($AA130*(1-W130),2)))","v":5.45},null,"YES",5.45,{"$f":"+W130","v":0},{"$f":"+X130","v":5.45},{"$f":"(AG130-AC130)/AG130","v":0},null,1,{"$f":"SUM(AI130:AK130)+AE130","v":5.45},null,{"$f":"ROUND(AC130/(1-VLOOKUP(AF130,Group,2,FALSE)),2)","v":5.45},{"$f":"IF(VLOOKUP(AF130,Group,5,FALSE)=\"YES\",VLOOKUP(ROUND(ROUND(AI130,1)-AI130,2),Round,2,FALSE)+VLOOKUP(AF130,Group,6,FALSE),0)","v":0},{"$f":"IF(VLOOKUP(AF130,Group,7,FALSE)=\"\",0,ROUND(AI130-0.04999,1)-AI130+AL130)","v":0},{"$f":"IF(VLOOKUP(AF130,Group,7,FALSE)=\"\",\"\",VLOOKUP(AF130,Group,7,FALSE))","v":""},null,"X"]
[null,"Field Tile",null,null,"12\" x 24\"",null,"Field",null,null,null,null,null,null,null,null,"18.00 SF/CTN",null,null,{"$f":"IF(Suggested=\"Yes\",AA131,AG131)","v":5.45},"SF",{"$f":"+Instructions!$B$21","v":"G"},null,{"$f":"+Instructions!$C$21","v":0},{"$f":"IF(Instructions!$C$21=\"Group\",#REF!,IF(Instructions!$C$21=\"Carter\",#REF!,ROUNDUP($AA131*(1-W131),2)))","v":5.45},null,"YES",5.45,{"$f":"+W131","v":0},{"$f":"+X131","v":5.45},{"$f":"(AG131-AC131)/AG131","v":0},null,1,{"$f":"SUM(AI131:AK131)+AE131","v":5.45},null,{"$f":"ROUND(AC131/(1-VLOOKUP(AF131,Group,2,FALSE)),2)","v":5.45},{"$f":"IF(VLOOKUP(AF131,Group,5,FALSE)=\"YES\",VLOOKUP(ROUND(ROUND(AI131,1)-AI131,2),Round,2,FALSE)+VLOOKUP(AF131,Group,6,FALSE),0)","v":0},{"$f":"IF(VLOOKUP(AF131,Group,7,FALSE)=\"\",0,ROUND(AI131-0.04999,1)-AI131+AL131)","v":0},{"$f":"IF(VLOOKUP(AF131,Group,7,FALSE)=\"\",\"\",VLOOKUP(AF131,Group,7,FALSE))","v":""},null,"X"]
[null,null,null,null,null,null,null,null,null,null,null,null,null,null,null,null,null,null,null,null,null,null,null,null,null,null,null,null,null,null,null,null,null,null,null,null,null,null,null,"X"]
[null,"Decos",null,null,"12\" x 24\"",null,"Field - Deco",null,null,null,null,null,null,null,null,"18.00 SF/CTN",null,null,6.45,"SF",{"$f":"+Instructions!$B$21","v":"G"},null,{"$f":"+Instructions!$C$21","v":0},{"$f":"IF(Instructions!$C$21=\"Group\",#REF!,IF(Instructions!$C$21=\"Carter\",#REF!,ROUNDUP($AA133*(1-W133),2)))","v":6.45},null,"YES",6.45,0,6.45,0,null,3,6.45,null,6.45,0,0,"",null,"X"]
[null,null,null,null,null,null,null,null,null,null,null,null,null,null,null,null,null,null,null,null,null,null,null,null,null,null,null,null,null,null,null,null,null,null,null,null,null,null,null,"X"]
[null,"Decos",null,null,"12\" x 12\"",null,"M12",null,"Mosaic 2-1/2\" x 2-1/2\" Mesh-Mounted ",null,null,null,null,null,null,"5 EA/CTN",null,null,{"$f":"IF(Suggested=\"Yes\",AA135,AG135)","v":22.85},"EA",{"$f":"+Instructions!$B$21","v":"G"},null,{"$f":"+Instructions!$C$21","v":0},{"$f":"IF(Instructions!$C$21=\"Group\",#REF!,IF(Instructions!$C$21=\"Carter\",#REF!,ROUNDUP($AA135*(1-W135),2)))","v":22.85},null,"YES",22.85,{"$f":"+W135","v":0},{"$f":"+X135","v":22.85},{"$f":"(AG135-AC135)/AG135","v":0},null,3,{"$f":"SUM(AI135:AK135)+AE135","v":22.85},null,{"$f":"ROUND(AC135/(1-VLOOKUP(AF135,Group,2,FALSE)),2)","v":22.85},{"$f":"IF(VLOOKUP(AF135,Group,5,FALSE)=\"YES\",VLOOKUP(ROUND(ROUND(AI135,1)-AI135,2),Round,2,FALSE)+VLOOKUP(AF135,Group,6,FALSE),0)","v":0},{"$f":"IF(VLOOKUP(AF135,Group,7,FALSE)=\"\",0,ROUND(AI135-0.04999,1)-AI135+AL135)","v":0},{"$f":"IF(VLOOKUP(AF135,Group,7,FALSE)=\"\",\"\",VLOOKUP(AF135,Group,7,FALSE))","v":""},null,"X"]
[null,null,null,null,null,null,null,null,null,null,null,null,null,null,null,null,null,null,null,null,null,null,null,null,null,null,null,null,null,null,null,null,null,null,null,null,null,null,null,"X"]
[null,"Trim",null,null,"3\" x 24\"",null,"P43N9",null,"Bullnose",null,null,null,null,null,null,null,null,null,11.5,"EA",{"$f":"+Instructions!$B$21","v":"G"},null,{"$f":"+Instructions!$C$21","v":0},{"$f":"IF(Instructions!$C$21=\"Group\",#REF!,IF(Instructions!$C$21=\"Carter\",#REF!,ROUNDUP($AA137*(1-W137),2)))","v":11.5},null,"YES",11.5,0,11.5,0,null,2,11.5,null,11.5,0,0,"",null,"X"]
[]
[null,null,"AURA - Glazed Porcelain Floor & Wall (Rectified)",null,null,null,null,null,null,null,null,null,null,null,null,null,null,"Item # Lookup:","FTAUR",null,null,null,null,null,null,null,null,null,null,null,null,null,null,null,null," ",null,null,null,"X"]
[null,null,null,null,null,null,null,null,null,null,null,null,null,null,null,null,null,null,null,null,null,null,null,null,null,null,null,null,null,null,null,null,null,null,null,null,null,null,null,"X"]
[null,null,null,"Colors:","AUR10 Canvas White",null,null,"     AUR30 Ash Warm Gray",null,null,null," AUR50 Antracita Charcoal",null,null,null,null,null,null,null,null,null,null,null,null,null,null,null,null,null,null,null,null,null,null,null," ",null,null,null,"X"]
[null,null,null,null,"AUR20 Light Gray",null,null,"     AUR40 Earth Beige",null,null,null,null,null,null,null,null,null,null,null,null,null,null,null,null,null,null,null,null,null,null,null,null,null,null,null," ",null,null,null,"X"]
[null,null,null,null,null,null,null,null,null,null,null,null,null,null,null,null,null,null,null,null,null,null,null,null,null,null,null,null,null,null,null,null,null,null,null,null,null,null,null,"X"]
[null,"Field Tile",null,null,"12\" x 24\"",null,"Field",null,"Matte",null,null,null,null,null,null,"11.63 SF/CTN","Stock","a",{"$f":"IF(Suggested=\"Yes\",AA144,AG144)","v":7.95},"SF",{"$f":"+Instructions!$B$21","v":"G"},null,{"$f":"+Instructions!$C$21","v":0},{"$f":"IF(Instructions!$C$21=\"Group\",#REF!,IF(Instructions!$C$21=\"Carter\",#REF!,ROUNDUP($AA144*(1-W144),2)))","v":7.95},null,"",7.95,{"$f":"+W144","v":0},7.95,{"$f":"(AG144-AC144)/AG144","v":0},null,1,{"$f":"SUM(AI144:AK144)+AE144","v":7.95},null,{"$f":"ROUND(AC144/(1-VLOOKUP(AF144,Group,2,FALSE)),2)","v":7.95},{"$f":"IF(VLOOKUP(AF144,Group,5,FALSE)=\"YES\",VLOOKUP(ROUND(ROUND(AI144,1)-AI144,2),Round,2,FALSE)+VLOOKUP(AF144,Group,6,FALSE),0)","v":0},{"$f":"IF(VLOOKUP(AF144,Group,7,FALSE)=\"\",0,ROUND(AI144-0.04999,1)-AI144+AL144)","v":0},{"$f":"IF(VLOOKUP(AF144,Group,7,FALSE)=\"\",\"\",VLOOKUP(AF144,Group,7,FALSE))","v":""},null,"X"]
[null,"Field Tile",null,null,"24\" x 24\"",null,"Field",null,"Matte",null,null,null,null,null,null,"15.50 SF/CTN",null,null,{"$f":"IF(Suggested=\"Yes\",AA145,AG145)","v":8.1999999999999993},"SF",{"$f":"+Instructions!$B$21","v":"G"},null,{"$f":"+Instructions!$C$21","v":0},{"$f":"IF(Instructions!$C$21=\"Group\",#REF!,IF(Instructions!$C$21=\"Carter\",#REF!,ROUNDUP($AA145*(1-W145),2)))","v":8.1999999999999993},null,"",8.1999999999999993,0,8.1999999999999993,{"$f":"(AG145-AC145)/AG145","v":0},null,1,{"$f":"SUM(AI145:AK145)+AE145","v":8.1999999999999993},null,{"$f":"ROUND(AC145/(1-VLOOKUP(AF145,Group,2,FALSE)),2)","v":8.1999999999999993},{"$f":"IF(VLOOKUP(AF145,Group,5,FALSE)=\"YES\",VLOOKUP(ROUND(ROUND(AI145,1)-AI145,2),Round,2,FALSE)+VLOOKUP(AF145,Group,6,FALSE),0)","v":0},{"$f":"IF(VLOOKUP(AF145,Group,7,FALSE)=\"\",0,ROUND(AI145-0.04999,1)-AI145+AL145)","v":0},{"$f":"IF(VLOOKUP(AF145,Group,7,FALSE)=\"\",\"\",VLOOKUP(AF145,Group,7,FALSE))","v":""},null,"X"]
[null,"Field Tile",null,null,"24\" x 48\"",null,"Field",null,"Matte",null,null,null,null,null,null,"15.50 SF/CTN",null,null,{"$f":"IF(Suggested=\"Yes\",AA146,AG146)","v":9.4499999999999993},"SF",{"$f":"+Instructions!$B$21","v":"G"},null,{"$f":"+Instructions!$C$21","v":0},{"$f":"IF(Instructions!$C$21=\"Group\",#REF!,IF(Instructions!$C$21=\"Carter\",#REF!,ROUNDUP($AA146*(1-W146),2)))","v":9.4499999999999993},null,"",9.4499999999999993,0,9.4499999999999993,{"$f":"(AG146-AC146)/AG146","v":0},null,1,{"$f":"SUM(AI146:AK146)+AE146","v":9.4499999999999993},null,{"$f":"ROUND(AC146/(1-VLOOKUP(AF146,Group,2,FALSE)),2)","v":9.4499999999999993},{"$f":"IF(VLOOKUP(AF146,Group,5,FALSE)=\"YES\",VLOOKUP(ROUND(ROUND(AI146,1)-AI146,2),Round,2,FALSE)+VLOOKUP(AF146,Group,6,FALSE),0)","v":0},{"$f":"IF(VLOOKUP(AF146,Group,7,FALSE)=\"\",0,ROUND(AI146-0.04999,1)-AI146+AL146)","v":0},{"$f":"IF(VLOOKUP(AF146,Group,7,FALSE)=\"\",\"\",VLOOKUP(AF146,Group,7,FALSE))","v":""},null,"X"]
[null,null,null,null,null,null,null,null,null,null,null,null,null,null,null,null,null,null,null,null,null,null,null,null,null,null,null,null,null,null,null,null,null,null,null,null,null,null,null,"X"]
[null,"Decos",null,null,"12\" x 12\"",null,"M128",null,"Matte","Mosaic 1-3/8\" x 1-3/8\" Mesh-Mounted",null,null,null,null,null,"5 EA/CTN",null,null,{"$f":"IF(Suggested=\"Yes\",AA148,AG148)","v":34.6},"EA",{"$f":"+Instructions!$B$21","v":"G"},null,{"$f":"+Instructions!$C$21","v":0},{"$f":"IF(Instructions!$C$21=\"Group\",#REF!,IF(Instructions!$C$21=\"Carter\",#REF!,ROUNDUP($AA148*(1-W148),2)))","v":34.6},null,"",34.6,{"$f":"+W148","v":0},{"$f":"+X148","v":34.6},{"$f":"(AG148-AC148)/AG148","v":0},null,3,{"$f":"SUM(AI148:AK148)+AE148","v":34.6},null,{"$f":"ROUND(AC148/(1-VLOOKUP(AF148,Group,2,FALSE)),2)","v":34.6},{"$f":"IF(VLOOKUP(AF148,Group,5,FALSE)=\"YES\",VLOOKUP(ROUND(ROUND(AI148,1)-AI148,2),Round,2,FALSE)+VLOOKUP(AF148,Group,6,FALSE),0)","v":0},{"$f":"IF(VLOOKUP(AF148,Group,7,FALSE)=\"\",0,ROUND(AI148-0.04999,1)-AI148+AL148)","v":0},{"$f":"IF(VLOOKUP(AF148,Group,7,FALSE)=\"\",\"\",VLOOKUP(AF148,Group,7,FALSE))","v":""},null,"X"]
[null,null,null,null,null,null,null,null,null,null,null,null,null,null,null,null,null,null,null,null,null,null,null,null,null,null,null,null,null,null,null,null,null,null,null,null,null,null,null,"X"]
[null,"Trim",null,null,"3\" x 24\"",null,"P43N9",null,"Matte","Bullnose",null,null,null,null,null,null,null,null,{"$f":"IF(Suggested=\"Yes\",AA150,AG150)","v":13.75},"EA",{"$f":"+Instructions!$B$21","v":"G"},null,{"$f":"+Instructions!$C$21","v":0},{"$f":"IF(Instructions!$C$21=\"Group\",#REF!,IF(Instructions!$C$21=\"Carter\",#REF!,ROUNDUP($AA150*(1-W150),2)))","v":13.75},null,"",13.75,{"$f":"+W150","v":0},{"$f":"+X150","v":13.75},{"$f":"(AG150-AC150)/AG150","v":0},null,2,{"$f":"SUM(AI150:AK150)+AE150","v":13.75},null,{"$f":"ROUND(AC150/(1-VLOOKUP(AF150,Group,2,FALSE)),2)","v":13.75},{"$f":"IF(VLOOKUP(AF150,Group,5,FALSE)=\"YES\",VLOOKUP(ROUND(ROUND(AI150,1)-AI150,2),Round,2,FALSE)+VLOOKUP(AF150,Group,6,FALSE),0)","v":0},{"$f":"IF(VLOOKUP(AF150,Group,7,FALSE)=\"\",0,ROUND(AI150-0.04999,1)-AI150+AL150)","v":0},{"$f":"IF(VLOOKUP(AF150,Group,7,FALSE)=\"\",\"\",VLOOKUP(AF150,Group,7,FALSE))","v":""},null,"X"]
[null,null,null,null,null,null,null,null,null,null,null,null,null,null,null,null,null,null,null,null,null,null,null,null,null,null,null,null,null,null,null,null,null,null,null,null,null,null,null,"X"]
[null,null,null,"Note:","a) Not stocked in color AUR50 Antracita Charcoal.",null,null,null,null,null,null,null,null,null,null,null,null,null,null,null,null,null,null,null,null,null,null,null,null,null,null,null,null,null,null," ",null,null,null,"X"]
[]
[null,null,"BELLANOVA - Color Body Glazed Porcelain",null,null,null,null,null,null,null,null,null,null,null,null,null,null,"Item # Lookup:","FTBE"]
[null,null,null,null,null,null,null,null,null,null,null,null,null,null,null,null,null,null,null,null,null,null,null,null,null,null,null,null,null,null,null,null,null,null,null,null,null,null,null,"X"]
[null,null,null,"Colors:","BNV10 Foam",null,"      BNV30 Honey",null,null,"     BNV50 Espresso",null,null,null,null,null,null,null,null,null,null,null,null,null,null,null,null,null,null,null,null,null,null,null,null,null," ",null,null,null,"X"]
[null,null,null,null,"BNV20 Crema",null,"      BNV40 Macchiato",null,null,null,null,null,null,null,null,null,null,null,null,null,null,null,null,null,null,null,null,null,null,null,null,null,null,null,null," ",null,null,null,"X"]
[null,null,null,null,null,null,null,null,null,null,null,null,null,null,null,null,null,null,null,null,null,null,null,null,null,null,null,null,null,null,null,null,null,null,null,null,null,null,null,"X"]
[null,"Field Tile",null,null,"8\" x 48\"",null,"Field",null,"Rectified",null,null,null,null,null,null,"15.69 SF/CTN",null,null,{"$f":"IF(Suggested=\"Yes\",AA159,AG159)","v":6.15},"SF",{"$f":"+Instructions!$B$21","v":"G"},null,{"$f":"+Instructions!$C$21","v":0},{"$f":"IF(Instructions!$C$21=\"Group\",#REF!,IF(Instructions!$C$21=\"Carter\",#REF!,ROUNDUP($AA159*(1-W159),2)))","v":6.15},null,"YES",6.15,{"$f":"+W159","v":0},{"$f":"+X159","v":6.15},{"$f":"(AG159-AC159)/AG159","v":0},null,1,{"$f":"SUM(AI159:AK159)+AE159","v":6.15},null,{"$f":"ROUND(AC159/(1-VLOOKUP(AF159,Group,2,FALSE)),2)","v":6.15},{"$f":"IF(VLOOKUP(AF159,Group,5,FALSE)=\"YES\",VLOOKUP(ROUND(ROUND(AI159,1)-AI159,2),Round,2,FALSE)+VLOOKUP(AF159,Group,6,FALSE),0)","v":0},{"$f":"IF(VLOOKUP(AF159,Group,7,FALSE)=\"\",0,ROUND(AI159-0.04999,1)-AI159+AL159)","v":0},{"$f":"IF(VLOOKUP(AF159,Group,7,FALSE)=\"\",\"\",VLOOKUP(AF159,Group,7,FALSE))","v":""},null,"X"]
[null,null,null,null,null,null,null,null,null,null,null,null,null,null,null,null,null,null,null,null,null,null,null,null,null,null,null,null,null,null,null,null,null,null,null,null,null,null,null,"X"]
[null,"Decos",null,null,"8\" x 48\"",null,"M1x48LIN",null,"Mosaic 1\" x 48\" Linear Mesh-Mounted",null,null,null,null,null,null,"5 EA/CTN",null,null,{"$f":"IF(Suggested=\"Yes\",AA161,AG161)","v":92},"EA",{"$f":"+Instructions!$B$21","v":"G"},null,{"$f":"+Instructions!$C$21","v":0},{"$f":"IF(Instructions!$C$21=\"Group\",#REF!,IF(Instructions!$C$21=\"Carter\",#REF!,ROUNDUP($AA161*(1-W161),2)))","v":92},null,"YES",92,{"$f":"+W161","v":0},{"$f":"+X161","v":92},{"$f":"(AG161-AC161)/AG161","v":0},null,3,{"$f":"SUM(AI161:AK161)+AE161","v":92},null,{"$f":"ROUND(AC161/(1-VLOOKUP(AF161,Group,2,FALSE)),2)","v":92},{"$f":"IF(VLOOKUP(AF161,Group,5,FALSE)=\"YES\",VLOOKUP(ROUND(ROUND(AI161,1)-AI161,2),Round,2,FALSE)+VLOOKUP(AF161,Group,6,FALSE),0)","v":0},{"$f":"IF(VLOOKUP(AF161,Group,7,FALSE)=\"\",0,ROUND(AI161-0.04999,1)-AI161+AL161)","v":0},{"$f":"IF(VLOOKUP(AF161,Group,7,FALSE)=\"\",\"\",VLOOKUP(AF161,Group,7,FALSE))","v":""},null,"X"]
[null,null,null,null,null,null,null,null,null,null,null,null,null,null,null,null,null,null,null,null,null,null,null,null,null,null,null,null,null,null,null,null,null,null,null,null,null,null,null,"X"]
[null,null,"BERKSHIREHDP - Color Body Glazed Porcelain",null,null,null,null,null,null,null,null,null,null,null,null,null,null,"Item # Lookup:","FT255"]
[null,null,null,null,null,null,null,null,null,null,null,null,null,null,null,null,null,null,null,null,null,null,null,null,null,null,null,null,null,null,null,null,null,null,null,null,null,null,null,"X"]
[null,null,null,"Colors:","25525 Oak          25535 Hickory          25555 Olive          25585 Walnut          25595 Maple",null,null,null,null,null,null,null,null,null,null,null,null,null,null,null,null,null,null,null,null,null,null,null,null,null,null,null,null,null,null," ",null,null,null,"X"]
[null,null,null,null,null,null,null,null,null,null,null,null,null,null,null,null,null,null,null,null,null,null,null,null,null,null,null,null,null,null,null,null,null,null,null,null,null,null,null,"X"]
[null,"Field Tile",null,null,"6\" x 24\"",null,"Field",null,null,null,null,null,null,null,null,"15.00 SF/CTN",null,null,{"$f":"IF(Suggested=\"Yes\",AA167,AG167)","v":6.95},"SF",{"$f":"+Instructions!$B$21","v":"G"},null,{"$f":"+Instructions!$C$21","v":0},{"$f":"IF(Instructions!$C$21=\"Group\",#REF!,IF(Instructions!$C$21=\"Carter\",#REF!,ROUNDUP($AA167*(1-W167),2)))","v":6.95},null,"YES",6.95,{"$f":"+W167","v":0},{"$f":"+X167","v":6.95},{"$f":"(AG167-AC167)/AG167","v":0},null,1,{"$f":"SUM(AI167:AK167)+AE167","v":6.95},null,{"$f":"ROUND(AC167/(1-VLOOKUP(AF167,Group,2,FALSE)),2)","v":6.95},{"$f":"IF(VLOOKUP(AF167,Group,5,FALSE)=\"YES\",VLOOKUP(ROUND(ROUND(AI167,1)-AI167,2),Round,2,FALSE)+VLOOKUP(AF167,Group,6,FALSE),0)","v":0},{"$f":"IF(VLOOKUP(AF167,Group,7,FALSE)=\"\",0,ROUND(AI167-0.04999,1)-AI167+AL167)","v":0},{"$f":"IF(VLOOKUP(AF167,Group,7,FALSE)=\"\",\"\",VLOOKUP(AF167,Group,7,FALSE))","v":""},null,"X"]
[null,"Field Tile",null,null,"8\" x 36\"",null,"Field",null,null,null,null,null,null,null,null,"14.00 SF/CTN",null,null,{"$f":"IF(Suggested=\"Yes\",AA168,AG168)","v":6.95},"SF",{"$f":"+Instructions!$B$21","v":"G"},null,{"$f":"+Instructions!$C$21","v":0},{"$f":"IF(Instructions!$C$21=\"Group\",#REF!,IF(Instructions!$C$21=\"Carter\",#REF!,ROUNDUP($AA168*(1-W168),2)))","v":6.95},null,"YES",6.95,{"$f":"+W168","v":0},{"$f":"+X168","v":6.95},{"$f":"(AG168-AC168)/AG168","v":0},null,1,{"$f":"SUM(AI168:AK168)+AE168","v":6.95},null,{"$f":"ROUND(AC168/(1-VLOOKUP(AF168,Group,2,FALSE)),2)","v":6.95},{"$f":"IF(VLOOKUP(AF168,Group,5,FALSE)=\"YES\",VLOOKUP(ROUND(ROUND(AI168,1)-AI168,2),Round,2,FALSE)+VLOOKUP(AF168,Group,6,FALSE),0)","v":0},{"$f":"IF(VLOOKUP(AF168,Group,7,FALSE)=\"\",0,ROUND(AI168-0.04999,1)-AI168+AL168)","v":0},{"$f":"IF(VLOOKUP(AF168,Group,7,FALSE)=\"\",\"\",VLOOKUP(AF168,Group,7,FALSE))","v":""},null,"X"]
[null,null,null,null,null,null,null,null,null,null,null,null,null,null,null,null,null,null,null,null,null,null,null,null,null,null,null,null,null,null,null,null,null,null,null,null,null,null,null,"X"]
[null,"Decos",null,null,"12\" x 12\"",null,"M12REC   ",null,"Mosaic Parquet Mesh-Mounted",null,null,null,null,null,null,"5 EA/CTN",null,null,{"$f":"IF(Suggested=\"Yes\",AA170,AG170)","v":31.5},"EA",{"$f":"+Instructions!$B$21","v":"G"},null,{"$f":"+Instructions!$C$21","v":0},{"$f":"IF(Instructions!$C$21=\"Group\",#REF!,IF(Instructions!$C$21=\"Carter\",#REF!,ROUNDUP($AA170*(1-W170),2)))","v":31.5},null,"YES",31.5,{"$f":"+W170","v":0},{"$f":"+X170","v":31.5},{"$f":"(AG170-AC170)/AG170","v":0},null,3,{"$f":"SUM(AI170:AK170)+AE170","v":31.5},null,{"$f":"ROUND(AC170/(1-VLOOKUP(AF170,Group,2,FALSE)),2)","v":31.5},{"$f":"IF(VLOOKUP(AF170,Group,5,FALSE)=\"YES\",VLOOKUP(ROUND(ROUND(AI170,1)-AI170,2),Round,2,FALSE)+VLOOKUP(AF170,Group,6,FALSE),0)","v":0},{"$f":"IF(VLOOKUP(AF170,Group,7,FALSE)=\"\",0,ROUND(AI170-0.04999,1)-AI170+AL170)","v":0},{"$f":"IF(VLOOKUP(AF170,Group,7,FALSE)=\"\",\"\",VLOOKUP(AF170,Group,7,FALSE))","v":""},null,"X"]
[]
[null,"Trim",null,null,"3\" x 24\"",null,"P43N9",null,"Bullnose",null,null,null,null,null,null,null,null,null,{"$f":"IF(Suggested=\"Yes\",AA172,AG172)","v":18.3},"EA",{"$f":"+Instructions!$B$21","v":"G"},null,{"$f":"+Instructions!$C$21","v":0},{"$f":"IF(Instructions!$C$21=\"Group\",#REF!,IF(Instructions!$C$21=\"Carter\",#REF!,ROUNDUP($AA172*(1-W172),2)))","v":18.3},null,"YES",18.3,{"$f":"+W172","v":0},{"$f":"+X172","v":18.3},{"$f":"(AG172-AC172)/AG172","v":0},null,2,{"$f":"SUM(AI172:AK172)+AE172","v":18.3},null,{"$f":"ROUND(AC172/(1-VLOOKUP(AF172,Group,2,FALSE)),2)","v":18.3},{"$f":"IF(VLOOKUP(AF172,Group,5,FALSE)=\"YES\",VLOOKUP(ROUND(ROUND(AI172,1)-AI172,2),Round,2,FALSE)+VLOOKUP(AF172,Group,6,FALSE),0)","v":0},{"$f":"IF(VLOOKUP(AF172,Group,7,FALSE)=\"\",0,ROUND(AI172-0.04999,1)-AI172+AL172)","v":0},{"$f":"IF(VLOOKUP(AF172,Group,7,FALSE)=\"\",\"\",VLOOKUP(AF172,Group,7,FALSE))","v":""},null,"X"]
[null,null,null,null,null,null,null,null,null,null,null,null,null,null,null,null,null,null,null,null,null,null,null,null,null,null,null,null,null,null,null,null,null,null,null,null,null,null,null,"X"]
[null,null,"BLUERUNHDP - Color Body Porcelain & 2CM PAVERS",null,null,null,null,null,null,null,null,null,null,null,null,null,null,"Item # Lookup:","FTBL"]
[null,null,null,null,null,null,null,null,null,null,null,null,null,null,null,null,null,null,null,null,null,null,null,null,null,null,null,null,null,null,null,null,null,null,null,null,null,null,null,"X"]
[null,null,null,"Colors:","BLR10 Antique White          BLR20 Historic Greige          BLR30 Atlas Gray",null,null,null,null,null,null,null,null,null,null,null,null,null,null,null,null,null,null,null,null,null,null,null,null,null,null,null,null,null,null," ",null,null,null,"X"]
[null,null,null,null,null,null,null,null,null,null,null,null,null,null,null,null,null,null,null,null,null,null,null,null,null,null,null,null,null,null,null,null,null,null,null,null,null,null,null,"X"]
[null,"Field Tile",null,null,"12\" x 24\"",null,"Field",null,"Rectified",null,null,null,null,null,null,"15.62 SF/CTN",null,null,{"$f":"IF(Suggested=\"Yes\",AA178,AG178)","v":6.35},"SF",{"$f":"+Instructions!$B$21","v":"G"},null,{"$f":"+Instructions!$C$21","v":0},{"$f":"IF(Instructions!$C$21=\"Group\",#REF!,IF(Instructions!$C$21=\"Carter\",#REF!,ROUNDUP($AA178*(1-W178),2)))","v":6.35},null,"YES",6.35,{"$f":"+W178","v":0},{"$f":"+X178","v":6.35},{"$f":"(AG178-AC178)/AG178","v":0},null,1,{"$f":"SUM(AI178:AK178)+AE178","v":6.35},null,{"$f":"ROUND(AC178/(1-VLOOKUP(AF178,Group,2,FALSE)),2)","v":6.35},{"$f":"IF(VLOOKUP(AF178,Group,5,FALSE)=\"YES\",VLOOKUP(ROUND(ROUND(AI178,1)-AI178,2),Round,2,FALSE)+VLOOKUP(AF178,Group,6,FALSE),0)","v":0},{"$f":"IF(VLOOKUP(AF178,Group,7,FALSE)=\"\",0,ROUND(AI178-0.04999,1)-AI178+AL178)","v":0},{"$f":"IF(VLOOKUP(AF178,Group,7,FALSE)=\"\",\"\",VLOOKUP(AF178,Group,7,FALSE))","v":""},null,"X"]
[null,"Field Tile",null,null,"24\" x 24\"",null,"Field",null,"Rectified",null,null,null,null,null,null,"15.58 SF/CTN",null,null,{"$f":"IF(Suggested=\"Yes\",AA179,AG179)","v":6.6},"SF",{"$f":"+Instructions!$B$21","v":"G"},null,{"$f":"+Instructions!$C$21","v":0},{"$f":"IF(Instructions!$C$21=\"Group\",#REF!,IF(Instructions!$C$21=\"Carter\",#REF!,ROUNDUP($AA179*(1-W179),2)))","v":6.6},null,"YES",6.6,{"$f":"+W179","v":0},{"$f":"+X179","v":6.6},{"$f":"(AG179-AC179)/AG179","v":0},null,1,{"$f":"SUM(AI179:AK179)+AE179","v":6.6},null,{"$f":"ROUND(AC179/(1-VLOOKUP(AF179,Group,2,FALSE)),2)","v":6.6},{"$f":"IF(VLOOKUP(AF179,Group,5,FALSE)=\"YES\",VLOOKUP(ROUND(ROUND(AI179,1)-AI179,2),Round,2,FALSE)+VLOOKUP(AF179,Group,6,FALSE),0)","v":0},{"$f":"IF(VLOOKUP(AF179,Group,7,FALSE)=\"\",0,ROUND(AI179-0.04999,1)-AI179+AL179)","v":0},{"$f":"IF(VLOOKUP(AF179,Group,7,FALSE)=\"\",\"\",VLOOKUP(AF179,Group,7,FALSE))","v":""},null,"X"]
[null,null,null,null,null,null,null,null,null,null,null,null,null,null,null,null,null,null,null,null,null,null,null,null,null,null,null,null,null,null,null,null,null,null,null,null,null,null,null,"X"]
[null,null,null,"Colors:","BLR10U Antique White         BLR20U Historic Greige         BLR30U Atlas Gray",null,null,null,null,null,null,null,null,null,null,null,null,null,null,null,null,null,null,null,null,null,null,null,null,null,null,null,null,null,null," ",null,null,null,"X"]
[null,null,null,null,null,null,null,null,null,null,null,null,null,null,null,null,null,null,null,null,null,null,null,null,null,null,null,null,null,null,null,null,null,null,null,null,null,null,null,"X"]
[null,"Field Tile",null,null,"24\" x 36\" x 2cm",null,"Field",null,"Rectified",null,null,null,null,null,null,"5.85 SF/CTN",null,null,{"$f":"IF(Suggested=\"Yes\",AA183,AG183)","v":13.2},"SF",{"$f":"+Instructions!$B$21","v":"G"},null,{"$f":"+Instructions!$C$21","v":0},{"$f":"IF(Instructions!$C$21=\"Group\",#REF!,IF(Instructions!$C$21=\"Carter\",#REF!,ROUNDUP($AA183*(1-W183),2)))","v":13.2},null,"YES",13.2,{"$f":"+W183","v":0},{"$f":"+X183","v":13.2},{"$f":"(AG183-AC183)/AG183","v":0},null,1,{"$f":"SUM(AI183:AK183)+AE183","v":13.2},null,{"$f":"ROUND(AC183/(1-VLOOKUP(AF183,Group,2,FALSE)),2)","v":13.2},{"$f":"IF(VLOOKUP(AF183,Group,5,FALSE)=\"YES\",VLOOKUP(ROUND(ROUND(AI183,1)-AI183,2),Round,2,FALSE)+VLOOKUP(AF183,Group,6,FALSE),0)","v":0},{"$f":"IF(VLOOKUP(AF183,Group,7,FALSE)=\"\",0,ROUND(AI183-0.04999,1)-AI183+AL183)","v":0},{"$f":"IF(VLOOKUP(AF183,Group,7,FALSE)=\"\",\"\",VLOOKUP(AF183,Group,7,FALSE))","v":""},null,"X"]
[null,null,null,null,null,null,null,null,null,null,null,null,null,null,null,null,null,null,null,null,null,null,null,null,null,null,null,null,null,null,null,null,null,null,null,null,null,null,null,"X"]
[null,"Trim",null,null,"12\" x 24\" x 2cm",null,"USTEPB",null,"Step Tread w/Bullnose Edge",null,null,null,null,null,null,null,null,"a",{"$f":"IF(Suggested=\"Yes\",AA185,AG185)","v":185.6},"EA",{"$f":"+Instructions!$B$21","v":"G"},null,{"$f":"+Instructions!$C$21","v":0},{"$f":"IF(Instructions!$C$21=\"Group\",#REF!,IF(Instructions!$C$21=\"Carter\",#REF!,ROUNDUP($AA185*(1-W185),2)))","v":185.6},null,"YES",185.6,{"$f":"+W185","v":0},{"$f":"+X185","v":185.6},{"$f":"(AG185-AC185)/AG185","v":0},null,2,{"$f":"SUM(AI185:AK185)+AE185","v":185.6},null,{"$f":"ROUND(AC185/(1-VLOOKUP(AF185,Group,2,FALSE)),2)","v":185.6},{"$f":"IF(VLOOKUP(AF185,Group,5,FALSE)=\"YES\",VLOOKUP(ROUND(ROUND(AI185,1)-AI185,2),Round,2,FALSE)+VLOOKUP(AF185,Group,6,FALSE),0)","v":0},{"$f":"IF(VLOOKUP(AF185,Group,7,FALSE)=\"\",0,ROUND(AI185-0.04999,1)-AI185+AL185)","v":0},{"$f":"IF(VLOOKUP(AF185,Group,7,FALSE)=\"\",\"\",VLOOKUP(AF185,Group,7,FALSE))","v":""},null,"X"]
[null,"Trim",null,null,"12\" x 24\" x 2cm",null,"USTEPA",null,"Step Tread w/Square Edge",null,null,null,null,null,null,null,null,"a",{"$f":"IF(Suggested=\"Yes\",AA186,AG186)","v":185.6},"EA",{"$f":"+Instructions!$B$21","v":"G"},null,{"$f":"+Instructions!$C$21","v":0},{"$f":"IF(Instructions!$C$21=\"Group\",#REF!,IF(Instructions!$C$21=\"Carter\",#REF!,ROUNDUP($AA186*(1-W186),2)))","v":185.6},null,"YES",185.6,0,185.6,{"$f":"(AG186-AC186)/AG186","v":0},null,2,{"$f":"SUM(AI186:AK186)+AE186","v":185.6},null,{"$f":"ROUND(AC186/(1-VLOOKUP(AF186,Group,2,FALSE)),2)","v":185.6},{"$f":"IF(VLOOKUP(AF186,Group,5,FALSE)=\"YES\",VLOOKUP(ROUND(ROUND(AI186,1)-AI186,2),Round,2,FALSE)+VLOOKUP(AF186,Group,6,FALSE),0)","v":0},{"$f":"IF(VLOOKUP(AF186,Group,7,FALSE)=\"\",0,ROUND(AI186-0.04999,1)-AI186+AL186)","v":0},{"$f":"IF(VLOOKUP(AF186,Group,7,FALSE)=\"\",\"\",VLOOKUP(AF186,Group,7,FALSE))","v":""},null,"X"]
[null,"Trim",null,null,"12\" x 24\" x 2cm",null,"USTEPD",null,"Step Tread w/Square Edge, Grooves & Drip Flap",null,null,null,null,null,null,null,null,"a",{"$f":"IF(Suggested=\"Yes\",AA187,AG187)","v":303.8},"EA",{"$f":"+Instructions!$B$21","v":"G"},null,{"$f":"+Instructions!$C$21","v":0},{"$f":"IF(Instructions!$C$21=\"Group\",#REF!,IF(Instructions!$C$21=\"Carter\",#REF!,ROUNDUP($AA187*(1-W187),2)))","v":303.8},null,"YES",303.8,0,303.8,{"$f":"(AG187-AC187)/AG187","v":0},null,2,{"$f":"SUM(AI187:AK187)+AE187","v":303.8},null,{"$f":"ROUND(AC187/(1-VLOOKUP(AF187,Group,2,FALSE)),2)","v":303.8},{"$f":"IF(VLOOKUP(AF187,Group,5,FALSE)=\"YES\",VLOOKUP(ROUND(ROUND(AI187,1)-AI187,2),Round,2,FALSE)+VLOOKUP(AF187,Group,6,FALSE),0)","v":0},{"$f":"IF(VLOOKUP(AF187,Group,7,FALSE)=\"\",0,ROUND(AI187-0.04999,1)-AI187+AL187)","v":0},{"$f":"IF(VLOOKUP(AF187,Group,7,FALSE)=\"\",\"\",VLOOKUP(AF187,Group,7,FALSE))","v":""},null,"X"]
[null,null,null,null,null,null,null,null,null,null,null,null,null,null,null,null,null,null,null,null,null,null,null,null,null,null,null,null,null,null,null,null,null,null,null,null,null,null,null,"X"]
[null,null,null,"Note:","a) Special Order Only.  Minimum order quantity of 50 pieces per SKU.",null,null,null,null,null,null,null,null,null,null,null,null,null,null,null,null,null,null,null,null,null,null,null,null,null,null,null,null,null,null," ",null,null,null,"X"]
[null,null,null,null,null,null,null,null,null,null,null,null,null,null,null,null,null,null,null,null,null,null,null,null,null,null,null,null,null,null,null,null,null,null,null,null,null,null,null,"X"]
[null,null,"CANAL STREETHDP - Color Body Porcelain",null,null,null,null,null,null,null,null,null,null,null,null,null,null,"Item # Lookup:","FTCS"]
[null,null,null,null,null,null,null,null,null,null,null,null,null,null,null,null,null,null,null,null,null,null,null,null,null,null,null,null,null,null,null,null,null,null,null,null,null,null,null,"X"]
[null,null,null,"Colors:","CST10 Levee White",null,null,"       CST30 French Gray",null,null,"          CST50 Black Bayou",null,null,null,null,null,null,null,null,null,null,null,null,null,null,null,null,null,null,null,null,null,null,null,null," ",null,null,null,"X"]
[null,null,null,null,"CST20 Café Light Gray",null,null,"       CST40 Spanish Clay",null,null,null,null,null,null,null,null,null,null,null,null,null,null,null,null,null,null,null,null,null,null,null,null,null,null,null," ",null,null,null,"X"]
[null,null,null,null,null,null,null,null,null,null,null,null,null,null,null,null,null,null,null,null,null,null,null,null,null,null,null,null,null,null,null,null,null,null,null,null,null,null,null,"X"]
[null,"Field Tile",null,null,"12\" x 24\"",null,"Field",null,"Rectified",null,null,null,null,null,null,"15.62 SF/CTN",null,null,{"$f":"IF(Suggested=\"Yes\",AA196,AG196)","v":6.8},"SF",{"$f":"+Instructions!$B$21","v":"G"},null,{"$f":"+Instructions!$C$21","v":0},{"$f":"IF(Instructions!$C$21=\"Group\",#REF!,IF(Instructions!$C$21=\"Carter\",#REF!,ROUNDUP($AA196*(1-W196),2)))","v":6.8},null,"YES",6.8,{"$f":"+W196","v":0},{"$f":"+X196","v":6.8},{"$f":"(AG196-AC196)/AG196","v":0},null,1,{"$f":"SUM(AI196:AK196)+AE196","v":6.8},null,{"$f":"ROUND(AC196/(1-VLOOKUP(AF196,Group,2,FALSE)),2)","v":6.8},{"$f":"IF(VLOOKUP(AF196,Group,5,FALSE)=\"YES\",VLOOKUP(ROUND(ROUND(AI196,1)-AI196,2),Round,2,FALSE)+VLOOKUP(AF196,Group,6,FALSE),0)","v":0},{"$f":"IF(VLOOKUP(AF196,Group,7,FALSE)=\"\",0,ROUND(AI196-0.04999,1)-AI196+AL196)","v":0},{"$f":"IF(VLOOKUP(AF196,Group,7,FALSE)=\"\",\"\",VLOOKUP(AF196,Group,7,FALSE))","v":""},null,"X"]
[null,"Field Tile",null,null,"24\" x 48\"",null,"Field",null,"Rectified",null,null,null,null,null,null,"15.39 SF/CTN",null,null,{"$f":"IF(Suggested=\"Yes\",AA197,AG197)","v":8.6999999999999993},"SF",{"$f":"+Instructions!$B$21","v":"G"},null,{"$f":"+Instructions!$C$21","v":0},{"$f":"IF(Instructions!$C$21=\"Group\",#REF!,IF(Instructions!$C$21=\"Carter\",#REF!,ROUNDUP($AA197*(1-W197),2)))","v":8.6999999999999993},null,"YES",8.6999999999999993,{"$f":"+W197","v":0},{"$f":"+X197","v":8.6999999999999993},{"$f":"(AG197-AC197)/AG197","v":0},null,1,{"$f":"SUM(AI197:AK197)+AE197","v":8.6999999999999993},null,{"$f":"ROUND(AC197/(1-VLOOKUP(AF197,Group,2,FALSE)),2)","v":8.6999999999999993},{"$f":"IF(VLOOKUP(AF197,Group,5,FALSE)=\"YES\",VLOOKUP(ROUND(ROUND(AI197,1)-AI197,2),Round,2,FALSE)+VLOOKUP(AF197,Group,6,FALSE),0)","v":0},{"$f":"IF(VLOOKUP(AF197,Group,7,FALSE)=\"\",0,ROUND(AI197-0.04999,1)-AI197+AL197)","v":0},{"$f":"IF(VLOOKUP(AF197,Group,7,FALSE)=\"\",\"\",VLOOKUP(AF197,Group,7,FALSE))","v":""},null,"X"]
[null,null,null,null,null,null,null,null,null,null,null,null,null,null,null,null,null,null,null,null,null,null,null,null,null,null,null,null,null,null,null,null,null,null,null,null,null,null,null,"X"]
[null,null,null,"Colors:","CST12D Light Deco (Levee White/Café Light Gray)          CST44D Clay Deco (Spanish Clay)",null,null,null,null,null,null,null,null,null,null,null,null,null,null,null,null,null,null,null,null,null,null,null,null,null,null,null,null,null,null," ",null,null,null,"X"]
[null,null,null,null,"CST35D Dark Deco (French Gray/Black Bayou)",null,null,null,null,null,null,null,null,null,null,null,null,null,null,null,null,null,null,null,null,null,null,null,null,null,null,null,null,null,null," ",null,null,null,"X"]
[null,null,null,null,null,null,null,null,null,null,null,null,null,null,null,null,null,null,null,null,null,null,null,null,null,null,null,null,null,null,null,null,null,null,null,null,null,null,null,"X"]
[null,"Decos",null,null,"12\" x 24\"",null,"Field - Deco",null,"Rectified",null,null,null,null,null,null,"15.62 SF/CTN",null,null,{"$f":"IF(Suggested=\"Yes\",AA202,AG202)","v":7},"EA",{"$f":"+Instructions!$B$21","v":"G"},null,{"$f":"+Instructions!$C$21","v":0},{"$f":"IF(Instructions!$C$21=\"Group\",#REF!,IF(Instructions!$C$21=\"Carter\",#REF!,ROUNDUP($AA202*(1-W202),2)))","v":7},null,"YES",7,{"$f":"+W202","v":0},{"$f":"+X202","v":7},{"$f":"(AG202-AC202)/AG202","v":0},null,3,{"$f":"SUM(AI202:AK202)+AE202","v":7},null,{"$f":"ROUND(AC202/(1-VLOOKUP(AF202,Group,2,FALSE)),2)","v":7},{"$f":"IF(VLOOKUP(AF202,Group,5,FALSE)=\"YES\",VLOOKUP(ROUND(ROUND(AI202,1)-AI202,2),Round,2,FALSE)+VLOOKUP(AF202,Group,6,FALSE),0)","v":0},{"$f":"IF(VLOOKUP(AF202,Group,7,FALSE)=\"\",0,ROUND(AI202-0.04999,1)-AI202+AL202)","v":0},{"$f":"IF(VLOOKUP(AF202,Group,7,FALSE)=\"\",\"\",VLOOKUP(AF202,Group,7,FALSE))","v":""},null,"X"]
[null,"Decos",null,null,"8\" x 48\"",null,"Field - Deco",null,"Rectified",null,null,null,null,null,null,"15.69 SF/CTN",null,null,{"$f":"IF(Suggested=\"Yes\",AA203,AG203)","v":10},"EA",{"$f":"+Instructions!$B$21","v":"G"},null,{"$f":"+Instructions!$C$21","v":0},{"$f":"IF(Instructions!$C$21=\"Group\",#REF!,IF(Instructions!$C$21=\"Carter\",#REF!,ROUNDUP($AA203*(1-W203),2)))","v":10},null,"YES",10,{"$f":"+W203","v":0},{"$f":"+X203","v":10},{"$f":"(AG203-AC203)/AG203","v":0},null,3,{"$f":"SUM(AI203:AK203)+AE203","v":10},null,{"$f":"ROUND(AC203/(1-VLOOKUP(AF203,Group,2,FALSE)),2)","v":10},{"$f":"IF(VLOOKUP(AF203,Group,5,FALSE)=\"YES\",VLOOKUP(ROUND(ROUND(AI203,1)-AI203,2),Round,2,FALSE)+VLOOKUP(AF203,Group,6,FALSE),0)","v":0},{"$f":"IF(VLOOKUP(AF203,Group,7,FALSE)=\"\",0,ROUND(AI203-0.04999,1)-AI203+AL203)","v":0},{"$f":"IF(VLOOKUP(AF203,Group,7,FALSE)=\"\",\"\",VLOOKUP(AF203,Group,7,FALSE))","v":""},null,"X"]
[null,null,null,null,null,null,null,null,null,null,null,null,null,null,null,null,null,null,null,null,null,null,null,null,null,null,null,null,null,null,null,null,null,null,null,null,null,null,null,"X"]
[null,null,null,"Colors:","CST10 Levee White",null,null,"       CST30 French Gray",null,null,"          CST50 Black Bayou",null,null,null,null,null,null,null,null,null,null,null,null,null,null,null,null,null,null,null,null,null,null,null,null," ",null,null,null,"X"]
[null,null,null,null,"CST20 Café Light Gray",null,null,"       CST40 Spanish Clay",null,null,null,null,null,null,null,null,null,null,null,null,null,null,null,null,null,null,null,null,null,null,null,null,null,null,null," ",null,null,null,"X"]
[null,null,null,null,null,null,null,null,null,null,null,null,null,null,null,null,null,null,null,null,null,null,null,null,null,null,null,null,null,null,null,null,null,null,null,null,null,null,null,"X"]
[null,"Decos",null,null,"11-3/8\" x 11-3/8\"",null,"M12REC",null,"Mosaic Rectangles (0.90 SF/SH - Mesh-Mounted)",null,null,null,null,null,null,"5 EA/CTN",null,null,{"$f":"IF(Suggested=\"Yes\",AA208,AG208)","v":38.450000000000003},"EA",{"$f":"+Instructions!$B$21","v":"G"},null,{"$f":"+Instructions!$C$21","v":0},{"$f":"IF(Instructions!$C$21=\"Group\",#REF!,IF(Instructions!$C$21=\"Carter\",#REF!,ROUNDUP($AA208*(1-W208),2)))","v":38.450000000000003},null,"YES",38.450000000000003,{"$f":"+W208","v":0},{"$f":"+X208","v":38.450000000000003},{"$f":"(AG208-AC208)/AG208","v":0},null,3,{"$f":"SUM(AI208:AK208)+AE208","v":38.450000000000003},null,{"$f":"ROUND(AC208/(1-VLOOKUP(AF208,Group,2,FALSE)),2)","v":38.450000000000003},{"$f":"IF(VLOOKUP(AF208,Group,5,FALSE)=\"YES\",VLOOKUP(ROUND(ROUND(AI208,1)-AI208,2),Round,2,FALSE)+VLOOKUP(AF208,Group,6,FALSE),0)","v":0},{"$f":"IF(VLOOKUP(AF208,Group,7,FALSE)=\"\",0,ROUND(AI208-0.04999,1)-AI208+AL208)","v":0},{"$f":"IF(VLOOKUP(AF208,Group,7,FALSE)=\"\",\"\",VLOOKUP(AF208,Group,7,FALSE))","v":""},null,"X"]
[null,null,null,null,null,null,null,null,null,null,null,null,null,null,null,null,null,null,null,null,null,null,null,null,null,null,null,null,null,null,null,null,null,null,null,null,null,null,null,"X"]
[null,"Trim",null,null,"3\" x 24\"",null,"P43N9",null,"Bullnose",null,null,null,null,null,null,null,null,null,14.2,"EA",{"$f":"+Instructions!$B$21","v":"G"},null,{"$f":"+Instructions!$C$21","v":0},{"$f":"IF(Instructions!$C$21=\"Group\",#REF!,IF(Instructions!$C$21=\"Carter\",#REF!,ROUNDUP($AA210*(1-W210),2)))","v":14.2},null,"YES",14.2,0,14.2,0,null,2,14.2,null,14.2,0,0,"",null,"X"]
[null,null,null,null,null,null,null,null,null,null,null,null,null,null,null,null,null,null,null,null,null,null,null,null,null,null,null,null,null,null,null,null,null,null,null,null,null,null,null,"X"]
[null,null,"CELLARHDP - Color Body Glazed Porcelain",null,null,null,null,null,null," ",null,null,null,null,null,null,null,"Item # Lookup:","FT343",null,null,null,null,null,null,null,null,null,null,null,null,null,null,null,null," ",null,null,null,"X"]
[null,null,null,null,null,null,null,null,null,null,null,null,null,null,null,null,null,null,null,null,null,null,null,null,null,null,null,null,null,null,null,null,null,null,null,null,null,null,null,"X"]
[null,null,null,"Colors:","34310 Bleach          34316 Char          34327 Meld          34398 Tone",null,null,null,null,null,null,null,null,null,null,null,null,null,null,null,null,null,null,null,null,null,null,null,null,null,null,null,null,null,null," ",null,null,null,"X"]
[]
[null,"Field Tile",null,null,"8\" x 36\"",null,"Field",null,null,null,null,null,null,null,null,"14.00 SF/CTN",null,null,{"$f":"IF(Suggested=\"Yes\",AA216,AG216)","v":8.5500000000000007},"SF",{"$f":"+Instructions!$B$21","v":"G"},null,{"$f":"+Instructions!$C$21","v":0},{"$f":"IF(Instructions!$C$21=\"Group\",#REF!,IF(Instructions!$C$21=\"Carter\",#REF!,ROUNDUP($AA216*(1-W216),2)))","v":8.5500000000000007},null,"YES",8.5500000000000007,{"$f":"+W216","v":0},{"$f":"+X216","v":8.5500000000000007},{"$f":"(AG216-AC216)/AG216","v":0},null,1,{"$f":"SUM(AI216:AK216)+AE216","v":8.5500000000000007},null,{"$f":"ROUND(AC216/(1-VLOOKUP(AF216,Group,2,FALSE)),2)","v":8.5500000000000007},{"$f":"IF(VLOOKUP(AF216,Group,5,FALSE)=\"YES\",VLOOKUP(ROUND(ROUND(AI216,1)-AI216,2),Round,2,FALSE)+VLOOKUP(AF216,Group,6,FALSE),0)","v":0},{"$f":"IF(VLOOKUP(AF216,Group,7,FALSE)=\"\",0,ROUND(AI216-0.04999,1)-AI216+AL216)","v":0},{"$f":"IF(VLOOKUP(AF216,Group,7,FALSE)=\"\",\"\",VLOOKUP(AF216,Group,7,FALSE))","v":""},null,"X"]
[]
[null,"Decos",null,null,"12\" x 12\"",null,"M1x4STK",null,"Mosaic 1\" x 4\" Stack Mesh-Mounted  ",null,null,null,null,null,null,"5 EA/CTN",null,null,{"$f":"IF(Suggested=\"Yes\",AA218,AG218)","v":28.2},"EA",{"$f":"+Instructions!$B$21","v":"G"},null,{"$f":"+Instructions!$C$21","v":0},{"$f":"IF(Instructions!$C$21=\"Group\",#REF!,IF(Instructions!$C$21=\"Carter\",#REF!,ROUNDUP($AA218*(1-W218),2)))","v":28.2},null,"YES",28.2,{"$f":"+W218","v":0},{"$f":"+X218","v":28.2},{"$f":"(AG218-AC218)/AG218","v":0},null,3,{"$f":"SUM(AI218:AK218)+AE218","v":28.2},null,{"$f":"ROUND(AC218/(1-VLOOKUP(AF218,Group,2,FALSE)),2)","v":28.2},{"$f":"IF(VLOOKUP(AF218,Group,5,FALSE)=\"YES\",VLOOKUP(ROUND(ROUND(AI218,1)-AI218,2),Round,2,FALSE)+VLOOKUP(AF218,Group,6,FALSE),0)","v":0},{"$f":"IF(VLOOKUP(AF218,Group,7,FALSE)=\"\",0,ROUND(AI218-0.04999,1)-AI218+AL218)","v":0},{"$f":"IF(VLOOKUP(AF218,Group,7,FALSE)=\"\",\"\",VLOOKUP(AF218,Group,7,FALSE))","v":""},null,"X"]
[null,"Decos",null,null,"11-5/8\" x 11-3/4\"",null,"M2x12HER",null,"Mosaic 2\" x 12\" Herringbone Mesh-Mounted",null,null,null,null,null,null,"6 EA/CTN",null,"a",{"$f":"IF(Suggested=\"Yes\",AA219,AG219)","v":34},"EA",{"$f":"+Instructions!$B$21","v":"G"},null,{"$f":"+Instructions!$C$21","v":0},{"$f":"IF(Instructions!$C$21=\"Group\",#REF!,IF(Instructions!$C$21=\"Carter\",#REF!,ROUNDUP($AA219*(1-W219),2)))","v":34},null,"YES",34,{"$f":"+W219","v":0},{"$f":"+X219","v":34},{"$f":"(AG219-AC219)/AG219","v":0},null,3,{"$f":"SUM(AI219:AK219)+AE219","v":34},null,{"$f":"ROUND(AC219/(1-VLOOKUP(AF219,Group,2,FALSE)),2)","v":34},{"$f":"IF(VLOOKUP(AF219,Group,5,FALSE)=\"YES\",VLOOKUP(ROUND(ROUND(AI219,1)-AI219,2),Round,2,FALSE)+VLOOKUP(AF219,Group,6,FALSE),0)","v":0},{"$f":"IF(VLOOKUP(AF219,Group,7,FALSE)=\"\",0,ROUND(AI219-0.04999,1)-AI219+AL219)","v":0},{"$f":"IF(VLOOKUP(AF219,Group,7,FALSE)=\"\",\"\",VLOOKUP(AF219,Group,7,FALSE))","v":""},null,"X"]
[null,null,null,null,null,null,null,null,null,null,null,null,null,null,null,null,null,null,null,null,null,null,null,null,null,null,null,null,null,null,null,null,null,null,null,null,null,null,null,"X"]
[null,null,null,"Notes:","a) Each M2x12HER Herringbone Mosaic is two parts, side A and side B.  This item is sold in full cartons only; ",null,null,null,null,null,null,null,null,null,null,null,null,null,null,null,null,null,null,null,null,null,null,null,null,null,null,null,null,null,null," ",null,null,null,"X"]
[null,null,null,null,"(6) each per carton, in sets of (3) A's and (3) B's.  The total coverage per carton is 5.70 SF.",null,null,null,null,null,null,null,null,null,null,null,null,null,null,null,null,null,null,null,null,null,null,null,null,null,null,null,null,null,null," ",null,null,null,"X"]
[]
[null,null,"CLAYMONT - Glazed Porcelain",null,null,null,null,null,null,null,null,null,null,null,null,null,null,"Item # Lookup:","FTCL",null,null,null,null,null,null,null,null,null,null,null,null,null,null,null,null," ",null,null,null,"X"]
[null,null,null,null,null,null,null,null,null,null,null,null,null,null,null,null,null,null,null,null,null,null,null,null,null,null,null,null,null,null,null,null,null,null,null,null,null,null,null,"X"]
[null,null,null,"Colors:","Almond Mist",null,"    Frosted Linen",null,"         Sahara Sand",null,null,"Soft Sage",null,null,null,null,null,null,null,null,null,null,null,null,null,null,null,null,null,null,null,null,null,null,null," ",null,null,null,"X"]
[null,null,null,null,"Burnt Umber",null,"    Golden Sky",null,"         Saltwater",null,null,null,null,null,null,null,null,null,null,null,null,null,null,null,null,null,null,null,null,null,null,null,null,null,null," ",null,null,null,"X"]
[null,null,null,null,"Dusty Rose",null,"    Midnight Slate",null,"         Silverstone",null,null,null,null,null,null,null,null,null,null,null,null,null,null,null,null,null,null,null,null,null,null,null,null,null,null," ",null,null,null,"X"]
[]
[null,"Field Tile",null,null,"2\" x 6\"",null,"Field",null,null,null,null,null,null,null,null,"5.33 SF/CTN",null,null,{"$f":"IF(Suggested=\"Yes\",AA230,AG230)","v":13.35},"SF",{"$f":"+Instructions!$B$21","v":"G"},null,{"$f":"+Instructions!$C$21","v":0},{"$f":"IF(Instructions!$C$21=\"Group\",#REF!,IF(Instructions!$C$21=\"Carter\",#REF!,ROUNDUP($AA230*(1-W230),2)))","v":13.35},null,"new",13.35,{"$f":"+W230","v":0},{"$f":"+X230","v":13.35},{"$f":"(AG230-AC230)/AG230","v":0},null,1,{"$f":"SUM(AI230:AK230)+AE230","v":13.35},null,{"$f":"ROUND(AC230/(1-VLOOKUP(AF230,Group,2,FALSE)),2)","v":13.35},{"$f":"IF(VLOOKUP(AF230,Group,5,FALSE)=\"YES\",VLOOKUP(ROUND(ROUND(AI230,1)-AI230,2),Round,2,FALSE)+VLOOKUP(AF230,Group,6,FALSE),0)","v":0},{"$f":"IF(VLOOKUP(AF230,Group,7,FALSE)=\"\",0,ROUND(AI230-0.04999,1)-AI230+AL230)","v":0},{"$f":"IF(VLOOKUP(AF230,Group,7,FALSE)=\"\",\"\",VLOOKUP(AF230,Group,7,FALSE))","v":""},null,"X"]
[null,"Field Tile",null,null,"6\" x 6\"",null,"Field",null,null,null,null,null,null,null,null,"5.38 SF/CTN",null,null,10.55,"SF",{"$f":"+Instructions!$B$21","v":"G"},null,{"$f":"+Instructions!$C$21","v":0},{"$f":"IF(Instructions!$C$21=\"Group\",#REF!,IF(Instructions!$C$21=\"Carter\",#REF!,ROUNDUP($AA231*(1-W231),2)))","v":10.55},null,"new",10.55,0,10.55,0,null,1,10.55,null,10.55,0,0,"",null,"X"]
[null,"Field Tile",null,null,"2.5\" x 12\"",null,"Field",null,null,null,null,null,null,null,null,"5.38 SF/CTN",null,null,{"$f":"IF(Suggested=\"Yes\",AA232,AG232)","v":10},"SF",{"$f":"+Instructions!$B$21","v":"G"},null,{"$f":"+Instructions!$C$21","v":0},{"$f":"IF(Instructions!$C$21=\"Group\",#REF!,IF(Instructions!$C$21=\"Carter\",#REF!,ROUNDUP($AA232*(1-W232),2)))","v":10},null,"new",10,{"$f":"+W232","v":0},{"$f":"+X232","v":10},{"$f":"(AG232-AC232)/AG232","v":0},null,1,{"$f":"SUM(AI232:AK232)+AE232","v":10},null,{"$f":"ROUND(AC232/(1-VLOOKUP(AF232,Group,2,FALSE)),2)","v":10},{"$f":"IF(VLOOKUP(AF232,Group,5,FALSE)=\"YES\",VLOOKUP(ROUND(ROUND(AI232,1)-AI232,2),Round,2,FALSE)+VLOOKUP(AF232,Group,6,FALSE),0)","v":0},{"$f":"IF(VLOOKUP(AF232,Group,7,FALSE)=\"\",0,ROUND(AI232-0.04999,1)-AI232+AL232)","v":0},{"$f":"IF(VLOOKUP(AF232,Group,7,FALSE)=\"\",\"\",VLOOKUP(AF232,Group,7,FALSE))","v":""},null,"X"]
[null,"Field Tile",null,null,"5\" Cross",null,"Field",null,null,null,null,null,null,null,null,"5.31 SF/CTN",null,null,{"$f":"IF(Suggested=\"Yes\",AA233,AG233)","v":15},"SF",{"$f":"+Instructions!$B$21","v":"G"},null,{"$f":"+Instructions!$C$21","v":0},{"$f":"IF(Instructions!$C$21=\"Group\",#REF!,IF(Instructions!$C$21=\"Carter\",#REF!,ROUNDUP($AA233*(1-W233),2)))","v":15},null,"new",15,{"$f":"+W233","v":0},{"$f":"+X233","v":15},{"$f":"(AG233-AC233)/AG233","v":0},null,1,{"$f":"SUM(AI233:AK233)+AE233","v":15},null,{"$f":"ROUND(AC233/(1-VLOOKUP(AF233,Group,2,FALSE)),2)","v":15},{"$f":"IF(VLOOKUP(AF233,Group,5,FALSE)=\"YES\",VLOOKUP(ROUND(ROUND(AI233,1)-AI233,2),Round,2,FALSE)+VLOOKUP(AF233,Group,6,FALSE),0)","v":0},{"$f":"IF(VLOOKUP(AF233,Group,7,FALSE)=\"\",0,ROUND(AI233-0.04999,1)-AI233+AL233)","v":0},{"$f":"IF(VLOOKUP(AF233,Group,7,FALSE)=\"\",\"\",VLOOKUP(AF233,Group,7,FALSE))","v":""},null,"X"]
[null,"Field Tile",null,null,"6.5\" Star",null,"Field",null,null,null,null,null,null,null,null,"5.31 SF/CTN",null,null,{"$f":"IF(Suggested=\"Yes\",AA234,AG234)","v":14.25},"SF",{"$f":"+Instructions!$B$21","v":"G"},null,{"$f":"+Instructions!$C$21","v":0},{"$f":"IF(Instructions!$C$21=\"Group\",#REF!,IF(Instructions!$C$21=\"Carter\",#REF!,ROUNDUP($AA234*(1-W234),2)))","v":14.25},null,"new",14.25,{"$f":"+W234","v":0},{"$f":"+X234","v":14.25},{"$f":"(AG234-AC234)/AG234","v":0},null,1,{"$f":"SUM(AI234:AK234)+AE234","v":14.25},null,{"$f":"ROUND(AC234/(1-VLOOKUP(AF234,Group,2,FALSE)),2)","v":14.25},{"$f":"IF(VLOOKUP(AF234,Group,5,FALSE)=\"YES\",VLOOKUP(ROUND(ROUND(AI234,1)-AI234,2),Round,2,FALSE)+VLOOKUP(AF234,Group,6,FALSE),0)","v":0},{"$f":"IF(VLOOKUP(AF234,Group,7,FALSE)=\"\",0,ROUND(AI234-0.04999,1)-AI234+AL234)","v":0},{"$f":"IF(VLOOKUP(AF234,Group,7,FALSE)=\"\",\"\",VLOOKUP(AF234,Group,7,FALSE))","v":""},null,"X"]
[]
[null,null,"COMFORT - Glazed Porcelain",null,null,null,null,null,null,null,null,null,null,null,null,null,null,"Item # Lookup:","FTCO",null,null,null,null,null,null,null,null,null,null,null,null,null,null,null,null," ",null,null,null,"X"]
[null,null,null,null,null,null,null,null,null,null,null,null,null,null,null,null,null,null,null,null,null,null,null,null,null,null,null,null,null,null,null,null,null,null,null,null,null,null,null,"X"]
[null,null,null,"Colors:","Beige          Brown          Ginger          Greige          White",null,null,null,null,null,null,null,null,null,null,null,null,null,null,null,null,null,null,null,null,null,null,null,null,null,null,null,null,null,null," ",null,null,null,"X"]
[]
[null,"Field Tile",null,null,"10\" x 60\"",null,"Field",null,"Rectified",null,null,null,null,null,null,"16.15 SF/CTN",null,null,{"$f":"IF(Suggested=\"Yes\",AA240,AG240)","v":10.1},"SF",{"$f":"+Instructions!$B$21","v":"G"},null,{"$f":"+Instructions!$C$21","v":0},{"$f":"IF(Instructions!$C$21=\"Group\",#REF!,IF(Instructions!$C$21=\"Carter\",#REF!,ROUNDUP($AA240*(1-W240),2)))","v":10.1},null,"",10.1,{"$f":"+W240","v":0},{"$f":"+X240","v":10.1},{"$f":"(AG240-AC240)/AG240","v":0},null,1,{"$f":"SUM(AI240:AK240)+AE240","v":10.1},null,{"$f":"ROUND(AC240/(1-VLOOKUP(AF240,Group,2,FALSE)),2)","v":10.1},{"$f":"IF(VLOOKUP(AF240,Group,5,FALSE)=\"YES\",VLOOKUP(ROUND(ROUND(AI240,1)-AI240,2),Round,2,FALSE)+VLOOKUP(AF240,Group,6,FALSE),0)","v":0},{"$f":"IF(VLOOKUP(AF240,Group,7,FALSE)=\"\",0,ROUND(AI240-0.04999,1)-AI240+AL240)","v":0},{"$f":"IF(VLOOKUP(AF240,Group,7,FALSE)=\"\",\"\",VLOOKUP(AF240,Group,7,FALSE))","v":""},null,"X"]
[]
[null,null,"CONTINENTDP - Glazed Porcelain Floor & Wall",null,null,null,null,null,null,null,null,null,null,null,null,null,null,"Item # Lookup:","FT299",null,null,null,null,null,null,null,null,null,null,null,null,null,null,null,null," ",null,null,null,"X"]
[null,null,null,null,null,null,null,null,null,null,null,null,null,null,null,null,null,null,null,null,null,null,null,null,null,null,null,null,null,null,null,null,null,null,null,null,null,null,null,"X"]
[null,null,null,"Colors:","29914 Delta Haze          29936 Coastal Sand",null,null,null,null,null,null,null,null,null,null,null,null,null,null,null,null,null,null,null,null,null,null,null,null,null,null,null,null,null,null," ",null,null,null,"X"]
[]
[null,"Field Tile",null,null,"12\" x 12\"",null,"Field",null,null,null,null,null,null,null,null,"16.00 SF/CTN","Stock",null,{"$f":"IF(Suggested=\"Yes\",AA246,AG246)","v":4.3499999999999996},"SF",{"$f":"+Instructions!$B$21","v":"G"},null,{"$f":"+Instructions!$C$21","v":0},{"$f":"IF(Instructions!$C$21=\"Group\",#REF!,IF(Instructions!$C$21=\"Carter\",#REF!,ROUNDUP($AA246*(1-W246),2)))","v":4.3499999999999996},null,"YES",4.3499999999999996,{"$f":"+W246","v":0},4.3499999999999996,{"$f":"(AG246-AC246)/AG246","v":0},null,1,{"$f":"SUM(AI246:AK246)+AE246","v":4.3499999999999996},null,{"$f":"ROUND(AC246/(1-VLOOKUP(AF246,Group,2,FALSE)),2)","v":4.3499999999999996},{"$f":"IF(VLOOKUP(AF246,Group,5,FALSE)=\"YES\",VLOOKUP(ROUND(ROUND(AI246,1)-AI246,2),Round,2,FALSE)+VLOOKUP(AF246,Group,6,FALSE),0)","v":0},{"$f":"IF(VLOOKUP(AF246,Group,7,FALSE)=\"\",0,ROUND(AI246-0.04999,1)-AI246+AL246)","v":0},{"$f":"IF(VLOOKUP(AF246,Group,7,FALSE)=\"\",\"\",VLOOKUP(AF246,Group,7,FALSE))","v":""},null,"X"]
[null,"Field Tile",null,null,"12\" x 24\"",null,"Field",null,null,null,null,null,null,null,null,"16.00 SF/CTN",null,null,{"$f":"IF(Suggested=\"Yes\",AA247,AG247)","v":4.25},"SF",{"$f":"+Instructions!$B$21","v":"G"},null,{"$f":"+Instructions!$C$21","v":0},{"$f":"IF(Instructions!$C$21=\"Group\",#REF!,IF(Instructions!$C$21=\"Carter\",#REF!,ROUNDUP($AA247*(1-W247),2)))","v":4.25},null,"YES",4.25,0,4.25,{"$f":"(AG247-AC247)/AG247","v":0},null,1,{"$f":"SUM(AI247:AK247)+AE247","v":4.25},null,{"$f":"ROUND(AC247/(1-VLOOKUP(AF247,Group,2,FALSE)),2)","v":4.25},{"$f":"IF(VLOOKUP(AF247,Group,5,FALSE)=\"YES\",VLOOKUP(ROUND(ROUND(AI247,1)-AI247,2),Round,2,FALSE)+VLOOKUP(AF247,Group,6,FALSE),0)","v":0},{"$f":"IF(VLOOKUP(AF247,Group,7,FALSE)=\"\",0,ROUND(AI247-0.04999,1)-AI247+AL247)","v":0},{"$f":"IF(VLOOKUP(AF247,Group,7,FALSE)=\"\",\"\",VLOOKUP(AF247,Group,7,FALSE))","v":""},null,"X"]
[]
[null,"Decos",null,null,"12\" x 12\"",null,"M12",null,"Mosaic 2-1/2\" x 2-1/2\" Mesh-Mounted ",null,null,null,null,null,null,"5 EA/CTN",null,null,{"$f":"IF(Suggested=\"Yes\",AA249,AG249)","v":24.15},"EA",{"$f":"+Instructions!$B$21","v":"G"},null,{"$f":"+Instructions!$C$21","v":0},{"$f":"IF(Instructions!$C$21=\"Group\",#REF!,IF(Instructions!$C$21=\"Carter\",#REF!,ROUNDUP($AA249*(1-W249),2)))","v":24.15},null,"YES",24.15,{"$f":"+W249","v":0},{"$f":"+X249","v":24.15},{"$f":"(AG249-AC249)/AG249","v":0},null,3,{"$f":"SUM(AI249:AK249)+AE249","v":24.15},null,{"$f":"ROUND(AC249/(1-VLOOKUP(AF249,Group,2,FALSE)),2)","v":24.15},{"$f":"IF(VLOOKUP(AF249,Group,5,FALSE)=\"YES\",VLOOKUP(ROUND(ROUND(AI249,1)-AI249,2),Round,2,FALSE)+VLOOKUP(AF249,Group,6,FALSE),0)","v":0},{"$f":"IF(VLOOKUP(AF249,Group,7,FALSE)=\"\",0,ROUND(AI249-0.04999,1)-AI249+AL249)","v":0},{"$f":"IF(VLOOKUP(AF249,Group,7,FALSE)=\"\",\"\",VLOOKUP(AF249,Group,7,FALSE))","v":""},null,"X"]
[]
[null,"Decos",null,null,"2\" x 12\"",null,"CR2x12",null,"Chair Rail",null,null,null,null,null,null,null,null,null,{"$f":"IF(Suggested=\"Yes\",AA251,AG251)","v":31.2},"EA",{"$f":"+Instructions!$B$21","v":"G"},null,{"$f":"+Instructions!$C$21","v":0},{"$f":"IF(Instructions!$C$21=\"Group\",#REF!,IF(Instructions!$C$21=\"Carter\",#REF!,ROUNDUP($AA251*(1-W251),2)))","v":31.2},null,"YES",31.2,{"$f":"+W251","v":0},{"$f":"+X251","v":31.2},{"$f":"(AG251-AC251)/AG251","v":0},null,3,{"$f":"SUM(AI251:AK251)+AE251","v":31.2},null,{"$f":"ROUND(AC251/(1-VLOOKUP(AF251,Group,2,FALSE)),2)","v":31.2},{"$f":"IF(VLOOKUP(AF251,Group,5,FALSE)=\"YES\",VLOOKUP(ROUND(ROUND(AI251,1)-AI251,2),Round,2,FALSE)+VLOOKUP(AF251,Group,6,FALSE),0)","v":0},{"$f":"IF(VLOOKUP(AF251,Group,7,FALSE)=\"\",0,ROUND(AI251-0.04999,1)-AI251+AL251)","v":0},{"$f":"IF(VLOOKUP(AF251,Group,7,FALSE)=\"\",\"\",VLOOKUP(AF251,Group,7,FALSE))","v":""},null,"X"]
[null,"Decos",null,null,"2\" x 1\"",null,"CRS2x1 ",null,"Chair Rail Stop",null,null,null,null,null,null,null,null,null,{"$f":"IF(Suggested=\"Yes\",AA252,AG252)","v":31.15},"EA",{"$f":"+Instructions!$B$21","v":"G"},null,{"$f":"+Instructions!$C$21","v":0},{"$f":"IF(Instructions!$C$21=\"Group\",#REF!,IF(Instructions!$C$21=\"Carter\",#REF!,ROUNDUP($AA252*(1-W252),2)))","v":31.15},null,"YES",31.15,{"$f":"+W252","v":0},{"$f":"+X252","v":31.15},{"$f":"(AG252-AC252)/AG252","v":0},null,3,{"$f":"SUM(AI252:AK252)+AE252","v":31.15},null,{"$f":"ROUND(AC252/(1-VLOOKUP(AF252,Group,2,FALSE)),2)","v":31.15},{"$f":"IF(VLOOKUP(AF252,Group,5,FALSE)=\"YES\",VLOOKUP(ROUND(ROUND(AI252,1)-AI252,2),Round,2,FALSE)+VLOOKUP(AF252,Group,6,FALSE),0)","v":0},{"$f":"IF(VLOOKUP(AF252,Group,7,FALSE)=\"\",0,ROUND(AI252-0.04999,1)-AI252+AL252)","v":0},{"$f":"IF(VLOOKUP(AF252,Group,7,FALSE)=\"\",\"\",VLOOKUP(AF252,Group,7,FALSE))","v":""},null,"X"]
[]
[null,"Trim",null,null,"3\" x 12\"",null,"P43C9",null,"Bullnose",null,null,null,null," ",null,null,"Stock","a",{"$f":"IF(Suggested=\"Yes\",AA254,AG254)","v":10.85},"EA",{"$f":"+Instructions!$B$21","v":"G"},null,{"$f":"+Instructions!$C$21","v":0},{"$f":"IF(Instructions!$C$21=\"Group\",#REF!,IF(Instructions!$C$21=\"Carter\",#REF!,ROUNDUP($AA254*(1-W254),2)))","v":10.85},null,"YES",10.85,{"$f":"+W254","v":0},10.85,{"$f":"(AG254-AC254)/AG254","v":0},null,2,{"$f":"SUM(AI254:AK254)+AE254","v":10.85},null,{"$f":"ROUND(AC254/(1-VLOOKUP(AF254,Group,2,FALSE)),2)","v":10.85},{"$f":"IF(VLOOKUP(AF254,Group,5,FALSE)=\"YES\",VLOOKUP(ROUND(ROUND(AI254,1)-AI254,2),Round,2,FALSE)+VLOOKUP(AF254,Group,6,FALSE),0)","v":0},{"$f":"IF(VLOOKUP(AF254,Group,7,FALSE)=\"\",0,ROUND(AI254-0.04999,1)-AI254+AL254)","v":0},{"$f":"IF(VLOOKUP(AF254,Group,7,FALSE)=\"\",\"\",VLOOKUP(AF254,Group,7,FALSE))","v":""},null,"X"]
[null,null,null,null,null,null,null,null,null,null,null,null,null,null,null,null,null,null,null,null,null,null,null,null,null,null,null,null,null,null,null,null,null,null,null,null,null,null,null,"X"]
[null,null,null,"Note:","a) Stocked in color 29936 Coastal Sand only.",null,null,null,null,null,null,null,null," ",null,null,null,null,null,null,null,null,null,null,null,null,null,null,null,null,null,null,null,null,null," ",null,null,null,"X"]
[null,null,null,null,null,null,null,null,null,null,null,null,null,null,null,null,null,null,null,null,null,null,null,null,null,null,null,null,null,null,null,null,null,null,null," ",null,null,null,"X"]
[null,null,"EMOTIVE - Glazed Ceramic Wall",null,null,null,null,null,null,null,null," ",null,null,null,null,null,"Item # Lookup:","FTEMV",null,null,null,null,null,null,null,null,null,null,null,null,null,null,null,null," ",null,null,null,"X"]
[null,null,null,null,null,null,null,null,null,null,null,null,null,null,null,null,null,null,null,null,null,null,null,null,null,null,null,null,null,null,null,null,null,null,null,null,null,null,null,"X"]
[null,null,null,"Colors:","EMV0G True White Glossy",null,null,null,"        EMV3G Coy Grey Glossy",null,null,null,null,"           EMV9G Stoic Brown Glossy",null,null,null,null,null,null,null,null,null,null,null,null,null,null,null,null,null,null,null,null,null," ",null,null,null,"X"]
[null,null,null,null,"EMV0S True White Silk",null,null,null,"        EMV3S Coy Grey Silk",null,null,null,null,"           EMV9S Stoic Brown Silk",null,null,null,null,null,null,null,null,null,null,null,null,null,null,null,null,null,null,null,null,null," ",null,null,null,"X"]
[null,null,null,null,"EMV1G Astonished White Glossy",null,null,null,"        EMV4G Triumphant Taupe Glossy",null,null,null,null,"           EMV10G Bravado Black Glossy",null,null,null,null,null,null,null,null,null,null,null,null,null,null,null,null,null,null,null,null,null," ",null,null,null,"X"]
[null,null,null,null,"EMV1S Astonished White Silk",null,null,null,"        EMV4S Triumphant Taupe Silk",null,null,null,null,"           EMV10S Bravado Black Silk",null,null,null,null,null,null,null,null,null,null,null,null,null,null,null,null,null,null,null,null,null," ",null,null,null,"X"]
[null,null,null,null,"EMV2G Bashful Beige Glossy",null,null,null,"        EMV6G Gratitude Dark Grey Glossy",null,null,null,null,null,null,null,null,null,null,null,null,null,null,null,null,null,null,null,null,null,null,null,null,null,null," ",null,null,null,"X"]
[null,null,null,null,"EMV2S Bashful Beige Silk",null,null,null,"        EMV6S Gratitude Dark Grey Silk",null,null,null,null,null,null,null,null,null,null,null,null,null,null,null,null,null,null,null,null,null,null,null,null,null,null," ",null,null,null,"X"]
[]
[null,"Field Tile",null,null,"3\" x 6\"",null,"Field",null,null,null,null,null,null,null,null,"5.38 SF/CTN",null,null,{"$f":"IF(Suggested=\"Yes\",AA267,AG267)","v":7.95},"SF",{"$f":"+Instructions!$B$21","v":"G"},null,{"$f":"+Instructions!$C$21","v":0},{"$f":"IF(Instructions!$C$21=\"Group\",#REF!,IF(Instructions!$C$21=\"Carter\",#REF!,ROUNDUP($AA267*(1-W267),2)))","v":7.95},null,"",7.95,{"$f":"+W267","v":0},7.95,{"$f":"(AG267-AC267)/AG267","v":0},null,1,{"$f":"SUM(AI267:AK267)+AE267","v":7.95},null,{"$f":"ROUND(AC267/(1-VLOOKUP(AF267,Group,2,FALSE)),2)","v":7.95},{"$f":"IF(VLOOKUP(AF267,Group,5,FALSE)=\"YES\",VLOOKUP(ROUND(ROUND(AI267,1)-AI267,2),Round,2,FALSE)+VLOOKUP(AF267,Group,6,FALSE),0)","v":0},{"$f":"IF(VLOOKUP(AF267,Group,7,FALSE)=\"\",0,ROUND(AI267-0.04999,1)-AI267+AL267)","v":0},{"$f":"IF(VLOOKUP(AF267,Group,7,FALSE)=\"\",\"\",VLOOKUP(AF267,Group,7,FALSE))","v":""},null,"X"]
[null,"Field Tile",null,null,"3\" x 12\"",null,"Field",null,null,null,null,null,null,null,null,"5.38 SF/CTN","Stock","a",7.9,"SF",{"$f":"+Instructions!$B$21","v":"G"},null,{"$f":"+Instructions!$C$21","v":0},{"$f":"IF(Instructions!$C$21=\"Group\",#REF!,IF(Instructions!$C$21=\"Carter\",#REF!,ROUNDUP($AA268*(1-W268),2)))","v":7.9},null,"",7.9,0,7.9,{"$f":"(AG268-AC268)/AG268","v":0},null,1,{"$f":"SUM(AI268:AK268)+AE268","v":7.9},null,{"$f":"ROUND(AC268/(1-VLOOKUP(AF268,Group,2,FALSE)),2)","v":7.9},{"$f":"IF(VLOOKUP(AF268,Group,5,FALSE)=\"YES\",VLOOKUP(ROUND(ROUND(AI268,1)-AI268,2),Round,2,FALSE)+VLOOKUP(AF268,Group,6,FALSE),0)","v":0},{"$f":"IF(VLOOKUP(AF268,Group,7,FALSE)=\"\",0,ROUND(AI268-0.04999,1)-AI268+AL268)","v":0},{"$f":"IF(VLOOKUP(AF268,Group,7,FALSE)=\"\",\"\",VLOOKUP(AF268,Group,7,FALSE))","v":""},null,"X"]
[]
[null,"Trim",null,null,"3\" x 6\"",null,"S4369",null,"Bullnose",null,null,null,null,null,null,null,null,null,4.8,"EA",{"$f":"+Instructions!$B$21","v":"G"},null,{"$f":"+Instructions!$C$21","v":0},{"$f":"IF(Instructions!$C$21=\"Group\",#REF!,IF(Instructions!$C$21=\"Carter\",#REF!,ROUNDUP($AA270*(1-W270),2)))","v":4.8},null,"",4.8,{"$f":"+W270","v":0},{"$f":"+X270","v":4.8},{"$f":"(AG270-AC270)/AG270","v":0},null,2,{"$f":"SUM(AI270:AK270)+AE270","v":4.8},null,{"$f":"ROUND(AC270/(1-VLOOKUP(AF270,Group,2,FALSE)),2)","v":4.8},{"$f":"IF(VLOOKUP(AF270,Group,5,FALSE)=\"YES\",VLOOKUP(ROUND(ROUND(AI270,1)-AI270,2),Round,2,FALSE)+VLOOKUP(AF270,Group,6,FALSE),0)","v":0},{"$f":"IF(VLOOKUP(AF270,Group,7,FALSE)=\"\",0,ROUND(AI270-0.04999,1)-AI270+AL270)","v":0},{"$f":"IF(VLOOKUP(AF270,Group,7,FALSE)=\"\",\"\",VLOOKUP(AF270,Group,7,FALSE))","v":""},null,"X"]
[null,"Trim",null,null,"3\" x 12\"",null,"S43C9",null,"Bullnose",null,null,null,null,null,null,null,"Stock","b",8.6999999999999993,"EA",{"$f":"+Instructions!$B$21","v":"G"},null,{"$f":"+Instructions!$C$21","v":0},{"$f":"IF(Instructions!$C$21=\"Group\",#REF!,IF(Instructions!$C$21=\"Carter\",#REF!,ROUNDUP($AA271*(1-W271),2)))","v":8.6999999999999993},null,"",8.6999999999999993,{"$f":"+W271","v":0},{"$f":"+X271","v":8.6999999999999993},{"$f":"(AG271-AC271)/AG271","v":0},null,2,{"$f":"SUM(AI271:AK271)+AE271","v":8.6999999999999993},null,{"$f":"ROUND(AC271/(1-VLOOKUP(AF271,Group,2,FALSE)),2)","v":8.6999999999999993},{"$f":"IF(VLOOKUP(AF271,Group,5,FALSE)=\"YES\",VLOOKUP(ROUND(ROUND(AI271,1)-AI271,2),Round,2,FALSE)+VLOOKUP(AF271,Group,6,FALSE),0)","v":0},{"$f":"IF(VLOOKUP(AF271,Group,7,FALSE)=\"\",0,ROUND(AI271-0.04999,1)-AI271+AL271)","v":0},{"$f":"IF(VLOOKUP(AF271,Group,7,FALSE)=\"\",\"\",VLOOKUP(AF271,Group,7,FALSE))","v":""},null,"X"]
[null,null,null,null,null,null,null,null,null,null,null,null,null,null,null,null,null,null,null,null,null,null,null,null,null,null,null,null,null,null,null,null,null,null,null,null,null,null,null,"X"]
[null,null,null,"Colors:","EMV5G Envy Green Glossy",null,null,null,"EMV7G Pride Blue Glossy",null,null,null,"EMV8G Mischievous Red Glossy",null,null,null,null,null,null,null,null,null,null,null,null,null,null,null,null,null,null,null,null,null,null," ",null,null,null,"X"]
[null,null,null,null,"EMV5S Envy Green Silk",null,null,null,"EMV7S Pride Blue Silk",null,null,null,"EMV8S Mischievous Red Silk",null,null,null,null,null,null,null,null,null,null,null,null,null,null,null,null,null,null,null,null,null,null," ",null,null,null,"X"]
[]
[null,"Field Tile",null,null,"3\" x 6\"",null,"Field",null,null,null,null,null,null,null,null,"5.38 SF/CTN",null,null,{"$f":"IF(Suggested=\"Yes\",AA276,AG276)","v":10.55},"SF",{"$f":"+Instructions!$B$21","v":"G"},null,{"$f":"+Instructions!$C$21","v":0},{"$f":"IF(Instructions!$C$21=\"Group\",#REF!,IF(Instructions!$C$21=\"Carter\",#REF!,ROUNDUP($AA276*(1-W276),2)))","v":10.55},null,"",10.55,{"$f":"+W276","v":0},10.55,{"$f":"(AG276-AC276)/AG276","v":0},null,1,{"$f":"SUM(AI276:AK276)+AE276","v":10.55},null,{"$f":"ROUND(AC276/(1-VLOOKUP(AF276,Group,2,FALSE)),2)","v":10.55},{"$f":"IF(VLOOKUP(AF276,Group,5,FALSE)=\"YES\",VLOOKUP(ROUND(ROUND(AI276,1)-AI276,2),Round,2,FALSE)+VLOOKUP(AF276,Group,6,FALSE),0)","v":0},{"$f":"IF(VLOOKUP(AF276,Group,7,FALSE)=\"\",0,ROUND(AI276-0.04999,1)-AI276+AL276)","v":0},{"$f":"IF(VLOOKUP(AF276,Group,7,FALSE)=\"\",\"\",VLOOKUP(AF276,Group,7,FALSE))","v":""},null,"X"]
[null,"Field Tile",null,null,"3\" x 12\"",null,"Field",null,null,null,null,null,null,null,null,"5.38 SF/CTN",null,null,{"$f":"IF(Suggested=\"Yes\",AA277,AG277)","v":10.55},"SF",{"$f":"+Instructions!$B$21","v":"G"},null,{"$f":"+Instructions!$C$21","v":0},{"$f":"IF(Instructions!$C$21=\"Group\",#REF!,IF(Instructions!$C$21=\"Carter\",#REF!,ROUNDUP($AA277*(1-W277),2)))","v":10.55},null,"",10.55,0,10.55,{"$f":"(AG277-AC277)/AG277","v":0},null,1,{"$f":"SUM(AI277:AK277)+AE277","v":10.55},null,{"$f":"ROUND(AC277/(1-VLOOKUP(AF277,Group,2,FALSE)),2)","v":10.55},{"$f":"IF(VLOOKUP(AF277,Group,5,FALSE)=\"YES\",VLOOKUP(ROUND(ROUND(AI277,1)-AI277,2),Round,2,FALSE)+VLOOKUP(AF277,Group,6,FALSE),0)","v":0},{"$f":"IF(VLOOKUP(AF277,Group,7,FALSE)=\"\",0,ROUND(AI277-0.04999,1)-AI277+AL277)","v":0},{"$f":"IF(VLOOKUP(AF277,Group,7,FALSE)=\"\",\"\",VLOOKUP(AF277,Group,7,FALSE))","v":""},null,"X"]
[]
[null,"Trim",null,null,"3\" x 6\"",null,"S4369",null,"Bullnose",null,null,null,null,null,null,null,null,null,{"$f":"IF(Suggested=\"Yes\",AA279,AG279)","v":5.75},"EA",{"$f":"+Instructions!$B$21","v":"G"},null,{"$f":"+Instructions!$C$21","v":0},{"$f":"IF(Instructions!$C$21=\"Group\",#REF!,IF(Instructions!$C$21=\"Carter\",#REF!,ROUNDUP($AA279*(1-W279),2)))","v":5.75},null,"",5.75,{"$f":"+W279","v":0},{"$f":"+X279","v":5.75},{"$f":"(AG279-AC279)/AG279","v":0},null,2,{"$f":"SUM(AI279:AK279)+AE279","v":5.75},null,{"$f":"ROUND(AC279/(1-VLOOKUP(AF279,Group,2,FALSE)),2)","v":5.75},{"$f":"IF(VLOOKUP(AF279,Group,5,FALSE)=\"YES\",VLOOKUP(ROUND(ROUND(AI279,1)-AI279,2),Round,2,FALSE)+VLOOKUP(AF279,Group,6,FALSE),0)","v":0},{"$f":"IF(VLOOKUP(AF279,Group,7,FALSE)=\"\",0,ROUND(AI279-0.04999,1)-AI279+AL279)","v":0},{"$f":"IF(VLOOKUP(AF279,Group,7,FALSE)=\"\",\"\",VLOOKUP(AF279,Group,7,FALSE))","v":""},null,"X"]
[null,"Trim",null,null,"3\" x 12\"",null,"S43C9",null,"Bullnose",null,null,null,null,null,null,null,null,null,{"$f":"IF(Suggested=\"Yes\",AA280,AG280)","v":9.6999999999999993},"EA",{"$f":"+Instructions!$B$21","v":"G"},null,{"$f":"+Instructions!$C$21","v":0},{"$f":"IF(Instructions!$C$21=\"Group\",#REF!,IF(Instructions!$C$21=\"Carter\",#REF!,ROUNDUP($AA280*(1-W280),2)))","v":9.6999999999999993},null,"",9.6999999999999993,{"$f":"+W280","v":0},{"$f":"+X280","v":9.6999999999999993},{"$f":"(AG280-AC280)/AG280","v":0},null,2,{"$f":"SUM(AI280:AK280)+AE280","v":9.6999999999999993},null,{"$f":"ROUND(AC280/(1-VLOOKUP(AF280,Group,2,FALSE)),2)","v":9.6999999999999993},{"$f":"IF(VLOOKUP(AF280,Group,5,FALSE)=\"YES\",VLOOKUP(ROUND(ROUND(AI280,1)-AI280,2),Round,2,FALSE)+VLOOKUP(AF280,Group,6,FALSE),0)","v":0},{"$f":"IF(VLOOKUP(AF280,Group,7,FALSE)=\"\",0,ROUND(AI280-0.04999,1)-AI280+AL280)","v":0},{"$f":"IF(VLOOKUP(AF280,Group,7,FALSE)=\"\",\"\",VLOOKUP(AF280,Group,7,FALSE))","v":""},null,"X"]
[]
[null,null,null,"Notes:","a) Not Stocked in colors EMV4G Triumphant Taupe Glossy, EMV4S Triumphant Taupe Silk, EMV6G Gratitude",null,null,null,null,null,null,null,null,null,null,null,null,null,null,null,null,null,null,null,null,null,null,null,null,null,null,null,null,null,null," ",null,null,null,"X"]
[null,null,null,null,"Dark Grey Glossy, EMV6S Gratitude Dark Grey Silk, EMV9G Stoic Brown Glossy and EMV9S Stoic Brown Silk. ",null,null,null,null,null,null,null,null,null,null,null,null,null,null,null,null,null,null,null,null,null,null,null,null,null,null,null,null,null,null," ",null,null,null,"X"]
[null,null,null,null,"b) Stocked in colors EMV1G Astonished White Glossy and EMV1S Astonished White Silk only.",null,null,null,null,null,null,null,null,null,null,null,null,null,null,null,null,null,null,null,null,null,null,null,null,null,null,null,null,null,null," ",null,null,null,"X"]
[]
[null,null,"ENCHANTHDP - Glazed Porcelain Floor & Wall",null,null,null,null,null,null,null,null,null,null,null," ",null,null,"Item # Lookup:","FTENC",null,null,null,null,null,null,null,null,null,null,null,null,null,null,null,null," ",null,null,null,"X"]
[null,null,null,null,null,null,null,null,null,null,null,null,null,null,null,null,null,null,null,null,null,null,null,null,null,null,null,null,null,null,null,null,null,null,null,null,null,null,null,"X"]
[null,null,null,"Colors:","ENC10 Honesty          ENC20 Grace          ENC30 Beauty          ENC40 Charm",null,null,null,null,null,null,null,null,null,null,null,null,null,null,null,null,null,null,null,null,null,null,null,null,null,null,null,null,null,null," ",null,null,null,"X"]
[null,null,null,null,null,null,null,null,null,null,null,null,null,null,null,null,null,null,null,null,null,null,null,null,null,null,null,null,null,null,null,null,null,null,null,null,null,null,null,"X"]
[null,"Field Tile",null,null,"3.75\" x 12\"",null,"Field",null,"Rectified",null,null,null,"Matte",null,null,"6.12 SF/CTN",null,null,{"$f":"IF(Suggested=\"Yes\",AA290,AG290)","v":14.45},"SF",{"$f":"+Instructions!$B$21","v":"G"},null,{"$f":"+Instructions!$C$21","v":0},{"$f":"IF(Instructions!$C$21=\"Group\",#REF!,IF(Instructions!$C$21=\"Carter\",#REF!,ROUNDUP($AA290*(1-W290),2)))","v":14.45},null,"YES",14.45,{"$f":"+W290","v":0},14.45,{"$f":"(AG290-AC290)/AG290","v":0},null,1,{"$f":"SUM(AI290:AK290)+AE290","v":14.45},null,{"$f":"ROUND(AC290/(1-VLOOKUP(AF290,Group,2,FALSE)),2)","v":14.45},{"$f":"IF(VLOOKUP(AF290,Group,5,FALSE)=\"YES\",VLOOKUP(ROUND(ROUND(AI290,1)-AI290,2),Round,2,FALSE)+VLOOKUP(AF290,Group,6,FALSE),0)","v":0},{"$f":"IF(VLOOKUP(AF290,Group,7,FALSE)=\"\",0,ROUND(AI290-0.04999,1)-AI290+AL290)","v":0},{"$f":"IF(VLOOKUP(AF290,Group,7,FALSE)=\"\",\"\",VLOOKUP(AF290,Group,7,FALSE))","v":""},null,"X"]
[null,"Field Tile",null,null,"12\" x 24\"",null,"Field",null,"Rectified",null,null,null,"Matte",null,null,"15.62 SF/CTN","Stock",null,{"$f":"IF(Suggested=\"Yes\",AA291,AG291)","v":6.45},"SF",{"$f":"+Instructions!$B$21","v":"G"},null,{"$f":"+Instructions!$C$21","v":0},{"$f":"IF(Instructions!$C$21=\"Group\",#REF!,IF(Instructions!$C$21=\"Carter\",#REF!,ROUNDUP($AA291*(1-W291),2)))","v":6.45},null,"YES",6.45,0,6.45,{"$f":"(AG291-AC291)/AG291","v":0},null,1,{"$f":"SUM(AI291:AK291)+AE291","v":6.45},null,{"$f":"ROUND(AC291/(1-VLOOKUP(AF291,Group,2,FALSE)),2)","v":6.45},{"$f":"IF(VLOOKUP(AF291,Group,5,FALSE)=\"YES\",VLOOKUP(ROUND(ROUND(AI291,1)-AI291,2),Round,2,FALSE)+VLOOKUP(AF291,Group,6,FALSE),0)","v":0},{"$f":"IF(VLOOKUP(AF291,Group,7,FALSE)=\"\",0,ROUND(AI291-0.04999,1)-AI291+AL291)","v":0},{"$f":"IF(VLOOKUP(AF291,Group,7,FALSE)=\"\",\"\",VLOOKUP(AF291,Group,7,FALSE))","v":""},null,"X"]
[null,null,null,null,null,null,null,null,null,null,null,null,null,null,null,null,null,null,null,null,null,null,null,null,null,null,null,null,null,null,null,null,null,null,null,null,null,null,null,"X"]
[null,"Decos",null,null,"12\" x 12\"",null,"M122",null,"Mosaic 2\" x 2\" Mesh-Mounted ",null,null,null,"Matte",null,null,"0.97 SF/SHEET","Stock",null,{"$f":"IF(Suggested=\"Yes\",AA293,AG293)","v":30.1},"EA",{"$f":"+Instructions!$B$21","v":"G"},null,{"$f":"+Instructions!$C$21","v":0},{"$f":"IF(Instructions!$C$21=\"Group\",#REF!,IF(Instructions!$C$21=\"Carter\",#REF!,ROUNDUP($AA293*(1-W293),2)))","v":30.1},null,"YES",30.1,{"$f":"+W293","v":0},{"$f":"+X293","v":30.1},{"$f":"(AG293-AC293)/AG293","v":0},null,3,{"$f":"SUM(AI293:AK293)+AE293","v":30.1},null,{"$f":"ROUND(AC293/(1-VLOOKUP(AF293,Group,2,FALSE)),2)","v":30.1},{"$f":"IF(VLOOKUP(AF293,Group,5,FALSE)=\"YES\",VLOOKUP(ROUND(ROUND(AI293,1)-AI293,2),Round,2,FALSE)+VLOOKUP(AF293,Group,6,FALSE),0)","v":0},{"$f":"IF(VLOOKUP(AF293,Group,7,FALSE)=\"\",0,ROUND(AI293-0.04999,1)-AI293+AL293)","v":0},{"$f":"IF(VLOOKUP(AF293,Group,7,FALSE)=\"\",\"\",VLOOKUP(AF293,Group,7,FALSE))","v":""},null,"X"]
[null,"Decos",null,null,"10\" x 11.75\"",null,"M3x3HEX",null,"Mosaic Hexagon Mesh-Mounted ",null,null,null,"Matte",null,null,"5 EA/CTN",null,"a",{"$f":"IF(Suggested=\"Yes\",AA294,AG294)","v":53.45},"EA",{"$f":"+Instructions!$B$21","v":"G"},null,{"$f":"+Instructions!$C$21","v":0},{"$f":"IF(Instructions!$C$21=\"Group\",#REF!,IF(Instructions!$C$21=\"Carter\",#REF!,ROUNDUP($AA294*(1-W294),2)))","v":53.45},null,"YES",53.45,{"$f":"+W294","v":0},{"$f":"+X294","v":53.45},{"$f":"(AG294-AC294)/AG294","v":0},null,3,{"$f":"SUM(AI294:AK294)+AE294","v":53.45},null,{"$f":"ROUND(AC294/(1-VLOOKUP(AF294,Group,2,FALSE)),2)","v":53.45},{"$f":"IF(VLOOKUP(AF294,Group,5,FALSE)=\"YES\",VLOOKUP(ROUND(ROUND(AI294,1)-AI294,2),Round,2,FALSE)+VLOOKUP(AF294,Group,6,FALSE),0)","v":0},{"$f":"IF(VLOOKUP(AF294,Group,7,FALSE)=\"\",0,ROUND(AI294-0.04999,1)-AI294+AL294)","v":0},{"$f":"IF(VLOOKUP(AF294,Group,7,FALSE)=\"\",\"\",VLOOKUP(AF294,Group,7,FALSE))","v":""},null,"X"]
[null,null,null,null,null,null,null,null,null,null,null,null,null,null,null,null,null,null,null,null,null,null,null,null,null,null,null,null,null,null,null,null,null,null,null,null,null,null,null,"X"]
[null,"Trim",null,null,"3\" x 12\"",null,"P43C9",null,"Bullnose",null,null,null,"Matte",null,null,null,null,null,{"$f":"IF(Suggested=\"Yes\",AA296,AG296)","v":6.9},"EA",{"$f":"+Instructions!$B$21","v":"G"},null,{"$f":"+Instructions!$C$21","v":0},{"$f":"IF(Instructions!$C$21=\"Group\",#REF!,IF(Instructions!$C$21=\"Carter\",#REF!,ROUNDUP($AA296*(1-W296),2)))","v":6.9},null,"YES",6.9,{"$f":"+W296","v":0},{"$f":"+X296","v":6.9},{"$f":"(AG296-AC296)/AG296","v":0},null,2,{"$f":"SUM(AI296:AK296)+AE296","v":6.9},null,{"$f":"ROUND(AC296/(1-VLOOKUP(AF296,Group,2,FALSE)),2)","v":6.9},{"$f":"IF(VLOOKUP(AF296,Group,5,FALSE)=\"YES\",VLOOKUP(ROUND(ROUND(AI296,1)-AI296,2),Round,2,FALSE)+VLOOKUP(AF296,Group,6,FALSE),0)","v":0},{"$f":"IF(VLOOKUP(AF296,Group,7,FALSE)=\"\",0,ROUND(AI296-0.04999,1)-AI296+AL296)","v":0},{"$f":"IF(VLOOKUP(AF296,Group,7,FALSE)=\"\",\"\",VLOOKUP(AF296,Group,7,FALSE))","v":""},null,"X"]
[null,null,null,null,null,null,null,null,null,null,null,null,null,null,null,null,null,null,null,null,null,null,null,null,null,null,null,null,null,null,null,null,null,null,null,null,null,null,null,"X"]
[null,null,null,"Colors:","ENC1P Honesty          ENC2P Grace          ENC3P Beauty          ENC4P Charm",null,null,null,null,null,null,null,null,null,null,null,null,null,null,null,null,null,null,null,null,null,null,null,null,null,null,null,null,null,null," ",null,null,null,"X"]
[null,null,null,null,null,null,null,null,null,null,null,null,null,null,null,null,null,null,null,null,null,null,null,null,null,null,null,null,null,null,null,null,null,null,null,null,null,null,null,"X"]
[null,"Field Tile",null,null,"3.75\" x 12\"",null,"Field",null,"Rectified",null,null,null,"Polished",null,null,"6.12 SF/CTN",null,null,{"$f":"IF(Suggested=\"Yes\",AA300,AG300)","v":21.15},"SF",{"$f":"+Instructions!$B$21","v":"G"},null,{"$f":"+Instructions!$C$21","v":0},{"$f":"IF(Instructions!$C$21=\"Group\",#REF!,IF(Instructions!$C$21=\"Carter\",#REF!,ROUNDUP($AA300*(1-W300),2)))","v":21.15},null,"YES",21.15,{"$f":"+W300","v":0},21.15,{"$f":"(AG300-AC300)/AG300","v":0},null,1,{"$f":"SUM(AI300:AK300)+AE300","v":21.15},null,{"$f":"ROUND(AC300/(1-VLOOKUP(AF300,Group,2,FALSE)),2)","v":21.15},{"$f":"IF(VLOOKUP(AF300,Group,5,FALSE)=\"YES\",VLOOKUP(ROUND(ROUND(AI300,1)-AI300,2),Round,2,FALSE)+VLOOKUP(AF300,Group,6,FALSE),0)","v":0},{"$f":"IF(VLOOKUP(AF300,Group,7,FALSE)=\"\",0,ROUND(AI300-0.04999,1)-AI300+AL300)","v":0},{"$f":"IF(VLOOKUP(AF300,Group,7,FALSE)=\"\",\"\",VLOOKUP(AF300,Group,7,FALSE))","v":""},null,"X"]
[null,"Field Tile",null,null,"12\" x 24\"",null,"Field",null,"Rectified",null,null,null,"Polished",null,null,"15.62 SF/CTN","Stock","b",{"$f":"IF(Suggested=\"Yes\",AA301,AG301)","v":7.9},"SF",{"$f":"+Instructions!$B$21","v":"G"},null,{"$f":"+Instructions!$C$21","v":0},{"$f":"IF(Instructions!$C$21=\"Group\",#REF!,IF(Instructions!$C$21=\"Carter\",#REF!,ROUNDUP($AA301*(1-W301),2)))","v":7.9},null,"YES",7.9,0,7.9,{"$f":"(AG301-AC301)/AG301","v":0},null,1,{"$f":"SUM(AI301:AK301)+AE301","v":7.9},null,{"$f":"ROUND(AC301/(1-VLOOKUP(AF301,Group,2,FALSE)),2)","v":7.9},{"$f":"IF(VLOOKUP(AF301,Group,5,FALSE)=\"YES\",VLOOKUP(ROUND(ROUND(AI301,1)-AI301,2),Round,2,FALSE)+VLOOKUP(AF301,Group,6,FALSE),0)","v":0},{"$f":"IF(VLOOKUP(AF301,Group,7,FALSE)=\"\",0,ROUND(AI301-0.04999,1)-AI301+AL301)","v":0},{"$f":"IF(VLOOKUP(AF301,Group,7,FALSE)=\"\",\"\",VLOOKUP(AF301,Group,7,FALSE))","v":""},null,"X"]
[null,null,null,null,null,null,null,null,null,null,null,null,null,null,null,null,null,null,null,null,null,null,null,null,null,null,null,null,null,null,null,null,null,null,null,null,null,null,null,"X"]
[null,"Decos",null,null,"10\" x 11.75\"",null,"M3x3HEX",null,"Mosaic Hexagon Mesh-Mounted ",null,null,null,"Polished",null,null,"5 EA/CTN",null,"a",{"$f":"IF(Suggested=\"Yes\",AA303,AG303)","v":60.35},"EA",{"$f":"+Instructions!$B$21","v":"G"},null,{"$f":"+Instructions!$C$21","v":0},{"$f":"IF(Instructions!$C$21=\"Group\",#REF!,IF(Instructions!$C$21=\"Carter\",#REF!,ROUNDUP($AA303*(1-W303),2)))","v":60.35},null,"YES",60.35,{"$f":"+W303","v":0},{"$f":"+X303","v":60.35},{"$f":"(AG303-AC303)/AG303","v":0},null,3,{"$f":"SUM(AI303:AK303)+AE303","v":60.35},null,{"$f":"ROUND(AC303/(1-VLOOKUP(AF303,Group,2,FALSE)),2)","v":60.35},{"$f":"IF(VLOOKUP(AF303,Group,5,FALSE)=\"YES\",VLOOKUP(ROUND(ROUND(AI303,1)-AI303,2),Round,2,FALSE)+VLOOKUP(AF303,Group,6,FALSE),0)","v":0},{"$f":"IF(VLOOKUP(AF303,Group,7,FALSE)=\"\",0,ROUND(AI303-0.04999,1)-AI303+AL303)","v":0},{"$f":"IF(VLOOKUP(AF303,Group,7,FALSE)=\"\",\"\",VLOOKUP(AF303,Group,7,FALSE))","v":""},null,"X"]
[null,null,null,null,null,null,null,null,null,null,null,null,null,null,null,null,null,null,null,null,null,null,null,null,null,null,null,null,null,null,null,null,null,null,null,null,null,null,null,"X"]
[null,"Trim",null,null,"3\" x 12\"",null,"P43C9",null,"Bullnose",null,null,null,"Polished",null,null,null,"Stock",null,{"$f":"IF(Suggested=\"Yes\",AA305,AG305)","v":8},"EA",{"$f":"+Instructions!$B$21","v":"G"},null,{"$f":"+Instructions!$C$21","v":0},{"$f":"IF(Instructions!$C$21=\"Group\",#REF!,IF(Instructions!$C$21=\"Carter\",#REF!,ROUNDUP($AA305*(1-W305),2)))","v":8},null,"YES",8,{"$f":"+W305","v":0},{"$f":"+X305","v":8},{"$f":"(AG305-AC305)/AG305","v":0},null,2,{"$f":"SUM(AI305:AK305)+AE305","v":8},null,{"$f":"ROUND(AC305/(1-VLOOKUP(AF305,Group,2,FALSE)),2)","v":8},{"$f":"IF(VLOOKUP(AF305,Group,5,FALSE)=\"YES\",VLOOKUP(ROUND(ROUND(AI305,1)-AI305,2),Round,2,FALSE)+VLOOKUP(AF305,Group,6,FALSE),0)","v":0},{"$f":"IF(VLOOKUP(AF305,Group,7,FALSE)=\"\",0,ROUND(AI305-0.04999,1)-AI305+AL305)","v":0},{"$f":"IF(VLOOKUP(AF305,Group,7,FALSE)=\"\",\"\",VLOOKUP(AF305,Group,7,FALSE))","v":""},null,"X"]
[null,null,null,null,null,null,null,null,null,null,null,null,null,null,null,null,null,null,null,null,null,null,null,null,null,null,null,null,null,null,null,null,null,null,null,null,null,null,null,"X"]
["x",null,"continued on next page",null,null,null,null,null,null,null,null,null,null,null,null,null,null,null,null,null,null,null,null,null,null,null,null,null,null,null,null,null,null,null,null," ",null,null,null,"X"]
[null,null,"ENCHANTHDP - Glazed Porcelain Floor & Wall - continued",null,null,null,null,null,null,null,null,null,null,null,null,null,null,"Item # Lookup:","FTENC",null,null,null,null,null,null,null,null,null,null,null,null,null,null,null,null," ",null,null,null,"X"]
[null,null,null,null,null,null,null,null,null,null,null,null,null,null,null,null,null,null,null,null,null,null,null,null,null,null,null,null,null,null,null,null,null,null,null,null,null,null,null,"X"]
[null,null,null,"Colors:","ENC1G Honesty          ENC2G Grace          ENC3G Beauty          ENC4G Charm",null,null,null,null,null,null,null,null,null,null,null,null,null,null,null,null,null,null,null,null,null,null,null,null,null,null,null,null,null,null," ",null,null,null,"X"]
[null,null,null,null,null,null,null,null,null,null,null,null,null,null,null,null,null,null,null,null,null,null,null,null,null,null,null,null,null,null,null,null,null,null,null,null,null,null,null,"X"]
[null,"Decos",null,null,"2.4\" x 12\"",null,"L2.4x12",null,"Ingot Listello",null,"(Ceramic)",null,"Glossy",null,null,null,null,null,{"$f":"IF(Suggested=\"Yes\",AA312,AG312)","v":44.6},"EA",{"$f":"+Instructions!$B$21","v":"G"},null,{"$f":"+Instructions!$C$21","v":0},{"$f":"IF(Instructions!$C$21=\"Group\",#REF!,IF(Instructions!$C$21=\"Carter\",#REF!,ROUNDUP($AA312*(1-W312),2)))","v":44.6},null,"YES",44.6,{"$f":"+W312","v":0},{"$f":"+X312","v":44.6},{"$f":"(AG312-AC312)/AG312","v":0},null,3,{"$f":"SUM(AI312:AK312)+AE312","v":44.6},null,{"$f":"ROUND(AC312/(1-VLOOKUP(AF312,Group,2,FALSE)),2)","v":44.6},{"$f":"IF(VLOOKUP(AF312,Group,5,FALSE)=\"YES\",VLOOKUP(ROUND(ROUND(AI312,1)-AI312,2),Round,2,FALSE)+VLOOKUP(AF312,Group,6,FALSE),0)","v":0},{"$f":"IF(VLOOKUP(AF312,Group,7,FALSE)=\"\",0,ROUND(AI312-0.04999,1)-AI312+AL312)","v":0},{"$f":"IF(VLOOKUP(AF312,Group,7,FALSE)=\"\",\"\",VLOOKUP(AF312,Group,7,FALSE))","v":""},null,"X"]
[null,null,null,null,null,null,null,null,null,null,null,null,null,null,null,null,null,null,null,null,null,null,null,null,null,null,null,null,null,null,null,null,null,null,null,null,null,null,null,"X"]
[null,"Decos",null,null,"2\" x 12\"",null,"CR2x12",null,"Chair Rail",null,"(Ceramic)",null,"Glossy",null,null,null,null,null,{"$f":"IF(Suggested=\"Yes\",AA314,AG314)","v":35.549999999999997},"EA",{"$f":"+Instructions!$B$21","v":"G"},null,{"$f":"+Instructions!$C$21","v":0},{"$f":"IF(Instructions!$C$21=\"Group\",#REF!,IF(Instructions!$C$21=\"Carter\",#REF!,ROUNDUP($AA314*(1-W314),2)))","v":35.549999999999997},null,"YES",35.549999999999997,{"$f":"+W314","v":0},{"$f":"+X314","v":35.549999999999997},{"$f":"(AG314-AC314)/AG314","v":0},null,3,{"$f":"SUM(AI314:AK314)+AE314","v":35.549999999999997},null,{"$f":"ROUND(AC314/(1-VLOOKUP(AF314,Group,2,FALSE)),2)","v":35.549999999999997},{"$f":"IF(VLOOKUP(AF314,Group,5,FALSE)=\"YES\",VLOOKUP(ROUND(ROUND(AI314,1)-AI314,2),Round,2,FALSE)+VLOOKUP(AF314,Group,6,FALSE),0)","v":0},{"$f":"IF(VLOOKUP(AF314,Group,7,FALSE)=\"\",0,ROUND(AI314-0.04999,1)-AI314+AL314)","v":0},{"$f":"IF(VLOOKUP(AF314,Group,7,FALSE)=\"\",\"\",VLOOKUP(AF314,Group,7,FALSE))","v":""},null,"X"]
[null,"Decos",null,null,"2\" x 1\"",null,"CRS2x1",null,"Chair Rail Stop",null,"(Ceramic)",null,"Glossy",null,null,null,null,null,{"$f":"IF(Suggested=\"Yes\",AA315,AG315)","v":35.6},"EA",{"$f":"+Instructions!$B$21","v":"G"},null,{"$f":"+Instructions!$C$21","v":0},{"$f":"IF(Instructions!$C$21=\"Group\",#REF!,IF(Instructions!$C$21=\"Carter\",#REF!,ROUNDUP($AA315*(1-W315),2)))","v":35.6},null,"YES",35.6,{"$f":"+W315","v":0},{"$f":"+X315","v":35.6},{"$f":"(AG315-AC315)/AG315","v":0},null,3,{"$f":"SUM(AI315:AK315)+AE315","v":35.6},null,{"$f":"ROUND(AC315/(1-VLOOKUP(AF315,Group,2,FALSE)),2)","v":35.6},{"$f":"IF(VLOOKUP(AF315,Group,5,FALSE)=\"YES\",VLOOKUP(ROUND(ROUND(AI315,1)-AI315,2),Round,2,FALSE)+VLOOKUP(AF315,Group,6,FALSE),0)","v":0},{"$f":"IF(VLOOKUP(AF315,Group,7,FALSE)=\"\",0,ROUND(AI315-0.04999,1)-AI315+AL315)","v":0},{"$f":"IF(VLOOKUP(AF315,Group,7,FALSE)=\"\",\"\",VLOOKUP(AF315,Group,7,FALSE))","v":""},null,"X"]
[null,null,null,null,null,null,null,null,null,null,null,null,null,null,null,null,null,null,null,null,null,null,null,null,null,null,null,null,null,null,null,null,null,null,null,null,null,null,null,"X"]
[null,null,null,"Notes:","a) The Hexagon Mosaic is 0.81 SF/SHEET.",null,null,null,null,null,null,null,null,null,null,null,null,null,null,null,null,null,null,null,null,null,null,null,null,null,null,null,null,null,null," ",null,null,null,"X"]
[null,null,null,null,"b) The thickness of the 12\" x 24\" Polished Field Tile format is transitioning from 10mm to 8mm in thickness as inventories",null,null,null,null,null,null,null,null,null,null,null,null,null,null,null,null,null,null,null,null,null,null,null,null,null,null,null,null,null,null," ",null,null,null,"X"]
[null,null,null,null,"of the old thickness are depleted.  Packaging of the 12\" x 24\" x 8mm Polished Field Tile will be 9.62 SF/CTN.  Thickness",null,null,null,null,null,null,null,null,null,null,null,null,null,null,null,null,null,null,null,null,null,null,null,null,null,null,null,null,null,null," ",null,null,null,"X"]
[null,null,null,null," is then changing from 8mm to 9mm and there will be 15.62 SF/CTN in the 9mm thick version.",null,null,null,null,null,null,null,null,null,null,null,null,null,null,null,null,null,null,null,null,null,null,null,null,null,null,null,null,null,null," ",null,null,null,"X"]
[]
[null,null,"EXCURSIONHDP - Glazed Porcelain Floor & Wall",null,null,null,null,null,null,null,null,null,null,null," ",null,null,"Item # Lookup:","FTEXN",null,null,null,null,null,null,null,null,null,null,null,null,null,null,null,null," ",null,null,null,"X"]
[null,null,null,null,null,null,null,null,null,null,null,null,null,null,null,null,null,null,null,null,null,null,null,null,null,null,null,null,null,null,null,null,null,null,null,null,null,null,null,"X"]
[null,null,null,"Colors:","EXN10 Zion          EXN30 Rainier          EXN50 Badlands",null,null,null,null,null,null,null,null,null,null,null,null,null,null,null,null,null,null,null,null,null,null,null,null,null,null,null,null,null,null," ",null,null,null,"X"]
[null,null,null,null,null,null,null,null,null,null,null,null,null,null,null,null,null,null,null,null,null,null,null,null,null,null,null,null,null,null,null,null,null,null,null,null,null,null,null,"X"]
[null,"Field Tile",null,null,"8\" x 36\"",null,"Field",null,null,null,null,null,null,null,null,"14.00 SF/CTN",null,null,{"$f":"IF(Suggested=\"Yes\",AA326,AG326)","v":5.3},"SF",{"$f":"+Instructions!$B$21","v":"G"},null,{"$f":"+Instructions!$C$21","v":0},{"$f":"IF(Instructions!$C$21=\"Group\",#REF!,IF(Instructions!$C$21=\"Carter\",#REF!,ROUNDUP($AA326*(1-W326),2)))","v":5.3},null,"YES",5.3,{"$f":"+W326","v":0},{"$f":"+X326","v":5.3},{"$f":"(AG326-AC326)/AG326","v":0},null,1,{"$f":"SUM(AI326:AK326)+AE326","v":5.3},null,{"$f":"ROUND(AC326/(1-VLOOKUP(AF326,Group,2,FALSE)),2)","v":5.3},{"$f":"IF(VLOOKUP(AF326,Group,5,FALSE)=\"YES\",VLOOKUP(ROUND(ROUND(AI326,1)-AI326,2),Round,2,FALSE)+VLOOKUP(AF326,Group,6,FALSE),0)","v":0},{"$f":"IF(VLOOKUP(AF326,Group,7,FALSE)=\"\",0,ROUND(AI326-0.04999,1)-AI326+AL326)","v":0},{"$f":"IF(VLOOKUP(AF326,Group,7,FALSE)=\"\",\"\",VLOOKUP(AF326,Group,7,FALSE))","v":""},null,"X"]
[]
[null,null,"FLUENT - Glazed Ceramic Wall",null,null,null,null,null,null,null,null,null," ",null,null,null,null,"Item # Lookup:","FTFL"]
[null,null,null,null,null,null,null,null,null,null,null,null,null,null,null,null,null,null,null,null,null,null,null,null,null,null,null,null,null,null,null,null,null,null,null,null,null,null,null,"X"]
[null,null,null,"Colors:","FLT10 White Matte",null,null,"      FLT20G Cream Glossy",null,null,null,null,null,null,null,null,null,null,null,null,null,null,null,null,null,null,null,null,null,null,null,null,null,null,null," ",null,null,null,"X"]
[null,null,null,null,"FLT10G White Glossy",null,null,"      FLT30G Grey Glossy",null,null,null,null,null,null,null,null,null,null,null,null,null,null,null,null,null,null,null,null,null,null,null,null,null,null,null," ",null,null,null,"X"]
[null,null,null,null,null,null,null,null,null,null,null,null,null,null,null,null,null,null,null,null,null,null,null,null,null,null,null,null,null,null,null,null,null,null,null,null,null,null,null,"X"]
[null,"Field Tile",null,null,"3\" x 6\"",null,"Field",null,null,null,null,null,null,null,null,"16.57 SF/CTN","Stock","a",{"$f":"IF(Suggested=\"Yes\",AA333,AG333)","v":4.1500000000000004},"SF",{"$f":"+Instructions!$B$21","v":"G"},null,{"$f":"+Instructions!$C$21","v":0},{"$f":"IF(Instructions!$C$21=\"Group\",#REF!,IF(Instructions!$C$21=\"Carter\",#REF!,ROUNDUP($AA333*(1-W333),2)))","v":4.1500000000000004},null,"",4.1500000000000004,{"$f":"+W333","v":0},{"$f":"+X333","v":4.1500000000000004},{"$f":"(AG333-AC333)/AG333","v":0},null,1,{"$f":"SUM(AI333:AK333)+AE333","v":4.1500000000000004},null,{"$f":"ROUND(AC333/(1-VLOOKUP(AF333,Group,2,FALSE)),2)","v":4.1500000000000004},{"$f":"IF(VLOOKUP(AF333,Group,5,FALSE)=\"YES\",VLOOKUP(ROUND(ROUND(AI333,1)-AI333,2),Round,2,FALSE)+VLOOKUP(AF333,Group,6,FALSE),0)","v":0},{"$f":"IF(VLOOKUP(AF333,Group,7,FALSE)=\"\",0,ROUND(AI333-0.04999,1)-AI333+AL333)","v":0},{"$f":"IF(VLOOKUP(AF333,Group,7,FALSE)=\"\",\"\",VLOOKUP(AF333,Group,7,FALSE))","v":""},null,"X"]
[null,"Field Tile",null,null,"3\" x 12\"",null,"Field",null,null,null,null,null,null,null,null,"12.16 SF/CTN","Stock","a",{"$f":"IF(Suggested=\"Yes\",AA334,AG334)","v":4.55},"SF",{"$f":"+Instructions!$B$21","v":"G"},null,{"$f":"+Instructions!$C$21","v":0},{"$f":"IF(Instructions!$C$21=\"Group\",#REF!,IF(Instructions!$C$21=\"Carter\",#REF!,ROUNDUP($AA334*(1-W334),2)))","v":4.55},null,"",4.55,{"$f":"+W334","v":0},{"$f":"+X334","v":4.55},{"$f":"(AG334-AC334)/AG334","v":0},null,1,{"$f":"SUM(AI334:AK334)+AE334","v":4.55},null,{"$f":"ROUND(AC334/(1-VLOOKUP(AF334,Group,2,FALSE)),2)","v":4.55},{"$f":"IF(VLOOKUP(AF334,Group,5,FALSE)=\"YES\",VLOOKUP(ROUND(ROUND(AI334,1)-AI334,2),Round,2,FALSE)+VLOOKUP(AF334,Group,6,FALSE),0)","v":0},{"$f":"IF(VLOOKUP(AF334,Group,7,FALSE)=\"\",0,ROUND(AI334-0.04999,1)-AI334+AL334)","v":0},{"$f":"IF(VLOOKUP(AF334,Group,7,FALSE)=\"\",\"\",VLOOKUP(AF334,Group,7,FALSE))","v":""},null,"X"]
[null,"Field Tile",null,null,"4\" x 16\"",null,"Field",null,null,null,null,null,null,null,null,"10.76 SF/CTN",null,null,{"$f":"IF(Suggested=\"Yes\",AA335,AG335)","v":4.7},"SF",{"$f":"+Instructions!$B$21","v":"G"},null,{"$f":"+Instructions!$C$21","v":0},{"$f":"IF(Instructions!$C$21=\"Group\",#REF!,IF(Instructions!$C$21=\"Carter\",#REF!,ROUNDUP($AA335*(1-W335),2)))","v":4.7},null,"",4.7,{"$f":"+W335","v":0},{"$f":"+X335","v":4.7},{"$f":"(AG335-AC335)/AG335","v":0},null,1,{"$f":"SUM(AI335:AK335)+AE335","v":4.7},null,{"$f":"ROUND(AC335/(1-VLOOKUP(AF335,Group,2,FALSE)),2)","v":4.7},{"$f":"IF(VLOOKUP(AF335,Group,5,FALSE)=\"YES\",VLOOKUP(ROUND(ROUND(AI335,1)-AI335,2),Round,2,FALSE)+VLOOKUP(AF335,Group,6,FALSE),0)","v":0},{"$f":"IF(VLOOKUP(AF335,Group,7,FALSE)=\"\",0,ROUND(AI335-0.04999,1)-AI335+AL335)","v":0},{"$f":"IF(VLOOKUP(AF335,Group,7,FALSE)=\"\",\"\",VLOOKUP(AF335,Group,7,FALSE))","v":""},null,"X"]
[null,null,null,null,null,null,null,null,null,null,null,null,null,null,null,null,null,null,null,null,null,null,null,null,null,null,null,null,null,null,null,null,null,null,null,null,null,null,null,"X"]
[null,"Trim",null,null,"3\" x 6\"",null,"S4369",null,"Bullnose",null,null,null,null,null,null,null,"Stock","a",{"$f":"IF(Suggested=\"Yes\",AA337,AG337)","v":1.8},"EA",{"$f":"+Instructions!$B$21","v":"G"},null,{"$f":"+Instructions!$C$21","v":0},{"$f":"IF(Instructions!$C$21=\"Group\",#REF!,IF(Instructions!$C$21=\"Carter\",#REF!,ROUNDUP($AA337*(1-W337),2)))","v":1.8},null,"",1.8,{"$f":"+W337","v":0},{"$f":"+X337","v":1.8},{"$f":"(AG337-AC337)/AG337","v":0},null,2,{"$f":"SUM(AI337:AK337)+AE337","v":1.8},null,{"$f":"ROUND(AC337/(1-VLOOKUP(AF337,Group,2,FALSE)),2)","v":1.8},{"$f":"IF(VLOOKUP(AF337,Group,5,FALSE)=\"YES\",VLOOKUP(ROUND(ROUND(AI337,1)-AI337,2),Round,2,FALSE)+VLOOKUP(AF337,Group,6,FALSE),0)","v":0},{"$f":"IF(VLOOKUP(AF337,Group,7,FALSE)=\"\",0,ROUND(AI337-0.04999,1)-AI337+AL337)","v":0},{"$f":"IF(VLOOKUP(AF337,Group,7,FALSE)=\"\",\"\",VLOOKUP(AF337,Group,7,FALSE))","v":""},null,"X"]
[null,"Trim",null,null,"3\" x 12\"",null,"S43C9",null,"Bullnose",null,null,null,null,null,null,null,"Stock","a",{"$f":"IF(Suggested=\"Yes\",AA338,AG338)","v":3.4},"EA",{"$f":"+Instructions!$B$21","v":"G"},null,{"$f":"+Instructions!$C$21","v":0},{"$f":"IF(Instructions!$C$21=\"Group\",#REF!,IF(Instructions!$C$21=\"Carter\",#REF!,ROUNDUP($AA338*(1-W338),2)))","v":3.4},null,"",3.4,{"$f":"+W338","v":0},{"$f":"+X338","v":3.4},{"$f":"(AG338-AC338)/AG338","v":0},null,2,{"$f":"SUM(AI338:AK338)+AE338","v":3.4},null,{"$f":"ROUND(AC338/(1-VLOOKUP(AF338,Group,2,FALSE)),2)","v":3.4},{"$f":"IF(VLOOKUP(AF338,Group,5,FALSE)=\"YES\",VLOOKUP(ROUND(ROUND(AI338,1)-AI338,2),Round,2,FALSE)+VLOOKUP(AF338,Group,6,FALSE),0)","v":0},{"$f":"IF(VLOOKUP(AF338,Group,7,FALSE)=\"\",0,ROUND(AI338-0.04999,1)-AI338+AL338)","v":0},{"$f":"IF(VLOOKUP(AF338,Group,7,FALSE)=\"\",\"\",VLOOKUP(AF338,Group,7,FALSE))","v":""},null,"X"]
[null,"Trim",null,null,"4\" x 16\"",null,"S44G9",null,"Bullnose",null,null,null,null,null,null,null,null,null,5.6,"EA",{"$f":"+Instructions!$B$21","v":"G"},null,{"$f":"+Instructions!$C$21","v":0},{"$f":"IF(Instructions!$C$21=\"Group\",#REF!,IF(Instructions!$C$21=\"Carter\",#REF!,ROUNDUP($AA339*(1-W339),2)))","v":5.6},null,"",5.6,0,5.6,0,null,2,5.6,null,5.6,0,0,"",null,"X"]
[null,null,null,null,null,null,null,null,null,null,null,null,null,null,null,null,null,null,null,null,null,null,null,null,null,null,null,null,null,null,null,null,null,null,null,null,null,null,null,"X"]
[null,null,null,"Colors:","FLT40 Black Matte          FLT40G Black Glossy",null,null,null,null,null,null,null,null,null,null,null,null,null,null,null,null,null,null,null,null,null,null,null,null,null,null,null,null,null,null," ",null,null,null,"X"]
[null,null,null,null,null,null,null,null,null,null,null,null,null,null,null,null,null,null,null,null,null,null,null,null,null,null,null,null,null,null,null,null,null,null,null,null,null,null,null,"X"]
[null,"Field Tile",null,null,"3\" x 6\"",null,"Field",null,null,null,null,null,null,null,null,"16.57 SF/CTN","Stock","b",{"$f":"IF(Suggested=\"Yes\",AA343,AG343)","v":4.75},"SF",{"$f":"+Instructions!$B$21","v":"G"},null,{"$f":"+Instructions!$C$21","v":0},{"$f":"IF(Instructions!$C$21=\"Group\",#REF!,IF(Instructions!$C$21=\"Carter\",#REF!,ROUNDUP($AA343*(1-W343),2)))","v":4.75},null,"",4.75,{"$f":"+W343","v":0},{"$f":"+X343","v":4.75},{"$f":"(AG343-AC343)/AG343","v":0},null,1,{"$f":"SUM(AI343:AK343)+AE343","v":4.75},null,{"$f":"ROUND(AC343/(1-VLOOKUP(AF343,Group,2,FALSE)),2)","v":4.75},{"$f":"IF(VLOOKUP(AF343,Group,5,FALSE)=\"YES\",VLOOKUP(ROUND(ROUND(AI343,1)-AI343,2),Round,2,FALSE)+VLOOKUP(AF343,Group,6,FALSE),0)","v":0},{"$f":"IF(VLOOKUP(AF343,Group,7,FALSE)=\"\",0,ROUND(AI343-0.04999,1)-AI343+AL343)","v":0},{"$f":"IF(VLOOKUP(AF343,Group,7,FALSE)=\"\",\"\",VLOOKUP(AF343,Group,7,FALSE))","v":""},null,"X"]
[null,"Field Tile",null,null,"3\" x 12\"",null,"Field",null,null,null,null,null,null,null,null,"12.16 SF/CTN","Stock","b",5.3,"SF",{"$f":"+Instructions!$B$21","v":"G"},null,{"$f":"+Instructions!$C$21","v":0},{"$f":"IF(Instructions!$C$21=\"Group\",#REF!,IF(Instructions!$C$21=\"Carter\",#REF!,ROUNDUP($AA344*(1-W344),2)))","v":5.3},null,"",5.3,0,5.3,0,null,1,5.3,null,5.3,0,0,"",null,"X"]
[null,"Field Tile",null,null,"4\" x 16\"",null,"Field",null,null,null,null,null,null,null,null,"10.76 SF/CTN",null,null,5.25,"SF",{"$f":"+Instructions!$B$21","v":"G"},null,{"$f":"+Instructions!$C$21","v":0},{"$f":"IF(Instructions!$C$21=\"Group\",#REF!,IF(Instructions!$C$21=\"Carter\",#REF!,ROUNDUP($AA345*(1-W345),2)))","v":5.25},null,"",5.25,0,5.25,0,null,1,5.25,null,5.25,0,0,"",null,"X"]
[null,null,null,null,null,null,null,null,null,null,null,null,null,null,null,null,null,null,null,null,null,null,null,null,null,null,null,null,null,null,null,null,null,null,null,null,null,null,null,"X"]
[null,"Trim",null,null,"3\" x 6\"",null,"S4369",null,"Bullnose",null,null,null,null,null,null,null,"Stock","b",{"$f":"IF(Suggested=\"Yes\",AA347,AG347)","v":2.2000000000000002},"EA",{"$f":"+Instructions!$B$21","v":"G"},null,{"$f":"+Instructions!$C$21","v":0},{"$f":"IF(Instructions!$C$21=\"Group\",#REF!,IF(Instructions!$C$21=\"Carter\",#REF!,ROUNDUP($AA347*(1-W347),2)))","v":2.2000000000000002},null,"",2.2000000000000002,{"$f":"+W347","v":0},{"$f":"+X347","v":2.2000000000000002},{"$f":"(AG347-AC347)/AG347","v":0},null,2,{"$f":"SUM(AI347:AK347)+AE347","v":2.2000000000000002},null,{"$f":"ROUND(AC347/(1-VLOOKUP(AF347,Group,2,FALSE)),2)","v":2.2000000000000002},{"$f":"IF(VLOOKUP(AF347,Group,5,FALSE)=\"YES\",VLOOKUP(ROUND(ROUND(AI347,1)-AI347,2),Round,2,FALSE)+VLOOKUP(AF347,Group,6,FALSE),0)","v":0},{"$f":"IF(VLOOKUP(AF347,Group,7,FALSE)=\"\",0,ROUND(AI347-0.04999,1)-AI347+AL347)","v":0},{"$f":"IF(VLOOKUP(AF347,Group,7,FALSE)=\"\",\"\",VLOOKUP(AF347,Group,7,FALSE))","v":""},null,"X"]
[null,"Trim",null,null,"3\" x 12\"",null,"S43C9",null,"Bullnose",null,null,null,null,null,null,null,"Stock","b",4,"EA",{"$f":"+Instructions!$B$21","v":"G"},null,{"$f":"+Instructions!$C$21","v":0},{"$f":"IF(Instructions!$C$21=\"Group\",#REF!,IF(Instructions!$C$21=\"Carter\",#REF!,ROUNDUP($AA348*(1-W348),2)))","v":4},null,"",4,0,4,0,null,2,4,null,4,0,0,"",null,"X"]
[null,"Trim",null,null,"4\" x 16\"",null,"S44G9",null,"Bullnose",null,null,null,null,null,null,null,null,null,6.35,"EA",{"$f":"+Instructions!$B$21","v":"G"},null,{"$f":"+Instructions!$C$21","v":0},{"$f":"IF(Instructions!$C$21=\"Group\",#REF!,IF(Instructions!$C$21=\"Carter\",#REF!,ROUNDUP($AA349*(1-W349),2)))","v":6.35},null,"",6.35,0,6.35,0,null,2,6.35,null,6.35,0,0,"",null,"X"]
[]
[null,null,null,"Notes:","a) Not stocked in color FLT20G Cream Glossy.",null,null,null,null,null,"b) Not stocked in color FLT40 Black Matte.",null,null,null,null,null,null,null,null,null,null,null,null,null,null,null,null,null,null,null,null,null,null,null,null," ",null,null,null,"X"]
[]
[null,null,"GRAVITATEHDP - Glazed Porcelain Floor & Wall",null,null,null,null,null,null,null,null,null," ",null,null,null,null,"Item # Lookup:","FTGVT"]
[null,null,null,null,null,null,null,null,null,null,null,null,null,null,null,null,null,null,null,null,null,null,null,null,null,null,null,null,null,null,null,null,null,null,null,null,null,null,null,"X"]
[null,null,null,"Colors:","GVT10 White          GVT20 Beige          GVT30 Gray          GVT40 Natural",null,null,null,null,null,null,null,null,null,null,null,null,null,null,null,null,null,null,null,null,null,null,null,null,null,null,null,null,null,null," ",null,null,null,"X"]
[]
[null,"Field Tile",null,null,"12\" x 24\"",null,"Field",null,"Matte",null,null,null,null,null,null,"16.00 SF/CTN","Stock","a",{"$f":"IF(Suggested=\"Yes\",AA357,AG357)","v":5.2},"SF",{"$f":"+Instructions!$B$21","v":"G"},null,{"$f":"+Instructions!$C$21","v":0},{"$f":"IF(Instructions!$C$21=\"Group\",#REF!,IF(Instructions!$C$21=\"Carter\",#REF!,ROUNDUP($AA357*(1-W357),2)))","v":5.2},null,"YES",5.2,{"$f":"+W357","v":0},{"$f":"+X357","v":5.2},{"$f":"(AG357-AC357)/AG357","v":0},null,1,{"$f":"SUM(AI357:AK357)+AE357","v":5.2},null,{"$f":"ROUND(AC357/(1-VLOOKUP(AF357,Group,2,FALSE)),2)","v":5.2},{"$f":"IF(VLOOKUP(AF357,Group,5,FALSE)=\"YES\",VLOOKUP(ROUND(ROUND(AI357,1)-AI357,2),Round,2,FALSE)+VLOOKUP(AF357,Group,6,FALSE),0)","v":0},{"$f":"IF(VLOOKUP(AF357,Group,7,FALSE)=\"\",0,ROUND(AI357-0.04999,1)-AI357+AL357)","v":0},{"$f":"IF(VLOOKUP(AF357,Group,7,FALSE)=\"\",\"\",VLOOKUP(AF357,Group,7,FALSE))","v":""},null,"X"]
[]
[null,"Decos",null,null,"12\" x 12\"",null,"M1x6BRICK",null,"Matte","     Mosaic 1\" x 6\" Offset Brick (0.97 SF/Sheet)",null,null,null,null,null,"5 EA/CTN",null,null,{"$f":"IF(Suggested=\"Yes\",AA359,AG359)","v":29.6},"EA",{"$f":"+Instructions!$B$21","v":"G"},null,{"$f":"+Instructions!$C$21","v":0},{"$f":"IF(Instructions!$C$21=\"Group\",#REF!,IF(Instructions!$C$21=\"Carter\",#REF!,ROUNDUP($AA359*(1-W359),2)))","v":29.6},null,"YES",29.6,{"$f":"+W359","v":0},{"$f":"+X359","v":29.6},{"$f":"(AG359-AC359)/AG359","v":0},null,3,{"$f":"SUM(AI359:AK359)+AE359","v":29.6},null,{"$f":"ROUND(AC359/(1-VLOOKUP(AF359,Group,2,FALSE)),2)","v":29.6},{"$f":"IF(VLOOKUP(AF359,Group,5,FALSE)=\"YES\",VLOOKUP(ROUND(ROUND(AI359,1)-AI359,2),Round,2,FALSE)+VLOOKUP(AF359,Group,6,FALSE),0)","v":0},{"$f":"IF(VLOOKUP(AF359,Group,7,FALSE)=\"\",0,ROUND(AI359-0.04999,1)-AI359+AL359)","v":0},{"$f":"IF(VLOOKUP(AF359,Group,7,FALSE)=\"\",\"\",VLOOKUP(AF359,Group,7,FALSE))","v":""},null,"X"]
[null,"Decos",null,null,"12\" x 12\"",null,"M12",null,"Matte","     Mosaic 2-1/2\" x 2-1/2\" (0.97 SF/Sheet)",null,null,null,null,null,"5 EA/CTN",null,null,{"$f":"IF(Suggested=\"Yes\",AA360,AG360)","v":23.6},"EA",{"$f":"+Instructions!$B$21","v":"G"},null,{"$f":"+Instructions!$C$21","v":0},{"$f":"IF(Instructions!$C$21=\"Group\",#REF!,IF(Instructions!$C$21=\"Carter\",#REF!,ROUNDUP($AA360*(1-W360),2)))","v":23.6},null,"YES",23.6,{"$f":"+W360","v":0},{"$f":"+X360","v":23.6},{"$f":"(AG360-AC360)/AG360","v":0},null,3,{"$f":"SUM(AI360:AK360)+AE360","v":23.6},null,{"$f":"ROUND(AC360/(1-VLOOKUP(AF360,Group,2,FALSE)),2)","v":23.6},{"$f":"IF(VLOOKUP(AF360,Group,5,FALSE)=\"YES\",VLOOKUP(ROUND(ROUND(AI360,1)-AI360,2),Round,2,FALSE)+VLOOKUP(AF360,Group,6,FALSE),0)","v":0},{"$f":"IF(VLOOKUP(AF360,Group,7,FALSE)=\"\",0,ROUND(AI360-0.04999,1)-AI360+AL360)","v":0},{"$f":"IF(VLOOKUP(AF360,Group,7,FALSE)=\"\",\"\",VLOOKUP(AF360,Group,7,FALSE))","v":""},null,"X"]
[]
[null,"Trim",null,null,"3\" x 24\"",null,"P43N9",null,"Matte",null,"Bullnose",null,null,null,null,null,null,null,{"$f":"IF(Suggested=\"Yes\",AA362,AG362)","v":14.15},"EA",{"$f":"+Instructions!$B$21","v":"G"},null,{"$f":"+Instructions!$C$21","v":0},{"$f":"IF(Instructions!$C$21=\"Group\",#REF!,IF(Instructions!$C$21=\"Carter\",#REF!,ROUNDUP($AA362*(1-W362),2)))","v":14.15},null,"YES",14.15,{"$f":"+W362","v":0},{"$f":"+X362","v":14.15},{"$f":"(AG362-AC362)/AG362","v":0},null,2,{"$f":"SUM(AI362:AK362)+AE362","v":14.15},null,{"$f":"ROUND(AC362/(1-VLOOKUP(AF362,Group,2,FALSE)),2)","v":14.15},{"$f":"IF(VLOOKUP(AF362,Group,5,FALSE)=\"YES\",VLOOKUP(ROUND(ROUND(AI362,1)-AI362,2),Round,2,FALSE)+VLOOKUP(AF362,Group,6,FALSE),0)","v":0},{"$f":"IF(VLOOKUP(AF362,Group,7,FALSE)=\"\",0,ROUND(AI362-0.04999,1)-AI362+AL362)","v":0},{"$f":"IF(VLOOKUP(AF362,Group,7,FALSE)=\"\",\"\",VLOOKUP(AF362,Group,7,FALSE))","v":""},null,"X"]
[null,null,null,null,null,null,null,null,null,null,null,null,null,null,null,null,null,null,null,null,null,null,null,null,null,null,null,null,null,null,null,null,null,null,null,null,null,null,null,"X"]
[null,null,null,"Notes:","All Mosaics are Mesh-Mounted.",null,null,null,null,"a) Not stocked in color GVT40 Natural.",null,null,null,null,null,null,null,null,null,null,null,null,null,null,null,null,null,null,null,null,null,null,null,null,null," ",null,null,null,"X"]
[]
[null,null,"HIGH RIDGEHDP - Glazed Porcelain Floor & Wall & 2CM PAVERS",null,null,null,null,null,null,null,null,null,null,null,null,null,null,"Item # Lookup:","FTHRG"]
[null,null,null,null,null,null,null,null,null,null,null,null,null,null,null,null,null,null,null,null,null,null,null,null,null,null,null,null,null,null,null,null,null,null,null,null,null,null,null,"X"]
[null,null,null,"Colors:","HRG10 Stardust White",null,null,"      HRG30 Rockwall Gray",null,null,null,"HRG50 Nightfall Black",null,null,null,null,null,null,null,null,null,null,null,null,null,null,null,null,null,null,null,null,null,null,null," ",null,null,null,"X"]
[null,null,null,null,"HRG20 Pinnacle Beige",null,null,"      HRG40 Deep Taupe",null,null,null,"HRG60 Canyon Slate",null,null,null,null,null,null,null,null,null,null,null,null,null,null,null,null,null,null,null,null,null,null,null," ",null,null,null,"X"]
[]
[null,"Field Tile",null,null,"12\" x 12\"",null,"Field",null,null,null,null,null,null,null,null,"16.00 SF/CTN","Stock",null,{"$f":"IF(Suggested=\"Yes\",AA371,AG371)","v":4.95},"SF",{"$f":"+Instructions!$B$21","v":"G"},null,{"$f":"+Instructions!$C$21","v":0},{"$f":"IF(Instructions!$C$21=\"Group\",#REF!,IF(Instructions!$C$21=\"Carter\",#REF!,ROUNDUP($AA371*(1-W371),2)))","v":4.95},null,"",4.95,{"$f":"+W371","v":0},{"$f":"+X371","v":4.95},{"$f":"(AG371-AC371)/AG371","v":0},null,1,{"$f":"SUM(AI371:AK371)+AE371","v":4.95},null,{"$f":"ROUND(AC371/(1-VLOOKUP(AF371,Group,2,FALSE)),2)","v":4.95},{"$f":"IF(VLOOKUP(AF371,Group,5,FALSE)=\"YES\",VLOOKUP(ROUND(ROUND(AI371,1)-AI371,2),Round,2,FALSE)+VLOOKUP(AF371,Group,6,FALSE),0)","v":0},{"$f":"IF(VLOOKUP(AF371,Group,7,FALSE)=\"\",0,ROUND(AI371-0.04999,1)-AI371+AL371)","v":0},{"$f":"IF(VLOOKUP(AF371,Group,7,FALSE)=\"\",\"\",VLOOKUP(AF371,Group,7,FALSE))","v":""},null,"X"]
[null,"Field Tile",null,null,"12\" x 24\"",null,"Field",null,null,null,null,null,null,null,null,"16.00 SF/CTN","Stock",null,{"$f":"IF(Suggested=\"Yes\",AA372,AG372)","v":5.15},"SF",{"$f":"+Instructions!$B$21","v":"G"},null,{"$f":"+Instructions!$C$21","v":0},{"$f":"IF(Instructions!$C$21=\"Group\",#REF!,IF(Instructions!$C$21=\"Carter\",#REF!,ROUNDUP($AA372*(1-W372),2)))","v":5.15},null,"YES",5.15,{"$f":"+W372","v":0},{"$f":"+X372","v":5.15},{"$f":"(AG372-AC372)/AG372","v":0},null,1,{"$f":"SUM(AI372:AK372)+AE372","v":5.15},null,{"$f":"ROUND(AC372/(1-VLOOKUP(AF372,Group,2,FALSE)),2)","v":5.15},{"$f":"IF(VLOOKUP(AF372,Group,5,FALSE)=\"YES\",VLOOKUP(ROUND(ROUND(AI372,1)-AI372,2),Round,2,FALSE)+VLOOKUP(AF372,Group,6,FALSE),0)","v":0},{"$f":"IF(VLOOKUP(AF372,Group,7,FALSE)=\"\",0,ROUND(AI372-0.04999,1)-AI372+AL372)","v":0},{"$f":"IF(VLOOKUP(AF372,Group,7,FALSE)=\"\",\"\",VLOOKUP(AF372,Group,7,FALSE))","v":""},null,"X"]
[]
[null,"Decos",null,null,"12\" x 12\"",null,"M12",null,"Mosaic 2-1/2\" x 2-1/2\" Mesh-Mounted (0.97 SF/Sheet)",null,null,null,null,null,null,"5 EA/CTN",null,null,{"$f":"IF(Suggested=\"Yes\",AA374,AG374)","v":26.7},"EA",{"$f":"+Instructions!$B$21","v":"G"},null,{"$f":"+Instructions!$C$21","v":0},{"$f":"IF(Instructions!$C$21=\"Group\",#REF!,IF(Instructions!$C$21=\"Carter\",#REF!,ROUNDUP($AA374*(1-W374),2)))","v":26.7},null,"YES",26.7,{"$f":"+W374","v":0},{"$f":"+X374","v":26.7},{"$f":"(AG374-AC374)/AG374","v":0},null,3,{"$f":"SUM(AI374:AK374)+AE374","v":26.7},null,{"$f":"ROUND(AC374/(1-VLOOKUP(AF374,Group,2,FALSE)),2)","v":26.7},{"$f":"IF(VLOOKUP(AF374,Group,5,FALSE)=\"YES\",VLOOKUP(ROUND(ROUND(AI374,1)-AI374,2),Round,2,FALSE)+VLOOKUP(AF374,Group,6,FALSE),0)","v":0},{"$f":"IF(VLOOKUP(AF374,Group,7,FALSE)=\"\",0,ROUND(AI374-0.04999,1)-AI374+AL374)","v":0},{"$f":"IF(VLOOKUP(AF374,Group,7,FALSE)=\"\",\"\",VLOOKUP(AF374,Group,7,FALSE))","v":""},null,"X"]
[]
[null,"Trim",null,null,"3\" x 12\"",null,"P43C9",null,"Bullnose",null,null,null,null,null,null,null,null,null,{"$f":"IF(Suggested=\"Yes\",AA376,AG376)","v":7.95},"EA",{"$f":"+Instructions!$B$21","v":"G"},null,{"$f":"+Instructions!$C$21","v":0},{"$f":"IF(Instructions!$C$21=\"Group\",#REF!,IF(Instructions!$C$21=\"Carter\",#REF!,ROUNDUP($AA376*(1-W376),2)))","v":7.95},null,"YES",7.95,{"$f":"+W376","v":0},{"$f":"+X376","v":7.95},{"$f":"(AG376-AC376)/AG376","v":0},null,2,{"$f":"SUM(AI376:AK376)+AE376","v":7.95},null,{"$f":"ROUND(AC376/(1-VLOOKUP(AF376,Group,2,FALSE)),2)","v":7.95},{"$f":"IF(VLOOKUP(AF376,Group,5,FALSE)=\"YES\",VLOOKUP(ROUND(ROUND(AI376,1)-AI376,2),Round,2,FALSE)+VLOOKUP(AF376,Group,6,FALSE),0)","v":0},{"$f":"IF(VLOOKUP(AF376,Group,7,FALSE)=\"\",0,ROUND(AI376-0.04999,1)-AI376+AL376)","v":0},{"$f":"IF(VLOOKUP(AF376,Group,7,FALSE)=\"\",\"\",VLOOKUP(AF376,Group,7,FALSE))","v":""},null,"X"]
[null,null,null,null,null,null,null,null,null,null,null,null,null,null,null,null,null,null,null,null,null,null,null,null,null,null,null,null,null,null,null,null,null,null,null,null,null,null,null,"X"]
[null,null,null,"Colors:","HRG10U Stardust White",null,null,"      HRG30U Rockwall Gray",null,null,null,null,null,null,null,null,null,null,null,null,null,null,null,null,null,null,null,null,null,null,null,null,null,null,null," ",null,null,null,"X"]
[null,null,null,null,"HRG20U Pinnacle Beige",null,null,"      HRG60U Canyon Slate",null,null,null,null,null,null,null,null,null,null,null,null,null,null,null,null,null,null,null,null,null,null,null,null,null,null,null," ",null,null,null,"X"]
[]
[null,"Field Tile",null,null,"24\" x 36\" x 2cm",null,"Field",null,"(Pressed)",null,null,null,null,null,null,"6.00 SF/CTN",null,null,{"$f":"IF(Suggested=\"Yes\",AA381,AG381)","v":11.1},"SF",{"$f":"+Instructions!$B$21","v":"G"},null,{"$f":"+Instructions!$C$21","v":0},{"$f":"IF(Instructions!$C$21=\"Group\",#REF!,IF(Instructions!$C$21=\"Carter\",#REF!,ROUNDUP($AA381*(1-W381),2)))","v":11.1},null,"YES",11.1,{"$f":"+W381","v":0},{"$f":"+X381","v":11.1},{"$f":"(AG381-AC381)/AG381","v":0},null,1,{"$f":"SUM(AI381:AK381)+AE381","v":11.1},null,{"$f":"ROUND(AC381/(1-VLOOKUP(AF381,Group,2,FALSE)),2)","v":11.1},{"$f":"IF(VLOOKUP(AF381,Group,5,FALSE)=\"YES\",VLOOKUP(ROUND(ROUND(AI381,1)-AI381,2),Round,2,FALSE)+VLOOKUP(AF381,Group,6,FALSE),0)","v":0},{"$f":"IF(VLOOKUP(AF381,Group,7,FALSE)=\"\",0,ROUND(AI381-0.04999,1)-AI381+AL381)","v":0},{"$f":"IF(VLOOKUP(AF381,Group,7,FALSE)=\"\",\"\",VLOOKUP(AF381,Group,7,FALSE))","v":""},null,"X"]
[null,null,null,null,null,null,null,null,null,null,null,null,null,null,null,null,null,null,null,null,null,null,null,null,null,null,null,null,null,null,null,null,null,null,null,null,null,null,null,"X"]
[null,"Trim",null,null,"12\" x 24\" x 2cm",null,"USTEPB",null,"Step Tread w/Bullnose Edge",null,null,null,null,null,null,null,null,"a",{"$f":"IF(Suggested=\"Yes\",AA383,AG383)","v":185.6},"EA",{"$f":"+Instructions!$B$21","v":"G"},null,{"$f":"+Instructions!$C$21","v":0},{"$f":"IF(Instructions!$C$21=\"Group\",#REF!,IF(Instructions!$C$21=\"Carter\",#REF!,ROUNDUP($AA383*(1-W383),2)))","v":185.6},null,"YES",185.6,{"$f":"+W383","v":0},{"$f":"+X383","v":185.6},{"$f":"(AG383-AC383)/AG383","v":0},null,2,{"$f":"SUM(AI383:AK383)+AE383","v":185.6},null,{"$f":"ROUND(AC383/(1-VLOOKUP(AF383,Group,2,FALSE)),2)","v":185.6},{"$f":"IF(VLOOKUP(AF383,Group,5,FALSE)=\"YES\",VLOOKUP(ROUND(ROUND(AI383,1)-AI383,2),Round,2,FALSE)+VLOOKUP(AF383,Group,6,FALSE),0)","v":0},{"$f":"IF(VLOOKUP(AF383,Group,7,FALSE)=\"\",0,ROUND(AI383-0.04999,1)-AI383+AL383)","v":0},{"$f":"IF(VLOOKUP(AF383,Group,7,FALSE)=\"\",\"\",VLOOKUP(AF383,Group,7,FALSE))","v":""},null,"X"]
[null,"Trim",null,null,"12\" x 24\" x 2cm",null,"USTEPA",null,"Step Tread w/Square Edge",null,null,null,null,null,null,null,null,"a",{"$f":"IF(Suggested=\"Yes\",AA384,AG384)","v":185.6},"EA",{"$f":"+Instructions!$B$21","v":"G"},null,{"$f":"+Instructions!$C$21","v":0},{"$f":"IF(Instructions!$C$21=\"Group\",#REF!,IF(Instructions!$C$21=\"Carter\",#REF!,ROUNDUP($AA384*(1-W384),2)))","v":185.6},null,"YES",185.6,0,185.6,{"$f":"(AG384-AC384)/AG384","v":0},null,2,{"$f":"SUM(AI384:AK384)+AE384","v":185.6},null,{"$f":"ROUND(AC384/(1-VLOOKUP(AF384,Group,2,FALSE)),2)","v":185.6},{"$f":"IF(VLOOKUP(AF384,Group,5,FALSE)=\"YES\",VLOOKUP(ROUND(ROUND(AI384,1)-AI384,2),Round,2,FALSE)+VLOOKUP(AF384,Group,6,FALSE),0)","v":0},{"$f":"IF(VLOOKUP(AF384,Group,7,FALSE)=\"\",0,ROUND(AI384-0.04999,1)-AI384+AL384)","v":0},{"$f":"IF(VLOOKUP(AF384,Group,7,FALSE)=\"\",\"\",VLOOKUP(AF384,Group,7,FALSE))","v":""},null,"X"]
[null,"Trim",null,null,"12\" x 24\" x 2cm",null,"USTEPD",null,"Step Tread w/Square Edge, Grooves & Drip Flap",null,null,null,null,null,null,null,null,"a",{"$f":"IF(Suggested=\"Yes\",AA385,AG385)","v":303.8},"EA",{"$f":"+Instructions!$B$21","v":"G"},null,{"$f":"+Instructions!$C$21","v":0},{"$f":"IF(Instructions!$C$21=\"Group\",#REF!,IF(Instructions!$C$21=\"Carter\",#REF!,ROUNDUP($AA385*(1-W385),2)))","v":303.8},null,"YES",303.8,0,303.8,{"$f":"(AG385-AC385)/AG385","v":0},null,2,{"$f":"SUM(AI385:AK385)+AE385","v":303.8},null,{"$f":"ROUND(AC385/(1-VLOOKUP(AF385,Group,2,FALSE)),2)","v":303.8},{"$f":"IF(VLOOKUP(AF385,Group,5,FALSE)=\"YES\",VLOOKUP(ROUND(ROUND(AI385,1)-AI385,2),Round,2,FALSE)+VLOOKUP(AF385,Group,6,FALSE),0)","v":0},{"$f":"IF(VLOOKUP(AF385,Group,7,FALSE)=\"\",0,ROUND(AI385-0.04999,1)-AI385+AL385)","v":0},{"$f":"IF(VLOOKUP(AF385,Group,7,FALSE)=\"\",\"\",VLOOKUP(AF385,Group,7,FALSE))","v":""},null,"X"]
[]
[null,null,null,"Note:","a) Special Order Only.  Minimum order quantity of 50 pieces per SKU.",null,null,null,null,null,null,null,null,null,null,null,null,null,null,null,null,null,null,null,null,null,null,null,null,null,null,null,null,null,null," ",null,null,null,"X"]
[null,null,null,null,null,null,null,null,null,null,null,null,null,null,null,null,null,null,null,null,null,null,null,null,null,null,null,null,null,null,null,null,null,null,null,null,null,null,null,"X"]
[null,null,"INDULGE - Color Body Glazed Porcelain",null,null,null,null,null,null,null,null,null,null,null,null,null,null,"Item # Lookup:","FTIN"]
[null,null,null,null,null,null,null,null,null,null,null,null,null,null,null,null,null,null,null,null,null,null,null,null,null,null,null,null,null,null,null,null,null,null,null,null,null,null,null,"X"]
[null,null,null,"Colors:","IND10 Onyx",null,"        IND30 Arabescato",null,null,"       IND50 Breccia Capraia",null,null,null,null,null,null,null,null,null,null,null,null,null,null,null,null,null,null,null,null,null,null,null,null,null," ",null,null,null,"X"]
[null,null,null,null,"IND20 Statuario",null,"        IND40 Lilac",null,null,null,null,null,null,null,null,null,null,null,null,null,null,null,null,null,null,null,null,null,null,null,null,null,null,null,null," ",null,null,null,"X"]
[null,null,null,null,null,null,null,null,null,null,null,null,null,null,null,null,null,null,null,null,null,null,null,null,null,null,null,null,null,null,null,null,null,null,null,null,null,null,null,"X"]
[null,"Field Tile",null,null,"12\" x 24\"",null,"Field",null,"Matte, Rect.",null,null,null,null,null,null,"15.62 SF/CTN","Stock",null,{"$f":"IF(Suggested=\"Yes\",AA394,AG394)","v":5.65},"SF",{"$f":"+Instructions!$B$21","v":"G"},null,{"$f":"+Instructions!$C$21","v":0},{"$f":"IF(Instructions!$C$21=\"Group\",#REF!,IF(Instructions!$C$21=\"Carter\",#REF!,ROUNDUP($AA394*(1-W394),2)))","v":5.65},null,"YES",5.65,{"$f":"+W394","v":0},{"$f":"+X394","v":5.65},{"$f":"(AG394-AC394)/AG394","v":0},null,1,{"$f":"SUM(AI394:AK394)+AE394","v":5.65},null,{"$f":"ROUND(AC394/(1-VLOOKUP(AF394,Group,2,FALSE)),2)","v":5.65},{"$f":"IF(VLOOKUP(AF394,Group,5,FALSE)=\"YES\",VLOOKUP(ROUND(ROUND(AI394,1)-AI394,2),Round,2,FALSE)+VLOOKUP(AF394,Group,6,FALSE),0)","v":0},{"$f":"IF(VLOOKUP(AF394,Group,7,FALSE)=\"\",0,ROUND(AI394-0.04999,1)-AI394+AL394)","v":0},{"$f":"IF(VLOOKUP(AF394,Group,7,FALSE)=\"\",\"\",VLOOKUP(AF394,Group,7,FALSE))","v":""},null,"X"]
[null,"Field Tile",null,null,"36\" x 36\"",null,"Field",null,"Matte, Rect.",null," ",null,null,null,null,"17.40 SF/CTN",null,null,8.1,"SF",{"$f":"+Instructions!$B$21","v":"G"},null,{"$f":"+Instructions!$C$21","v":0},{"$f":"IF(Instructions!$C$21=\"Group\",#REF!,IF(Instructions!$C$21=\"Carter\",#REF!,ROUNDUP($AA395*(1-W395),2)))","v":8.1},null,"YES",8.1,0,8.1,0,null,1,8.1,null,8.1,0,0,"",null,"X"]
[null,"Field Tile",null,null,"24\" x 48\"",null,"Field",null,"Matte, Rect.",null,null,null,null,null,null,"15.39 SF/CTN","Stock","b",{"$f":"IF(Suggested=\"Yes\",AA396,AG396)","v":6.85},"SF",{"$f":"+Instructions!$B$21","v":"G"},null,{"$f":"+Instructions!$C$21","v":0},{"$f":"IF(Instructions!$C$21=\"Group\",#REF!,IF(Instructions!$C$21=\"Carter\",#REF!,ROUNDUP($AA396*(1-W396),2)))","v":6.85},null,"YES",6.85,{"$f":"+W396","v":0},{"$f":"+X396","v":6.85},{"$f":"(AG396-AC396)/AG396","v":0},null,1,{"$f":"SUM(AI396:AK396)+AE396","v":6.85},null,{"$f":"ROUND(AC396/(1-VLOOKUP(AF396,Group,2,FALSE)),2)","v":6.85},{"$f":"IF(VLOOKUP(AF396,Group,5,FALSE)=\"YES\",VLOOKUP(ROUND(ROUND(AI396,1)-AI396,2),Round,2,FALSE)+VLOOKUP(AF396,Group,6,FALSE),0)","v":0},{"$f":"IF(VLOOKUP(AF396,Group,7,FALSE)=\"\",0,ROUND(AI396-0.04999,1)-AI396+AL396)","v":0},{"$f":"IF(VLOOKUP(AF396,Group,7,FALSE)=\"\",\"\",VLOOKUP(AF396,Group,7,FALSE))","v":""},null,"X"]
[null,"Field Tile",null,null,"4\" x 21\"",null,"Field - Chevron",null,"Matte, Rect.",null,null,null,null,null,null,"4.42 SF/CTN",null,null,42.7,"SF",{"$f":"+Instructions!$B$21","v":"G"},null,{"$f":"+Instructions!$C$21","v":0},{"$f":"IF(Instructions!$C$21=\"Group\",#REF!,IF(Instructions!$C$21=\"Carter\",#REF!,ROUNDUP($AA397*(1-W397),2)))","v":42.7},null,"YES",42.7,0,42.7,0,null,1,42.7,null,42.7,0,0,"",null,"X"]
[null,null,null,null,null,null,null,null,null,null,null,null,null,null,null,null,null,null,null,null,null,null,null,null,null,null,null,null,null,null,null,null,null,null,null,null,null,null,null,"X"]
[null,"Decos",null,null,"12\" x 12\"",null,"M12",null,"Matte",null,"Mosaic 2-1/2\" x 2-1/2\" (0.97 SF/Sheet)",null,null,null,null,null,"Stock",null,{"$f":"IF(Suggested=\"Yes\",AA399,AG399)","v":22},"EA",{"$f":"+Instructions!$B$21","v":"G"},null,{"$f":"+Instructions!$C$21","v":0},{"$f":"IF(Instructions!$C$21=\"Group\",#REF!,IF(Instructions!$C$21=\"Carter\",#REF!,ROUNDUP($AA399*(1-W399),2)))","v":22},null,"YES",22,{"$f":"+W399","v":0},{"$f":"+X399","v":22},{"$f":"(AG399-AC399)/AG399","v":0},null,3,{"$f":"SUM(AI399:AK399)+AE399","v":22},null,{"$f":"ROUND(AC399/(1-VLOOKUP(AF399,Group,2,FALSE)),2)","v":22},{"$f":"IF(VLOOKUP(AF399,Group,5,FALSE)=\"YES\",VLOOKUP(ROUND(ROUND(AI399,1)-AI399,2),Round,2,FALSE)+VLOOKUP(AF399,Group,6,FALSE),0)","v":0},{"$f":"IF(VLOOKUP(AF399,Group,7,FALSE)=\"\",0,ROUND(AI399-0.04999,1)-AI399+AL399)","v":0},{"$f":"IF(VLOOKUP(AF399,Group,7,FALSE)=\"\",\"\",VLOOKUP(AF399,Group,7,FALSE))","v":""},null,"X"]
[null,"Decos",null,null,"14\" x 14\"",null,"M2.5CIR",null,"Matte",null,"Mosaic 2-1/2\" Circle (1.36 SF/Sheet)",null,null,null,null,"5 EA/CTN",null,null,{"$f":"IF(Suggested=\"Yes\",AA400,AG400)","v":68.8},"EA",{"$f":"+Instructions!$B$21","v":"G"},null,{"$f":"+Instructions!$C$21","v":0},{"$f":"IF(Instructions!$C$21=\"Group\",#REF!,IF(Instructions!$C$21=\"Carter\",#REF!,ROUNDUP($AA400*(1-W400),2)))","v":68.8},null,"YES",68.8,{"$f":"+W400","v":0},{"$f":"+X400","v":68.8},{"$f":"(AG400-AC400)/AG400","v":0},null,3,{"$f":"SUM(AI400:AK400)+AE400","v":68.8},null,{"$f":"ROUND(AC400/(1-VLOOKUP(AF400,Group,2,FALSE)),2)","v":68.8},{"$f":"IF(VLOOKUP(AF400,Group,5,FALSE)=\"YES\",VLOOKUP(ROUND(ROUND(AI400,1)-AI400,2),Round,2,FALSE)+VLOOKUP(AF400,Group,6,FALSE),0)","v":0},{"$f":"IF(VLOOKUP(AF400,Group,7,FALSE)=\"\",0,ROUND(AI400-0.04999,1)-AI400+AL400)","v":0},{"$f":"IF(VLOOKUP(AF400,Group,7,FALSE)=\"\",\"\",VLOOKUP(AF400,Group,7,FALSE))","v":""},null,"X"]
[null,null,null,null,null,null,null,null,null,null,null,null,null,null,null,null,null,null,null,null,null,null,null,null,null,null,null,null,null,null,null,null,null,null,null,null,null,null,null,"X"]
[null,"Trim",null,null,"3\" x 24\"",null,"P43N9",null,"Bullnose",null,"Matte",null,null,null,null,null,null,null,11.25,"EA",{"$f":"+Instructions!$B$21","v":"G"},null,{"$f":"+Instructions!$C$21","v":0},{"$f":"IF(Instructions!$C$21=\"Group\",#REF!,IF(Instructions!$C$21=\"Carter\",#REF!,ROUNDUP($AA402*(1-W402),2)))","v":11.25},null,"YES",11.25,0,11.25,0,null,2,11.25,null,11.25,0,0,"",null,"X"]
[null,null,null,null,null,null,null,null,null,null,null,null,null,null,null,null,null,null,null,null,null,null,null,null,null,null,null,null,null,null,null,null,null,null,null,null,null,null,null,"X"]
[null,null,null,"Colors:","IND10P Onyx",null,"        IND30P Arabescato",null,null,"       IND50P Breccia Capraia",null,null,null,null,null,null,null,null,null,null,null,null,null,null,null,null,null,null,null,null,null,null,null,null,null," ",null,null,null,"X"]
[null,null,null,null,"IND20P Statuario",null,"        IND40P Lilac",null,null,"       IND60P Sahara Noir",null,null,null,null,null,null,null,null,null,null,null,null,null,null,null,null,null,null,null,null,null,null,null,null,null," ",null,null,null,"X"]
[null,null,null,null,null,null,null,null,null,null,null,null,null,null,null,null,null,null,null,null,null,null,null,null,null,null,null,null,null,null,null,null,null,null,null,null,null,null,null,"X"]
[null,"Field Tile",null,null,"12\" x 24\"",null,"Field",null,"Polished, Rect.",null,null,null,null,null,null,"15.62 SF/CTN","Stock",null,{"$f":"IF(Suggested=\"Yes\",AA407,AG407)","v":8.1999999999999993},"SF",{"$f":"+Instructions!$B$21","v":"G"},null,{"$f":"+Instructions!$C$21","v":0},{"$f":"IF(Instructions!$C$21=\"Group\",#REF!,IF(Instructions!$C$21=\"Carter\",#REF!,ROUNDUP($AA407*(1-W407),2)))","v":8.1999999999999993},null,"YES",8.1999999999999993,{"$f":"+W407","v":0},{"$f":"+X407","v":8.1999999999999993},{"$f":"(AG407-AC407)/AG407","v":0},null,1,{"$f":"SUM(AI407:AK407)+AE407","v":8.1999999999999993},null,{"$f":"ROUND(AC407/(1-VLOOKUP(AF407,Group,2,FALSE)),2)","v":8.1999999999999993},{"$f":"IF(VLOOKUP(AF407,Group,5,FALSE)=\"YES\",VLOOKUP(ROUND(ROUND(AI407,1)-AI407,2),Round,2,FALSE)+VLOOKUP(AF407,Group,6,FALSE),0)","v":0},{"$f":"IF(VLOOKUP(AF407,Group,7,FALSE)=\"\",0,ROUND(AI407-0.04999,1)-AI407+AL407)","v":0},{"$f":"IF(VLOOKUP(AF407,Group,7,FALSE)=\"\",\"\",VLOOKUP(AF407,Group,7,FALSE))","v":""},null,"X"]
[null,"Field Tile",null,null,"36\" x 36\"",null,"Field",null,"Polished, Rect.",null,null,null,null,null,null,"17.44 SF/CTN",null,"a",9.5500000000000007,"SF",{"$f":"+Instructions!$B$21","v":"G"},null,{"$f":"+Instructions!$C$21","v":0},{"$f":"IF(Instructions!$C$21=\"Group\",#REF!,IF(Instructions!$C$21=\"Carter\",#REF!,ROUNDUP($AA408*(1-W408),2)))","v":9.5500000000000007},null,"YES",9.5500000000000007,0,9.5500000000000007,0,null,1,9.5500000000000007,null,9.5500000000000007,0,0,"",null,"X"]
[null,"Field Tile",null,null,"24\" x 48\"",null,"Field",null,"Polished, Rect.",null,null,null,null,null,null,"15.39 SF/CTN","Stock","b",8.9,"SF",{"$f":"+Instructions!$B$21","v":"G"},null,{"$f":"+Instructions!$C$21","v":0},{"$f":"IF(Instructions!$C$21=\"Group\",#REF!,IF(Instructions!$C$21=\"Carter\",#REF!,ROUNDUP($AA409*(1-W409),2)))","v":8.9},null,"YES",8.9,0,8.9,0,null,1,8.9,null,8.9,0,0,"",null,"X"]
[null,"Field Tile",null,null,"4\" x 21\"",null,"Field - Chevron",null,"Polished, Rect.",null,null,null,null,null,null,"4.42 SF/CTN",null,null,54.35,"SF",{"$f":"+Instructions!$B$21","v":"G"},null,{"$f":"+Instructions!$C$21","v":0},{"$f":"IF(Instructions!$C$21=\"Group\",#REF!,IF(Instructions!$C$21=\"Carter\",#REF!,ROUNDUP($AA410*(1-W410),2)))","v":54.35},null,"YES",54.35,0,54.35,0,null,1,54.35,null,54.35,0,0,"",null,"X"]
[null,null,null,null,null,null,null,null,null,null,null,null,null,null,null,null,null,null,null,null,null,null,null,null,null,null,null,null,null,null,null,null,null,null,null,null,null,null,null,"X"]
[null,"Decos",null,null,"14\" x 14\"",null,"M2.5CIR",null,"Polished",null,"Mosaic 2-1/2\" Circle (1.36 SF/Sheet)",null,null,null,null,"5 EA/CTN",null,null,{"$f":"IF(Suggested=\"Yes\",AA412,AG412)","v":88},"EA",{"$f":"+Instructions!$B$21","v":"G"},null,{"$f":"+Instructions!$C$21","v":0},{"$f":"IF(Instructions!$C$21=\"Group\",#REF!,IF(Instructions!$C$21=\"Carter\",#REF!,ROUNDUP($AA412*(1-W412),2)))","v":88},null,"YES",88,{"$f":"+W412","v":0},{"$f":"+X412","v":88},{"$f":"(AG412-AC412)/AG412","v":0},null,3,{"$f":"SUM(AI412:AK412)+AE412","v":88},null,{"$f":"ROUND(AC412/(1-VLOOKUP(AF412,Group,2,FALSE)),2)","v":88},{"$f":"IF(VLOOKUP(AF412,Group,5,FALSE)=\"YES\",VLOOKUP(ROUND(ROUND(AI412,1)-AI412,2),Round,2,FALSE)+VLOOKUP(AF412,Group,6,FALSE),0)","v":0},{"$f":"IF(VLOOKUP(AF412,Group,7,FALSE)=\"\",0,ROUND(AI412-0.04999,1)-AI412+AL412)","v":0},{"$f":"IF(VLOOKUP(AF412,Group,7,FALSE)=\"\",\"\",VLOOKUP(AF412,Group,7,FALSE))","v":""},null,"X"]
[null,"Decos",null,null,"12\" x 12\"",null,"M6x6MIX",null,"Polished",null,"Mosaic Mix (0.97 SF/Sheet)",null,null,null,null,"5 EA/CTN",null,null,74.150000000000006,"EA",{"$f":"+Instructions!$B$21","v":"G"},null,{"$f":"+Instructions!$C$21","v":0},{"$f":"IF(Instructions!$C$21=\"Group\",#REF!,IF(Instructions!$C$21=\"Carter\",#REF!,ROUNDUP($AA413*(1-W413),2)))","v":74.150000000000006},null,"YES",74.150000000000006,0,74.150000000000006,0,null,3,74.150000000000006,null,74.150000000000006,0,0,"",null,"X"]
[null,null,null,null,null,null,null,null,null,null,null,null,null,null,null,null,null,null,null,null,null,null,null,null,null,null,null,null,null,null,null,null,null,null,null,null,null,null,null,"X"]
[null,"Trim",null,null,"3\" x 24\"",null,"P43N9",null,"Bullnose",null,"Polished",null,null,null,null,null,"Stock",null,{"$f":"IF(Suggested=\"Yes\",AA415,AG415)","v":16.05},"EA",{"$f":"+Instructions!$B$21","v":"G"},null,{"$f":"+Instructions!$C$21","v":0},{"$f":"IF(Instructions!$C$21=\"Group\",#REF!,IF(Instructions!$C$21=\"Carter\",#REF!,ROUNDUP($AA415*(1-W415),2)))","v":16.05},null,"YES",16.05,{"$f":"+W415","v":0},{"$f":"+X415","v":16.05},{"$f":"(AG415-AC415)/AG415","v":0},null,2,{"$f":"SUM(AI415:AK415)+AE415","v":16.05},null,{"$f":"ROUND(AC415/(1-VLOOKUP(AF415,Group,2,FALSE)),2)","v":16.05},{"$f":"IF(VLOOKUP(AF415,Group,5,FALSE)=\"YES\",VLOOKUP(ROUND(ROUND(AI415,1)-AI415,2),Round,2,FALSE)+VLOOKUP(AF415,Group,6,FALSE),0)","v":0},{"$f":"IF(VLOOKUP(AF415,Group,7,FALSE)=\"\",0,ROUND(AI415-0.04999,1)-AI415+AL415)","v":0},{"$f":"IF(VLOOKUP(AF415,Group,7,FALSE)=\"\",\"\",VLOOKUP(AF415,Group,7,FALSE))","v":""},null,"X"]
[null,null,null,null,null,null,null,null,null,null,null,null,null,null,null,null,null,null,null,null,null,null,null,null,null,null,null,null,null,null,null,null,null,null,null,null,null,null,null,"X"]
[null,null,null,"Colors:","IND26P Statuario Mix          IND36P Arabescato Mix          IND56P Breccia Mix",null,null,null,null,null,null,null,null,null,null,null,null,null,null,null,null,null,null,null,null,null,null,null,null,null,null,null,null,null,null," ",null,null,null,"X"]
[null,null,null,null,null,null,null,null,null,null,null,null,null,null,null,null,null,null,null,null,null,null,null,null,null,null,null,null,null,null,null,null,null,null,null,null,null,null,null,"X"]
[null,"Decos",null,null,"12\" x 12\"",null,"M6x6MIX",null,"Polished",null,"Mosaic Mix (0.97 SF/Sheet)",null,null,null,null,"5 EA/CTN",null,null,{"$f":"IF(Suggested=\"Yes\",AA419,AG419)","v":74.150000000000006},"EA",{"$f":"+Instructions!$B$21","v":"G"},null,{"$f":"+Instructions!$C$21","v":0},{"$f":"IF(Instructions!$C$21=\"Group\",#REF!,IF(Instructions!$C$21=\"Carter\",#REF!,ROUNDUP($AA419*(1-W419),2)))","v":74.150000000000006},null,"YES",74.150000000000006,{"$f":"+W419","v":0},{"$f":"+X419","v":74.150000000000006},{"$f":"(AG419-AC419)/AG419","v":0},null,3,{"$f":"SUM(AI419:AK419)+AE419","v":74.150000000000006},null,{"$f":"ROUND(AC419/(1-VLOOKUP(AF419,Group,2,FALSE)),2)","v":74.150000000000006},{"$f":"IF(VLOOKUP(AF419,Group,5,FALSE)=\"YES\",VLOOKUP(ROUND(ROUND(AI419,1)-AI419,2),Round,2,FALSE)+VLOOKUP(AF419,Group,6,FALSE),0)","v":0},{"$f":"IF(VLOOKUP(AF419,Group,7,FALSE)=\"\",0,ROUND(AI419-0.04999,1)-AI419+AL419)","v":0},{"$f":"IF(VLOOKUP(AF419,Group,7,FALSE)=\"\",\"\",VLOOKUP(AF419,Group,7,FALSE))","v":""},null,"X"]
[]
[null,null,null,"Notes:","a) Packaging is changing from 17.44 SF/CTN to 17.40 SF/CTN as inventory with old packaging is depleted.",null,null,null,null,null,null,null,null,null,null,null,null,null,null,null,null,null,null,null,null,null,null,null,null,null,null,null,null,null,null," ",null,null,null,"X"]
[null,null,null,null,"b) Stocked in colors IND50 Breccia Capraia and IND50P Breccia Capraia only."]
[null,null,null,null,null,null,null,null,null,null,null,null,null,null,null,null,null,null,null,null,null,null,null,null,null,null,null,null,null,null,null,null,null,null,null,null,null,null,null,"X"]
[null,null,"MAGNOLIAHDP - Color Body Glazed Porcelain",null,null,null,null,null,null,null,null,null,null," ",null,null,null,"Item # Lookup:","FT283",null,null,null,null,null,null,null,null,null,null,null,null,null,null,null,null,null,null,null,null,"X"]
[]
[null,null,null,"Colors:","28315 Ash",null,"  28327 Chestnut",null,null,"28378 Cherry",null,null,null,null,null,null,null,null,null,null,null,null,null,null,null,null,null,null,null,null,null,null,null,null,null,null,null,null,null,"X"]
[null,null,null,null,"28325 Burl",null,"  28338 Fir",null,null,"28395 Mahogany"]
[]
[null,"Field Tile",null,null,"8\" x 36\"",null,"Field",null,null,null,null,null,null,null,null,"14.00 SF/CTN",null,null,{"$f":"IF(Suggested=\"Yes\",AA429,AG429)","v":7},"SF",{"$f":"+Instructions!$B$21","v":"G"},null,{"$f":"+Instructions!$C$21","v":0},{"$f":"IF(Instructions!$C$21=\"Group\",#REF!,IF(Instructions!$C$21=\"Carter\",#REF!,ROUNDUP($AA429*(1-W429),2)))","v":7},null,"YES",7,{"$f":"+W429","v":0},{"$f":"+X429","v":7},{"$f":"(AG429-AC429)/AG429","v":0},null,1,{"$f":"SUM(AI429:AK429)+AE429","v":7},null,{"$f":"ROUND(AC429/(1-VLOOKUP(AF429,Group,2,FALSE)),2)","v":7},{"$f":"IF(VLOOKUP(AF429,Group,5,FALSE)=\"YES\",VLOOKUP(ROUND(ROUND(AI429,1)-AI429,2),Round,2,FALSE)+VLOOKUP(AF429,Group,6,FALSE),0)","v":0},{"$f":"IF(VLOOKUP(AF429,Group,7,FALSE)=\"\",0,ROUND(AI429-0.04999,1)-AI429+AL429)","v":0},{"$f":"IF(VLOOKUP(AF429,Group,7,FALSE)=\"\",\"\",VLOOKUP(AF429,Group,7,FALSE))","v":""},null,"X"]
[null,null,null,null,null,null,null,null,null,null,null,null,null,null,null,null,null,null,null,null,null,null,null,null,null,null,null,null,null,null,null,null,null,null,null,null,null,null,null,"X"]
[null,null,"MINERALHDP - 2cm Color Body Porcelain Pavers",null,null,null,null,null,null,null,null,null,null,null,null,null,null,"Item # Lookup:","FTMIN",null,null,null,null,null,null,null,null,null,null,null,null,null,null,null,null," ",null,null,null,"X"]
[null,null,null,null,null,null,null,null,null,null,null,null,null,null,null,null,null,null,null,null,null,null,null,null,null,null,null,null,null,null,null,null,null,null,null,null,null,null,null,"X"]
[null,null,null,"Colors:","MIN10U Alabaster          MIN20U Quartz          MIN30U Feldspar",null,null,null,null,null,null,null,null,null,null,null,null,null,null,null,null,null,null,null,null,null,null,null,null,null,null,null,null,null,null," ",null,null,null,"X"]
[null,null,null,null,null,null,null,null,null,null,null,null,null,null,null,null,null,null,null,null,null,null,null,null,null,null,null,null,null,null,null,null,null,null,null,null,null,null,null,"X"]
[null,null,null,"Concrete-Look:",null,null,null,null,null,null,null,null,null,null,null,null,null,null,null,null,null,null,null,null,null,null,null,null,null,null,null,null,null,null,null,null,null,null,null,"X"]
[null,null,null,null,null,null,null,null,null,null,null,null,null,null,null,null,null,null,null,null,null,null,null,null,null,null,null,null,null,null,null,null,null,null,null,null,null,null,null,"X"]
[null,"Field Tile",null,null,"24\" x 24\" x 2cm",null,"Field",null,null,null,null,null,null,null,null,"8.03 SF/CTN",null,"a",{"$f":"IF(Suggested=\"Yes\",AA437,AG437)","v":10.85},"SF",{"$f":"+Instructions!$B$21","v":"G"},null,{"$f":"+Instructions!$C$21","v":0},{"$f":"IF(Instructions!$C$21=\"Group\",#REF!,IF(Instructions!$C$21=\"Carter\",#REF!,ROUNDUP($AA437*(1-W437),2)))","v":10.85},null,"YES",10.85,{"$f":"+W437","v":0},{"$f":"+X437","v":10.85},{"$f":"(AG437-AC437)/AG437","v":0},null,1,{"$f":"SUM(AI437:AK437)+AE437","v":10.85},null,{"$f":"ROUND(AC437/(1-VLOOKUP(AF437,Group,2,FALSE)),2)","v":10.85},{"$f":"IF(VLOOKUP(AF437,Group,5,FALSE)=\"YES\",VLOOKUP(ROUND(ROUND(AI437,1)-AI437,2),Round,2,FALSE)+VLOOKUP(AF437,Group,6,FALSE),0)","v":0},{"$f":"IF(VLOOKUP(AF437,Group,7,FALSE)=\"\",0,ROUND(AI437-0.04999,1)-AI437+AL437)","v":0},{"$f":"IF(VLOOKUP(AF437,Group,7,FALSE)=\"\",\"\",VLOOKUP(AF437,Group,7,FALSE))","v":""},null,"X"]
[null,null,null,null,null,null,null,null,null,null,null,null,null,null,null,null,null,null,null,null,null,null,null,null,null,null,null,null,null,null,null,null,null,null,null,null,null,null,null,"X"]
[null,"Trim",null,null,"12\" x 24\" x 2cm",null,"USTEPB",null,"Step Tread w/Bullnose Edge",null,null,null,null,null,null,null,null,null,{"$f":"IF(Suggested=\"Yes\",AA439,AG439)","v":149},"EA",{"$f":"+Instructions!$B$21","v":"G"},null,{"$f":"+Instructions!$C$21","v":0},{"$f":"IF(Instructions!$C$21=\"Group\",#REF!,IF(Instructions!$C$21=\"Carter\",#REF!,ROUNDUP($AA439*(1-W439),2)))","v":149},null,"YES",149,{"$f":"+W439","v":0},149,{"$f":"(AG439-AC439)/AG439","v":0},null,2,{"$f":"SUM(AI439:AK439)+AE439","v":149},null,{"$f":"ROUND(AC439/(1-VLOOKUP(AF439,Group,2,FALSE)),2)","v":149},{"$f":"IF(VLOOKUP(AF439,Group,5,FALSE)=\"YES\",VLOOKUP(ROUND(ROUND(AI439,1)-AI439,2),Round,2,FALSE)+VLOOKUP(AF439,Group,6,FALSE),0)","v":0},{"$f":"IF(VLOOKUP(AF439,Group,7,FALSE)=\"\",0,ROUND(AI439-0.04999,1)-AI439+AL439)","v":0},{"$f":"IF(VLOOKUP(AF439,Group,7,FALSE)=\"\",\"\",VLOOKUP(AF439,Group,7,FALSE))","v":""},null,"X"]
[null,"Trim",null,null,"12\" x 24\" x 2cm",null,"USTEPA",null,"Step Tread w/Square Edge",null,null,null,null,null,null,null,null,null,{"$f":"IF(Suggested=\"Yes\",AA440,AG440)","v":149},"EA",{"$f":"+Instructions!$B$21","v":"G"},null,{"$f":"+Instructions!$C$21","v":0},{"$f":"IF(Instructions!$C$21=\"Group\",#REF!,IF(Instructions!$C$21=\"Carter\",#REF!,ROUNDUP($AA440*(1-W440),2)))","v":149},null,"YES",149,0,149,{"$f":"(AG440-AC440)/AG440","v":0},null,2,{"$f":"SUM(AI440:AK440)+AE440","v":149},null,{"$f":"ROUND(AC440/(1-VLOOKUP(AF440,Group,2,FALSE)),2)","v":149},{"$f":"IF(VLOOKUP(AF440,Group,5,FALSE)=\"YES\",VLOOKUP(ROUND(ROUND(AI440,1)-AI440,2),Round,2,FALSE)+VLOOKUP(AF440,Group,6,FALSE),0)","v":0},{"$f":"IF(VLOOKUP(AF440,Group,7,FALSE)=\"\",0,ROUND(AI440-0.04999,1)-AI440+AL440)","v":0},{"$f":"IF(VLOOKUP(AF440,Group,7,FALSE)=\"\",\"\",VLOOKUP(AF440,Group,7,FALSE))","v":""},null,"X"]
[null,"Trim",null,null,"12\" x 24\" x 2cm",null,"USTEPD",null,"Step Tread w/Square Edge, Grooves & Drip Flap",null,null,null,null,null,null,null,null,null,{"$f":"IF(Suggested=\"Yes\",AA441,AG441)","v":246.15},"EA",{"$f":"+Instructions!$B$21","v":"G"},null,{"$f":"+Instructions!$C$21","v":0},{"$f":"IF(Instructions!$C$21=\"Group\",#REF!,IF(Instructions!$C$21=\"Carter\",#REF!,ROUNDUP($AA441*(1-W441),2)))","v":246.15},null,"YES",246.15,0,246.15,{"$f":"(AG441-AC441)/AG441","v":0},null,2,{"$f":"SUM(AI441:AK441)+AE441","v":246.15},null,{"$f":"ROUND(AC441/(1-VLOOKUP(AF441,Group,2,FALSE)),2)","v":246.15},{"$f":"IF(VLOOKUP(AF441,Group,5,FALSE)=\"YES\",VLOOKUP(ROUND(ROUND(AI441,1)-AI441,2),Round,2,FALSE)+VLOOKUP(AF441,Group,6,FALSE),0)","v":0},{"$f":"IF(VLOOKUP(AF441,Group,7,FALSE)=\"\",0,ROUND(AI441-0.04999,1)-AI441+AL441)","v":0},{"$f":"IF(VLOOKUP(AF441,Group,7,FALSE)=\"\",\"\",VLOOKUP(AF441,Group,7,FALSE))","v":""},null,"X"]
[null,null,null,null,null,null,null,null,null,null,null,null,null,null,null,null,null,null,null,null,null,null,null,null,null,null,null,null,null,null,null,null,null,null,null,null,null,null,null,"X"]
[null,null,null,"Notes:","a) This item will be transitioning from a non-rectified pressed format to a rectified format as inventories of the",null,null,null,null,null,null,null,null,null,null,null,null,null,null,null,null,null,null,null,null,null,null,null,null,null,null,null,null,null,null," ",null,null,null,"X"]
[null,null,null,null,"old pressed format are depleted.  Packaging for the new rectified format will be 8.00 SF/CTN.",null,null,null,null,null,null,null,null,null,null,null,null,null,null,null,null,null,null,null,null,null,null,null,null,null,null,null,null,null,null," ",null,null,null,"X"]
[null,null,null,null,null,null,null,null,null,null,null,null,null,null,null,null,null,null,null,null,null,null,null,null,null,null,null,null,null,null,null,null,null,null,null,null,null,null,null,"X"]
[null,null,"NY2LAHDP - Color Body Glazed Porcelain & 2CM PAVERS",null,null,null,null,null,null,null,null,null,null,null,null,null,null,"Item # Lookup:","FTNY2",null,null,null,null,null,null,null,null,null,null,null,null,null,null,null,null," ",null,null,null,"X"]
[null,null,null,null,null,null,null,null,null,null,null,null,null,null,null,null,null,null,null,null,null,null,null,null,null,null,null,null,null,null,null,null,null,null,null,null,null,null,null,"X"]
[null,null,null,"Colors:","NY210 Malibu White",null,null,"           NY230 Riverside Steel",null,null,null,"         NY250 Tribeca Taupe",null,null,null,null,null,null,null,null,null,null,null,null,null,null,null,null,null,null,null,null,null,null,null," ",null,null,null,"X"]
[null,null,null,null,"NY220 Brentwood Beige",null,null,"           NY240 Chelsea Black",null,null,null,"         NY260 Gramercy Gray",null,null,null,null,null,null,null,null,null,null,null,null,null,null,null,null,null,null,null,null,null,null,null," ",null,null,null,"X"]
[]
[null,"Field Tile",null," ","3.75\" x 12\"",null,"Field",null,"Rectified",null,null,null,null,null,null,"6.12 SF/CTN",null,null,{"$f":"IF(Suggested=\"Yes\",AA451,AG451)","v":15.7},"SF",{"$f":"+Instructions!$B$21","v":"G"},null,{"$f":"+Instructions!$C$21","v":0},{"$f":"IF(Instructions!$C$21=\"Group\",#REF!,IF(Instructions!$C$21=\"Carter\",#REF!,ROUNDUP($AA451*(1-W451),2)))","v":15.7},null,"YES",15.7,{"$f":"+W451","v":0},15.7,{"$f":"(AG451-AC451)/AG451","v":0},null,1,{"$f":"SUM(AI451:AK451)+AE451","v":15.7},null,{"$f":"ROUND(AC451/(1-VLOOKUP(AF451,Group,2,FALSE)),2)","v":15.7},{"$f":"IF(VLOOKUP(AF451,Group,5,FALSE)=\"YES\",VLOOKUP(ROUND(ROUND(AI451,1)-AI451,2),Round,2,FALSE)+VLOOKUP(AF451,Group,6,FALSE),0)","v":0},{"$f":"IF(VLOOKUP(AF451,Group,7,FALSE)=\"\",0,ROUND(AI451-0.04999,1)-AI451+AL451)","v":0},{"$f":"IF(VLOOKUP(AF451,Group,7,FALSE)=\"\",\"\",VLOOKUP(AF451,Group,7,FALSE))","v":""},null,"X"]
[null,"Field Tile",null,null,"12\" x 24\"",null,"Field",null,"Rectified",null," ",null,null,null,null,"15.62 SF/CTN","Stock","a",{"$f":"IF(Suggested=\"Yes\",AA452,AG452)","v":7.9},"SF",{"$f":"+Instructions!$B$21","v":"G"},null,{"$f":"+Instructions!$C$21","v":0},{"$f":"IF(Instructions!$C$21=\"Group\",#REF!,IF(Instructions!$C$21=\"Carter\",#REF!,ROUNDUP($AA452*(1-W452),2)))","v":7.9},null,"YES",7.9,0,7.9,{"$f":"(AG452-AC452)/AG452","v":0},null,1,{"$f":"SUM(AI452:AK452)+AE452","v":7.9},null,{"$f":"ROUND(AC452/(1-VLOOKUP(AF452,Group,2,FALSE)),2)","v":7.9},{"$f":"IF(VLOOKUP(AF452,Group,5,FALSE)=\"YES\",VLOOKUP(ROUND(ROUND(AI452,1)-AI452,2),Round,2,FALSE)+VLOOKUP(AF452,Group,6,FALSE),0)","v":0},{"$f":"IF(VLOOKUP(AF452,Group,7,FALSE)=\"\",0,ROUND(AI452-0.04999,1)-AI452+AL452)","v":0},{"$f":"IF(VLOOKUP(AF452,Group,7,FALSE)=\"\",\"\",VLOOKUP(AF452,Group,7,FALSE))","v":""},null,"X"]
[null,"Field Tile",null,null,"24\" x 24\"",null,"Field",null,"Rectified",null,null,null,null,null,null,"15.58 SF/CTN",null,null,{"$f":"IF(Suggested=\"Yes\",AA453,AG453)","v":8.35},"SF",{"$f":"+Instructions!$B$21","v":"G"},null,{"$f":"+Instructions!$C$21","v":0},{"$f":"IF(Instructions!$C$21=\"Group\",#REF!,IF(Instructions!$C$21=\"Carter\",#REF!,ROUNDUP($AA453*(1-W453),2)))","v":8.35},null,"YES",8.35,0,8.35,{"$f":"(AG453-AC453)/AG453","v":0},null,1,{"$f":"SUM(AI453:AK453)+AE453","v":8.35},null,{"$f":"ROUND(AC453/(1-VLOOKUP(AF453,Group,2,FALSE)),2)","v":8.35},{"$f":"IF(VLOOKUP(AF453,Group,5,FALSE)=\"YES\",VLOOKUP(ROUND(ROUND(AI453,1)-AI453,2),Round,2,FALSE)+VLOOKUP(AF453,Group,6,FALSE),0)","v":0},{"$f":"IF(VLOOKUP(AF453,Group,7,FALSE)=\"\",0,ROUND(AI453-0.04999,1)-AI453+AL453)","v":0},{"$f":"IF(VLOOKUP(AF453,Group,7,FALSE)=\"\",\"\",VLOOKUP(AF453,Group,7,FALSE))","v":""},null,"X"]
[null,"Field Tile",null,null,"21.5\" x 29.5\"",null,"Field - Polygon",null,"(waterjet cut) ",null,null,null,null,null,null,"10.27 SF/CTN",null,null,{"$f":"IF(Suggested=\"Yes\",AA454,AG454)","v":30.45},"SF",{"$f":"+Instructions!$B$21","v":"G"},null,{"$f":"+Instructions!$C$21","v":0},{"$f":"IF(Instructions!$C$21=\"Group\",#REF!,IF(Instructions!$C$21=\"Carter\",#REF!,ROUNDUP($AA454*(1-W454),2)))","v":30.45},null,"YES",30.45,0,30.45,{"$f":"(AG454-AC454)/AG454","v":0},null,1,{"$f":"SUM(AI454:AK454)+AE454","v":30.45},null,{"$f":"ROUND(AC454/(1-VLOOKUP(AF454,Group,2,FALSE)),2)","v":30.45},{"$f":"IF(VLOOKUP(AF454,Group,5,FALSE)=\"YES\",VLOOKUP(ROUND(ROUND(AI454,1)-AI454,2),Round,2,FALSE)+VLOOKUP(AF454,Group,6,FALSE),0)","v":0},{"$f":"IF(VLOOKUP(AF454,Group,7,FALSE)=\"\",0,ROUND(AI454-0.04999,1)-AI454+AL454)","v":0},{"$f":"IF(VLOOKUP(AF454,Group,7,FALSE)=\"\",\"\",VLOOKUP(AF454,Group,7,FALSE))","v":""},null,"X"]
[null,null,null,null,null,null,null,null,null,null,null,null,null,null,null,null,null,null,null,null,null,null,null,null,null,null,null,null,null,null,null,null,null,null,null,null,null,null,null,"X"]
[null,"Decos",null,null,"12\" x 12\"",null,"M122",null,"Mosaic 2\" x 2\" Mesh-Mounted",null,null,null,null,null,null,"5 EA/CTN",null,null,{"$f":"IF(Suggested=\"Yes\",AA456,AG456)","v":32.799999999999997},"EA",{"$f":"+Instructions!$B$21","v":"G"},null,{"$f":"+Instructions!$C$21","v":0},{"$f":"IF(Instructions!$C$21=\"Group\",#REF!,IF(Instructions!$C$21=\"Carter\",#REF!,ROUNDUP($AA456*(1-W456),2)))","v":32.799999999999997},null,"YES",32.799999999999997,{"$f":"+W456","v":0},32.799999999999997,{"$f":"(AG456-AC456)/AG456","v":0},null,3,{"$f":"SUM(AI456:AK456)+AE456","v":32.799999999999997},null,{"$f":"ROUND(AC456/(1-VLOOKUP(AF456,Group,2,FALSE)),2)","v":32.799999999999997},{"$f":"IF(VLOOKUP(AF456,Group,5,FALSE)=\"YES\",VLOOKUP(ROUND(ROUND(AI456,1)-AI456,2),Round,2,FALSE)+VLOOKUP(AF456,Group,6,FALSE),0)","v":0},{"$f":"IF(VLOOKUP(AF456,Group,7,FALSE)=\"\",0,ROUND(AI456-0.04999,1)-AI456+AL456)","v":0},{"$f":"IF(VLOOKUP(AF456,Group,7,FALSE)=\"\",\"\",VLOOKUP(AF456,Group,7,FALSE))","v":""},null,"X"]
[null,"Decos",null,null,"12\" x 12\"",null,"M12POLY",null,"Mosaic Polygon - NY275 Warm Mix (waterjet cut) ",null,null,null,null,null,null,"5 EA/CTN",null,"b",{"$f":"IF(Suggested=\"Yes\",AA457,AG457)","v":86.55},"EA",{"$f":"+Instructions!$B$21","v":"G"},null,{"$f":"+Instructions!$C$21","v":0},{"$f":"IF(Instructions!$C$21=\"Group\",#REF!,IF(Instructions!$C$21=\"Carter\",#REF!,ROUNDUP($AA457*(1-W457),2)))","v":86.55},null,"YES",86.55,0,86.55,{"$f":"(AG457-AC457)/AG457","v":0},null,3,{"$f":"SUM(AI457:AK457)+AE457","v":86.55},null,{"$f":"ROUND(AC457/(1-VLOOKUP(AF457,Group,2,FALSE)),2)","v":86.55},{"$f":"IF(VLOOKUP(AF457,Group,5,FALSE)=\"YES\",VLOOKUP(ROUND(ROUND(AI457,1)-AI457,2),Round,2,FALSE)+VLOOKUP(AF457,Group,6,FALSE),0)","v":0},{"$f":"IF(VLOOKUP(AF457,Group,7,FALSE)=\"\",0,ROUND(AI457-0.04999,1)-AI457+AL457)","v":0},{"$f":"IF(VLOOKUP(AF457,Group,7,FALSE)=\"\",\"\",VLOOKUP(AF457,Group,7,FALSE))","v":""},null,"X"]
[null,"Decos",null,null,"12\" x 12\"",null,"M12POLY",null,"Mosaic Polygon - NY285 Cool Mix (waterjet cut) ",null,null,null,null,null,null,"5 EA/CTN",null,"b",{"$f":"IF(Suggested=\"Yes\",AA458,AG458)","v":86.55},"EA",{"$f":"+Instructions!$B$21","v":"G"},null,{"$f":"+Instructions!$C$21","v":0},{"$f":"IF(Instructions!$C$21=\"Group\",#REF!,IF(Instructions!$C$21=\"Carter\",#REF!,ROUNDUP($AA458*(1-W458),2)))","v":86.55},null,"YES",86.55,0,86.55,{"$f":"(AG458-AC458)/AG458","v":0},null,3,{"$f":"SUM(AI458:AK458)+AE458","v":86.55},null,{"$f":"ROUND(AC458/(1-VLOOKUP(AF458,Group,2,FALSE)),2)","v":86.55},{"$f":"IF(VLOOKUP(AF458,Group,5,FALSE)=\"YES\",VLOOKUP(ROUND(ROUND(AI458,1)-AI458,2),Round,2,FALSE)+VLOOKUP(AF458,Group,6,FALSE),0)","v":0},{"$f":"IF(VLOOKUP(AF458,Group,7,FALSE)=\"\",0,ROUND(AI458-0.04999,1)-AI458+AL458)","v":0},{"$f":"IF(VLOOKUP(AF458,Group,7,FALSE)=\"\",\"\",VLOOKUP(AF458,Group,7,FALSE))","v":""},null,"X"]
[null,null,null,null,null,null,null,null,null,null,null,null,null,null,null,null,null,null,null,null,null,null,null,null,null,null,null,null,null,null,null,null,null,null,null,null,null,null,null,"X"]
[null,"Trim",null,null,"3\" x 24\"",null,"P43N9",null,"Bullnose",null,null,null,null,null,null,null,null,null,{"$f":"IF(Suggested=\"Yes\",AA460,AG460)","v":10.6},"EA",{"$f":"+Instructions!$B$21","v":"G"},null,{"$f":"+Instructions!$C$21","v":0},{"$f":"IF(Instructions!$C$21=\"Group\",#REF!,IF(Instructions!$C$21=\"Carter\",#REF!,ROUNDUP($AA460*(1-W460),2)))","v":10.6},null,"YES",10.6,{"$f":"+W460","v":0},{"$f":"+X460","v":10.6},{"$f":"(AG460-AC460)/AG460","v":0},null,2,{"$f":"SUM(AI460:AK460)+AE460","v":10.6},null,{"$f":"ROUND(AC460/(1-VLOOKUP(AF460,Group,2,FALSE)),2)","v":10.6},{"$f":"IF(VLOOKUP(AF460,Group,5,FALSE)=\"YES\",VLOOKUP(ROUND(ROUND(AI460,1)-AI460,2),Round,2,FALSE)+VLOOKUP(AF460,Group,6,FALSE),0)","v":0},{"$f":"IF(VLOOKUP(AF460,Group,7,FALSE)=\"\",0,ROUND(AI460-0.04999,1)-AI460+AL460)","v":0},{"$f":"IF(VLOOKUP(AF460,Group,7,FALSE)=\"\",\"\",VLOOKUP(AF460,Group,7,FALSE))","v":""},null,"X"]
[null,null,null,null,null,null,null,null,null,null,null,null,null,null,null,null,null,null,null,null,null,null,null,null,null,null,null,null,null,null,null,null,null,null,null,null,null,null,null,"X"]
[null,null,null,"Colors:","NY210U Malibu White          NY220U Brentwood Beige          NY230U Riverside Steel",null,null,null,null,null,null,null,null,null,null,null,null,null,null,null,null,null,null,null,null,null,null,null,null,null,null,null,null,null,null," ",null,null,null,"X"]
[null,null,null,null,null,null,null,null,null,null,null,null,null,null,null,null,null,null,null,null,null,null,null,null,null,null,null,null,null,null,null,null,null,null,null,null,null,null,null,"X"]
[null,null,null,"Cement & Plaster-Look:",null,null,null,null,null,null,null,null,null,null,null,null,null,null,null,null,null,null,null,null,null,null,null,null,null,null,null,null,null,null,null,null,null,null,null,"X"]
[null,null,null,null,null,null,null,null,null,null,null,null,null,null,null,null,null,null,null,null,null,null,null,null,null,null,null,null,null,null,null,null,null,null,null,null,null,null,null,"X"]
[null,"Field Tile",null,null,"24\" x 24\" x 2cm",null,"Field",null,null,null,null,null,null,null,null,"8.03 SF/CTN",null,null,{"$f":"IF(Suggested=\"Yes\",AA466,AG466)","v":10.85},"SF",{"$f":"+Instructions!$B$21","v":"G"},null,{"$f":"+Instructions!$C$21","v":0},{"$f":"IF(Instructions!$C$21=\"Group\",#REF!,IF(Instructions!$C$21=\"Carter\",#REF!,ROUNDUP($AA466*(1-W466),2)))","v":10.85},null,"YES",10.85,{"$f":"+W466","v":0},{"$f":"+X466","v":10.85},{"$f":"(AG466-AC466)/AG466","v":0},null,1,{"$f":"SUM(AI466:AK466)+AE466","v":10.85},null,{"$f":"ROUND(AC466/(1-VLOOKUP(AF466,Group,2,FALSE)),2)","v":10.85},{"$f":"IF(VLOOKUP(AF466,Group,5,FALSE)=\"YES\",VLOOKUP(ROUND(ROUND(AI466,1)-AI466,2),Round,2,FALSE)+VLOOKUP(AF466,Group,6,FALSE),0)","v":0},{"$f":"IF(VLOOKUP(AF466,Group,7,FALSE)=\"\",0,ROUND(AI466-0.04999,1)-AI466+AL466)","v":0},{"$f":"IF(VLOOKUP(AF466,Group,7,FALSE)=\"\",\"\",VLOOKUP(AF466,Group,7,FALSE))","v":""},null,"X"]
[null,null,null,null,null,null,null,null,null,null,null,null,null,null,null,null,null,null,null,null,null,null,null,null,null,null,null,null,null,null,null,null,null,null,null,null,null,null,null,"X"]
[null,"Trim",null,null,"12\" x 24\" x 2cm",null,"USTEPB",null,"Step Tread w/Bullnose Edge",null,null,null,null,null,null,null,null,null,{"$f":"IF(Suggested=\"Yes\",AA468,AG468)","v":149},"EA",{"$f":"+Instructions!$B$21","v":"G"},null,{"$f":"+Instructions!$C$21","v":0},{"$f":"IF(Instructions!$C$21=\"Group\",#REF!,IF(Instructions!$C$21=\"Carter\",#REF!,ROUNDUP($AA468*(1-W468),2)))","v":149},null,"YES",149,{"$f":"+W468","v":0},{"$f":"+X468","v":149},{"$f":"(AG468-AC468)/AG468","v":0},null,2,{"$f":"SUM(AI468:AK468)+AE468","v":149},null,{"$f":"ROUND(AC468/(1-VLOOKUP(AF468,Group,2,FALSE)),2)","v":149},{"$f":"IF(VLOOKUP(AF468,Group,5,FALSE)=\"YES\",VLOOKUP(ROUND(ROUND(AI468,1)-AI468,2),Round,2,FALSE)+VLOOKUP(AF468,Group,6,FALSE),0)","v":0},{"$f":"IF(VLOOKUP(AF468,Group,7,FALSE)=\"\",0,ROUND(AI468-0.04999,1)-AI468+AL468)","v":0},{"$f":"IF(VLOOKUP(AF468,Group,7,FALSE)=\"\",\"\",VLOOKUP(AF468,Group,7,FALSE))","v":""},null,"X"]
[null,"Trim",null,null,"12\" x 24\" x 2cm",null,"USTEPA",null,"Step Tread w/Square Edge",null,null,null,null,null,null,null,null,null,{"$f":"IF(Suggested=\"Yes\",AA469,AG469)","v":149},"EA",{"$f":"+Instructions!$B$21","v":"G"},null,{"$f":"+Instructions!$C$21","v":0},{"$f":"IF(Instructions!$C$21=\"Group\",#REF!,IF(Instructions!$C$21=\"Carter\",#REF!,ROUNDUP($AA469*(1-W469),2)))","v":149},null,"YES",149,0,149,{"$f":"(AG469-AC469)/AG469","v":0},null,2,{"$f":"SUM(AI469:AK469)+AE469","v":149},null,{"$f":"ROUND(AC469/(1-VLOOKUP(AF469,Group,2,FALSE)),2)","v":149},{"$f":"IF(VLOOKUP(AF469,Group,5,FALSE)=\"YES\",VLOOKUP(ROUND(ROUND(AI469,1)-AI469,2),Round,2,FALSE)+VLOOKUP(AF469,Group,6,FALSE),0)","v":0},{"$f":"IF(VLOOKUP(AF469,Group,7,FALSE)=\"\",0,ROUND(AI469-0.04999,1)-AI469+AL469)","v":0},{"$f":"IF(VLOOKUP(AF469,Group,7,FALSE)=\"\",\"\",VLOOKUP(AF469,Group,7,FALSE))","v":""},null,"X"]
[null,"Trim",null,null,"12\" x 24\" x 2cm",null,"USTEPD",null,"Step Tread w/Square Edge, Grooves & Drip Flap",null,null,null,null,null,null,null,null,null,{"$f":"IF(Suggested=\"Yes\",AA470,AG470)","v":246.15},"EA",{"$f":"+Instructions!$B$21","v":"G"},null,{"$f":"+Instructions!$C$21","v":0},{"$f":"IF(Instructions!$C$21=\"Group\",#REF!,IF(Instructions!$C$21=\"Carter\",#REF!,ROUNDUP($AA470*(1-W470),2)))","v":246.15},null,"YES",246.15,0,246.15,{"$f":"(AG470-AC470)/AG470","v":0},null,2,{"$f":"SUM(AI470:AK470)+AE470","v":246.15},null,{"$f":"ROUND(AC470/(1-VLOOKUP(AF470,Group,2,FALSE)),2)","v":246.15},{"$f":"IF(VLOOKUP(AF470,Group,5,FALSE)=\"YES\",VLOOKUP(ROUND(ROUND(AI470,1)-AI470,2),Round,2,FALSE)+VLOOKUP(AF470,Group,6,FALSE),0)","v":0},{"$f":"IF(VLOOKUP(AF470,Group,7,FALSE)=\"\",0,ROUND(AI470-0.04999,1)-AI470+AL470)","v":0},{"$f":"IF(VLOOKUP(AF470,Group,7,FALSE)=\"\",\"\",VLOOKUP(AF470,Group,7,FALSE))","v":""},null,"X"]
[null,null,null,null,null,null,null,null,null,null,null,null,null,null,null,null,null,null,null,null,null,null,null,null,null,null,null,null,null,null,null,null,null,null,null,null,null,null,null,"X"]
[null,null,null,"Notes:","a) Stocked in color NY220 Brentwood Beige only.",null,null,null,null,null,null,null,null,null,null,null,null,null,null,null,null,null,null,null,null,null,null,null,null,null,null,null,null,null,null," ",null,null,null,"X"]
[null,null,null,null,"b) The Polygon Mosaic is 0.94 SF/SHEET and is Mesh-Mounted.",null,null,null,null,null,null,null,null,null,null,null,null,null,null,null,null,null,null,null,null,null,null,null,null,null,null,null,null,null,null," ",null,null,null,"X"]
[]
[null,null,"PASSENGERHDP - Color Body Porcelain Floor and Wall Tile & 2CM PAVERS",null,null,null,null,null,null,null,null,null,null,null,null,null,null,"Item # Lookup:","FTPA"]
[null,null,null,null,null,null,null,null,null,null,null,null,null,null,null,null,null,null,null,null,null,null,null,null,null,null,null,null,null,null,null,null,null,null,null,null,null,null,null,"X"]
[null,null,null,"Colors:","PSG10 Wander White",null,null,"        PSG30 Everywhere Greige",null,null,null,null,null,null,null,null,null,null,null,null,null,null,null,null,null,null,null,null,null,null,null,null,null,null,null," ",null,null,null,"X"]
[null,null,null,null,"PSG20 Anywhere Beige",null,null,"        PSG40 Leisure Gray",null,null,null,null,null,null,null,null,null,null,null,null,null,null,null,null,null,null,null,null,null,null,null,null,null,null,null," ",null,null,null,"X"]
[null,null,null,null,null,null,null,null,null,null,null,null,null,null,null,null,null,null,null,null,null,null,null,null,null,null,null,null,null,null,null,null,null,null,null,null,null,null,null,"X"]
[null,"Field Tile",null,null,"12\" x 24\"",null,"Field",null,"Rectified",null,null,null,null,null,null,"15.62 SF/CTN","Stock",null,{"$f":"IF(Suggested=\"Yes\",AA480,AG480)","v":5.95},"SF",{"$f":"+Instructions!$B$21","v":"G"},null,{"$f":"+Instructions!$C$21","v":0},{"$f":"IF(Instructions!$C$21=\"Group\",#REF!,IF(Instructions!$C$21=\"Carter\",#REF!,ROUNDUP($AA480*(1-W480),2)))","v":5.95},null,"",5.95,{"$f":"+W480","v":0},{"$f":"+X480","v":5.95},{"$f":"(AG480-AC480)/AG480","v":0},null,1,{"$f":"SUM(AI480:AK480)+AE480","v":5.95},null,{"$f":"ROUND(AC480/(1-VLOOKUP(AF480,Group,2,FALSE)),2)","v":5.95},{"$f":"IF(VLOOKUP(AF480,Group,5,FALSE)=\"YES\",VLOOKUP(ROUND(ROUND(AI480,1)-AI480,2),Round,2,FALSE)+VLOOKUP(AF480,Group,6,FALSE),0)","v":0},{"$f":"IF(VLOOKUP(AF480,Group,7,FALSE)=\"\",0,ROUND(AI480-0.04999,1)-AI480+AL480)","v":0},{"$f":"IF(VLOOKUP(AF480,Group,7,FALSE)=\"\",\"\",VLOOKUP(AF480,Group,7,FALSE))","v":""},null,"X"]
[null,"Field Tile",null,null,"24\" x 24\"",null,"Field",null,"Rectified",null,null,null,null,null,null,"15.58 SF/CTN",null,null,6.75,"SF",{"$f":"+Instructions!$B$21","v":"G"},null,{"$f":"+Instructions!$C$21","v":0},{"$f":"IF(Instructions!$C$21=\"Group\",#REF!,IF(Instructions!$C$21=\"Carter\",#REF!,ROUNDUP($AA481*(1-W481),2)))","v":6.75},null,"YES",6.75,0,6.75,0,null,1,6.75,null,6.75,0,0,"",null,"X"]
[null,"Field Tile",null,null,"24\" x 48\"",null,"Field",null,"Rectified",null,null,null,null,null,null,"15.39 SF/CTN",null,null,7.8,"SF",{"$f":"+Instructions!$B$21","v":"G"},null,{"$f":"+Instructions!$C$21","v":0},{"$f":"IF(Instructions!$C$21=\"Group\",#REF!,IF(Instructions!$C$21=\"Carter\",#REF!,ROUNDUP($AA482*(1-W482),2)))","v":7.8},null,"new",7.8,0,7.8,0,null,1,7.8,null,7.8,0,0,"",null,"X"]
[null,null,null,null,null,null,null,null,null,null,null,null,null,null,null,null,null,null,null,null,null,null,null,null,null,null,null,null,null,null,null,null,null,null,null,null,null,null,null,"X"]
[null,"Decos",null,null,"12\" x 12\"",null,"M12",null,"Mosaic 2\" x 2\" Mesh-Mounted ",null,null,null,null,null,null,"5 EA/CTN",null,null,{"$f":"IF(Suggested=\"Yes\",AA484,AG484)","v":23.4},"EA",{"$f":"+Instructions!$B$21","v":"G"},null,{"$f":"+Instructions!$C$21","v":0},{"$f":"IF(Instructions!$C$21=\"Group\",#REF!,IF(Instructions!$C$21=\"Carter\",#REF!,ROUNDUP($AA484*(1-W484),2)))","v":23.4},null,"YES",23.4,{"$f":"+W484","v":0},{"$f":"+X484","v":23.4},{"$f":"(AG484-AC484)/AG484","v":0},null,3,{"$f":"SUM(AI484:AK484)+AE484","v":23.4},null,{"$f":"ROUND(AC484/(1-VLOOKUP(AF484,Group,2,FALSE)),2)","v":23.4},{"$f":"IF(VLOOKUP(AF484,Group,5,FALSE)=\"YES\",VLOOKUP(ROUND(ROUND(AI484,1)-AI484,2),Round,2,FALSE)+VLOOKUP(AF484,Group,6,FALSE),0)","v":0},{"$f":"IF(VLOOKUP(AF484,Group,7,FALSE)=\"\",0,ROUND(AI484-0.04999,1)-AI484+AL484)","v":0},{"$f":"IF(VLOOKUP(AF484,Group,7,FALSE)=\"\",\"\",VLOOKUP(AF484,Group,7,FALSE))","v":""},null,"X"]
[null,"Decos",null,null,"12\" x 24\"",null,"RSP12x24",null,"Mosaic Random Stack Mesh-Mounted",null,null,null,null,null,null,"4 EA/CTN",null,null,{"$f":"IF(Suggested=\"Yes\",AA485,AG485)","v":52.85},"EA",{"$f":"+Instructions!$B$21","v":"G"},null,{"$f":"+Instructions!$C$21","v":0},{"$f":"IF(Instructions!$C$21=\"Group\",#REF!,IF(Instructions!$C$21=\"Carter\",#REF!,ROUNDUP($AA485*(1-W485),2)))","v":52.85},null,"YES",52.85,{"$f":"+W485","v":0},{"$f":"+X485","v":52.85},{"$f":"(AG485-AC485)/AG485","v":0},null,3,{"$f":"SUM(AI485:AK485)+AE485","v":52.85},null,{"$f":"ROUND(AC485/(1-VLOOKUP(AF485,Group,2,FALSE)),2)","v":52.85},{"$f":"IF(VLOOKUP(AF485,Group,5,FALSE)=\"YES\",VLOOKUP(ROUND(ROUND(AI485,1)-AI485,2),Round,2,FALSE)+VLOOKUP(AF485,Group,6,FALSE),0)","v":0},{"$f":"IF(VLOOKUP(AF485,Group,7,FALSE)=\"\",0,ROUND(AI485-0.04999,1)-AI485+AL485)","v":0},{"$f":"IF(VLOOKUP(AF485,Group,7,FALSE)=\"\",\"\",VLOOKUP(AF485,Group,7,FALSE))","v":""},null,"X"]
[null,null,null,null,null,null,null,null,null,null,null,null,null,null,null,null,null,null,null,null,null,null,null,null,null,null,null,null,null,null,null,null,null,null,null,null,null,null,null,"X"]
[null,"Trim",null,null,"3\" x 24\"",null,"P43N9",null,"Bullnose",null,null,null,null,null,null,null,null,null,{"$f":"IF(Suggested=\"Yes\",AA487,AG487)","v":14.2},"EA",{"$f":"+Instructions!$B$21","v":"G"},null,{"$f":"+Instructions!$C$21","v":0},{"$f":"IF(Instructions!$C$21=\"Group\",#REF!,IF(Instructions!$C$21=\"Carter\",#REF!,ROUNDUP($AA487*(1-W487),2)))","v":14.2},null,"YES",14.2,{"$f":"+W487","v":0},{"$f":"+X487","v":14.2},{"$f":"(AG487-AC487)/AG487","v":0},null,2,{"$f":"SUM(AI487:AK487)+AE487","v":14.2},null,{"$f":"ROUND(AC487/(1-VLOOKUP(AF487,Group,2,FALSE)),2)","v":14.2},{"$f":"IF(VLOOKUP(AF487,Group,5,FALSE)=\"YES\",VLOOKUP(ROUND(ROUND(AI487,1)-AI487,2),Round,2,FALSE)+VLOOKUP(AF487,Group,6,FALSE),0)","v":0},{"$f":"IF(VLOOKUP(AF487,Group,7,FALSE)=\"\",0,ROUND(AI487-0.04999,1)-AI487+AL487)","v":0},{"$f":"IF(VLOOKUP(AF487,Group,7,FALSE)=\"\",\"\",VLOOKUP(AF487,Group,7,FALSE))","v":""},null,"X"]
[null,null,null,null,null,null,null,null,null,null,null,null,null,null,null,null,null,null,null,null,null,null,null,null,null,null,null,null,null,null,null,null,null,null,null,null,null,null,null,"X"]
[null,null,null,"Colors:","PSG10U Wander White",null,null,"          PSG30U Everywhere Greige",null,null,null,null,null,null,null,null,null,null,null,null,null,null,null,null,null,null,null,null,null,null,null,null,null,null,null," ",null,null,null,"X"]
[null,null,null,null,"PSG20U Anywhere Beige",null,null,"          PSG40U Leisure Gray",null,null,null,null,null,null,null,null,null,null,null,null,null,null,null,null,null,null,null,null,null,null,null,null,null,null,null," ",null,null,null,"X"]
[null,null,null,null,null,null,null,null,null,null,null,null,null,null,null,null,null,null,null,null,null,null,null,null,null,null,null,null,null,null,null,null,null,null,null,null,null,null,null,"X"]
[null,"Field Tile",null,null,"24\" x 36\" x 2cm",null,"Field",null,"Rectified",null,null,null,null,null,null,"5.85 SF/CTN",null,null,{"$f":"IF(Suggested=\"Yes\",AA492,AG492)","v":12.55},"SF",{"$f":"+Instructions!$B$21","v":"G"},null,{"$f":"+Instructions!$C$21","v":0},{"$f":"IF(Instructions!$C$21=\"Group\",#REF!,IF(Instructions!$C$21=\"Carter\",#REF!,ROUNDUP($AA492*(1-W492),2)))","v":12.55},null,"YES",12.55,{"$f":"+W492","v":0},{"$f":"+X492","v":12.55},{"$f":"(AG492-AC492)/AG492","v":0},null,1,{"$f":"SUM(AI492:AK492)+AE492","v":12.55},null,{"$f":"ROUND(AC492/(1-VLOOKUP(AF492,Group,2,FALSE)),2)","v":12.55},{"$f":"IF(VLOOKUP(AF492,Group,5,FALSE)=\"YES\",VLOOKUP(ROUND(ROUND(AI492,1)-AI492,2),Round,2,FALSE)+VLOOKUP(AF492,Group,6,FALSE),0)","v":0},{"$f":"IF(VLOOKUP(AF492,Group,7,FALSE)=\"\",0,ROUND(AI492-0.04999,1)-AI492+AL492)","v":0},{"$f":"IF(VLOOKUP(AF492,Group,7,FALSE)=\"\",\"\",VLOOKUP(AF492,Group,7,FALSE))","v":""},null,"X"]
[null,null,null,null,null,null,null,null,null,null,null,null,null,null,null,null,null,null,null,null,null,null,null,null,null,null,null,null,null,null,null,null,null,null,null,null,null,null,null,"X"]
[null,"Trim",null,null,"12\" x 24\" x 2cm",null,"USTEPB",null,"Step Tread w/Bullnose Edge",null,null,null,null,null,null,null,null,"a",{"$f":"IF(Suggested=\"Yes\",AA494,AG494)","v":185.6},"EA",{"$f":"+Instructions!$B$21","v":"G"},null,{"$f":"+Instructions!$C$21","v":0},{"$f":"IF(Instructions!$C$21=\"Group\",#REF!,IF(Instructions!$C$21=\"Carter\",#REF!,ROUNDUP($AA494*(1-W494),2)))","v":185.6},null,"YES",185.6,{"$f":"+W494","v":0},{"$f":"+X494","v":185.6},{"$f":"(AG494-AC494)/AG494","v":0},null,2,{"$f":"SUM(AI494:AK494)+AE494","v":185.6},null,{"$f":"ROUND(AC494/(1-VLOOKUP(AF494,Group,2,FALSE)),2)","v":185.6},{"$f":"IF(VLOOKUP(AF494,Group,5,FALSE)=\"YES\",VLOOKUP(ROUND(ROUND(AI494,1)-AI494,2),Round,2,FALSE)+VLOOKUP(AF494,Group,6,FALSE),0)","v":0},{"$f":"IF(VLOOKUP(AF494,Group,7,FALSE)=\"\",0,ROUND(AI494-0.04999,1)-AI494+AL494)","v":0},{"$f":"IF(VLOOKUP(AF494,Group,7,FALSE)=\"\",\"\",VLOOKUP(AF494,Group,7,FALSE))","v":""},null,"X"]
[null,"Trim",null,null,"12\" x 24\" x 2cm",null,"USTEPA",null,"Step Tread w/Square Edge",null,null,null,null,null,null,null,null,"a",{"$f":"IF(Suggested=\"Yes\",AA495,AG495)","v":185.6},"EA",{"$f":"+Instructions!$B$21","v":"G"},null,{"$f":"+Instructions!$C$21","v":0},{"$f":"IF(Instructions!$C$21=\"Group\",#REF!,IF(Instructions!$C$21=\"Carter\",#REF!,ROUNDUP($AA495*(1-W495),2)))","v":185.6},null,"YES",185.6,0,185.6,{"$f":"(AG495-AC495)/AG495","v":0},null,2,{"$f":"SUM(AI495:AK495)+AE495","v":185.6},null,{"$f":"ROUND(AC495/(1-VLOOKUP(AF495,Group,2,FALSE)),2)","v":185.6},{"$f":"IF(VLOOKUP(AF495,Group,5,FALSE)=\"YES\",VLOOKUP(ROUND(ROUND(AI495,1)-AI495,2),Round,2,FALSE)+VLOOKUP(AF495,Group,6,FALSE),0)","v":0},{"$f":"IF(VLOOKUP(AF495,Group,7,FALSE)=\"\",0,ROUND(AI495-0.04999,1)-AI495+AL495)","v":0},{"$f":"IF(VLOOKUP(AF495,Group,7,FALSE)=\"\",\"\",VLOOKUP(AF495,Group,7,FALSE))","v":""},null,"X"]
[null,"Trim",null,null,"12\" x 24\" x 2cm",null,"USTEPD",null,"Step Tread w/Square Edge, Grooves & Drip Flap",null,null,null,null,null,null,null,null,"a",{"$f":"IF(Suggested=\"Yes\",AA496,AG496)","v":303.8},"EA",{"$f":"+Instructions!$B$21","v":"G"},null,{"$f":"+Instructions!$C$21","v":0},{"$f":"IF(Instructions!$C$21=\"Group\",#REF!,IF(Instructions!$C$21=\"Carter\",#REF!,ROUNDUP($AA496*(1-W496),2)))","v":303.8},null,"YES",303.8,0,303.8,{"$f":"(AG496-AC496)/AG496","v":0},null,2,{"$f":"SUM(AI496:AK496)+AE496","v":303.8},null,{"$f":"ROUND(AC496/(1-VLOOKUP(AF496,Group,2,FALSE)),2)","v":303.8},{"$f":"IF(VLOOKUP(AF496,Group,5,FALSE)=\"YES\",VLOOKUP(ROUND(ROUND(AI496,1)-AI496,2),Round,2,FALSE)+VLOOKUP(AF496,Group,6,FALSE),0)","v":0},{"$f":"IF(VLOOKUP(AF496,Group,7,FALSE)=\"\",0,ROUND(AI496-0.04999,1)-AI496+AL496)","v":0},{"$f":"IF(VLOOKUP(AF496,Group,7,FALSE)=\"\",\"\",VLOOKUP(AF496,Group,7,FALSE))","v":""},null,"X"]
[null,null,null,null,null,null,null,null,null,null,null,null,null,null,null,null,null,null,null,null,null,null,null,null,null,null,null,null,null,null,null,null,null,null,null,null,null,null,null,"X"]
[null,null,null,"Note:","a) Special Order Only.  Minimum order quantity of 50 pieces per SKU.",null,null,null,null,null,null,null,null,null,null,null,null,null,null,null,null,null,null,null,null,null,null,null,null,null,null,null,null,null,null," ",null,null,null,"X"]
[null,null,null,null,null,null,null,null,null,null,null,null,null,null,null,null,null,null,null,null,null,null,null,null,null,null,null,null,null,null,null,null,null,null,null,null,null,null,null,"X"]
[null,null,"PIETRA ART PEBBLES - Natural Stone",null,null,null,null,null,null,null,null,null,null,null,null,null,"Item # Lookup:","FTFP, FTPT, FTSA",null,null,null,null,null,null,null,null,null,null,null,null,null,null,null,null,null,null,null,null,null,"X"]
[null,null,null,null,null,null,null,null,null,null,null,null,null,null,null,null,null,null,null,null,null,null,null,null,null,null,null,null,null,null,null,null,null,null,null,null,null,null,null,"X"]
[null,null,null,"Colors:","FP102 Black Pearl          FP103 White Snowball          FP104 Mixed Salad          FP306 Cotton",null,null,null,null,null,null,null,null,null,null,null,null,null,null,null,null,null,null,null,null,null,null,null,null,null,null,null,null,null,null,null,null,null,null,"X"]
[null,null,null,null,null,null,null,null,null,null,null,null,null,null,null,null,null,null,null,null,null,null,null,null,null,null,null,null,null,null,null,null,null,null,null,null,null,null,null,"X"]
[null,"Decos",null,"Floor:","12\" x 12\"",null,"Mosaic",null,"Flat Pebbles Mesh-Mounted Interlocking Sheet ",null,null,null,null,null,null,"5 EA/CTN",null,null,{"$f":"IF(Suggested=\"Yes\",AA504,AG504)","v":26.5},"EA",{"$f":"+Instructions!$B$21","v":"G"},null,{"$f":"+Instructions!$C$21","v":0},{"$f":"IF(Instructions!$C$21=\"Group\",#REF!,IF(Instructions!$C$21=\"Carter\",#REF!,ROUNDUP($AA504*(1-W504),2)))","v":26.5},null,"",26.5,{"$f":"+W504","v":0},{"$f":"+X504","v":26.5},{"$f":"(AG504-AC504)/AG504","v":0},null,3,{"$f":"SUM(AI504:AK504)+AE504","v":26.5},null,{"$f":"ROUND(AC504/(1-VLOOKUP(AF504,Group,2,FALSE)),2)","v":26.5},{"$f":"IF(VLOOKUP(AF504,Group,5,FALSE)=\"YES\",VLOOKUP(ROUND(ROUND(AI504,1)-AI504,2),Round,2,FALSE)+VLOOKUP(AF504,Group,6,FALSE),0)","v":0},{"$f":"IF(VLOOKUP(AF504,Group,7,FALSE)=\"\",0,ROUND(AI504-0.04999,1)-AI504+AL504)","v":0},{"$f":"IF(VLOOKUP(AF504,Group,7,FALSE)=\"\",\"\",VLOOKUP(AF504,Group,7,FALSE))","v":""},null,"X"]
[null,null,null,null,null,null,null,null,null,null,null,null,null,null,null,null,null,null,null,null,null,null,null,null,null,null,null,null,null,null,null,null,null,null,null,null,null,null,null,"X"]
[null,null,null,"Color:","FP201 Rustic Birch",null,null,null,null,null,null,null,null,null,null,null,null,null,null,null,null,null,null,null,null,null,null,null,null,null,null,null,null,null,null,null,null,null,null,"X"]
[null,null,null,null,null,null,null,null,null,null,null,null,null,null,null,null,null,null,null,null,null,null,null,null,null,null,null,null,null,null,null,null,null,null,null,null,null,null,null,"X"]
[null,"Decos",null,"Floor:","12\" x 12\"",null,"Mosaic",null,"Flat Pebbles Mesh-Mounted Interlocking Sheet ",null,null,null,null,null,null,"10 EA/CTN",null,null,{"$f":"IF(Suggested=\"Yes\",AA508,AG508)","v":26.5},"EA",{"$f":"+Instructions!$B$21","v":"G"},null,{"$f":"+Instructions!$C$21","v":0},{"$f":"IF(Instructions!$C$21=\"Group\",#REF!,IF(Instructions!$C$21=\"Carter\",#REF!,ROUNDUP($AA508*(1-W508),2)))","v":26.5},null,"",26.5,{"$f":"+W508","v":0},{"$f":"+X508","v":26.5},{"$f":"(AG508-AC508)/AG508","v":0},null,3,{"$f":"SUM(AI508:AK508)+AE508","v":26.5},null,{"$f":"ROUND(AC508/(1-VLOOKUP(AF508,Group,2,FALSE)),2)","v":26.5},{"$f":"IF(VLOOKUP(AF508,Group,5,FALSE)=\"YES\",VLOOKUP(ROUND(ROUND(AI508,1)-AI508,2),Round,2,FALSE)+VLOOKUP(AF508,Group,6,FALSE),0)","v":0},{"$f":"IF(VLOOKUP(AF508,Group,7,FALSE)=\"\",0,ROUND(AI508-0.04999,1)-AI508+AL508)","v":0},{"$f":"IF(VLOOKUP(AF508,Group,7,FALSE)=\"\",\"\",VLOOKUP(AF508,Group,7,FALSE))","v":""},null,"X"]
[null,null,null,null,null,null,null,null,null,null,null,null,null,null,null,null,null,null,null,null,null,null,null,null,null,null,null,null,null,null,null,null,null,null,null,null,null,null,null,"X"]
[null,null,null,"Colors:","FP203R Island White          SACP002 Navajo White          SACP004 Silver Quartz",null,null,null,null,null,null,null,null,null,null,null,null,null,null,null,null,null,null,null,null,null,null,null,null,null,null,null,null,null,null,null,null,null,null,"X"]
[null,null,null,null,null,null,null,null,null,null,null,null,null,null,null,null,null,null,null,null,null,null,null,null,null,null,null,null,null,null,null,null,null,null,null,null,null,null,null,"X"]
[null,"Decos",null,"Floor:","12\" x 12\"",null,"Mosaic",null,"Flat Pebbles Mesh-Mounted Interlocking Sheet ",null,null,null,null,null,null,"11 EA/CTN",null,null,{"$f":"IF(Suggested=\"Yes\",AA512,AG512)","v":26.5},"EA",{"$f":"+Instructions!$B$21","v":"G"},null,{"$f":"+Instructions!$C$21","v":0},{"$f":"IF(Instructions!$C$21=\"Group\",#REF!,IF(Instructions!$C$21=\"Carter\",#REF!,ROUNDUP($AA512*(1-W512),2)))","v":26.5},null,"",26.5,{"$f":"+W512","v":0},{"$f":"+X512","v":26.5},{"$f":"(AG512-AC512)/AG512","v":0},null,3,{"$f":"SUM(AI512:AK512)+AE512","v":26.5},null,{"$f":"ROUND(AC512/(1-VLOOKUP(AF512,Group,2,FALSE)),2)","v":26.5},{"$f":"IF(VLOOKUP(AF512,Group,5,FALSE)=\"YES\",VLOOKUP(ROUND(ROUND(AI512,1)-AI512,2),Round,2,FALSE)+VLOOKUP(AF512,Group,6,FALSE),0)","v":0},{"$f":"IF(VLOOKUP(AF512,Group,7,FALSE)=\"\",0,ROUND(AI512-0.04999,1)-AI512+AL512)","v":0},{"$f":"IF(VLOOKUP(AF512,Group,7,FALSE)=\"\",\"\",VLOOKUP(AF512,Group,7,FALSE))","v":""},null,"X"]
[null,null,null,null,null,null,null,null,null,null,null,null,null,null,null,null,null,null,null,null,null,null,null,null,null,null,null,null,null,null,null,null,null,null,null,null,null,null,null,"X"]
[null,null,null,"Color:","PT104 Mixed Salad",null,null,null,null,null,null,null,null,null,null,null,null,null,null,null,null,null,null,null,null,null,null,null,null,null,null,null,null,null,null,null,null,null,null,"X"]
[null,null,null,null,null,null,null,null,null,null,null,null,null,null,null,null,null,null,null,null,null,null,null,null,null,null,null,null,null,null,null,null,null,null,null,null,null,null,null,"X"]
[null,"Decos",null,"Floor:","12\" x 12\"",null,"Mosaic",null,"Round Pebbles Mesh-Mounted Interlocking Sheet ",null,null,null,null,null,null,"11 EA/CTN",null,null,{"$f":"IF(Suggested=\"Yes\",AA516,AG516)","v":26.4},"EA",{"$f":"+Instructions!$B$21","v":"G"},null,{"$f":"+Instructions!$C$21","v":0},{"$f":"IF(Instructions!$C$21=\"Group\",#REF!,IF(Instructions!$C$21=\"Carter\",#REF!,ROUNDUP($AA516*(1-W516),2)))","v":26.4},null,"",26.4,{"$f":"+W516","v":0},{"$f":"+X516","v":26.4},{"$f":"(AG516-AC516)/AG516","v":0},null,3,{"$f":"SUM(AI516:AK516)+AE516","v":26.4},null,{"$f":"ROUND(AC516/(1-VLOOKUP(AF516,Group,2,FALSE)),2)","v":26.4},{"$f":"IF(VLOOKUP(AF516,Group,5,FALSE)=\"YES\",VLOOKUP(ROUND(ROUND(AI516,1)-AI516,2),Round,2,FALSE)+VLOOKUP(AF516,Group,6,FALSE),0)","v":0},{"$f":"IF(VLOOKUP(AF516,Group,7,FALSE)=\"\",0,ROUND(AI516-0.04999,1)-AI516+AL516)","v":0},{"$f":"IF(VLOOKUP(AF516,Group,7,FALSE)=\"\",\"\",VLOOKUP(AF516,Group,7,FALSE))","v":""},null,"X"]
[null,null,null,null,null,null,null,null,null,null,null,null,null,null,null,null,null,null,null,null,null,null,null,null,null,null,null,null,null,null,null,null,null,null,null,null,null,null,null,"X"]
[null,null,null,"Color:","PT316 Orion",null,null,null,null,null,null,null,null,null,null,null,null,null,null,null,null,null,null,null,null,null,null,null,null,null,null,null,null,null,null,null,null,null,null,"X"]
[null,null,null,null,null,null,null,null,null,null,null,null,null,null,null,null,null,null,null,null,null,null,null,null,null,null,null,null,null,null,null,null,null,null,null,null,null,null,null,"X"]
[null,"Decos",null,"Floor:","12\" x 12\"",null,"Mosaic",null,"Round Pebbles Mesh-Mounted Interlocking Sheet ",null,null,null,null,null,null,"5 EA/CTN",null,null,{"$f":"IF(Suggested=\"Yes\",AA520,AG520)","v":26.4},"EA",{"$f":"+Instructions!$B$21","v":"G"},null,{"$f":"+Instructions!$C$21","v":0},{"$f":"IF(Instructions!$C$21=\"Group\",#REF!,IF(Instructions!$C$21=\"Carter\",#REF!,ROUNDUP($AA520*(1-W520),2)))","v":26.4},null,"",26.4,{"$f":"+W520","v":0},{"$f":"+X520","v":26.4},{"$f":"(AG520-AC520)/AG520","v":0},null,3,{"$f":"SUM(AI520:AK520)+AE520","v":26.4},null,{"$f":"ROUND(AC520/(1-VLOOKUP(AF520,Group,2,FALSE)),2)","v":26.4},{"$f":"IF(VLOOKUP(AF520,Group,5,FALSE)=\"YES\",VLOOKUP(ROUND(ROUND(AI520,1)-AI520,2),Round,2,FALSE)+VLOOKUP(AF520,Group,6,FALSE),0)","v":0},{"$f":"IF(VLOOKUP(AF520,Group,7,FALSE)=\"\",0,ROUND(AI520-0.04999,1)-AI520+AL520)","v":0},{"$f":"IF(VLOOKUP(AF520,Group,7,FALSE)=\"\",\"\",VLOOKUP(AF520,Group,7,FALSE))","v":""},null,"X"]
[null,null,null,null,null,null,null,null,null,null,null,null,null,null,null,null,null,null,null,null,null,null,null,null,null,null,null,null,null,null,null,null,null,null,null,null,null,null,null,"X"]
[null,null,null,"Note:","PietraArt is a natural stone product, no claims will be accepted for variations in shade or appearance, after installation.",null,null,null,null,null,null,null,null,null,null,null,null,null,null,null,null,null,null,null,null,null,null,null,null,null,null,null,null,null,null,null,null,null,null,"X"]
[null,null,null,null,null,null,null,null,null,null,null,null,null,null,null,null,null,null,null,null,null,null,null,null,null,null,null,null,null,null,null,null,null,null,null,null,null,null,null,"X"]
[null,null,"PRECIOUSHDP - Glazed Porcelain Floor & Ceramic Wall (Rectified)",null,null,null,null,null,null,null,null,null,null," ",null,null,null,"Item # Lookup:","FT350",null,null,null,null,null,null,null,null,null,null,null,null,null,null,null,null," ",null,null,null,"X"]
[null,null,null,null,null,null,null,null,null,null,null,null,null,null,null,null,null,null,null,null,null,null,null,null,null,null,null,null,null,null,null,null,null,null,null,null,null,null,null,"X"]
[null,null,null,"Color:","35001 Calacatta",null,null,null,null,null,null,null,null,null,null,null,null,null,null,null,null,null,null,null,null,null,null,null,null,null,null,null,null,null,null," ",null,null,null,"X"]
[null,null,null,null,null,null,null,null,null,null,null,null,null,null,null,null,null,null,null,null,null,null,null,null,null,null,null,null,null,null,null,null,null,null,null,null,null,null,null,"X"]
[null,"Field Tile",null,"Floor:","12\" x 24\"",null,"Field",null,null," ",null,null,null,null,null,"15.62 SF/CTN","Stock",null,{"$f":"IF(Suggested=\"Yes\",AA528,AG528)","v":7.65},"SF",{"$f":"+Instructions!$B$21","v":"G"},null,{"$f":"+Instructions!$C$21","v":0},{"$f":"IF(Instructions!$C$21=\"Group\",#REF!,IF(Instructions!$C$21=\"Carter\",#REF!,ROUNDUP($AA528*(1-W528),2)))","v":7.65},null,"YES",7.65,{"$f":"+W528","v":0},7.65,{"$f":"(AG528-AC528)/AG528","v":0},null,1,{"$f":"SUM(AI528:AK528)+AE528","v":7.65},null,{"$f":"ROUND(AC528/(1-VLOOKUP(AF528,Group,2,FALSE)),2)","v":7.65},{"$f":"IF(VLOOKUP(AF528,Group,5,FALSE)=\"YES\",VLOOKUP(ROUND(ROUND(AI528,1)-AI528,2),Round,2,FALSE)+VLOOKUP(AF528,Group,6,FALSE),0)","v":0},{"$f":"IF(VLOOKUP(AF528,Group,7,FALSE)=\"\",0,ROUND(AI528-0.04999,1)-AI528+AL528)","v":0},{"$f":"IF(VLOOKUP(AF528,Group,7,FALSE)=\"\",\"\",VLOOKUP(AF528,Group,7,FALSE))","v":""},null,"X"]
[null,"Field Tile",null,null,"24\" x 48\"",null,"Field",null,null,null,null,null,null,null,null,"15.39 SF/CTN",null,null,{"$f":"IF(Suggested=\"Yes\",AA529,AG529)","v":9.4},"SF",{"$f":"+Instructions!$B$21","v":"G"},null,{"$f":"+Instructions!$C$21","v":0},{"$f":"IF(Instructions!$C$21=\"Group\",#REF!,IF(Instructions!$C$21=\"Carter\",#REF!,ROUNDUP($AA529*(1-W529),2)))","v":9.4},null,"YES",9.4,0,9.4,{"$f":"(AG529-AC529)/AG529","v":0},null,1,{"$f":"SUM(AI529:AK529)+AE529","v":9.4},null,{"$f":"ROUND(AC529/(1-VLOOKUP(AF529,Group,2,FALSE)),2)","v":9.4},{"$f":"IF(VLOOKUP(AF529,Group,5,FALSE)=\"YES\",VLOOKUP(ROUND(ROUND(AI529,1)-AI529,2),Round,2,FALSE)+VLOOKUP(AF529,Group,6,FALSE),0)","v":0},{"$f":"IF(VLOOKUP(AF529,Group,7,FALSE)=\"\",0,ROUND(AI529-0.04999,1)-AI529+AL529)","v":0},{"$f":"IF(VLOOKUP(AF529,Group,7,FALSE)=\"\",\"\",VLOOKUP(AF529,Group,7,FALSE))","v":""},null,"X"]
[null,null,null,null,null,null,null,null,null,null,null,null,null,null,null,null,null,null,null,null,null,null,null,null,null,null,null,null,null,null,null,null,null,null,null,null,null,null,null,"X"]
[null,"Decos",null,null,"12\" x 12\"",null,"M1x4HER",null,"Mosaic Herringbone Mesh-Mounted ",null,null,null,null,null,null,"0.95 SF/SHEET","Stock",null,{"$f":"IF(Suggested=\"Yes\",AA531,AG531)","v":31.7},"EA",{"$f":"+Instructions!$B$21","v":"G"},null,{"$f":"+Instructions!$C$21","v":0},{"$f":"IF(Instructions!$C$21=\"Group\",#REF!,IF(Instructions!$C$21=\"Carter\",#REF!,ROUNDUP($AA531*(1-W531),2)))","v":31.7},null,"YES",31.7,{"$f":"+W531","v":0},{"$f":"+X531","v":31.7},{"$f":"(AG531-AC531)/AG531","v":0},null,3,{"$f":"SUM(AI531:AK531)+AE531","v":31.7},null,{"$f":"ROUND(AC531/(1-VLOOKUP(AF531,Group,2,FALSE)),2)","v":31.7},{"$f":"IF(VLOOKUP(AF531,Group,5,FALSE)=\"YES\",VLOOKUP(ROUND(ROUND(AI531,1)-AI531,2),Round,2,FALSE)+VLOOKUP(AF531,Group,6,FALSE),0)","v":0},{"$f":"IF(VLOOKUP(AF531,Group,7,FALSE)=\"\",0,ROUND(AI531-0.04999,1)-AI531+AL531)","v":0},{"$f":"IF(VLOOKUP(AF531,Group,7,FALSE)=\"\",\"\",VLOOKUP(AF531,Group,7,FALSE))","v":""},null,"X"]
[null,null,null,null,null,null,null,null,null,null,null,null,null,null,null,null,null,null,null,null,null,null,null,{"$f":"IF(Instructions!$C$21=\"Group\",#REF!,IF(Instructions!$C$21=\"Carter\",#REF!,ROUNDUP($AA532*(1-W532),2)))","v":0},null,null,null,null,null,null,null,null,null,null,null,null,null,null,null,"X"]
[null,"Trim",null,null,"3\" x 12\"",null,"P43C9",null,"Bullnose",null,null,null,null,null,null,null,null,null,{"$f":"IF(Suggested=\"Yes\",AA533,AG533)","v":10.15},"EA",{"$f":"+Instructions!$B$21","v":"G"},null,{"$f":"+Instructions!$C$21","v":0},{"$f":"IF(Instructions!$C$21=\"Group\",#REF!,IF(Instructions!$C$21=\"Carter\",#REF!,ROUNDUP($AA533*(1-W533),2)))","v":10.15},null,"YES",10.15,{"$f":"+W533","v":0},{"$f":"+X533","v":10.15},{"$f":"(AG533-AC533)/AG533","v":0},null,2,{"$f":"SUM(AI533:AK533)+AE533","v":10.15},null,{"$f":"ROUND(AC533/(1-VLOOKUP(AF533,Group,2,FALSE)),2)","v":10.15},{"$f":"IF(VLOOKUP(AF533,Group,5,FALSE)=\"YES\",VLOOKUP(ROUND(ROUND(AI533,1)-AI533,2),Round,2,FALSE)+VLOOKUP(AF533,Group,6,FALSE),0)","v":0},{"$f":"IF(VLOOKUP(AF533,Group,7,FALSE)=\"\",0,ROUND(AI533-0.04999,1)-AI533+AL533)","v":0},{"$f":"IF(VLOOKUP(AF533,Group,7,FALSE)=\"\",\"\",VLOOKUP(AF533,Group,7,FALSE))","v":""},null,"X"]
[null,null,null,null,null,null,null,null,null,null,null,null,null,null,null,null,null,null,null,null,null,null,null,null,null,null,null,null,null,null,null,null,null,null,null,null,null,null,null,"X"]
[null,"Field Tile",null,"Wall:","5\" x 14\"",null,"Field",null," "," ",null,null,null,null,null,"8.14 SF/CTN",null,"a",{"$f":"IF(Suggested=\"Yes\",AA535,AG535)","v":14.7},"SF",{"$f":"+Instructions!$B$21","v":"G"},null,{"$f":"+Instructions!$C$21","v":0},{"$f":"IF(Instructions!$C$21=\"Group\",#REF!,IF(Instructions!$C$21=\"Carter\",#REF!,ROUNDUP($AA535*(1-W535),2)))","v":14.7},null,"YES",14.7,{"$f":"+W535","v":0},14.7,{"$f":"(AG535-AC535)/AG535","v":0},null,1,{"$f":"SUM(AI535:AK535)+AE535","v":14.7},null,{"$f":"ROUND(AC535/(1-VLOOKUP(AF535,Group,2,FALSE)),2)","v":14.7},{"$f":"IF(VLOOKUP(AF535,Group,5,FALSE)=\"YES\",VLOOKUP(ROUND(ROUND(AI535,1)-AI535,2),Round,2,FALSE)+VLOOKUP(AF535,Group,6,FALSE),0)","v":0},{"$f":"IF(VLOOKUP(AF535,Group,7,FALSE)=\"\",0,ROUND(AI535-0.04999,1)-AI535+AL535)","v":0},{"$f":"IF(VLOOKUP(AF535,Group,7,FALSE)=\"\",\"\",VLOOKUP(AF535,Group,7,FALSE))","v":""},null,"X"]
[null,"Field Tile",null,null,"14\" x 27\"",null,"Field",null,null,null,null,null,null,null,null,"15.82 SF/CTN","Stock",null,{"$f":"IF(Suggested=\"Yes\",AA536,AG536)","v":8.75},"SF",{"$f":"+Instructions!$B$21","v":"G"},null,{"$f":"+Instructions!$C$21","v":0},{"$f":"IF(Instructions!$C$21=\"Group\",#REF!,IF(Instructions!$C$21=\"Carter\",#REF!,ROUNDUP($AA536*(1-W536),2)))","v":8.75},null,"YES",8.75,0,8.75,{"$f":"(AG536-AC536)/AG536","v":0},null,1,{"$f":"SUM(AI536:AK536)+AE536","v":8.75},null,{"$f":"ROUND(AC536/(1-VLOOKUP(AF536,Group,2,FALSE)),2)","v":8.75},{"$f":"IF(VLOOKUP(AF536,Group,5,FALSE)=\"YES\",VLOOKUP(ROUND(ROUND(AI536,1)-AI536,2),Round,2,FALSE)+VLOOKUP(AF536,Group,6,FALSE),0)","v":0},{"$f":"IF(VLOOKUP(AF536,Group,7,FALSE)=\"\",0,ROUND(AI536-0.04999,1)-AI536+AL536)","v":0},{"$f":"IF(VLOOKUP(AF536,Group,7,FALSE)=\"\",\"\",VLOOKUP(AF536,Group,7,FALSE))","v":""},null,"X"]
[null,"Field Tile",null,null,"14\" x 39\"",null,"Field",null,null,null,null,null,null,null,null,"15.07 SF/CTN","Stock","a",{"$f":"IF(Suggested=\"Yes\",AA537,AG537)","v":10.199999999999999},"SF",{"$f":"+Instructions!$B$21","v":"G"},null,{"$f":"+Instructions!$C$21","v":0},{"$f":"IF(Instructions!$C$21=\"Group\",#REF!,IF(Instructions!$C$21=\"Carter\",#REF!,ROUNDUP($AA537*(1-W537),2)))","v":10.199999999999999},null,"YES",10.199999999999999,0,10.199999999999999,{"$f":"(AG537-AC537)/AG537","v":0},null,1,{"$f":"SUM(AI537:AK537)+AE537","v":10.199999999999999},null,{"$f":"ROUND(AC537/(1-VLOOKUP(AF537,Group,2,FALSE)),2)","v":10.199999999999999},{"$f":"IF(VLOOKUP(AF537,Group,5,FALSE)=\"YES\",VLOOKUP(ROUND(ROUND(AI537,1)-AI537,2),Round,2,FALSE)+VLOOKUP(AF537,Group,6,FALSE),0)","v":0},{"$f":"IF(VLOOKUP(AF537,Group,7,FALSE)=\"\",0,ROUND(AI537-0.04999,1)-AI537+AL537)","v":0},{"$f":"IF(VLOOKUP(AF537,Group,7,FALSE)=\"\",\"\",VLOOKUP(AF537,Group,7,FALSE))","v":""},null,"X"]
[null,null,null,null,null,null,null,null,null,null,null,null,null,null,null,null,null,null,null,null,null,null,null,null,null,null,null,null,null,null,null,null,null,null,null,null,null,null,null,"X"]
[null,"Decos",null,null,"14\" x 27\"",null,"Field",null,"35001D Calacatta Curl Deco",null,null,null,null,null,null,"13.24 SF/CTN",null,null,{"$f":"IF(Suggested=\"Yes\",AA539,AG539)","v":13.65},"SF",{"$f":"+Instructions!$B$21","v":"G"},null,{"$f":"+Instructions!$C$21","v":0},{"$f":"IF(Instructions!$C$21=\"Group\",#REF!,IF(Instructions!$C$21=\"Carter\",#REF!,ROUNDUP($AA539*(1-W539),2)))","v":13.65},null,"YES",13.65,{"$f":"+W539","v":0},{"$f":"+X539","v":13.65},{"$f":"(AG539-AC539)/AG539","v":0},null,3,{"$f":"SUM(AI539:AK539)+AE539","v":13.65},null,{"$f":"ROUND(AC539/(1-VLOOKUP(AF539,Group,2,FALSE)),2)","v":13.65},{"$f":"IF(VLOOKUP(AF539,Group,5,FALSE)=\"YES\",VLOOKUP(ROUND(ROUND(AI539,1)-AI539,2),Round,2,FALSE)+VLOOKUP(AF539,Group,6,FALSE),0)","v":0},{"$f":"IF(VLOOKUP(AF539,Group,7,FALSE)=\"\",0,ROUND(AI539-0.04999,1)-AI539+AL539)","v":0},{"$f":"IF(VLOOKUP(AF539,Group,7,FALSE)=\"\",\"\",VLOOKUP(AF539,Group,7,FALSE))","v":""},null,"X"]
[null,null,null,null,null,null,null,null,null,null,null,null,null,null,null,null,null,null,null,null,null,null,null,{"$f":"IF(Instructions!$C$21=\"Group\",#REF!,IF(Instructions!$C$21=\"Carter\",#REF!,ROUNDUP($AA540*(1-W540),2)))","v":0},null,null,null,null,null,null,null,null,null,null,null,null,null,null,null,"X"]
[null,"Decos",null,null,"12\" x 12\"",null,"M12HEX",null,"Mosaic Hexagon Mesh-Mounted (Mixed Finishes) ",null,null,null,null,null,null,"5 EA/CTN",null,null,{"$f":"IF(Suggested=\"Yes\",AA541,AG541)","v":71.900000000000006},"EA",{"$f":"+Instructions!$B$21","v":"G"},null,{"$f":"+Instructions!$C$21","v":0},{"$f":"IF(Instructions!$C$21=\"Group\",#REF!,IF(Instructions!$C$21=\"Carter\",#REF!,ROUNDUP($AA541*(1-W541),2)))","v":71.900000000000006},null,"YES",71.900000000000006,{"$f":"+W541","v":0},{"$f":"+X541","v":71.900000000000006},{"$f":"(AG541-AC541)/AG541","v":0},null,3,{"$f":"SUM(AI541:AK541)+AE541","v":71.900000000000006},null,{"$f":"ROUND(AC541/(1-VLOOKUP(AF541,Group,2,FALSE)),2)","v":71.900000000000006},{"$f":"IF(VLOOKUP(AF541,Group,5,FALSE)=\"YES\",VLOOKUP(ROUND(ROUND(AI541,1)-AI541,2),Round,2,FALSE)+VLOOKUP(AF541,Group,6,FALSE),0)","v":0},{"$f":"IF(VLOOKUP(AF541,Group,7,FALSE)=\"\",0,ROUND(AI541-0.04999,1)-AI541+AL541)","v":0},{"$f":"IF(VLOOKUP(AF541,Group,7,FALSE)=\"\",\"\",VLOOKUP(AF541,Group,7,FALSE))","v":""},null,"X"]
[null,null,null,null,null,null,null,null,null,null,null,null,null,null,null,null,null,null,null,null,null,null,null,null,null,null,null,null,null,null,null,null,null,null,null,null,null,null,null,"X"]
[null,"Decos",null,null,"1.7\" x 14\"",null,"CR1.7x14",null,"Chair Rail",null,null,null,null,null,null,null,null,null,{"$f":"IF(Suggested=\"Yes\",AA543,AG543)","v":32.4},"EA",{"$f":"+Instructions!$B$21","v":"G"},null,{"$f":"+Instructions!$C$21","v":0},{"$f":"IF(Instructions!$C$21=\"Group\",#REF!,IF(Instructions!$C$21=\"Carter\",#REF!,ROUNDUP($AA543*(1-W543),2)))","v":32.4},null,"YES",32.4,{"$f":"+W543","v":0},{"$f":"+X543","v":32.4},{"$f":"(AG543-AC543)/AG543","v":0},null,3,{"$f":"SUM(AI543:AK543)+AE543","v":32.4},null,{"$f":"ROUND(AC543/(1-VLOOKUP(AF543,Group,2,FALSE)),2)","v":32.4},{"$f":"IF(VLOOKUP(AF543,Group,5,FALSE)=\"YES\",VLOOKUP(ROUND(ROUND(AI543,1)-AI543,2),Round,2,FALSE)+VLOOKUP(AF543,Group,6,FALSE),0)","v":0},{"$f":"IF(VLOOKUP(AF543,Group,7,FALSE)=\"\",0,ROUND(AI543-0.04999,1)-AI543+AL543)","v":0},{"$f":"IF(VLOOKUP(AF543,Group,7,FALSE)=\"\",\"\",VLOOKUP(AF543,Group,7,FALSE))","v":""},null,"X"]
[null,"Decos",null,null,"1.7\" x 1\"",null,"CRS1.7x1",null,"Chair Rail Stop",null,null,null,null,null," ",null,null,null,{"$f":"IF(Suggested=\"Yes\",AA544,AG544)","v":32.200000000000003},"EA",{"$f":"+Instructions!$B$21","v":"G"},null,{"$f":"+Instructions!$C$21","v":0},{"$f":"IF(Instructions!$C$21=\"Group\",#REF!,IF(Instructions!$C$21=\"Carter\",#REF!,ROUNDUP($AA544*(1-W544),2)))","v":32.200000000000003},null,"YES",32.200000000000003,{"$f":"+W544","v":0},{"$f":"+X544","v":32.200000000000003},{"$f":"(AG544-AC544)/AG544","v":0},null,3,{"$f":"SUM(AI544:AK544)+AE544","v":32.200000000000003},null,{"$f":"ROUND(AC544/(1-VLOOKUP(AF544,Group,2,FALSE)),2)","v":32.200000000000003},{"$f":"IF(VLOOKUP(AF544,Group,5,FALSE)=\"YES\",VLOOKUP(ROUND(ROUND(AI544,1)-AI544,2),Round,2,FALSE)+VLOOKUP(AF544,Group,6,FALSE),0)","v":0},{"$f":"IF(VLOOKUP(AF544,Group,7,FALSE)=\"\",0,ROUND(AI544-0.04999,1)-AI544+AL544)","v":0},{"$f":"IF(VLOOKUP(AF544,Group,7,FALSE)=\"\",\"\",VLOOKUP(AF544,Group,7,FALSE))","v":""},null,"X"]
[null,null,null,null,null,null,null,null,null,null,null,null,null,null,null,null,null,null,null,null,null,null,null,null,null,null,null,null,null,null,null,null,null,null,null,null,null,null,null,"X"]
[null,"Trim",null,null,"3\" x 14\"",null,"S43E9",null,"Bullnose",null,null,null,null,null,null,null,"Stock",null,{"$f":"IF(Suggested=\"Yes\",AA546,AG546)","v":10.85},"EA",{"$f":"+Instructions!$B$21","v":"G"},null,{"$f":"+Instructions!$C$21","v":0},{"$f":"IF(Instructions!$C$21=\"Group\",#REF!,IF(Instructions!$C$21=\"Carter\",#REF!,ROUNDUP($AA546*(1-W546),2)))","v":10.85},null,"YES",10.85,{"$f":"+W546","v":0},{"$f":"+X546","v":10.85},{"$f":"(AG546-AC546)/AG546","v":0},null,2,{"$f":"SUM(AI546:AK546)+AE546","v":10.85},null,{"$f":"ROUND(AC546/(1-VLOOKUP(AF546,Group,2,FALSE)),2)","v":10.85},{"$f":"IF(VLOOKUP(AF546,Group,5,FALSE)=\"YES\",VLOOKUP(ROUND(ROUND(AI546,1)-AI546,2),Round,2,FALSE)+VLOOKUP(AF546,Group,6,FALSE),0)","v":0},{"$f":"IF(VLOOKUP(AF546,Group,7,FALSE)=\"\",0,ROUND(AI546-0.04999,1)-AI546+AL546)","v":0},{"$f":"IF(VLOOKUP(AF546,Group,7,FALSE)=\"\",\"\",VLOOKUP(AF546,Group,7,FALSE))","v":""},null,"X"]
[null,"Trim",null,null,"3\" x 3\"",null,"SN4339",null,"Bullnose Corner",null,null,null,null,null,null,null,null,null,{"$f":"IF(Suggested=\"Yes\",AA547,AG547)","v":15.05},"EA",{"$f":"+Instructions!$B$21","v":"G"},null,{"$f":"+Instructions!$C$21","v":0},{"$f":"IF(Instructions!$C$21=\"Group\",#REF!,IF(Instructions!$C$21=\"Carter\",#REF!,ROUNDUP($AA547*(1-W547),2)))","v":15.05},null,"YES",15.05,{"$f":"+W547","v":0},{"$f":"+X547","v":15.05},{"$f":"(AG547-AC547)/AG547","v":0},null,2,{"$f":"SUM(AI547:AK547)+AE547","v":15.05},null,{"$f":"ROUND(AC547/(1-VLOOKUP(AF547,Group,2,FALSE)),2)","v":15.05},{"$f":"IF(VLOOKUP(AF547,Group,5,FALSE)=\"YES\",VLOOKUP(ROUND(ROUND(AI547,1)-AI547,2),Round,2,FALSE)+VLOOKUP(AF547,Group,6,FALSE),0)","v":0},{"$f":"IF(VLOOKUP(AF547,Group,7,FALSE)=\"\",0,ROUND(AI547-0.04999,1)-AI547+AL547)","v":0},{"$f":"IF(VLOOKUP(AF547,Group,7,FALSE)=\"\",\"\",VLOOKUP(AF547,Group,7,FALSE))","v":""},null,"X"]
[null,null,null,null,null,null,null,null,null,null,null,null,null,null,null,null,null,null,null,null,null,null,null,null,null,null,null,null,null,null,null,null,null,null,null,null,null,null,null,"X"]
[null,null,null,"Notes:","a) These formats will be transitioning to 8mm thickness as inventories of the old thickness are depleted. ",null,null,null,null,null,null,null,null,null,null,null,null,null,null,null,null,null,null,null,null,null,null,null,null,null,null,null,null,null,null," ",null,null,null,"X"]
[null,null,null,null,"Packaging will change for these formats and will be as follows:  5\" x 14\" x 8mm Field will be 9.49 SF/CTN, ",null,null,null,null,null,null,null,null,null,null,null,null,null,null,null,null,null,null,null,null,null,null,null,null,null,null,null,null,null,null," ",null,null,null,"X"]
[null,null,null,null,"and the 14\" x 39\" x 8mm Field wil be 15.07 SF/CTN.  Check with Customer Service to be sure which",null,null,null,null,null,null,null,null,null,null,null,null,null,null,null,null,null,null,null,null,null,null,null,null,null,null,null,null,null,null," ",null,null,null,"X"]
[null,null,null,null,"packaging amount you will be receiving.",null,null,null,null,null,null,null,null,null,null,null,null,null,null,null,null,null,null,null,null,null,null,null,null,null,null,null,null,null,null," ",null,null,null,"X"]
[null,null,null,null,null,null,null,null,null,null,null,null,null,null,null,null,null,null,null,null,null,null,null,null,null,null,null,null,null,null,null,null,null,null,null,null,null,null,null,"X"]
[null,null,"RHYME - Color Body Glazed Porcelain",null,null,null,null,null,null,null,null," ",null,null,null,null,null,"Item # Lookup:","FT285"]
[null,null,null,null,null,null,null,null,null,null,null,null,null,null,null,null,null,null,null,null,null,null,null,null,null,null,null,null,null,null,null,null,null,null,null,null,null,null,null,"X"]
[null,null,null,"Colors:","28503 Ivory Staccato",null,null,"      28522 Almond Note",null,null,null,"   28593 Stone Chamber",null,null,null,null,null,null,null,null,null,null,null,null,null,null,null,null,null,null,null,null,null,null,null," ",null,null,null,"X"]
[null,null,null,null,"28513 Silver Melody",null,null,"      28532 Desert Harmony"]
[]
[null,"Field Tile",null,null,"3.75\" x 12\"",null,"Field",null,"Rectified",null,null,null,null,null,null,"6.12 SF/CTN",null,null,{"$f":"IF(Suggested=\"Yes\",AA559,AG559)","v":16.5},"SF",{"$f":"+Instructions!$B$21","v":"G"},null,{"$f":"+Instructions!$C$21","v":0},{"$f":"IF(Instructions!$C$21=\"Group\",#REF!,IF(Instructions!$C$21=\"Carter\",#REF!,ROUNDUP($AA559*(1-W559),2)))","v":16.5},null,"YES",16.5,{"$f":"+W559","v":0},{"$f":"+X559","v":16.5},{"$f":"(AG559-AC559)/AG559","v":0},null,1,{"$f":"SUM(AI559:AK559)+AE559","v":16.5},null,{"$f":"ROUND(AC559/(1-VLOOKUP(AF559,Group,2,FALSE)),2)","v":16.5},{"$f":"IF(VLOOKUP(AF559,Group,5,FALSE)=\"YES\",VLOOKUP(ROUND(ROUND(AI559,1)-AI559,2),Round,2,FALSE)+VLOOKUP(AF559,Group,6,FALSE),0)","v":0},{"$f":"IF(VLOOKUP(AF559,Group,7,FALSE)=\"\",0,ROUND(AI559-0.04999,1)-AI559+AL559)","v":0},{"$f":"IF(VLOOKUP(AF559,Group,7,FALSE)=\"\",\"\",VLOOKUP(AF559,Group,7,FALSE))","v":""},null,"X"]
[null,"Field Tile",null,null,"12\" x 24\"",null,"Field",null,null,null,null,null,null,null,null,"16.00 SF/CTN","Stock","a",{"$f":"IF(Suggested=\"Yes\",AA560,AG560)","v":5.75},"SF",{"$f":"+Instructions!$B$21","v":"G"},null,{"$f":"+Instructions!$C$21","v":0},{"$f":"IF(Instructions!$C$21=\"Group\",#REF!,IF(Instructions!$C$21=\"Carter\",#REF!,ROUNDUP($AA560*(1-W560),2)))","v":5.75},null,"YES",5.75,{"$f":"+W560","v":0},{"$f":"+X560","v":5.75},{"$f":"(AG560-AC560)/AG560","v":0},null,1,{"$f":"SUM(AI560:AK560)+AE560","v":5.75},null,{"$f":"ROUND(AC560/(1-VLOOKUP(AF560,Group,2,FALSE)),2)","v":5.75},{"$f":"IF(VLOOKUP(AF560,Group,5,FALSE)=\"YES\",VLOOKUP(ROUND(ROUND(AI560,1)-AI560,2),Round,2,FALSE)+VLOOKUP(AF560,Group,6,FALSE),0)","v":0},{"$f":"IF(VLOOKUP(AF560,Group,7,FALSE)=\"\",0,ROUND(AI560-0.04999,1)-AI560+AL560)","v":0},{"$f":"IF(VLOOKUP(AF560,Group,7,FALSE)=\"\",\"\",VLOOKUP(AF560,Group,7,FALSE))","v":""},null,"X"]
[]
[null,"Decos",null,null,"12\" x 12\"",null,"M1x6",null,"Mosaic 1\" x 6\" Mesh-Mounted   ",null,null,null,null,null,null,"5 EA/CTN",null,null,{"$f":"IF(Suggested=\"Yes\",AA562,AG562)","v":25.2},"EA",{"$f":"+Instructions!$B$21","v":"G"},null,{"$f":"+Instructions!$C$21","v":0},{"$f":"IF(Instructions!$C$21=\"Group\",#REF!,IF(Instructions!$C$21=\"Carter\",#REF!,ROUNDUP($AA562*(1-W562),2)))","v":25.2},null,"YES",25.2,{"$f":"+W562","v":0},25.2,{"$f":"(AG562-AC562)/AG562","v":0},null,3,{"$f":"SUM(AI562:AK562)+AE562","v":25.2},null,{"$f":"ROUND(AC562/(1-VLOOKUP(AF562,Group,2,FALSE)),2)","v":25.2},{"$f":"IF(VLOOKUP(AF562,Group,5,FALSE)=\"YES\",VLOOKUP(ROUND(ROUND(AI562,1)-AI562,2),Round,2,FALSE)+VLOOKUP(AF562,Group,6,FALSE),0)","v":0},{"$f":"IF(VLOOKUP(AF562,Group,7,FALSE)=\"\",0,ROUND(AI562-0.04999,1)-AI562+AL562)","v":0},{"$f":"IF(VLOOKUP(AF562,Group,7,FALSE)=\"\",\"\",VLOOKUP(AF562,Group,7,FALSE))","v":""},null,"X"]
[null,"Decos",null,null,"12\" x 12\"",null,"M12ROMAN",null,"Mosaic Roman Pattern - 28500A Soprano Mesh-Mounted",null,null,null,null,null,null,"5 EA/CTN",null,"b",{"$f":"IF(Suggested=\"Yes\",AA563,AG563)","v":54.9},"EA",{"$f":"+Instructions!$B$21","v":"G"},null,{"$f":"+Instructions!$C$21","v":0},{"$f":"IF(Instructions!$C$21=\"Group\",#REF!,IF(Instructions!$C$21=\"Carter\",#REF!,ROUNDUP($AA563*(1-W563),2)))","v":54.9},null,"YES",54.9,0,54.9,{"$f":"(AG563-AC563)/AG563","v":0},null,3,{"$f":"SUM(AI563:AK563)+AE563","v":54.9},null,{"$f":"ROUND(AC563/(1-VLOOKUP(AF563,Group,2,FALSE)),2)","v":54.9},{"$f":"IF(VLOOKUP(AF563,Group,5,FALSE)=\"YES\",VLOOKUP(ROUND(ROUND(AI563,1)-AI563,2),Round,2,FALSE)+VLOOKUP(AF563,Group,6,FALSE),0)","v":0},{"$f":"IF(VLOOKUP(AF563,Group,7,FALSE)=\"\",0,ROUND(AI563-0.04999,1)-AI563+AL563)","v":0},{"$f":"IF(VLOOKUP(AF563,Group,7,FALSE)=\"\",\"\",VLOOKUP(AF563,Group,7,FALSE))","v":""},null,"X"]
[null,"Decos",null,null,"12\" x 12\"",null,"M12ROMAN",null,"Mosaic Roman Pattern - 28500B Alto Mesh-Mounted",null,null,null,null,null,null,"5 EA/CTN",null,"b",{"$f":"IF(Suggested=\"Yes\",AA564,AG564)","v":54.9},"EA",{"$f":"+Instructions!$B$21","v":"G"},null,{"$f":"+Instructions!$C$21","v":0},{"$f":"IF(Instructions!$C$21=\"Group\",#REF!,IF(Instructions!$C$21=\"Carter\",#REF!,ROUNDUP($AA564*(1-W564),2)))","v":54.9},null,"YES",54.9,0,54.9,{"$f":"(AG564-AC564)/AG564","v":0},null,3,{"$f":"SUM(AI564:AK564)+AE564","v":54.9},null,{"$f":"ROUND(AC564/(1-VLOOKUP(AF564,Group,2,FALSE)),2)","v":54.9},{"$f":"IF(VLOOKUP(AF564,Group,5,FALSE)=\"YES\",VLOOKUP(ROUND(ROUND(AI564,1)-AI564,2),Round,2,FALSE)+VLOOKUP(AF564,Group,6,FALSE),0)","v":0},{"$f":"IF(VLOOKUP(AF564,Group,7,FALSE)=\"\",0,ROUND(AI564-0.04999,1)-AI564+AL564)","v":0},{"$f":"IF(VLOOKUP(AF564,Group,7,FALSE)=\"\",\"\",VLOOKUP(AF564,Group,7,FALSE))","v":""},null,"X"]
[null,"Decos",null,null,"12\" x 12\"",null,"M12ROMAN",null,"Mosaic Roman Pattern - 28500C Tenor Mesh-Mounted",null,null,null,null,null,null,"5 EA/CTN",null,"c",{"$f":"IF(Suggested=\"Yes\",AA565,AG565)","v":54.9},"EA",{"$f":"+Instructions!$B$21","v":"G"},null,{"$f":"+Instructions!$C$21","v":0},{"$f":"IF(Instructions!$C$21=\"Group\",#REF!,IF(Instructions!$C$21=\"Carter\",#REF!,ROUNDUP($AA565*(1-W565),2)))","v":54.9},null,"YES",54.9,0,54.9,{"$f":"(AG565-AC565)/AG565","v":0},null,3,{"$f":"SUM(AI565:AK565)+AE565","v":54.9},null,{"$f":"ROUND(AC565/(1-VLOOKUP(AF565,Group,2,FALSE)),2)","v":54.9},{"$f":"IF(VLOOKUP(AF565,Group,5,FALSE)=\"YES\",VLOOKUP(ROUND(ROUND(AI565,1)-AI565,2),Round,2,FALSE)+VLOOKUP(AF565,Group,6,FALSE),0)","v":0},{"$f":"IF(VLOOKUP(AF565,Group,7,FALSE)=\"\",0,ROUND(AI565-0.04999,1)-AI565+AL565)","v":0},{"$f":"IF(VLOOKUP(AF565,Group,7,FALSE)=\"\",\"\",VLOOKUP(AF565,Group,7,FALSE))","v":""},null,"X"]
[]
[null,"Trim",null,null,"3\" x 12\"",null,"P43C9",null,"Bullnose",null,null,null,null,null,null,null,null,null,{"$f":"IF(Suggested=\"Yes\",AA567,AG567)","v":9.65},"EA",{"$f":"+Instructions!$B$21","v":"G"},null,{"$f":"+Instructions!$C$21","v":0},{"$f":"IF(Instructions!$C$21=\"Group\",#REF!,IF(Instructions!$C$21=\"Carter\",#REF!,ROUNDUP($AA567*(1-W567),2)))","v":9.65},null,"YES",9.65,{"$f":"+W567","v":0},{"$f":"+X567","v":9.65},{"$f":"(AG567-AC567)/AG567","v":0},null,2,{"$f":"SUM(AI567:AK567)+AE567","v":9.65},null,{"$f":"ROUND(AC567/(1-VLOOKUP(AF567,Group,2,FALSE)),2)","v":9.65},{"$f":"IF(VLOOKUP(AF567,Group,5,FALSE)=\"YES\",VLOOKUP(ROUND(ROUND(AI567,1)-AI567,2),Round,2,FALSE)+VLOOKUP(AF567,Group,6,FALSE),0)","v":0},{"$f":"IF(VLOOKUP(AF567,Group,7,FALSE)=\"\",0,ROUND(AI567-0.04999,1)-AI567+AL567)","v":0},{"$f":"IF(VLOOKUP(AF567,Group,7,FALSE)=\"\",\"\",VLOOKUP(AF567,Group,7,FALSE))","v":""},null,"X"]
[null,null,null,null,null,null,null,null,null,null,null,null,null,null,null,null,null,null,null,null,null,null,null,null,null,null,null,null,null,null,null,null,null,null,null,null,null,null,null,"X"]
[null," ",null,"Notes:","a) Not stocked in colors 28532 Desert Harmony and 28593 Stone Chamber.",null,null,null,null,null,null,null,null,null,null,null,null,null,null,null,null,null,null,null,null,null,null,null,null,null,null,null,null,null,null," ",null,null,null,"X"]
[null," ",null,null,"b) Coordinates with colors 28503 Ivory Staccato, 28513 Silver Melody & 28522 Almond Note.",null,null,null,null,null,null,null,null,null,null,null,null,null,null,null,null,null,null,null,null,null,null,null,null,null,null,null,null,null,null," ",null,null,null,"X"]
[null," ",null,null,"c) Coordinates with colors 28522 Almond Note, 28532 Desert Harmony & 28593 Stone Chamber.",null,null,null,null,null,null,null,null,null,null,null,null,null,null,null,null,null,null,null,null,null,null,null,null,null,null,null,null,null,null," ",null,null,null,"X"]
[null,null,"SEQUENCEHDP - Color Body Glazed Porcelain",null,null,null,null,null,null,null,null,null,null,null,null,null,null,"Item # Lookup:","FT349"]
[null,null,null,null,null,null,null,null,null,null,null,null,null,null,null,null,null,null,null,null,null,null,null,null,null,null,null,null,null,null,null,null,null,null,null,null,null,null,null,"X"]
[null,null,null,"Colors:","34901 Breeze          34905 Vortex          34915 Current          34938 Drift",null,null,null,null,null,null,null,null,null,null,null,null,null,null,null,null,null,null,null,null,null,null,null,null,null,null,null,null,null,null," ",null,null,null,"X"]
[null,null,null,null,null,null,null,null,null,null,null,null,null,null,null,null,null,null,null,null,null,null,null,null,null,null,null,null,null,null,null,null,null,null,null,null,null,null,null,"X"]
[null,"Field Tile",null,null,"3.75\" x 12\"",null,"Field",null,"Rectified",null,null,null,null,null,null,"6.12 SF/CTN",null,null,{"$f":"IF(Suggested=\"Yes\",AA576,AG576)","v":17.600000000000001},"SF",{"$f":"+Instructions!$B$21","v":"G"},null,{"$f":"+Instructions!$C$21","v":0},{"$f":"IF(Instructions!$C$21=\"Group\",#REF!,IF(Instructions!$C$21=\"Carter\",#REF!,ROUNDUP($AA576*(1-W576),2)))","v":17.600000000000001},null,"YES",17.600000000000001,{"$f":"+W576","v":0},17.600000000000001,{"$f":"(AG576-AC576)/AG576","v":0},null,1,{"$f":"SUM(AI576:AK576)+AE576","v":17.600000000000001},null,{"$f":"ROUND(AC576/(1-VLOOKUP(AF576,Group,2,FALSE)),2)","v":17.600000000000001},{"$f":"IF(VLOOKUP(AF576,Group,5,FALSE)=\"YES\",VLOOKUP(ROUND(ROUND(AI576,1)-AI576,2),Round,2,FALSE)+VLOOKUP(AF576,Group,6,FALSE),0)","v":0},{"$f":"IF(VLOOKUP(AF576,Group,7,FALSE)=\"\",0,ROUND(AI576-0.04999,1)-AI576+AL576)","v":0},{"$f":"IF(VLOOKUP(AF576,Group,7,FALSE)=\"\",\"\",VLOOKUP(AF576,Group,7,FALSE))","v":""},null,"X"]
[null,"Field Tile",null,null,"12\" x 24\"",null,"Field",null,"Rectified",null,null,null,null,null,null,"15.62 SF/CTN",null,null,{"$f":"IF(Suggested=\"Yes\",AA577,AG577)","v":7.65},"SF",{"$f":"+Instructions!$B$21","v":"G"},null,{"$f":"+Instructions!$C$21","v":0},{"$f":"IF(Instructions!$C$21=\"Group\",#REF!,IF(Instructions!$C$21=\"Carter\",#REF!,ROUNDUP($AA577*(1-W577),2)))","v":7.65},null,"YES",7.65,0,7.65,{"$f":"(AG577-AC577)/AG577","v":0},null,1,{"$f":"SUM(AI577:AK577)+AE577","v":7.65},null,{"$f":"ROUND(AC577/(1-VLOOKUP(AF577,Group,2,FALSE)),2)","v":7.65},{"$f":"IF(VLOOKUP(AF577,Group,5,FALSE)=\"YES\",VLOOKUP(ROUND(ROUND(AI577,1)-AI577,2),Round,2,FALSE)+VLOOKUP(AF577,Group,6,FALSE),0)","v":0},{"$f":"IF(VLOOKUP(AF577,Group,7,FALSE)=\"\",0,ROUND(AI577-0.04999,1)-AI577+AL577)","v":0},{"$f":"IF(VLOOKUP(AF577,Group,7,FALSE)=\"\",\"\",VLOOKUP(AF577,Group,7,FALSE))","v":""},null,"X"]
[null,"Field Tile",null,null,"24\" x 48\"",null,"Field",null,"Rectified",null,null,null,null,null,null,"15.39 SF/CTN",null,"a",{"$f":"IF(Suggested=\"Yes\",AA578,AG578)","v":8.5},"SF",{"$f":"+Instructions!$B$21","v":"G"},null,{"$f":"+Instructions!$C$21","v":0},{"$f":"IF(Instructions!$C$21=\"Group\",#REF!,IF(Instructions!$C$21=\"Carter\",#REF!,ROUNDUP($AA578*(1-W578),2)))","v":8.5},null,"YES",8.5,0,8.5,{"$f":"(AG578-AC578)/AG578","v":0},null,1,{"$f":"SUM(AI578:AK578)+AE578","v":8.5},null,{"$f":"ROUND(AC578/(1-VLOOKUP(AF578,Group,2,FALSE)),2)","v":8.5},{"$f":"IF(VLOOKUP(AF578,Group,5,FALSE)=\"YES\",VLOOKUP(ROUND(ROUND(AI578,1)-AI578,2),Round,2,FALSE)+VLOOKUP(AF578,Group,6,FALSE),0)","v":0},{"$f":"IF(VLOOKUP(AF578,Group,7,FALSE)=\"\",0,ROUND(AI578-0.04999,1)-AI578+AL578)","v":0},{"$f":"IF(VLOOKUP(AF578,Group,7,FALSE)=\"\",\"\",VLOOKUP(AF578,Group,7,FALSE))","v":""},null,"X"]
[null,null,null,null,null,null,null,null,null,null,null,null,null,null,null,null,null,null,null,null,null,null,null,null,null,null,null,null,null,null,null,null,null,null,null,null,null,null,null,"X"]
[null,"Decos",null,null,"12\" x 12\"",null,"M1x3HER",null,"Mosaic Herringbone Mesh-Mounted",null,null,null,null,null,null,"5 EA/CTN",null,null,{"$f":"IF(Suggested=\"Yes\",AA580,AG580)","v":32.1},"EA",{"$f":"+Instructions!$B$21","v":"G"},null,{"$f":"+Instructions!$C$21","v":0},{"$f":"IF(Instructions!$C$21=\"Group\",#REF!,IF(Instructions!$C$21=\"Carter\",#REF!,ROUNDUP($AA580*(1-W580),2)))","v":32.1},null,"YES",32.1,{"$f":"+W580","v":0},{"$f":"+X580","v":32.1},{"$f":"(AG580-AC580)/AG580","v":0},null,3,{"$f":"SUM(AI580:AK580)+AE580","v":32.1},null,{"$f":"ROUND(AC580/(1-VLOOKUP(AF580,Group,2,FALSE)),2)","v":32.1},{"$f":"IF(VLOOKUP(AF580,Group,5,FALSE)=\"YES\",VLOOKUP(ROUND(ROUND(AI580,1)-AI580,2),Round,2,FALSE)+VLOOKUP(AF580,Group,6,FALSE),0)","v":0},{"$f":"IF(VLOOKUP(AF580,Group,7,FALSE)=\"\",0,ROUND(AI580-0.04999,1)-AI580+AL580)","v":0},{"$f":"IF(VLOOKUP(AF580,Group,7,FALSE)=\"\",\"\",VLOOKUP(AF580,Group,7,FALSE))","v":""},null,"X"]
[null,"Decos",null,null,"11-3/4\" x 9-3/4\"",null,"M4x4HEX",null,"Mosaic Hexagon Mesh-Mounted (0.79 SF/SHEET)",null,null,null,null,null,null,"5 EA/CTN",null,null,{"$f":"IF(Suggested=\"Yes\",AA581,AG581)","v":39.950000000000003},"EA",{"$f":"+Instructions!$B$21","v":"G"},null,{"$f":"+Instructions!$C$21","v":0},{"$f":"IF(Instructions!$C$21=\"Group\",#REF!,IF(Instructions!$C$21=\"Carter\",#REF!,ROUNDUP($AA581*(1-W581),2)))","v":39.950000000000003},null,"YES",39.950000000000003,{"$f":"+W581","v":0},{"$f":"+X581","v":39.950000000000003},{"$f":"(AG581-AC581)/AG581","v":0},null,3,{"$f":"SUM(AI581:AK581)+AE581","v":39.950000000000003},null,{"$f":"ROUND(AC581/(1-VLOOKUP(AF581,Group,2,FALSE)),2)","v":39.950000000000003},{"$f":"IF(VLOOKUP(AF581,Group,5,FALSE)=\"YES\",VLOOKUP(ROUND(ROUND(AI581,1)-AI581,2),Round,2,FALSE)+VLOOKUP(AF581,Group,6,FALSE),0)","v":0},{"$f":"IF(VLOOKUP(AF581,Group,7,FALSE)=\"\",0,ROUND(AI581-0.04999,1)-AI581+AL581)","v":0},{"$f":"IF(VLOOKUP(AF581,Group,7,FALSE)=\"\",\"\",VLOOKUP(AF581,Group,7,FALSE))","v":""},null,"X"]
[null,null,null,null,null,null,null,null,null,null,null,null,null,null,null,null,null,null,null,null,null,null,null,null,null,null,null,null,null,null,null,null,null,null,null,null,null,null,null,"X"]
[null,"Trim",null,null,"3\" x 24\"",null,"P43N9",null,"Bullnose",null,null,null,null,null,null,null,null,null,{"$f":"IF(Suggested=\"Yes\",AA583,AG583)","v":15},"EA",{"$f":"+Instructions!$B$21","v":"G"},null,{"$f":"+Instructions!$C$21","v":0},{"$f":"IF(Instructions!$C$21=\"Group\",#REF!,IF(Instructions!$C$21=\"Carter\",#REF!,ROUNDUP($AA583*(1-W583),2)))","v":15},null,"YES",15,{"$f":"+W583","v":0},{"$f":"+X583","v":15},{"$f":"(AG583-AC583)/AG583","v":0},null,2,{"$f":"SUM(AI583:AK583)+AE583","v":15},null,{"$f":"ROUND(AC583/(1-VLOOKUP(AF583,Group,2,FALSE)),2)","v":15},{"$f":"IF(VLOOKUP(AF583,Group,5,FALSE)=\"YES\",VLOOKUP(ROUND(ROUND(AI583,1)-AI583,2),Round,2,FALSE)+VLOOKUP(AF583,Group,6,FALSE),0)","v":0},{"$f":"IF(VLOOKUP(AF583,Group,7,FALSE)=\"\",0,ROUND(AI583-0.04999,1)-AI583+AL583)","v":0},{"$f":"IF(VLOOKUP(AF583,Group,7,FALSE)=\"\",\"\",VLOOKUP(AF583,Group,7,FALSE))","v":""},null,"X"]
[null,null,null,null,null,null,null,null,null,null,null,null,null,null,null,null,null,null,null,null,null,null,null,null,null,null,null,null,null,null,null,null,null,null,null,null,null,null,null,"X"]
[null,null,null,"Note:","a) Not available in color 34905 Vortex.",null,null,null,null,null,null,null,null,null,null,null,null,null,null,null,null,null,null,null,null,null,null,null,null,null,null,null,null,null,null," ",null,null,null,"X"]
[null,null,null,null,null,null,null,null,null,null,null,null,null,null,null,null,null,null,null,null,null,null,null,null,null,null,null,null,null,null,null,null,null,null,null,null,null,null,null,"X"]
[null,null,"SERENDIPITYHDP - Color Body Glazed Porcelain",null,null,null,null,null,null,null,null,null,null,null,null,null,null,"Item # Lookup:","FTSDP"]
[null,null,null,null,null,null,null,null,null,null,null,null,null,null,null,null,null,null,null,null,null,null,null,null,null,null,null,null,null,null,null,null,null,null,null,null,null,null,null,"X"]
[null,null,null,"Colors:","SDP10 Fortune White",null,null,null,"SDP30 Infinite Cool Gray",null,null,null,"SDP60 Intuition Tobacco",null,null,null,null,null,null,null,null,null,null,null,null,null,null,null,null,null,null,null,null,null,null," ",null,null,null,"X"]
[null,null,null,null,"SDP20 Spontaneous Beige",null,null,null,"SDP40 Fate Warm Gray",null,null,null,"SDP70 Destiny Black",null,null,null,null,null,null,null,null,null,null,null,null,null,null,null,null,null,null,null,null,null,null," ",null,null,null,"X"]
[null,null,null,null,null,null,null,null,null,null,null,null,null,null,null,null,null,null,null,null,null,null,null,null,null,null,null,null,null,null,null,null,null,null,null,null,null,null,null,"X"]
[null,"Field Tile",null,null,"12\" x 24\"",null,"Field",null,"Rectified",null,null,null,null,null,null,"15.63 SF/CTN",null,null,{"$f":"IF(Suggested=\"Yes\",AA592,AG592)","v":7.45},"SF",{"$f":"+Instructions!$B$21","v":"G"},null,{"$f":"+Instructions!$C$21","v":0},{"$f":"IF(Instructions!$C$21=\"Group\",#REF!,IF(Instructions!$C$21=\"Carter\",#REF!,ROUNDUP($AA592*(1-W592),2)))","v":7.45},null,"YES",7.45,{"$f":"+W592","v":0},7.45,{"$f":"(AG592-AC592)/AG592","v":0},null,1,{"$f":"SUM(AI592:AK592)+AE592","v":7.45},null,{"$f":"ROUND(AC592/(1-VLOOKUP(AF592,Group,2,FALSE)),2)","v":7.45},{"$f":"IF(VLOOKUP(AF592,Group,5,FALSE)=\"YES\",VLOOKUP(ROUND(ROUND(AI592,1)-AI592,2),Round,2,FALSE)+VLOOKUP(AF592,Group,6,FALSE),0)","v":0},{"$f":"IF(VLOOKUP(AF592,Group,7,FALSE)=\"\",0,ROUND(AI592-0.04999,1)-AI592+AL592)","v":0},{"$f":"IF(VLOOKUP(AF592,Group,7,FALSE)=\"\",\"\",VLOOKUP(AF592,Group,7,FALSE))","v":""},null,"X"]
[null,null,null,null,null,null,null,null,null,null,null,null,null,null,null,null,null,null,null,null,null,null,null,null,null,null,null,null,null,null,null,null,null,null,null,null,null,null,null,"X"]
[null,"Decos",null,null,"12\" x 12\"",null,"M122",null,"Mosaic 2\" x 2\" Mesh-Mounted",null,null,null,null,null,null,"5 EA/CTN",null,null,{"$f":"IF(Suggested=\"Yes\",AA594,AG594)","v":31.1},"EA",{"$f":"+Instructions!$B$21","v":"G"},null,{"$f":"+Instructions!$C$21","v":0},{"$f":"IF(Instructions!$C$21=\"Group\",#REF!,IF(Instructions!$C$21=\"Carter\",#REF!,ROUNDUP($AA594*(1-W594),2)))","v":31.1},null,"YES",31.1,{"$f":"+W594","v":0},{"$f":"+X594","v":31.1},{"$f":"(AG594-AC594)/AG594","v":0},null,3,{"$f":"SUM(AI594:AK594)+AE594","v":31.1},null,{"$f":"ROUND(AC594/(1-VLOOKUP(AF594,Group,2,FALSE)),2)","v":31.1},{"$f":"IF(VLOOKUP(AF594,Group,5,FALSE)=\"YES\",VLOOKUP(ROUND(ROUND(AI594,1)-AI594,2),Round,2,FALSE)+VLOOKUP(AF594,Group,6,FALSE),0)","v":0},{"$f":"IF(VLOOKUP(AF594,Group,7,FALSE)=\"\",0,ROUND(AI594-0.04999,1)-AI594+AL594)","v":0},{"$f":"IF(VLOOKUP(AF594,Group,7,FALSE)=\"\",\"\",VLOOKUP(AF594,Group,7,FALSE))","v":""},null,"X"]
[null,null,null,null,null,null,null,null,null,null,null,null,null,null,null,null,null,null,null,null,null,null,null,null,null,null,null,null,null,null,null,null,null,null,null,null,null,null,null,"X"]
[null,"Trim",null,null,"3\" x 24\"",null,"P43N9",null,"Bullnose",null,null,null,null,null,null,null,null,null,{"$f":"IF(Suggested=\"Yes\",AA596,AG596)","v":14.5},"EA",{"$f":"+Instructions!$B$21","v":"G"},null,{"$f":"+Instructions!$C$21","v":0},{"$f":"IF(Instructions!$C$21=\"Group\",#REF!,IF(Instructions!$C$21=\"Carter\",#REF!,ROUNDUP($AA596*(1-W596),2)))","v":14.5},null,"YES",14.5,{"$f":"+W596","v":0},{"$f":"+X596","v":14.5},{"$f":"(AG596-AC596)/AG596","v":0},null,2,{"$f":"SUM(AI596:AK596)+AE596","v":14.5},null,{"$f":"ROUND(AC596/(1-VLOOKUP(AF596,Group,2,FALSE)),2)","v":14.5},{"$f":"IF(VLOOKUP(AF596,Group,5,FALSE)=\"YES\",VLOOKUP(ROUND(ROUND(AI596,1)-AI596,2),Round,2,FALSE)+VLOOKUP(AF596,Group,6,FALSE),0)","v":0},{"$f":"IF(VLOOKUP(AF596,Group,7,FALSE)=\"\",0,ROUND(AI596-0.04999,1)-AI596+AL596)","v":0},{"$f":"IF(VLOOKUP(AF596,Group,7,FALSE)=\"\",\"\",VLOOKUP(AF596,Group,7,FALSE))","v":""},null,"X"]
[null,null,null,null,null,null,null,null,null,null,null,null,null,null,null,null,null,null,null,null,null,null,null,null,null,null,null,null,null,null,null,null,null,null,null,null,null,null,null,"X"]
[null,"Trim",null,null,"6\" x 12\"",null,"P36C9",null,"Cove Base",null,null,null,null,null,null,null,null,null,{"$f":"IF(Suggested=\"Yes\",AA598,AG598)","v":30.4},"EA",{"$f":"+Instructions!$B$21","v":"G"},null,{"$f":"+Instructions!$C$21","v":0},{"$f":"IF(Instructions!$C$21=\"Group\",#REF!,IF(Instructions!$C$21=\"Carter\",#REF!,ROUNDUP($AA598*(1-W598),2)))","v":30.4},null,"YES",30.4,{"$f":"+W598","v":0},{"$f":"+X598","v":30.4},{"$f":"(AG598-AC598)/AG598","v":0},null,2,{"$f":"SUM(AI598:AK598)+AE598","v":30.4},null,{"$f":"ROUND(AC598/(1-VLOOKUP(AF598,Group,2,FALSE)),2)","v":30.4},{"$f":"IF(VLOOKUP(AF598,Group,5,FALSE)=\"YES\",VLOOKUP(ROUND(ROUND(AI598,1)-AI598,2),Round,2,FALSE)+VLOOKUP(AF598,Group,6,FALSE),0)","v":0},{"$f":"IF(VLOOKUP(AF598,Group,7,FALSE)=\"\",0,ROUND(AI598-0.04999,1)-AI598+AL598)","v":0},{"$f":"IF(VLOOKUP(AF598,Group,7,FALSE)=\"\",\"\",VLOOKUP(AF598,Group,7,FALSE))","v":""},null,"X"]
[null,"Trim",null,null,"1\" x 6\"",null,"PB3169",null,"Cove Base Outside Corner",null,null,null,null,null,null,null,null,null,{"$f":"IF(Suggested=\"Yes\",AA599,AG599)","v":27.4},"EA",{"$f":"+Instructions!$B$21","v":"G"},null,{"$f":"+Instructions!$C$21","v":0},{"$f":"IF(Instructions!$C$21=\"Group\",#REF!,IF(Instructions!$C$21=\"Carter\",#REF!,ROUNDUP($AA599*(1-W599),2)))","v":27.4},null,"YES",27.4,{"$f":"+W599","v":0},{"$f":"+X599","v":27.4},{"$f":"(AG599-AC599)/AG599","v":0},null,2,{"$f":"SUM(AI599:AK599)+AE599","v":27.4},null,{"$f":"ROUND(AC599/(1-VLOOKUP(AF599,Group,2,FALSE)),2)","v":27.4},{"$f":"IF(VLOOKUP(AF599,Group,5,FALSE)=\"YES\",VLOOKUP(ROUND(ROUND(AI599,1)-AI599,2),Round,2,FALSE)+VLOOKUP(AF599,Group,6,FALSE),0)","v":0},{"$f":"IF(VLOOKUP(AF599,Group,7,FALSE)=\"\",0,ROUND(AI599-0.04999,1)-AI599+AL599)","v":0},{"$f":"IF(VLOOKUP(AF599,Group,7,FALSE)=\"\",\"\",VLOOKUP(AF599,Group,7,FALSE))","v":""},null,"X"]
[null,null,null,null,null,null,null,null,null,null,null,null,null,null,null,null,null,null,null,null,null,null,null,null,null,null,null,null,null,null,null,null,null,null,null,null,null,null,null,"X"]
[null,null,null,"Colors:","SDP126 Warm Mix          SDP347 Cool Mix",null,null,null,null,null,null,null,null,null,null,null,null,null,null,null,null,null,null,null,null,null,null,null,null,null,null,null,null,null,null," ",null,null,null,"X"]
[null,null,null,null,null,null,null,null,null,null,null,null,null,null,null,null,null,null,null,null,null,null,null,null,null,null,null,null,null,null,null,null,null,null,null,null,null,null,null,"X"]
[null,"Decos",null,null,"12\" x 12\"",null,"M2x4TRI",null,"Mosaic Triangle (waterjet cut) Mesh-Mounted",null,null,null,null,null,null,"5 EA/CTN",null,"a",{"$f":"IF(Suggested=\"Yes\",AA603,AG603)","v":80.5},"EA",{"$f":"+Instructions!$B$21","v":"G"},null,{"$f":"+Instructions!$C$21","v":0},{"$f":"IF(Instructions!$C$21=\"Group\",#REF!,IF(Instructions!$C$21=\"Carter\",#REF!,ROUNDUP($AA603*(1-W603),2)))","v":80.5},null,"YES",80.5,{"$f":"+W603","v":0},{"$f":"+X603","v":80.5},{"$f":"(AG603-AC603)/AG603","v":0},null,3,{"$f":"SUM(AI603:AK603)+AE603","v":80.5},null,{"$f":"ROUND(AC603/(1-VLOOKUP(AF603,Group,2,FALSE)),2)","v":80.5},{"$f":"IF(VLOOKUP(AF603,Group,5,FALSE)=\"YES\",VLOOKUP(ROUND(ROUND(AI603,1)-AI603,2),Round,2,FALSE)+VLOOKUP(AF603,Group,6,FALSE),0)","v":0},{"$f":"IF(VLOOKUP(AF603,Group,7,FALSE)=\"\",0,ROUND(AI603-0.04999,1)-AI603+AL603)","v":0},{"$f":"IF(VLOOKUP(AF603,Group,7,FALSE)=\"\",\"\",VLOOKUP(AF603,Group,7,FALSE))","v":""},null,"X"]
[null,null,null,null,null,null,null,null,null,null,null,null,null,null,null,null,null,null,null,null,null,null,null,null,null,null,null,null,null,null,null,null,null,null,null,null,null,null,null,"X"]
[null,null,null,"Notes:","a) SDP126 Warm Mix consists of Colors SDP10 Fortune White, SDP20 Spontaneous Beige & SDP60 Intuition Tobacco.",null,null,null,null,null,null,null,null,null,null,null,null,null,null,null,null,null,null,null,null,null,null,null,null,null,null,null,null,null,null," ",null,null,null,"X"]
[null,null,null,null,"SDP347 Cool Mix consists of Colors SDP30 Infinite Cool Gray, SDP40 Fate Warm Gray & SDP70 Destiny Black.",null,null,null,null,null,null,null,null,null,null,null,null,null,null,null,null,null,null,null,null,null,null,null,null,null,null,null,null,null,null," ",null,null,null,"X"]
[null,null,null,null,null,null,null,null,null,null,null,null,null,null,null,null,null,null,null,null,null,null,null,null,null,null,null,null,null,null,null,null,null,null,null,null,null,null,null,"X"]
[null,null,"SOHO - Ceramic Wall & Porcelain Mosaics",null,null,null,null,null,null,null,null," ",null,null,null,null,null,"Item # Lookup:","FTSO"]
[null,null,null,null,null,null,null,null,null,null,null,null,null,null,null,null,null,null,null,null,null,null,null,null,null,null,null,null,null,null,null,null,null,null,null,null,null,null,null,"X"]
[null,null,null,"Colors:","Canvas White          Gallery Grey          Vintage Grey",null,null,null,null,null,null,null,null,null,null,null,null,null,null,null,null,null,null,null,null,null,null,null,null,null,null,null,null,null,null," ",null,null,null,"X"]
[]
[null,"Field Tile",null,"Wall:","3\" x 6\"",null,"Field - Beveled",null,"Glossy",null,null,null,null,null,null,"10.66 SF/CTN",null,"a",{"$f":"IF(Suggested=\"Yes\",AA612,AG612)","v":6.5},"SF",{"$f":"+Instructions!$B$21","v":"G"},null,{"$f":"+Instructions!$C$21","v":0},{"$f":"IF(Instructions!$C$21=\"Group\",#REF!,IF(Instructions!$C$21=\"Carter\",#REF!,ROUNDUP($AA612*(1-W612),2)))","v":6.5},null,"",6.5,{"$f":"+W612","v":0},6.5,{"$f":"(AG612-AC612)/AG612","v":0},null,1,{"$f":"SUM(AI612:AK612)+AE612","v":6.5},null,{"$f":"ROUND(AC612/(1-VLOOKUP(AF612,Group,2,FALSE)),2)","v":6.5},{"$f":"IF(VLOOKUP(AF612,Group,5,FALSE)=\"YES\",VLOOKUP(ROUND(ROUND(AI612,1)-AI612,2),Round,2,FALSE)+VLOOKUP(AF612,Group,6,FALSE),0)","v":0},{"$f":"IF(VLOOKUP(AF612,Group,7,FALSE)=\"\",0,ROUND(AI612-0.04999,1)-AI612+AL612)","v":0},{"$f":"IF(VLOOKUP(AF612,Group,7,FALSE)=\"\",\"\",VLOOKUP(AF612,Group,7,FALSE))","v":""},null,"X"]
[null,"Field Tile",null,null,"4\" x 12\"",null,"Field - Beveled",null,"Glossy",null,null,null,null,null,null,"9.69 SF/CTN",null,null,{"$f":"IF(Suggested=\"Yes\",AA613,AG613)","v":7},"SF",{"$f":"+Instructions!$B$21","v":"G"},null,{"$f":"+Instructions!$C$21","v":0},{"$f":"IF(Instructions!$C$21=\"Group\",#REF!,IF(Instructions!$C$21=\"Carter\",#REF!,ROUNDUP($AA613*(1-W613),2)))","v":7},null,"",7,0,7,{"$f":"(AG613-AC613)/AG613","v":0},null,1,{"$f":"SUM(AI613:AK613)+AE613","v":7},null,{"$f":"ROUND(AC613/(1-VLOOKUP(AF613,Group,2,FALSE)),2)","v":7},{"$f":"IF(VLOOKUP(AF613,Group,5,FALSE)=\"YES\",VLOOKUP(ROUND(ROUND(AI613,1)-AI613,2),Round,2,FALSE)+VLOOKUP(AF613,Group,6,FALSE),0)","v":0},{"$f":"IF(VLOOKUP(AF613,Group,7,FALSE)=\"\",0,ROUND(AI613-0.04999,1)-AI613+AL613)","v":0},{"$f":"IF(VLOOKUP(AF613,Group,7,FALSE)=\"\",\"\",VLOOKUP(AF613,Group,7,FALSE))","v":""},null,"X"]
[null,"Field Tile",null,null,"8\" x 24\"",null,"Field",null,"Glossy",null,null,null,null,null,null,"15.50 SF/CTN",null,null,{"$f":"IF(Suggested=\"Yes\",AA614,AG614)","v":6.5},"SF",{"$f":"+Instructions!$B$21","v":"G"},null,{"$f":"+Instructions!$C$21","v":0},{"$f":"IF(Instructions!$C$21=\"Group\",#REF!,IF(Instructions!$C$21=\"Carter\",#REF!,ROUNDUP($AA614*(1-W614),2)))","v":6.5},null,"",6.5,0,6.5,{"$f":"(AG614-AC614)/AG614","v":0},null,1,{"$f":"SUM(AI614:AK614)+AE614","v":6.5},null,{"$f":"ROUND(AC614/(1-VLOOKUP(AF614,Group,2,FALSE)),2)","v":6.5},{"$f":"IF(VLOOKUP(AF614,Group,5,FALSE)=\"YES\",VLOOKUP(ROUND(ROUND(AI614,1)-AI614,2),Round,2,FALSE)+VLOOKUP(AF614,Group,6,FALSE),0)","v":0},{"$f":"IF(VLOOKUP(AF614,Group,7,FALSE)=\"\",0,ROUND(AI614-0.04999,1)-AI614+AL614)","v":0},{"$f":"IF(VLOOKUP(AF614,Group,7,FALSE)=\"\",\"\",VLOOKUP(AF614,Group,7,FALSE))","v":""},null,"X"]
[null,null,null,null,null,null,null,null,null,null,null,null,null,null,null,null,null,null,null,null,null,null,null,null,null,null,null,null,null,null,null,null,null,null,null,null,null,null,null,"X"]
[null,"Trim",null,null,"2\" x 6\"",null,"Bullnose",null,"Glossy",null,null,null,null,null,null,null,null,null,{"$f":"IF(Suggested=\"Yes\",AA616,AG616)","v":2.35},"EA",{"$f":"+Instructions!$B$21","v":"G"},null,{"$f":"+Instructions!$C$21","v":0},{"$f":"IF(Instructions!$C$21=\"Group\",#REF!,IF(Instructions!$C$21=\"Carter\",#REF!,ROUNDUP($AA616*(1-W616),2)))","v":2.35},null,"",2.35,{"$f":"+W616","v":0},{"$f":"+X616","v":2.35},{"$f":"(AG616-AC616)/AG616","v":0},null,2,{"$f":"SUM(AI616:AK616)+AE616","v":2.35},null,{"$f":"ROUND(AC616/(1-VLOOKUP(AF616,Group,2,FALSE)),2)","v":2.35},{"$f":"IF(VLOOKUP(AF616,Group,5,FALSE)=\"YES\",VLOOKUP(ROUND(ROUND(AI616,1)-AI616,2),Round,2,FALSE)+VLOOKUP(AF616,Group,6,FALSE),0)","v":0},{"$f":"IF(VLOOKUP(AF616,Group,7,FALSE)=\"\",0,ROUND(AI616-0.04999,1)-AI616+AL616)","v":0},{"$f":"IF(VLOOKUP(AF616,Group,7,FALSE)=\"\",\"\",VLOOKUP(AF616,Group,7,FALSE))","v":""},null,"X"]
[null,null,null,null,null,null,null,null,null,null,null,null,null,null,null,null,null,null,null,null,null,null,null,null,null,null,null,null,null,null,null,null,null,null,null,null,null,null,null,"X"]
[null,null,null,"Unglazed Porcelain Mosaics:",null,null,null,null,null,null," ",null,null,null,null,null,null,null,null,null,null,null,null,null,null,null,null,null,null,null,null,null,null,null,null,null,null,null,null,"X"]
[null,null,null,null,null,null,null,null,null,null,null,null,null,null,null,null,null,null,null,null,null,null,null,null,null,null,null,null,null,null,null,null,null,null,null,null,null,null,null,"X"]
[null,null,null,"Colors:","Gallery Grey          Halo Grey          Retro Black          Vintage Grey",null,null,null,null,null,null,null,null,null,null,null,null,null,null,null,null,null,null,null,null,null,null,null,null,null,null,null,null,null,null," ",null,null,null,"X"]
[]
[null,"Decos",null,"Floor:","12\" x 12\"",null,"Mosaic",null,"Unglazed",null,"2\" Hexagon Mosaic",null,null,null,null,"9.36 SF/CTN",null,null,{"$f":"IF(Suggested=\"Yes\",AA622,AG622)","v":16.399999999999999},"SF",{"$f":"+Instructions!$B$21","v":"G"},null,{"$f":"+Instructions!$C$21","v":0},{"$f":"IF(Instructions!$C$21=\"Group\",#REF!,IF(Instructions!$C$21=\"Carter\",#REF!,ROUNDUP($AA622*(1-W622),2)))","v":16.399999999999999},null,"",16.399999999999999,{"$f":"+W622","v":0},{"$f":"+X622","v":16.399999999999999},{"$f":"(AG622-AC622)/AG622","v":0},null,3,{"$f":"SUM(AI622:AK622)+AE622","v":16.399999999999999},null,{"$f":"ROUND(AC622/(1-VLOOKUP(AF622,Group,2,FALSE)),2)","v":16.399999999999999},{"$f":"IF(VLOOKUP(AF622,Group,5,FALSE)=\"YES\",VLOOKUP(ROUND(ROUND(AI622,1)-AI622,2),Round,2,FALSE)+VLOOKUP(AF622,Group,6,FALSE),0)","v":0},{"$f":"IF(VLOOKUP(AF622,Group,7,FALSE)=\"\",0,ROUND(AI622-0.04999,1)-AI622+AL622)","v":0},{"$f":"IF(VLOOKUP(AF622,Group,7,FALSE)=\"\",\"\",VLOOKUP(AF622,Group,7,FALSE))","v":""},null,"X"]
[null,"Decos",null,null,"12\" x 12\"",null,"Mosaic",null,"Unglazed",null,"2\" x 2\" Mosaic",null,null,null,null,"9.90 SF/CTN",null,null,{"$f":"IF(Suggested=\"Yes\",AA623,AG623)","v":11.95},"SF",{"$f":"+Instructions!$B$21","v":"G"},null,{"$f":"+Instructions!$C$21","v":0},{"$f":"IF(Instructions!$C$21=\"Group\",#REF!,IF(Instructions!$C$21=\"Carter\",#REF!,ROUNDUP($AA623*(1-W623),2)))","v":11.95},null,"",11.95,{"$f":"+W623","v":0},{"$f":"+X623","v":11.95},{"$f":"(AG623-AC623)/AG623","v":0},null,3,{"$f":"SUM(AI623:AK623)+AE623","v":11.95},null,{"$f":"ROUND(AC623/(1-VLOOKUP(AF623,Group,2,FALSE)),2)","v":11.95},{"$f":"IF(VLOOKUP(AF623,Group,5,FALSE)=\"YES\",VLOOKUP(ROUND(ROUND(AI623,1)-AI623,2),Round,2,FALSE)+VLOOKUP(AF623,Group,6,FALSE),0)","v":0},{"$f":"IF(VLOOKUP(AF623,Group,7,FALSE)=\"\",0,ROUND(AI623-0.04999,1)-AI623+AL623)","v":0},{"$f":"IF(VLOOKUP(AF623,Group,7,FALSE)=\"\",\"\",VLOOKUP(AF623,Group,7,FALSE))","v":""},null,"X"]
[null,null,null,null,null,null,null,null,null,null,null,null,null,null,null,null,null,null,null,null,null,null,null,null,null,null,null,null,null,null,null,null,null,null,null,null,null,null,null,"X"]
[null,null,null,"Glazed Porcelain Mosaics:",null,null,null,null,null,null," ",null,null,null,null,null,null,null,null,null,null,null,null,null,null,null,null,null,null,null,null,null,null,null,null,null,null,null,null,"X"]
[null,null,null,null,null,null,null,null,null,null,null,null,null,null,null,null,null,null,null,null,null,null,null,null,null,null,null,null,null,null,null,null,null,null,null,null,null,null,null,"X"]
[null,null,null,"Colors:","Canvas White",null,"     Gallery Grey",null,"         Retro Black",null,null,null,null,null,null,null,null,null,null,null,null,null,null,null,null,null,null,null,null,null,null,null,null,null,null," ",null,null,null,"X"]
[null,null,null,null,"Cement Chic",null,"     Halo Grey",null,"         Soft Sage",null,null,null,null,null,null,null,null,null,null,null,null,null,null,null,null,null,null,null,null,null,null,null,null,null,null," ",null,null,null,"X"]
[null,null,null,null,"Cloud Blue",null,"     Loft Grey",null,"         Vintage Grey",null,null,null,null,null,null,null,null,null,null,null,null,null,null,null,null,null,null,null,null,null,null,null,null,null,null," ",null,null,null,"X"]
[]
[null,"Decos",null,"Floor:","12\" x 12\"",null,"Mosaic",null,"Matte",null,"1\" Hexagon Mosaic",null,null,null,null,"9.36 SF/CTN",null,"b",{"$f":"IF(Suggested=\"Yes\",AA631,AG631)","v":14.2},"SF",{"$f":"+Instructions!$B$21","v":"G"},null,{"$f":"+Instructions!$C$21","v":0},{"$f":"IF(Instructions!$C$21=\"Group\",#REF!,IF(Instructions!$C$21=\"Carter\",#REF!,ROUNDUP($AA631*(1-W631),2)))","v":14.2},null,"",14.2,{"$f":"+W631","v":0},14.2,{"$f":"(AG631-AC631)/AG631","v":0},null,3,{"$f":"SUM(AI631:AK631)+AE631","v":14.2},null,{"$f":"ROUND(AC631/(1-VLOOKUP(AF631,Group,2,FALSE)),2)","v":14.2},{"$f":"IF(VLOOKUP(AF631,Group,5,FALSE)=\"YES\",VLOOKUP(ROUND(ROUND(AI631,1)-AI631,2),Round,2,FALSE)+VLOOKUP(AF631,Group,6,FALSE),0)","v":0},{"$f":"IF(VLOOKUP(AF631,Group,7,FALSE)=\"\",0,ROUND(AI631-0.04999,1)-AI631+AL631)","v":0},{"$f":"IF(VLOOKUP(AF631,Group,7,FALSE)=\"\",\"\",VLOOKUP(AF631,Group,7,FALSE))","v":""},null,"X"]
[null,"Decos",null,null,"12\" x 12\"",null,"Mosaic",null,"Matte",null,"2\" Hexagon Mosaic",null,null,null,null,"9.36 SF/CTN",null,"b",{"$f":"IF(Suggested=\"Yes\",AA632,AG632)","v":13.6},"SF",{"$f":"+Instructions!$B$21","v":"G"},null,{"$f":"+Instructions!$C$21","v":0},{"$f":"IF(Instructions!$C$21=\"Group\",#REF!,IF(Instructions!$C$21=\"Carter\",#REF!,ROUNDUP($AA632*(1-W632),2)))","v":13.6},null,"",13.6,0,13.6,{"$f":"(AG632-AC632)/AG632","v":0},null,3,{"$f":"SUM(AI632:AK632)+AE632","v":13.6},null,{"$f":"ROUND(AC632/(1-VLOOKUP(AF632,Group,2,FALSE)),2)","v":13.6},{"$f":"IF(VLOOKUP(AF632,Group,5,FALSE)=\"YES\",VLOOKUP(ROUND(ROUND(AI632,1)-AI632,2),Round,2,FALSE)+VLOOKUP(AF632,Group,6,FALSE),0)","v":0},{"$f":"IF(VLOOKUP(AF632,Group,7,FALSE)=\"\",0,ROUND(AI632-0.04999,1)-AI632+AL632)","v":0},{"$f":"IF(VLOOKUP(AF632,Group,7,FALSE)=\"\",\"\",VLOOKUP(AF632,Group,7,FALSE))","v":""},null,"X"]
[null,"Decos",null,null,"12\" x 12\"",null,"Mosaic",null,"Matte",null,"2\" x 2\" Mosaic",null,null,null,null,"9.90 SF/CTN",null,"b",{"$f":"IF(Suggested=\"Yes\",AA633,AG633)","v":9.5},"SF",{"$f":"+Instructions!$B$21","v":"G"},null,{"$f":"+Instructions!$C$21","v":0},{"$f":"IF(Instructions!$C$21=\"Group\",#REF!,IF(Instructions!$C$21=\"Carter\",#REF!,ROUNDUP($AA633*(1-W633),2)))","v":9.5},null,"",9.5,0,9.5,{"$f":"(AG633-AC633)/AG633","v":0},null,3,{"$f":"SUM(AI633:AK633)+AE633","v":9.5},null,{"$f":"ROUND(AC633/(1-VLOOKUP(AF633,Group,2,FALSE)),2)","v":9.5},{"$f":"IF(VLOOKUP(AF633,Group,5,FALSE)=\"YES\",VLOOKUP(ROUND(ROUND(AI633,1)-AI633,2),Round,2,FALSE)+VLOOKUP(AF633,Group,6,FALSE),0)","v":0},{"$f":"IF(VLOOKUP(AF633,Group,7,FALSE)=\"\",0,ROUND(AI633-0.04999,1)-AI633+AL633)","v":0},{"$f":"IF(VLOOKUP(AF633,Group,7,FALSE)=\"\",\"\",VLOOKUP(AF633,Group,7,FALSE))","v":""},null,"X"]
[null,null,null,null,null,null,null,null,null,null,null,null,null,null,null,null,null,null,null,null,null,null,null,null,null,null,null,null,null,null,null,null,null,null,null,null,null,null,null,"X"]
[null,"Decos",null,"Wall:","12\" x 12\"",null,"Mosaic",null,"Glossy"," ","Picket",null,null,null,null,"9.69 SF/CTN",null,"b",{"$f":"IF(Suggested=\"Yes\",AA635,AG635)","v":16},"SF",{"$f":"+Instructions!$B$21","v":"G"},null,{"$f":"+Instructions!$C$21","v":0},{"$f":"IF(Instructions!$C$21=\"Group\",#REF!,IF(Instructions!$C$21=\"Carter\",#REF!,ROUNDUP($AA635*(1-W635),2)))","v":16},null,"",16,{"$f":"+W635","v":0},16,{"$f":"(AG635-AC635)/AG635","v":0},null,3,{"$f":"SUM(AI635:AK635)+AE635","v":16},null,{"$f":"ROUND(AC635/(1-VLOOKUP(AF635,Group,2,FALSE)),2)","v":16},{"$f":"IF(VLOOKUP(AF635,Group,5,FALSE)=\"YES\",VLOOKUP(ROUND(ROUND(AI635,1)-AI635,2),Round,2,FALSE)+VLOOKUP(AF635,Group,6,FALSE),0)","v":0},{"$f":"IF(VLOOKUP(AF635,Group,7,FALSE)=\"\",0,ROUND(AI635-0.04999,1)-AI635+AL635)","v":0},{"$f":"IF(VLOOKUP(AF635,Group,7,FALSE)=\"\",\"\",VLOOKUP(AF635,Group,7,FALSE))","v":""},null,"X"]
[null,"Decos",null,null,"12\" x 12\"",null,"Mosaic",null,"Glossy",null,"Arabesque Beveled",null,null,null,null,"9.69 SF/CTN",null,"c",{"$f":"IF(Suggested=\"Yes\",AA636,AG636)","v":17.7},"SF",{"$f":"+Instructions!$B$21","v":"G"},null,{"$f":"+Instructions!$C$21","v":0},{"$f":"IF(Instructions!$C$21=\"Group\",#REF!,IF(Instructions!$C$21=\"Carter\",#REF!,ROUNDUP($AA636*(1-W636),2)))","v":17.7},null,"",17.7,0,17.7,{"$f":"(AG636-AC636)/AG636","v":0},null,3,{"$f":"SUM(AI636:AK636)+AE636","v":17.7},null,{"$f":"ROUND(AC636/(1-VLOOKUP(AF636,Group,2,FALSE)),2)","v":17.7},{"$f":"IF(VLOOKUP(AF636,Group,5,FALSE)=\"YES\",VLOOKUP(ROUND(ROUND(AI636,1)-AI636,2),Round,2,FALSE)+VLOOKUP(AF636,Group,6,FALSE),0)","v":0},{"$f":"IF(VLOOKUP(AF636,Group,7,FALSE)=\"\",0,ROUND(AI636-0.04999,1)-AI636+AL636)","v":0},{"$f":"IF(VLOOKUP(AF636,Group,7,FALSE)=\"\",\"\",VLOOKUP(AF636,Group,7,FALSE))","v":""},null,"X"]
[null,"Decos",null,null,"12\" x 12\"",null,"Mosaic",null,"Glossy",null,"Scallop",null,null,null,null,"10.01 SF/CTN",null,"c",{"$f":"IF(Suggested=\"Yes\",AA637,AG637)","v":17.600000000000001},"SF",{"$f":"+Instructions!$B$21","v":"G"},null,{"$f":"+Instructions!$C$21","v":0},{"$f":"IF(Instructions!$C$21=\"Group\",#REF!,IF(Instructions!$C$21=\"Carter\",#REF!,ROUNDUP($AA637*(1-W637),2)))","v":17.600000000000001},null,"",17.600000000000001,0,17.600000000000001,{"$f":"(AG637-AC637)/AG637","v":0},null,3,{"$f":"SUM(AI637:AK637)+AE637","v":17.600000000000001},null,{"$f":"ROUND(AC637/(1-VLOOKUP(AF637,Group,2,FALSE)),2)","v":17.600000000000001},{"$f":"IF(VLOOKUP(AF637,Group,5,FALSE)=\"YES\",VLOOKUP(ROUND(ROUND(AI637,1)-AI637,2),Round,2,FALSE)+VLOOKUP(AF637,Group,6,FALSE),0)","v":0},{"$f":"IF(VLOOKUP(AF637,Group,7,FALSE)=\"\",0,ROUND(AI637-0.04999,1)-AI637+AL637)","v":0},{"$f":"IF(VLOOKUP(AF637,Group,7,FALSE)=\"\",\"\",VLOOKUP(AF637,Group,7,FALSE))","v":""},null,"X"]
[null,null,null,null,null,null,null,null,null,null,null,null,null,null,null,null,null,null,null,null,null,null,null,null,null,null,null,null,null,null,null,null,null,null,null,null,null,null,null,"X"]
[null,null,null,"Colors:","Canvas White w/ Cement Chic",null,null,null,"   Canvas White w/ Loft Grey",null,null,null,"      Canvas White w/ Soft Sage",null,null,null,null,null,null,null,null,null,null,null,null,null,null,null,null,null,null,null,null,null,null," ",null,null,null,"X"]
[null,null,null,null,"Canvas White w/ Cloud Blue",null,null,null,"   Canvas White w/ Retro Black",null,null,null,null,null,null,null,null,null,null,null,null,null,null,null,null,null,null,null,null,null,null,null,null,null,null," ",null,null,null,"X"]
[]
[null,"Decos",null,"Floor:","12\" x 12\"",null,"Mosaic",null,"Matte",null,"1\" Hexagon Mixed",null,null,null,null,"9.36 SF/CTN",null,null,{"$f":"IF(Suggested=\"Yes\",AA642,AG642)","v":14.85},"SF",{"$f":"+Instructions!$B$21","v":"G"},null,{"$f":"+Instructions!$C$21","v":0},{"$f":"IF(Instructions!$C$21=\"Group\",#REF!,IF(Instructions!$C$21=\"Carter\",#REF!,ROUNDUP($AA642*(1-W642),2)))","v":14.85},null,"",14.85,{"$f":"+W642","v":0},{"$f":"+X642","v":14.85},{"$f":"(AG642-AC642)/AG642","v":0},null,3,{"$f":"SUM(AI642:AK642)+AE642","v":14.85},null,{"$f":"ROUND(AC642/(1-VLOOKUP(AF642,Group,2,FALSE)),2)","v":14.85},{"$f":"IF(VLOOKUP(AF642,Group,5,FALSE)=\"YES\",VLOOKUP(ROUND(ROUND(AI642,1)-AI642,2),Round,2,FALSE)+VLOOKUP(AF642,Group,6,FALSE),0)","v":0},{"$f":"IF(VLOOKUP(AF642,Group,7,FALSE)=\"\",0,ROUND(AI642-0.04999,1)-AI642+AL642)","v":0},{"$f":"IF(VLOOKUP(AF642,Group,7,FALSE)=\"\",\"\",VLOOKUP(AF642,Group,7,FALSE))","v":""},null,"X"]
[null,"Decos",null,null,"12\" x 12\"",null,"Mosaic",null,"Matte",null,"Basketweave Mixed",null,null,null,null,"9.58 SF/CTN",null,null,{"$f":"IF(Suggested=\"Yes\",AA643,AG643)","v":13.75},"SF",{"$f":"+Instructions!$B$21","v":"G"},null,{"$f":"+Instructions!$C$21","v":0},{"$f":"IF(Instructions!$C$21=\"Group\",#REF!,IF(Instructions!$C$21=\"Carter\",#REF!,ROUNDUP($AA643*(1-W643),2)))","v":13.75},null,"",13.75,{"$f":"+W643","v":0},{"$f":"+X643","v":13.75},{"$f":"(AG643-AC643)/AG643","v":0},null,3,{"$f":"SUM(AI643:AK643)+AE643","v":13.75},null,{"$f":"ROUND(AC643/(1-VLOOKUP(AF643,Group,2,FALSE)),2)","v":13.75},{"$f":"IF(VLOOKUP(AF643,Group,5,FALSE)=\"YES\",VLOOKUP(ROUND(ROUND(AI643,1)-AI643,2),Round,2,FALSE)+VLOOKUP(AF643,Group,6,FALSE),0)","v":0},{"$f":"IF(VLOOKUP(AF643,Group,7,FALSE)=\"\",0,ROUND(AI643-0.04999,1)-AI643+AL643)","v":0},{"$f":"IF(VLOOKUP(AF643,Group,7,FALSE)=\"\",\"\",VLOOKUP(AF643,Group,7,FALSE))","v":""},null,"X"]
[null,null,null,null,null,null,null,null,null,null,null,null,null,null,null,null,null,null,null,null,null,null,null,null,null,null,null,null,null,null,null,null,null,null,null,null,null,null,null,"X"]
[null,null,null,"Glazed Porcelain Blend Mosaics:",null,null,null,null,null,null,null,null,null,null,null,null,null,null,null,null,null,null,null,null,null,null,null,null,null,null,null,null,null,null,null,null,null,null,null,"X"]
[null,null,null,null,null,null,null,null,null,null,null,null,null,null,null,null,null,null,null,null,null,null,null,null,null,null,null,null,null,null,null,null,null,null,null,null,null,null,null,"X"]
[null,null,null,"Colors:","Afternoon          Dawn          Evening          Midnight          Morning",null,null,null,null,null,null,null,null,null,null,null,null,null,null,null,null,null,null,null,null,null,null,null,null,null,null,null,null,null,null," ",null,null,null,"X"]
[]
[null,"Decos",null,"Floor:","12\" x 12\"",null,"Mosaic",null,"Matte",null,"Chain",null,null,null,null,"9.47 SF/CTN",null,null,{"$f":"IF(Suggested=\"Yes\",AA649,AG649)","v":20.85},"SF",{"$f":"+Instructions!$B$21","v":"G"},null,{"$f":"+Instructions!$C$21","v":0},{"$f":"IF(Instructions!$C$21=\"Group\",#REF!,IF(Instructions!$C$21=\"Carter\",#REF!,ROUNDUP($AA649*(1-W649),2)))","v":20.85},null,"",20.85,{"$f":"+W649","v":0},20.85,{"$f":"(AG649-AC649)/AG649","v":0},null,3,{"$f":"SUM(AI649:AK649)+AE649","v":20.85},null,{"$f":"ROUND(AC649/(1-VLOOKUP(AF649,Group,2,FALSE)),2)","v":20.85},{"$f":"IF(VLOOKUP(AF649,Group,5,FALSE)=\"YES\",VLOOKUP(ROUND(ROUND(AI649,1)-AI649,2),Round,2,FALSE)+VLOOKUP(AF649,Group,6,FALSE),0)","v":0},{"$f":"IF(VLOOKUP(AF649,Group,7,FALSE)=\"\",0,ROUND(AI649-0.04999,1)-AI649+AL649)","v":0},{"$f":"IF(VLOOKUP(AF649,Group,7,FALSE)=\"\",\"\",VLOOKUP(AF649,Group,7,FALSE))","v":""},null,"X"]
[null,"Decos",null,null,"12\" x 12\"",null,"Mosaic",null,"Matte",null,"Cubic",null,null,null,null,"7.00 SF/CTN",null,null,{"$f":"IF(Suggested=\"Yes\",AA650,AG650)","v":19.149999999999999},"SF",{"$f":"+Instructions!$B$21","v":"G"},null,{"$f":"+Instructions!$C$21","v":0},{"$f":"IF(Instructions!$C$21=\"Group\",#REF!,IF(Instructions!$C$21=\"Carter\",#REF!,ROUNDUP($AA650*(1-W650),2)))","v":19.149999999999999},null,"",19.149999999999999,0,19.149999999999999,{"$f":"(AG650-AC650)/AG650","v":0},null,3,{"$f":"SUM(AI650:AK650)+AE650","v":19.149999999999999},null,{"$f":"ROUND(AC650/(1-VLOOKUP(AF650,Group,2,FALSE)),2)","v":19.149999999999999},{"$f":"IF(VLOOKUP(AF650,Group,5,FALSE)=\"YES\",VLOOKUP(ROUND(ROUND(AI650,1)-AI650,2),Round,2,FALSE)+VLOOKUP(AF650,Group,6,FALSE),0)","v":0},{"$f":"IF(VLOOKUP(AF650,Group,7,FALSE)=\"\",0,ROUND(AI650-0.04999,1)-AI650+AL650)","v":0},{"$f":"IF(VLOOKUP(AF650,Group,7,FALSE)=\"\",\"\",VLOOKUP(AF650,Group,7,FALSE))","v":""},null,"X"]
[null,"Decos",null,null,"12\" x 12\"",null,"Mosaic",null,"Matte",null,"Diamond",null,null,null,null,"7.10 SF/CTN",null,null,{"$f":"IF(Suggested=\"Yes\",AA651,AG651)","v":17.7},"SF",{"$f":"+Instructions!$B$21","v":"G"},null,{"$f":"+Instructions!$C$21","v":0},{"$f":"IF(Instructions!$C$21=\"Group\",#REF!,IF(Instructions!$C$21=\"Carter\",#REF!,ROUNDUP($AA651*(1-W651),2)))","v":17.7},null,"",17.7,0,17.7,{"$f":"(AG651-AC651)/AG651","v":0},null,3,{"$f":"SUM(AI651:AK651)+AE651","v":17.7},null,{"$f":"ROUND(AC651/(1-VLOOKUP(AF651,Group,2,FALSE)),2)","v":17.7},{"$f":"IF(VLOOKUP(AF651,Group,5,FALSE)=\"YES\",VLOOKUP(ROUND(ROUND(AI651,1)-AI651,2),Round,2,FALSE)+VLOOKUP(AF651,Group,6,FALSE),0)","v":0},{"$f":"IF(VLOOKUP(AF651,Group,7,FALSE)=\"\",0,ROUND(AI651-0.04999,1)-AI651+AL651)","v":0},{"$f":"IF(VLOOKUP(AF651,Group,7,FALSE)=\"\",\"\",VLOOKUP(AF651,Group,7,FALSE))","v":""},null,"X"]
[null,"Decos",null,null,"12\" x 12\"",null,"Mosaic",null,"Matte",null,"Hexagon",null,null,null,null,"8.29 SF/CTN",null,null,{"$f":"IF(Suggested=\"Yes\",AA652,AG652)","v":17.95},"SF",{"$f":"+Instructions!$B$21","v":"G"},null,{"$f":"+Instructions!$C$21","v":0},{"$f":"IF(Instructions!$C$21=\"Group\",#REF!,IF(Instructions!$C$21=\"Carter\",#REF!,ROUNDUP($AA652*(1-W652),2)))","v":17.95},null,"",17.95,0,17.95,{"$f":"(AG652-AC652)/AG652","v":0},null,3,{"$f":"SUM(AI652:AK652)+AE652","v":17.95},null,{"$f":"ROUND(AC652/(1-VLOOKUP(AF652,Group,2,FALSE)),2)","v":17.95},{"$f":"IF(VLOOKUP(AF652,Group,5,FALSE)=\"YES\",VLOOKUP(ROUND(ROUND(AI652,1)-AI652,2),Round,2,FALSE)+VLOOKUP(AF652,Group,6,FALSE),0)","v":0},{"$f":"IF(VLOOKUP(AF652,Group,7,FALSE)=\"\",0,ROUND(AI652-0.04999,1)-AI652+AL652)","v":0},{"$f":"IF(VLOOKUP(AF652,Group,7,FALSE)=\"\",\"\",VLOOKUP(AF652,Group,7,FALSE))","v":""},null,"X"]
[null,"Decos",null,null,"12\" x 12\"",null,"Mosaic",null,"Matte",null,"Plaid",null,null,null,null,"12.81 SF/CTN",null,null,{"$f":"IF(Suggested=\"Yes\",AA653,AG653)","v":20.7},"SF",{"$f":"+Instructions!$B$21","v":"G"},null,{"$f":"+Instructions!$C$21","v":0},{"$f":"IF(Instructions!$C$21=\"Group\",#REF!,IF(Instructions!$C$21=\"Carter\",#REF!,ROUNDUP($AA653*(1-W653),2)))","v":20.7},null,"",20.7,0,20.7,{"$f":"(AG653-AC653)/AG653","v":0},null,3,{"$f":"SUM(AI653:AK653)+AE653","v":20.7},null,{"$f":"ROUND(AC653/(1-VLOOKUP(AF653,Group,2,FALSE)),2)","v":20.7},{"$f":"IF(VLOOKUP(AF653,Group,5,FALSE)=\"YES\",VLOOKUP(ROUND(ROUND(AI653,1)-AI653,2),Round,2,FALSE)+VLOOKUP(AF653,Group,6,FALSE),0)","v":0},{"$f":"IF(VLOOKUP(AF653,Group,7,FALSE)=\"\",0,ROUND(AI653-0.04999,1)-AI653+AL653)","v":0},{"$f":"IF(VLOOKUP(AF653,Group,7,FALSE)=\"\",\"\",VLOOKUP(AF653,Group,7,FALSE))","v":""},null,"X"]
[null,null,null,null,null,null,null,null,null,null,null,null,null,null,null,null,null,null,null,null,null,null,null,null,null,null,null,null,null,null,null,null,null,null,null,null,null,null,null,"X"]
[null,null,null,"Notes:","a) Available in color Canvas White only.",null,null,null,null,null,"c)Not available in colors Cement Chic and Retro Black.",null,null,null,null,null,null,null,null,null,null,null,null,null,null,null,null,null,null,null,null,null,null,null,null," ",null,null,null,"X"]
[null,null,null,null,"b) Not available in colors Cloud Blue and Soft Sage.",null,null,null,null,null,null,null,null,null,null,null,null,null,null,null,null,null,null,null,null,null,null,null,null,null,null,null,null,null,null," ",null,null,null,"X"]
[]
[null,null,"SONGBIRD - Glazed Ceramic Wall",null,null,null,null,null,null,null,null,null," ",null,null,null,null,"Item # Lookup:","FTSBD"]
[null,null,null,null,null,null,null,null,null,null,null,null,null,null,null,null,null,null,null,null,null,null,null,null,null,null,null,null,null,null,null,null,null,null,null,null,null,null,null,"X"]
[null,null,null,"Colors:","SBD10 Whistling White",null,null,"      SBD50 Perched Pink",null,null,null,"SBD90 Gliding Green",null,null,null,null,null,null,null,null,null,null,null,null,null,null,null,null,null,null,null,null,null,null,null," ",null,null,null,"X"]
[null,null,null,null,"SBD20 Quill Grey",null,null,"      SBD60 Plumage Dark Pink",null,null,null,"SBD100 Feathered Dark Green",null,null,null,null,null,null,null,null,null,null,null,null,null,null,null,null,null,null,null,null,null,null,null," ",null,null,null,"X"]
[null,null,null,null,"SBD30 Natural Down",null,null,"      SBD70 Birds Eye Blue",null,null,null,null,null,null,null,null,null,null,null,null,null,null,null,null,null,null,null,null,null,null,null,null,null,null,null," ",null,null,null,"X"]
[null,null,null,null,"SBD40 Nest Beige",null,null,"      SBD80 Nocturnal Navy",null,null,null,null,null,null,null,null,null,null,null,null,null,null,null,null,null,null,null,null,null,null,null,null,null,null,null," ",null,null,null,"X"]
[]
[null,"Field Tile",null,null,"5\" x 5\"",null,"Field",null,null,null,null,null,null,null,null,"5.39 SF/CTN",null,null,{"$f":"IF(Suggested=\"Yes\",AA665,AG665)","v":12.85},"SF",{"$f":"+Instructions!$B$21","v":"G"},null,{"$f":"+Instructions!$C$21","v":0},{"$f":"IF(Instructions!$C$21=\"Group\",#REF!,IF(Instructions!$C$21=\"Carter\",#REF!,ROUNDUP($AA665*(1-W665),2)))","v":12.85},null,"",12.85,{"$f":"+W665","v":0},{"$f":"+X665","v":12.85},{"$f":"(AG665-AC665)/AG665","v":0},null,1,{"$f":"SUM(AI665:AK665)+AE665","v":12.85},null,{"$f":"ROUND(AC665/(1-VLOOKUP(AF665,Group,2,FALSE)),2)","v":12.85},{"$f":"IF(VLOOKUP(AF665,Group,5,FALSE)=\"YES\",VLOOKUP(ROUND(ROUND(AI665,1)-AI665,2),Round,2,FALSE)+VLOOKUP(AF665,Group,6,FALSE),0)","v":0},{"$f":"IF(VLOOKUP(AF665,Group,7,FALSE)=\"\",0,ROUND(AI665-0.04999,1)-AI665+AL665)","v":0},{"$f":"IF(VLOOKUP(AF665,Group,7,FALSE)=\"\",\"\",VLOOKUP(AF665,Group,7,FALSE))","v":""},null,"X"]
[null,"Field Tile",null,null,"3\" x 12\"",null,"Field",null,null,null,null,null,null,null,null,"5.38 SF/CTN","Stock","a",{"$f":"IF(Suggested=\"Yes\",AA666,AG666)","v":11.6},"SF",{"$f":"+Instructions!$B$21","v":"G"},null,{"$f":"+Instructions!$C$21","v":0},{"$f":"IF(Instructions!$C$21=\"Group\",#REF!,IF(Instructions!$C$21=\"Carter\",#REF!,ROUNDUP($AA666*(1-W666),2)))","v":11.6},null,"",11.6,{"$f":"+W666","v":0},{"$f":"+X666","v":11.6},{"$f":"(AG666-AC666)/AG666","v":0},null,1,{"$f":"SUM(AI666:AK666)+AE666","v":11.6},null,{"$f":"ROUND(AC666/(1-VLOOKUP(AF666,Group,2,FALSE)),2)","v":11.6},{"$f":"IF(VLOOKUP(AF666,Group,5,FALSE)=\"YES\",VLOOKUP(ROUND(ROUND(AI666,1)-AI666,2),Round,2,FALSE)+VLOOKUP(AF666,Group,6,FALSE),0)","v":0},{"$f":"IF(VLOOKUP(AF666,Group,7,FALSE)=\"\",0,ROUND(AI666-0.04999,1)-AI666+AL666)","v":0},{"$f":"IF(VLOOKUP(AF666,Group,7,FALSE)=\"\",\"\",VLOOKUP(AF666,Group,7,FALSE))","v":""},null,"X"]
[null,null,null,null,null,null,null,null,null,null,null,null,null,null,null,null,null,null,null,null,null,null,null,null,null,null,null,null,null,null,null,null,null,null,null,null,null,null,null,"X"]
[null,null,null,"Note:","a) Stocked in colors SBD10 Whistling White, SBD20 Quill Grey, SBD30 Natural Down and SBD40 Nest Beige only.",null,null,null,null,null,null,null,null,null,null,null,null,null,null,null,null,null,null,null,null,null,null,null,null,null,null,null,null,null,null," ",null,null,null,"X"]
[null,null,null,null,null,null,null,null,null,null,null,null,null,null,null,null,null,null,null,null,null,null,null,null,null,null,null,null,null,null,null,null,null,null,null," ",null,null,null,"X"]
[null,null,null,null,null,null,null,null,null,null,null,null,null,null,null,null,null,null,null,null,null,null,null,null,null,null,null,null,null,null,null,null,null,null,null,null,null,null,null,"X"]
[null,null,"SPANHDP - 2cm Color Body Porcelain Pavers",null,null,null,null,null,null,null,null,null,null,null,null,null,null,"Item # Lookup:","FTSPN",null,null,null,null,null,null,null,null,null,null,null,null,null,null,null,null," ",null,null,null,"X"]
[null,null,null,null,null,null,null,null,null,null,null,null,null,null,null,null,null,null,null,null,null,null,null,null,null,null,null,null,null,null,null,null,null,null,null,null,null,null,null,"X"]
[null,null,null,"Colors:","SPN01U Snow          SPN13U Silver",null,null,null,null,null,null,null,null,null,null,null,null,null,null,null,null,null,null,null,null,null,null,null,null,null,null,null,null,null,null," ",null,null,null,"X"]
[null,null,null,null,null,null,null,null,null,null,null,null,null,null,null,null,null,null,null,null,null,null,null,null,null,null,null,null,null,null,null,null,null,null,null,null,null,null,null,"X"]
[null,null,null,"Stone-Look:",null,null,null,null,null,null,null,null,null,null,null,null,null,null,null,null,null,null,null,null,null,null,null,null,null,null,null,null,null,null,null,null,null,null,null,"X"]
[null,null,null,null,null,null,null,null,null,null,null,null,null,null,null,null,null,null,null,null,null,null,null,null,null,null,null,null,null,null,null,null,null,null,null,null,null,null,null,"X"]
[null,"Field Tile",null,null,"24\" x 24\" x 2cm",null,"Field",null,null,null,null,null,null,null,null,"8.03 SF/CTN",null,"a",{"$f":"IF(Suggested=\"Yes\",AA677,AG677)","v":10.85},"SF",{"$f":"+Instructions!$B$21","v":"G"},null,{"$f":"+Instructions!$C$21","v":0},{"$f":"IF(Instructions!$C$21=\"Group\",#REF!,IF(Instructions!$C$21=\"Carter\",#REF!,ROUNDUP($AA677*(1-W677),2)))","v":10.85},null,"YES",10.85,{"$f":"+W677","v":0},{"$f":"+X677","v":10.85},{"$f":"(AG677-AC677)/AG677","v":0},null,1,{"$f":"SUM(AI677:AK677)+AE677","v":10.85},null,{"$f":"ROUND(AC677/(1-VLOOKUP(AF677,Group,2,FALSE)),2)","v":10.85},{"$f":"IF(VLOOKUP(AF677,Group,5,FALSE)=\"YES\",VLOOKUP(ROUND(ROUND(AI677,1)-AI677,2),Round,2,FALSE)+VLOOKUP(AF677,Group,6,FALSE),0)","v":0},{"$f":"IF(VLOOKUP(AF677,Group,7,FALSE)=\"\",0,ROUND(AI677-0.04999,1)-AI677+AL677)","v":0},{"$f":"IF(VLOOKUP(AF677,Group,7,FALSE)=\"\",\"\",VLOOKUP(AF677,Group,7,FALSE))","v":""},null,"X"]
[null,null,null,null,null,null,null,null,null,null,null,null,null,null,null,null,null,null,null,null,null,null,null,null,null,null,null,null,null,null,null,null,null,null,null,null,null,null,null,"X"]
[null,"Trim",null,null,"12\" x 24\" x 2cm",null,"USTEPB",null,"Step Tread w/Bullnose Edge",null,null,null,null,null,null,null,null,null,{"$f":"IF(Suggested=\"Yes\",AA679,AG679)","v":149},"EA",{"$f":"+Instructions!$B$21","v":"G"},null,{"$f":"+Instructions!$C$21","v":0},{"$f":"IF(Instructions!$C$21=\"Group\",#REF!,IF(Instructions!$C$21=\"Carter\",#REF!,ROUNDUP($AA679*(1-W679),2)))","v":149},null,"YES",149,{"$f":"+W679","v":0},149,{"$f":"(AG679-AC679)/AG679","v":0},null,2,{"$f":"SUM(AI679:AK679)+AE679","v":149},null,{"$f":"ROUND(AC679/(1-VLOOKUP(AF679,Group,2,FALSE)),2)","v":149},{"$f":"IF(VLOOKUP(AF679,Group,5,FALSE)=\"YES\",VLOOKUP(ROUND(ROUND(AI679,1)-AI679,2),Round,2,FALSE)+VLOOKUP(AF679,Group,6,FALSE),0)","v":0},{"$f":"IF(VLOOKUP(AF679,Group,7,FALSE)=\"\",0,ROUND(AI679-0.04999,1)-AI679+AL679)","v":0},{"$f":"IF(VLOOKUP(AF679,Group,7,FALSE)=\"\",\"\",VLOOKUP(AF679,Group,7,FALSE))","v":""},null,"X"]
[null,"Trim",null,null,"12\" x 24\" x 2cm",null,"USTEPA",null,"Step Tread w/Square Edge",null,null,null,null,null,null,null,null,null,{"$f":"IF(Suggested=\"Yes\",AA680,AG680)","v":149},"EA",{"$f":"+Instructions!$B$21","v":"G"},null,{"$f":"+Instructions!$C$21","v":0},{"$f":"IF(Instructions!$C$21=\"Group\",#REF!,IF(Instructions!$C$21=\"Carter\",#REF!,ROUNDUP($AA680*(1-W680),2)))","v":149},null,"YES",149,0,149,{"$f":"(AG680-AC680)/AG680","v":0},null,2,{"$f":"SUM(AI680:AK680)+AE680","v":149},null,{"$f":"ROUND(AC680/(1-VLOOKUP(AF680,Group,2,FALSE)),2)","v":149},{"$f":"IF(VLOOKUP(AF680,Group,5,FALSE)=\"YES\",VLOOKUP(ROUND(ROUND(AI680,1)-AI680,2),Round,2,FALSE)+VLOOKUP(AF680,Group,6,FALSE),0)","v":0},{"$f":"IF(VLOOKUP(AF680,Group,7,FALSE)=\"\",0,ROUND(AI680-0.04999,1)-AI680+AL680)","v":0},{"$f":"IF(VLOOKUP(AF680,Group,7,FALSE)=\"\",\"\",VLOOKUP(AF680,Group,7,FALSE))","v":""},null,"X"]
[null,"Trim",null,null,"12\" x 24\" x 2cm",null,"USTEPD",null,"Step Tread w/Square Edge, Grooves & Drip Flap",null,null,null,null,null,null,null,null,null,{"$f":"IF(Suggested=\"Yes\",AA681,AG681)","v":246.15},"EA",{"$f":"+Instructions!$B$21","v":"G"},null,{"$f":"+Instructions!$C$21","v":0},{"$f":"IF(Instructions!$C$21=\"Group\",#REF!,IF(Instructions!$C$21=\"Carter\",#REF!,ROUNDUP($AA681*(1-W681),2)))","v":246.15},null,"YES",246.15,0,246.15,{"$f":"(AG681-AC681)/AG681","v":0},null,2,{"$f":"SUM(AI681:AK681)+AE681","v":246.15},null,{"$f":"ROUND(AC681/(1-VLOOKUP(AF681,Group,2,FALSE)),2)","v":246.15},{"$f":"IF(VLOOKUP(AF681,Group,5,FALSE)=\"YES\",VLOOKUP(ROUND(ROUND(AI681,1)-AI681,2),Round,2,FALSE)+VLOOKUP(AF681,Group,6,FALSE),0)","v":0},{"$f":"IF(VLOOKUP(AF681,Group,7,FALSE)=\"\",0,ROUND(AI681-0.04999,1)-AI681+AL681)","v":0},{"$f":"IF(VLOOKUP(AF681,Group,7,FALSE)=\"\",\"\",VLOOKUP(AF681,Group,7,FALSE))","v":""},null,"X"]
[null,null,null,null,null,null,null,null,null,null,null,null,null,null,null,null,null,null,null,null,null,null,null,null,null,null,null,null,null,null,null,null,null,null,null,null,null,null,null,"X"]
[null,null,null,"Notes:","a) This item will be transitioning from a non-rectified pressed format to a rectified format as inventories of the",null,null,null,null,null,null,null,null,null,null,null,null,null,null,null,null,null,null,null,null,null,null,null,null,null,null,null,null,null,null," ",null,null,null,"X"]
[null,null,null,null,"old pressed format are depleted.  Packaging for the new rectified format will be 8.00 SF/CTN.  Check with",null,null,null,null,null,null,null,null,null,null,null,null,null,null,null,null,null,null,null,null,null,null,null,null,null,null,null,null,null,null," ",null,null,null,"X"]
[null,null,null,null,"Customer Service to be sure which packaging amount you will be receiving.",null,null,null,null,null,null,null,null,null,null,null,null,null,null,null,null,null,null,null,null,null,null,null,null,null,null,null,null,null,null," ",null,null,null,"X"]
[null,null,null,null,null,null,null,null,null,null,null,null,null,null,null,null,null,null,null,null,null,null,null,null,null,null,null,null,null,null,null,null,null,null,null,null,null,null,null,"X"]
[null,null,"STORIED - Glazed Ceramic Wall Tile",null,null,null,null,null,null," ",null,null,null,null,null,null,null,"Item # Lookup:","FTST"]
[null,null,null,null,null,null,null,null,null,null,null,null,null,null,null,null,null,null,null,null,null,null,null,null,null,null,null,null,null,null,null,null,null,null,null,null,null,null,null,"X"]
[null,null,null,"Colors:","STE10G Cotton White",null,null,"        STE40G Natural Grey",null,null,null," STE70G Saffron Yellow",null,null,null,null,null,null,null,null,null,null,null,null,null,null,null,null,null,null,null,null,null,null,null," ",null,null,null,"X"]
[null,null,null,null,"STE20G Sheep's Wool",null,null,"        STE50G Indigo Blue",null,null,null," STE80G Cinnamon",null,null,null,null,null,null,null,null,null,null,null,null,null,null,null,null,null,null,null,null,null,null,null," ",null,null,null,"X"]
[null,null,null,null,"STE30G Chicory Greige",null,null,"        STE60G Nettle Green",null,null,null," STE90G Black Cardamom",null,null,null,null,null,null,null,null,null,null,null,null,null,null,null,null,null,null,null,null,null,null,null," ",null,null,null,"X"]
[null,null,null,null,null,null,null,null,null,null,null,null,null,null,null,null,null,null,null,null,null,null,null,null,null,null,null,null,null,null,null,null,null,null,null,null,null,null,null,"X"]
[null,"Field Tile",null,null,"2-1/2\" x 10\"",null,"Field",null,"Glossy",null,null,null,null,null,null,"5.38 SF/CTN","Stock",null,{"$f":"IF(Suggested=\"Yes\",AA693,AG693)","v":9.9499999999999993},"SF",{"$f":"+Instructions!$B$21","v":"G"},null,{"$f":"+Instructions!$C$21","v":0},{"$f":"IF(Instructions!$C$21=\"Group\",#REF!,IF(Instructions!$C$21=\"Carter\",#REF!,ROUNDUP($AA693*(1-W693),2)))","v":9.9499999999999993},null,"",9.9499999999999993,{"$f":"+W693","v":0},{"$f":"+X693","v":9.9499999999999993},{"$f":"(AG693-AC693)/AG693","v":0},null,1,{"$f":"SUM(AI693:AK693)+AE693","v":9.9499999999999993},null,{"$f":"ROUND(AC693/(1-VLOOKUP(AF693,Group,2,FALSE)),2)","v":9.9499999999999993},{"$f":"IF(VLOOKUP(AF693,Group,5,FALSE)=\"YES\",VLOOKUP(ROUND(ROUND(AI693,1)-AI693,2),Round,2,FALSE)+VLOOKUP(AF693,Group,6,FALSE),0)","v":0},{"$f":"IF(VLOOKUP(AF693,Group,7,FALSE)=\"\",0,ROUND(AI693-0.04999,1)-AI693+AL693)","v":0},{"$f":"IF(VLOOKUP(AF693,Group,7,FALSE)=\"\",\"\",VLOOKUP(AF693,Group,7,FALSE))","v":""},null,"X"]
[null,null,null,null,null,null,null,null,null,null,null,null,null,null,null,null,null,null,null,null,null,null,null,null,null,null,null,null,null,null,null,null,null,null,null,null,null,null,null,"X"]
[null,null,"TEMPO - Glazed Porcelain Floor & Ceramic Wall (Rectified)",null,null,null,null,null,null,null,null,null,null,null,null,null,null,"Item # Lookup:","FTTMP",null,null,null,null,null,null,null,null,null,null,null,null,null,null,null,null," ",null,null,null,"X"]
[null,null,null,null,null,null,null,null,null,null,null,null,null,null,null,null,null,null,null,null,null,null,null,null,null,null,null,null,null,null,null,null,null,null,null,null,null,null,null,"X"]
[null,null,null,"Colors:","TMP10 Cotton White",null,null,"   TMP30 Ash Cool Gray",null,null,null,null,null,null,null,null,null,null,null,null,null,null,null,null,null,null,null,null,null,null,null,null,null,null,null," ",null,null,null,"X"]
[null,null,null,null,"TMP20 Nature Beige",null,null,"   TMP40 Dark Gray",null,null,null,null,null,null,null,null,null,null,null,null,null,null,null,null,null,null,null,null,null,null,null,null,null,null,null," ",null,null,null,"X"]
[null,null,null,null,null,null,null,null,null,null,null,null,null,null,null,null,null,null,null,null,null,null,null,null,null,null,null,null,null,null,null,null,null,null,null,null,null,null,null,"X"]
[null,"Field Tile",null,"Floor:","12\" x 24\"",null,"Field",null,"Matte",null,null,null,null,null,null,"11.63 SF/CTN","Stock",null,{"$f":"IF(Suggested=\"Yes\",AA700,AG700)","v":7.95},"SF",{"$f":"+Instructions!$B$21","v":"G"},null,{"$f":"+Instructions!$C$21","v":0},{"$f":"IF(Instructions!$C$21=\"Group\",#REF!,IF(Instructions!$C$21=\"Carter\",#REF!,ROUNDUP($AA700*(1-W700),2)))","v":7.95},null,"",7.95,{"$f":"+W700","v":0},7.95,{"$f":"(AG700-AC700)/AG700","v":0},null,1,{"$f":"SUM(AI700:AK700)+AE700","v":7.95},null,{"$f":"ROUND(AC700/(1-VLOOKUP(AF700,Group,2,FALSE)),2)","v":7.95},{"$f":"IF(VLOOKUP(AF700,Group,5,FALSE)=\"YES\",VLOOKUP(ROUND(ROUND(AI700,1)-AI700,2),Round,2,FALSE)+VLOOKUP(AF700,Group,6,FALSE),0)","v":0},{"$f":"IF(VLOOKUP(AF700,Group,7,FALSE)=\"\",0,ROUND(AI700-0.04999,1)-AI700+AL700)","v":0},{"$f":"IF(VLOOKUP(AF700,Group,7,FALSE)=\"\",\"\",VLOOKUP(AF700,Group,7,FALSE))","v":""},null,"X"]
[null,"Field Tile",null,null,"24\" x 24\"",null,"Field",null,"Matte",null,null,null,null,null,null,"15.50 SF/CTN",null,null,{"$f":"IF(Suggested=\"Yes\",AA701,AG701)","v":8.25},"SF",{"$f":"+Instructions!$B$21","v":"G"},null,{"$f":"+Instructions!$C$21","v":0},{"$f":"IF(Instructions!$C$21=\"Group\",#REF!,IF(Instructions!$C$21=\"Carter\",#REF!,ROUNDUP($AA701*(1-W701),2)))","v":8.25},null,"",8.25,0,8.25,{"$f":"(AG701-AC701)/AG701","v":0},null,1,{"$f":"SUM(AI701:AK701)+AE701","v":8.25},null,{"$f":"ROUND(AC701/(1-VLOOKUP(AF701,Group,2,FALSE)),2)","v":8.25},{"$f":"IF(VLOOKUP(AF701,Group,5,FALSE)=\"YES\",VLOOKUP(ROUND(ROUND(AI701,1)-AI701,2),Round,2,FALSE)+VLOOKUP(AF701,Group,6,FALSE),0)","v":0},{"$f":"IF(VLOOKUP(AF701,Group,7,FALSE)=\"\",0,ROUND(AI701-0.04999,1)-AI701+AL701)","v":0},{"$f":"IF(VLOOKUP(AF701,Group,7,FALSE)=\"\",\"\",VLOOKUP(AF701,Group,7,FALSE))","v":""},null,"X"]
[null,"Field Tile",null,null,"24\" x 48\"",null,"Field",null,"Matte",null,null,null,null,null,null,"15.50 SF/CTN",null,null,{"$f":"IF(Suggested=\"Yes\",AA702,AG702)","v":9.3000000000000007},"SF",{"$f":"+Instructions!$B$21","v":"G"},null,{"$f":"+Instructions!$C$21","v":0},{"$f":"IF(Instructions!$C$21=\"Group\",#REF!,IF(Instructions!$C$21=\"Carter\",#REF!,ROUNDUP($AA702*(1-W702),2)))","v":9.3000000000000007},null,"",9.3000000000000007,0,9.3000000000000007,{"$f":"(AG702-AC702)/AG702","v":0},null,1,{"$f":"SUM(AI702:AK702)+AE702","v":9.3000000000000007},null,{"$f":"ROUND(AC702/(1-VLOOKUP(AF702,Group,2,FALSE)),2)","v":9.3000000000000007},{"$f":"IF(VLOOKUP(AF702,Group,5,FALSE)=\"YES\",VLOOKUP(ROUND(ROUND(AI702,1)-AI702,2),Round,2,FALSE)+VLOOKUP(AF702,Group,6,FALSE),0)","v":0},{"$f":"IF(VLOOKUP(AF702,Group,7,FALSE)=\"\",0,ROUND(AI702-0.04999,1)-AI702+AL702)","v":0},{"$f":"IF(VLOOKUP(AF702,Group,7,FALSE)=\"\",\"\",VLOOKUP(AF702,Group,7,FALSE))","v":""},null,"X"]
[null,null,null,null,null,null,null,null,null,null,null,null,null,null,null,null,null,null,null,null,null,null,null,null,null,null,null,null,null,null,null,null,null,null,null,null,null,null,null,"X"]
[null,"Decos",null,null,"12\" x 12\"",null,"M122",null,"Matte",null,"Mosaic 2\" x 2\" Mesh-Mounted ",null,null,null,null,"5 EA/CTN",null,null,{"$f":"IF(Suggested=\"Yes\",AA704,AG704)","v":26.7},"EA",{"$f":"+Instructions!$B$21","v":"G"},null,{"$f":"+Instructions!$C$21","v":0},{"$f":"IF(Instructions!$C$21=\"Group\",#REF!,IF(Instructions!$C$21=\"Carter\",#REF!,ROUNDUP($AA704*(1-W704),2)))","v":26.7},null,"",26.7,{"$f":"+W704","v":0},{"$f":"+X704","v":26.7},{"$f":"(AG704-AC704)/AG704","v":0},null,3,{"$f":"SUM(AI704:AK704)+AE704","v":26.7},null,{"$f":"ROUND(AC704/(1-VLOOKUP(AF704,Group,2,FALSE)),2)","v":26.7},{"$f":"IF(VLOOKUP(AF704,Group,5,FALSE)=\"YES\",VLOOKUP(ROUND(ROUND(AI704,1)-AI704,2),Round,2,FALSE)+VLOOKUP(AF704,Group,6,FALSE),0)","v":0},{"$f":"IF(VLOOKUP(AF704,Group,7,FALSE)=\"\",0,ROUND(AI704-0.04999,1)-AI704+AL704)","v":0},{"$f":"IF(VLOOKUP(AF704,Group,7,FALSE)=\"\",\"\",VLOOKUP(AF704,Group,7,FALSE))","v":""},null,"X"]
[null,null,null,null,null,null,null,null,null,null,null,null,null,null,null,null,null,null,null,null,null,null,null,null,null,null,null,null,null,null,null,null,null,null,null,null,null,null,null,"X"]
[null,"Trim",null,null,"3\" x 24\"",null,"P43N9",null,"Matte",null,"Bullnose",null,null,null,null,null,null,null,{"$f":"IF(Suggested=\"Yes\",AA706,AG706)","v":13.75},"EA",{"$f":"+Instructions!$B$21","v":"G"},null,{"$f":"+Instructions!$C$21","v":0},{"$f":"IF(Instructions!$C$21=\"Group\",#REF!,IF(Instructions!$C$21=\"Carter\",#REF!,ROUNDUP($AA706*(1-W706),2)))","v":13.75},null,"",13.75,{"$f":"+W706","v":0},{"$f":"+X706","v":13.75},{"$f":"(AG706-AC706)/AG706","v":0},null,2,{"$f":"SUM(AI706:AK706)+AE706","v":13.75},null,{"$f":"ROUND(AC706/(1-VLOOKUP(AF706,Group,2,FALSE)),2)","v":13.75},{"$f":"IF(VLOOKUP(AF706,Group,5,FALSE)=\"YES\",VLOOKUP(ROUND(ROUND(AI706,1)-AI706,2),Round,2,FALSE)+VLOOKUP(AF706,Group,6,FALSE),0)","v":0},{"$f":"IF(VLOOKUP(AF706,Group,7,FALSE)=\"\",0,ROUND(AI706-0.04999,1)-AI706+AL706)","v":0},{"$f":"IF(VLOOKUP(AF706,Group,7,FALSE)=\"\",\"\",VLOOKUP(AF706,Group,7,FALSE))","v":""},null,"X"]
[null,null,null,null,null,null,null,null,null,null,null,null,null,null,null,null,null,null,null,null,null,null,null,null,null,null,null,null,null,null,null,null,null,null,null,null,null,null,null,"X"]
[null,null,null,"Colors:","TMP10P Cotton White",null,null,"     TMP30P Ash Cool Gray",null,null,null,null,null,null,null,null,null,null,null,null,null,null,null,null,null,null,null,null,null,null,null,null,null,null,null," ",null,null,null,"X"]
[null,null,null,null,"TMP20P Nature Beige",null,null,"     TMP40P Dark Gray",null,null,null,null,null,null,null,null,null,null,null,null,null,null,null,null,null,null,null,null,null,null,null,null,null,null,null," ",null,null,null,"X"]
[null,null,null,null,null,null,null,null,null,null,null,null,null,null,null,null,null,null,null,null,null,null,null,null,null,null,null,null,null,null,null,null,null,null,null,null,null,null,null,"X"]
[null,"Field Tile",null,null,"12\" x 24\"",null,"Field",null,"Polished",null,null,null,null,null,null,"11.63 SF/CTN",null,null,{"$f":"IF(Suggested=\"Yes\",AA711,AG711)","v":9.9499999999999993},"SF",{"$f":"+Instructions!$B$21","v":"G"},null,{"$f":"+Instructions!$C$21","v":0},{"$f":"IF(Instructions!$C$21=\"Group\",#REF!,IF(Instructions!$C$21=\"Carter\",#REF!,ROUNDUP($AA711*(1-W711),2)))","v":9.9499999999999993},null,"",9.9499999999999993,{"$f":"+W711","v":0},9.9499999999999993,{"$f":"(AG711-AC711)/AG711","v":0},null,1,{"$f":"SUM(AI711:AK711)+AE711","v":9.9499999999999993},null,{"$f":"ROUND(AC711/(1-VLOOKUP(AF711,Group,2,FALSE)),2)","v":9.9499999999999993},{"$f":"IF(VLOOKUP(AF711,Group,5,FALSE)=\"YES\",VLOOKUP(ROUND(ROUND(AI711,1)-AI711,2),Round,2,FALSE)+VLOOKUP(AF711,Group,6,FALSE),0)","v":0},{"$f":"IF(VLOOKUP(AF711,Group,7,FALSE)=\"\",0,ROUND(AI711-0.04999,1)-AI711+AL711)","v":0},{"$f":"IF(VLOOKUP(AF711,Group,7,FALSE)=\"\",\"\",VLOOKUP(AF711,Group,7,FALSE))","v":""},null,"X"]
[null,"Field Tile",null,null,"24\" x 24\"",null,"Field",null,"Polished",null,null,null,null,null,null,"15.50 SF/CTN",null,null,{"$f":"IF(Suggested=\"Yes\",AA712,AG712)","v":10.050000000000001},"SF",{"$f":"+Instructions!$B$21","v":"G"},null,{"$f":"+Instructions!$C$21","v":0},{"$f":"IF(Instructions!$C$21=\"Group\",#REF!,IF(Instructions!$C$21=\"Carter\",#REF!,ROUNDUP($AA712*(1-W712),2)))","v":10.050000000000001},null,"",10.050000000000001,0,10.050000000000001,{"$f":"(AG712-AC712)/AG712","v":0},null,1,{"$f":"SUM(AI712:AK712)+AE712","v":10.050000000000001},null,{"$f":"ROUND(AC712/(1-VLOOKUP(AF712,Group,2,FALSE)),2)","v":10.050000000000001},{"$f":"IF(VLOOKUP(AF712,Group,5,FALSE)=\"YES\",VLOOKUP(ROUND(ROUND(AI712,1)-AI712,2),Round,2,FALSE)+VLOOKUP(AF712,Group,6,FALSE),0)","v":0},{"$f":"IF(VLOOKUP(AF712,Group,7,FALSE)=\"\",0,ROUND(AI712-0.04999,1)-AI712+AL712)","v":0},{"$f":"IF(VLOOKUP(AF712,Group,7,FALSE)=\"\",\"\",VLOOKUP(AF712,Group,7,FALSE))","v":""},null,"X"]
[null,"Field Tile",null,null,"24\" x 48\"",null,"Field",null,"Polished",null,null,null,null,null,null,"15.50 SF/CTN",null,null,{"$f":"IF(Suggested=\"Yes\",AA713,AG713)","v":11.1},"SF",{"$f":"+Instructions!$B$21","v":"G"},null,{"$f":"+Instructions!$C$21","v":0},{"$f":"IF(Instructions!$C$21=\"Group\",#REF!,IF(Instructions!$C$21=\"Carter\",#REF!,ROUNDUP($AA713*(1-W713),2)))","v":11.1},null,"",11.1,0,11.1,{"$f":"(AG713-AC713)/AG713","v":0},null,1,{"$f":"SUM(AI713:AK713)+AE713","v":11.1},null,{"$f":"ROUND(AC713/(1-VLOOKUP(AF713,Group,2,FALSE)),2)","v":11.1},{"$f":"IF(VLOOKUP(AF713,Group,5,FALSE)=\"YES\",VLOOKUP(ROUND(ROUND(AI713,1)-AI713,2),Round,2,FALSE)+VLOOKUP(AF713,Group,6,FALSE),0)","v":0},{"$f":"IF(VLOOKUP(AF713,Group,7,FALSE)=\"\",0,ROUND(AI713-0.04999,1)-AI713+AL713)","v":0},{"$f":"IF(VLOOKUP(AF713,Group,7,FALSE)=\"\",\"\",VLOOKUP(AF713,Group,7,FALSE))","v":""},null,"X"]
[null,null,null,null,null,null,null,null,null,null,null,null,null,null,null,null,null,null,null,null,null,null,null,null,null,null,null,null,null,null,null,null,null,null,null,null,null,null,null,"X"]
[null,"Decos",null,null,"8\" x 15\"",null,"M2x8OVAL",null,"Polished",null,"Mosaic Mesh-Mounted",null,null,null,null,"5 EA/CTN",null,null,{"$f":"IF(Suggested=\"Yes\",AA715,AG715)","v":56.2},"EA",{"$f":"+Instructions!$B$21","v":"G"},null,{"$f":"+Instructions!$C$21","v":0},{"$f":"IF(Instructions!$C$21=\"Group\",#REF!,IF(Instructions!$C$21=\"Carter\",#REF!,ROUNDUP($AA715*(1-W715),2)))","v":56.2},null,"",56.2,{"$f":"+W715","v":0},{"$f":"+X715","v":56.2},{"$f":"(AG715-AC715)/AG715","v":0},null,3,{"$f":"SUM(AI715:AK715)+AE715","v":56.2},null,{"$f":"ROUND(AC715/(1-VLOOKUP(AF715,Group,2,FALSE)),2)","v":56.2},{"$f":"IF(VLOOKUP(AF715,Group,5,FALSE)=\"YES\",VLOOKUP(ROUND(ROUND(AI715,1)-AI715,2),Round,2,FALSE)+VLOOKUP(AF715,Group,6,FALSE),0)","v":0},{"$f":"IF(VLOOKUP(AF715,Group,7,FALSE)=\"\",0,ROUND(AI715-0.04999,1)-AI715+AL715)","v":0},{"$f":"IF(VLOOKUP(AF715,Group,7,FALSE)=\"\",\"\",VLOOKUP(AF715,Group,7,FALSE))","v":""},null,"X"]
[null,null,null,null,null,null,null,null,null,null,null,null,null,null,null,null,null,null,null,null,null,null,null,null,null,null,null,null,null,null,null,null,null,null,null,null,null,null,null,"X"]
[null,"Trim",null,null,"3\" x 24\"",null,"P43N9",null,"Polished",null,"Bullnose",null,null,null,null,null,null,null,{"$f":"IF(Suggested=\"Yes\",AA717,AG717)","v":15.05},"EA",{"$f":"+Instructions!$B$21","v":"G"},null,{"$f":"+Instructions!$C$21","v":0},{"$f":"IF(Instructions!$C$21=\"Group\",#REF!,IF(Instructions!$C$21=\"Carter\",#REF!,ROUNDUP($AA717*(1-W717),2)))","v":15.05},null,"",15.05,{"$f":"+W717","v":0},{"$f":"+X717","v":15.05},{"$f":"(AG717-AC717)/AG717","v":0},null,2,{"$f":"SUM(AI717:AK717)+AE717","v":15.05},null,{"$f":"ROUND(AC717/(1-VLOOKUP(AF717,Group,2,FALSE)),2)","v":15.05},{"$f":"IF(VLOOKUP(AF717,Group,5,FALSE)=\"YES\",VLOOKUP(ROUND(ROUND(AI717,1)-AI717,2),Round,2,FALSE)+VLOOKUP(AF717,Group,6,FALSE),0)","v":0},{"$f":"IF(VLOOKUP(AF717,Group,7,FALSE)=\"\",0,ROUND(AI717-0.04999,1)-AI717+AL717)","v":0},{"$f":"IF(VLOOKUP(AF717,Group,7,FALSE)=\"\",\"\",VLOOKUP(AF717,Group,7,FALSE))","v":""},null,"X"]
[null,null,null,null,null,null,null,null,null,null,null,null,null,null,null,null,null,null,null,null,null,null,null,null,null,null,null,null,null,null,null,null,null,null,null,null,null,null,null,"X"]
[null,null,"TIDESHDP - Glazed Porcelain",null,null,null,null,null,null,null,null,null,null,null,null,null,null,"Item # Lookup:","FT281"]
[null,null,null,null,null,null,null,null,null,null,null,null,null,null,null,null,null,null,null,null,null,null,null,null,null,null,null,null,null,null,null,null,null,null,null,null,null,null,null,"X"]
[null,null,null,"Color:","28110 Sea Salt",null,null,null,null,null,null,null,null,null,null,null,null,null,null,null,null,null,null,null,null,null,null,null,null,null,null,null,null,null,null," ",null,null,null,"X"]
[null,null,null,null,null,null,null,null,null,null,null,null,null,null,null,null,null,null,null,null,null,null,null,null,null,null,null,null,null,null,null,null,null,null,null,null,null,null,null,"X"]
[null,"Field Tile",null,null,"12\" x 24\"",null,"Field",null,null,null,null,null,null,null,null,"16.00 SF/CTN",null,"a",{"$f":"IF(Suggested=\"Yes\",AA723,AG723)","v":5.9},"SF",{"$f":"+Instructions!$B$21","v":"G"},null,{"$f":"+Instructions!$C$21","v":0},{"$f":"IF(Instructions!$C$21=\"Group\",#REF!,IF(Instructions!$C$21=\"Carter\",#REF!,ROUNDUP($AA723*(1-W723),2)))","v":5.9},null,"YES",5.9,{"$f":"+W723","v":0},{"$f":"+X723","v":5.9},{"$f":"(AG723-AC723)/AG723","v":0},null,1,{"$f":"SUM(AI723:AK723)+AE723","v":5.9},null,{"$f":"ROUND(AC723/(1-VLOOKUP(AF723,Group,2,FALSE)),2)","v":5.9},{"$f":"IF(VLOOKUP(AF723,Group,5,FALSE)=\"YES\",VLOOKUP(ROUND(ROUND(AI723,1)-AI723,2),Round,2,FALSE)+VLOOKUP(AF723,Group,6,FALSE),0)","v":0},{"$f":"IF(VLOOKUP(AF723,Group,7,FALSE)=\"\",0,ROUND(AI723-0.04999,1)-AI723+AL723)","v":0},{"$f":"IF(VLOOKUP(AF723,Group,7,FALSE)=\"\",\"\",VLOOKUP(AF723,Group,7,FALSE))","v":""},null,"X"]
[null,null,null,null,null,null,null,null,null,null,null,null,null,null,null,null,null,null,null,null,null,null,null,null,null,null,null,null,null,null,null,null,null,null,null,null,null,null,null,"X"]
[null,"Decos",null,null,"12\" x 12\"",null,"M12",null,"Mosaic 2\" x 2\" Mesh-Mounted ",null,null,null,null,null,null,"5 EA/CTN",null,null,{"$f":"IF(Suggested=\"Yes\",AA725,AG725)","v":28.55},"EA",{"$f":"+Instructions!$B$21","v":"G"},null,{"$f":"+Instructions!$C$21","v":0},{"$f":"IF(Instructions!$C$21=\"Group\",#REF!,IF(Instructions!$C$21=\"Carter\",#REF!,ROUNDUP($AA725*(1-W725),2)))","v":28.55},null,"YES",28.55,{"$f":"+W725","v":0},{"$f":"+X725","v":28.55},{"$f":"(AG725-AC725)/AG725","v":0},null,3,{"$f":"SUM(AI725:AK725)+AE725","v":28.55},null,{"$f":"ROUND(AC725/(1-VLOOKUP(AF725,Group,2,FALSE)),2)","v":28.55},{"$f":"IF(VLOOKUP(AF725,Group,5,FALSE)=\"YES\",VLOOKUP(ROUND(ROUND(AI725,1)-AI725,2),Round,2,FALSE)+VLOOKUP(AF725,Group,6,FALSE),0)","v":0},{"$f":"IF(VLOOKUP(AF725,Group,7,FALSE)=\"\",0,ROUND(AI725-0.04999,1)-AI725+AL725)","v":0},{"$f":"IF(VLOOKUP(AF725,Group,7,FALSE)=\"\",\"\",VLOOKUP(AF725,Group,7,FALSE))","v":""},null,"X"]
[null,null,null,null,null,null,null,null,null,null,null,null,null,null," ",null,null,null,null,null,null,null,null,null,null,null,null,null,null,null,null,null,null,null,null,null,null,null,null,"X"]
[null,"Trim",null,null,"3\" x 24\"",null,"P43N9",null,"Bullnose",null,null,null,null,null,null,null,null,null,{"$f":"IF(Suggested=\"Yes\",AA727,AG727)","v":13.4},"EA",{"$f":"+Instructions!$B$21","v":"G"},null,{"$f":"+Instructions!$C$21","v":0},{"$f":"IF(Instructions!$C$21=\"Group\",#REF!,IF(Instructions!$C$21=\"Carter\",#REF!,ROUNDUP($AA727*(1-W727),2)))","v":13.4},null,"YES",13.4,{"$f":"+W727","v":0},{"$f":"+X727","v":13.4},{"$f":"(AG727-AC727)/AG727","v":0},null,2,{"$f":"SUM(AI727:AK727)+AE727","v":13.4},null,{"$f":"ROUND(AC727/(1-VLOOKUP(AF727,Group,2,FALSE)),2)","v":13.4},{"$f":"IF(VLOOKUP(AF727,Group,5,FALSE)=\"YES\",VLOOKUP(ROUND(ROUND(AI727,1)-AI727,2),Round,2,FALSE)+VLOOKUP(AF727,Group,6,FALSE),0)","v":0},{"$f":"IF(VLOOKUP(AF727,Group,7,FALSE)=\"\",0,ROUND(AI727-0.04999,1)-AI727+AL727)","v":0},{"$f":"IF(VLOOKUP(AF727,Group,7,FALSE)=\"\",\"\",VLOOKUP(AF727,Group,7,FALSE))","v":""},null,"X"]
[]
[null,null,null,"Note:","a) Packaging is changing from 14.00 SF/CTN to 16.00 SF/CTN as inventory with old packaging is depleted.",null,null,null,null,null,null,null,null,null,null,null,null,null,null,null,null,null,null,null,null,null,null,null,null,null,null,null,null,null,null," ",null,null,null,"X"]
[null,null,null,null,null,null,null,null,null,null,null,null,null,null,null,null,null,null,null,null,null,null,null,null,null,null,null,null,null,null,null,null,null,null,null,null,null,null,null,"X"]
[null,null,"TIME 2.0 - Through-Body Porcelain - Natural (Rectified)",null,null,null,null,null,null,null,null,null," ",null,null,null,null,"Item # Lookup:","FTT2"]
[null,null,null,null,null,null,null,null,null,null,null,null,null,null,null,null,null,null,null,null,null,null,null,null,null,null,null,null,null,null,null,null,null,null,null,null,null,null,null,"X"]
[null,null,null,"Color:","T21B1 Snow",null,null,null,null,null,null,null,null,null,null,null,null,null,null,null,null,null,null,null,null,null,null,null,null,null,null,null,null,null,null," ",null,null,null,"X"]
[null,null,null,null,null,null,null,null,null,null,null,null,null,null,null,null,null,null,null,null,null,null,null,null,null,null,null,null,null,null,null,null,null,null,null,null,null,null,null,"X"]
[null,"Field Tile",null,null,"3.75\" x 12\" x 10.5 mm",null,"Field",null,null,null,null,null,null,null,null,"6.12 SF/CTN",null,null,{"$f":"IF(Suggested=\"Yes\",AA735,AG735)","v":19.95},"SF",{"$f":"+Instructions!$B$21","v":"G"},null,{"$f":"+Instructions!$C$21","v":0},{"$f":"IF(Instructions!$C$21=\"Group\",#REF!,IF(Instructions!$C$21=\"Carter\",#REF!,ROUNDUP($AA735*(1-W735),2)))","v":19.95},null,"",19.95,{"$f":"+W735","v":0},{"$f":"+X735","v":19.95},{"$f":"(AG735-AC735)/AG735","v":0},null,1,{"$f":"SUM(AI735:AK735)+AE735","v":19.95},null,{"$f":"ROUND(AC735/(1-VLOOKUP(AF735,Group,2,FALSE)),2)","v":19.95},{"$f":"IF(VLOOKUP(AF735,Group,5,FALSE)=\"YES\",VLOOKUP(ROUND(ROUND(AI735,1)-AI735,2),Round,2,FALSE)+VLOOKUP(AF735,Group,6,FALSE),0)","v":0},{"$f":"IF(VLOOKUP(AF735,Group,7,FALSE)=\"\",0,ROUND(AI735-0.04999,1)-AI735+AL735)","v":0},{"$f":"IF(VLOOKUP(AF735,Group,7,FALSE)=\"\",\"\",VLOOKUP(AF735,Group,7,FALSE))","v":""},null,"X"]
[null,"Field Tile",null,null,"12\" x 24\" x 10.5 mm",null,"Field",null,null," ",null,null,null,null,null,"9.65 SF/CTN",null,null,{"$f":"IF(Suggested=\"Yes\",AA736,AG736)","v":14.65},"SF",{"$f":"+Instructions!$B$21","v":"G"},null,{"$f":"+Instructions!$C$21","v":0},{"$f":"IF(Instructions!$C$21=\"Group\",#REF!,IF(Instructions!$C$21=\"Carter\",#REF!,ROUNDUP($AA736*(1-W736),2)))","v":14.65},null,"",14.65,{"$f":"+W736","v":0},14.65,{"$f":"(AG736-AC736)/AG736","v":0},null,1,{"$f":"SUM(AI736:AK736)+AE736","v":14.65},null,{"$f":"ROUND(AC736/(1-VLOOKUP(AF736,Group,2,FALSE)),2)","v":14.65},{"$f":"IF(VLOOKUP(AF736,Group,5,FALSE)=\"YES\",VLOOKUP(ROUND(ROUND(AI736,1)-AI736,2),Round,2,FALSE)+VLOOKUP(AF736,Group,6,FALSE),0)","v":0},{"$f":"IF(VLOOKUP(AF736,Group,7,FALSE)=\"\",0,ROUND(AI736-0.04999,1)-AI736+AL736)","v":0},{"$f":"IF(VLOOKUP(AF736,Group,7,FALSE)=\"\",\"\",VLOOKUP(AF736,Group,7,FALSE))","v":""},null,"X"]
[null,"Field Tile",null,null,"24\" x 24\" x 10.5 mm",null,"Field",null," ",null,null,null,null,null,null,"11.62 SF/CTN",null,null,{"$f":"IF(Suggested=\"Yes\",AA737,AG737)","v":14.55},"SF",{"$f":"+Instructions!$B$21","v":"G"},null,{"$f":"+Instructions!$C$21","v":0},{"$f":"IF(Instructions!$C$21=\"Group\",#REF!,IF(Instructions!$C$21=\"Carter\",#REF!,ROUNDUP($AA737*(1-W737),2)))","v":14.55},null,"",14.55,0,14.55,{"$f":"(AG737-AC737)/AG737","v":0},null,1,{"$f":"SUM(AI737:AK737)+AE737","v":14.55},null,{"$f":"ROUND(AC737/(1-VLOOKUP(AF737,Group,2,FALSE)),2)","v":14.55},{"$f":"IF(VLOOKUP(AF737,Group,5,FALSE)=\"YES\",VLOOKUP(ROUND(ROUND(AI737,1)-AI737,2),Round,2,FALSE)+VLOOKUP(AF737,Group,6,FALSE),0)","v":0},{"$f":"IF(VLOOKUP(AF737,Group,7,FALSE)=\"\",0,ROUND(AI737-0.04999,1)-AI737+AL737)","v":0},{"$f":"IF(VLOOKUP(AF737,Group,7,FALSE)=\"\",\"\",VLOOKUP(AF737,Group,7,FALSE))","v":""},null,"X"]
[null,null,null,null,null,null,null,null,null,null,null,null,null,null,null,null,null,null,null,null,null,null,null,null,null,null,null,null,null,null,null,null,null,null,null,null,null,null,null,"X"]
[null,"Decos",null,null,"12\" x 12\" x 10.5 mm",null,"M12",null,"Mosaic 2\" x 2\" Mesh-Mounted",null,null,null,null,null,null,"5 EA/CTN",null,null,{"$f":"IF(Suggested=\"Yes\",AA739,AG739)","v":34},"EA",{"$f":"+Instructions!$B$21","v":"G"},null,{"$f":"+Instructions!$C$21","v":0},{"$f":"IF(Instructions!$C$21=\"Group\",#REF!,IF(Instructions!$C$21=\"Carter\",#REF!,ROUNDUP($AA739*(1-W739),2)))","v":34},null,"",34,{"$f":"+W739","v":0},{"$f":"+X739","v":34},{"$f":"(AG739-AC739)/AG739","v":0},null,3,{"$f":"SUM(AI739:AK739)+AE739","v":34},null,{"$f":"ROUND(AC739/(1-VLOOKUP(AF739,Group,2,FALSE)),2)","v":34},{"$f":"IF(VLOOKUP(AF739,Group,5,FALSE)=\"YES\",VLOOKUP(ROUND(ROUND(AI739,1)-AI739,2),Round,2,FALSE)+VLOOKUP(AF739,Group,6,FALSE),0)","v":0},{"$f":"IF(VLOOKUP(AF739,Group,7,FALSE)=\"\",0,ROUND(AI739-0.04999,1)-AI739+AL739)","v":0},{"$f":"IF(VLOOKUP(AF739,Group,7,FALSE)=\"\",\"\",VLOOKUP(AF739,Group,7,FALSE))","v":""},null,"X"]
[null,null,null,null,null,null,null,null,null,null,null,null,null,null,null,null,null,null,null,null,null,null,null,null,null,null,null,null,null,null,null,null,null,null,null,null,null,null,null,"X"]
[null,"Trim",null,null,"3\" x 12\"",null,"P43C9",null,"Bullnose",null,null,null,null,null,null,null,null,null,{"$f":"IF(Suggested=\"Yes\",AA741,AG741)","v":11.65},"EA",{"$f":"+Instructions!$B$21","v":"G"},null,{"$f":"+Instructions!$C$21","v":0},{"$f":"IF(Instructions!$C$21=\"Group\",#REF!,IF(Instructions!$C$21=\"Carter\",#REF!,ROUNDUP($AA741*(1-W741),2)))","v":11.65},null,"",11.65,{"$f":"+W741","v":0},{"$f":"+X741","v":11.65},{"$f":"(AG741-AC741)/AG741","v":0},null,2,{"$f":"SUM(AI741:AK741)+AE741","v":11.65},null,{"$f":"ROUND(AC741/(1-VLOOKUP(AF741,Group,2,FALSE)),2)","v":11.65},{"$f":"IF(VLOOKUP(AF741,Group,5,FALSE)=\"YES\",VLOOKUP(ROUND(ROUND(AI741,1)-AI741,2),Round,2,FALSE)+VLOOKUP(AF741,Group,6,FALSE),0)","v":0},{"$f":"IF(VLOOKUP(AF741,Group,7,FALSE)=\"\",0,ROUND(AI741-0.04999,1)-AI741+AL741)","v":0},{"$f":"IF(VLOOKUP(AF741,Group,7,FALSE)=\"\",\"\",VLOOKUP(AF741,Group,7,FALSE))","v":""},null,"X"]
[null,null,null,null,null,null,null,null,null,null,null,null,null,null,null,null,null,null,null,null,null,null,null,null,null,null,null,null,null,null,null,null,null,null,null,null,null,null,null,"X"]
[null,"Trim"," ",null,"6\" x 12\"",null,"P36C9",null,"Cove Base",null,null,null,null,null,null,null,null,null,{"$f":"IF(Suggested=\"Yes\",AA743,AG743)","v":32.65},"EA",{"$f":"+Instructions!$B$21","v":"G"},null,{"$f":"+Instructions!$C$21","v":0},{"$f":"IF(Instructions!$C$21=\"Group\",#REF!,IF(Instructions!$C$21=\"Carter\",#REF!,ROUNDUP($AA743*(1-W743),2)))","v":32.65},null,"",32.65,{"$f":"+W743","v":0},{"$f":"+X743","v":32.65},{"$f":"(AG743-AC743)/AG743","v":0},null,2,{"$f":"SUM(AI743:AK743)+AE743","v":32.65},null,{"$f":"ROUND(AC743/(1-VLOOKUP(AF743,Group,2,FALSE)),2)","v":32.65},{"$f":"IF(VLOOKUP(AF743,Group,5,FALSE)=\"YES\",VLOOKUP(ROUND(ROUND(AI743,1)-AI743,2),Round,2,FALSE)+VLOOKUP(AF743,Group,6,FALSE),0)","v":0},{"$f":"IF(VLOOKUP(AF743,Group,7,FALSE)=\"\",0,ROUND(AI743-0.04999,1)-AI743+AL743)","v":0},{"$f":"IF(VLOOKUP(AF743,Group,7,FALSE)=\"\",\"\",VLOOKUP(AF743,Group,7,FALSE))","v":""},null,"X"]
[null,"Trim",null,null,"1\" x 6\"",null,"PB3169",null,"Cove Base Outside Corner",null,null,null,null,null,null,null,null,null,{"$f":"IF(Suggested=\"Yes\",AA744,AG744)","v":20.85},"EA",{"$f":"+Instructions!$B$21","v":"G"},null,{"$f":"+Instructions!$C$21","v":0},{"$f":"IF(Instructions!$C$21=\"Group\",#REF!,IF(Instructions!$C$21=\"Carter\",#REF!,ROUNDUP($AA744*(1-W744),2)))","v":20.85},null,"",20.85,{"$f":"+W744","v":0},{"$f":"+X744","v":20.85},{"$f":"(AG744-AC744)/AG744","v":0},null,2,{"$f":"SUM(AI744:AK744)+AE744","v":20.85},null,{"$f":"ROUND(AC744/(1-VLOOKUP(AF744,Group,2,FALSE)),2)","v":20.85},{"$f":"IF(VLOOKUP(AF744,Group,5,FALSE)=\"YES\",VLOOKUP(ROUND(ROUND(AI744,1)-AI744,2),Round,2,FALSE)+VLOOKUP(AF744,Group,6,FALSE),0)","v":0},{"$f":"IF(VLOOKUP(AF744,Group,7,FALSE)=\"\",0,ROUND(AI744-0.04999,1)-AI744+AL744)","v":0},{"$f":"IF(VLOOKUP(AF744,Group,7,FALSE)=\"\",\"\",VLOOKUP(AF744,Group,7,FALSE))","v":""},null,"X"]
[null,null,null,null,null,null,null,null,null,null,null,null,null,null,null,null,null,null,null,null,null,null,null,null,null,null,null,null,null,null,null,null,null,null,null,null,null,null,null,"X"]
["x",null,"continued on next page",null,null,null,null,null,null,null,null,null,null,null,null,null,null,null,null,null,null,null,null,null,null,null,null,null,null,null,null,null,null,null,null," ",null,null,null,"X"]
[null,null,"TIME 2.0 - Through-Body Porcelain - Natural (Rectified) - continued",null,null,null,null,null,null,null,null,null,null,null,null,null,null,"Item # Lookup:","FTT2",null,null,null,null,null,null,null,null,null,null,null,null,null,null,null,null," ",null,null,null,"X"]
[null,null,null,null,null,null,null,null,null,null,null,null,null,null,null,null,null,null,null,null,null,null,null,null,null,null,null,null,null,null,null,null,null,null,null,null,null,null,null,"X"]
[null,null,null,"Colors:","T22B1 White",null,"       T24B1 Beige",null,null,"T26B1 Silver",null,"       T28B1 Carbon",null,null,null,null,null,null,null,null,null,null,null,null,null,null,null,null,null,null,null,null,null,null,null," ",null,null,null,"X"]
[null,null,null,null,"T23B1 Cream",null,"       T25B1 Dove",null,null,"T27B1 Grey",null,"       T29B1 Black",null,null,null,null,null,null,null,null,null,null,null,null,null,null,null,null,null,null,null,null,null,null,null," ",null,null,null,"X"]
[null,null,null,null,null,null,null,null,null,null,null,null,null,null,null,null,null,null,null,null,null,null,null,null,null,null,null,null,null,null,null,null,null,null,null,null,null,null,null,"X"]
[null,"Field Tile",null,null,"3.75\" x 12\" x 10.5 mm",null,"Field",null,null,null,null,null,null,null,null,"6.12 SF/CTN",null,null,{"$f":"IF(Suggested=\"Yes\",AA752,AG752)","v":19.95},"SF",{"$f":"+Instructions!$B$21","v":"G"},null,{"$f":"+Instructions!$C$21","v":0},{"$f":"IF(Instructions!$C$21=\"Group\",#REF!,IF(Instructions!$C$21=\"Carter\",#REF!,ROUNDUP($AA752*(1-W752),2)))","v":19.95},null,"",19.95,{"$f":"+W752","v":0},{"$f":"+X752","v":19.95},{"$f":"(AG752-AC752)/AG752","v":0},null,1,{"$f":"SUM(AI752:AK752)+AE752","v":19.95},null,{"$f":"ROUND(AC752/(1-VLOOKUP(AF752,Group,2,FALSE)),2)","v":19.95},{"$f":"IF(VLOOKUP(AF752,Group,5,FALSE)=\"YES\",VLOOKUP(ROUND(ROUND(AI752,1)-AI752,2),Round,2,FALSE)+VLOOKUP(AF752,Group,6,FALSE),0)","v":0},{"$f":"IF(VLOOKUP(AF752,Group,7,FALSE)=\"\",0,ROUND(AI752-0.04999,1)-AI752+AL752)","v":0},{"$f":"IF(VLOOKUP(AF752,Group,7,FALSE)=\"\",\"\",VLOOKUP(AF752,Group,7,FALSE))","v":""},null,"X"]
[null,"Field Tile",null,null,"12\" x 24\" x 10.5 mm",null,"Field",null,null," ",null,null,null,null,null,"9.65 SF/CTN",null,null,{"$f":"IF(Suggested=\"Yes\",AA753,AG753)","v":13.5},"SF",{"$f":"+Instructions!$B$21","v":"G"},null,{"$f":"+Instructions!$C$21","v":0},{"$f":"IF(Instructions!$C$21=\"Group\",#REF!,IF(Instructions!$C$21=\"Carter\",#REF!,ROUNDUP($AA753*(1-W753),2)))","v":13.5},null,"",13.5,{"$f":"+W753","v":0},13.5,{"$f":"(AG753-AC753)/AG753","v":0},null,1,{"$f":"SUM(AI753:AK753)+AE753","v":13.5},null,{"$f":"ROUND(AC753/(1-VLOOKUP(AF753,Group,2,FALSE)),2)","v":13.5},{"$f":"IF(VLOOKUP(AF753,Group,5,FALSE)=\"YES\",VLOOKUP(ROUND(ROUND(AI753,1)-AI753,2),Round,2,FALSE)+VLOOKUP(AF753,Group,6,FALSE),0)","v":0},{"$f":"IF(VLOOKUP(AF753,Group,7,FALSE)=\"\",0,ROUND(AI753-0.04999,1)-AI753+AL753)","v":0},{"$f":"IF(VLOOKUP(AF753,Group,7,FALSE)=\"\",\"\",VLOOKUP(AF753,Group,7,FALSE))","v":""},null,"X"]
[null,"Field Tile",null,null,"24\" x 24\" x 10.5 mm",null,"Field",null," ",null,null,null,null,null,null,"11.62 SF/CTN",null,null,{"$f":"IF(Suggested=\"Yes\",AA754,AG754)","v":13.45},"SF",{"$f":"+Instructions!$B$21","v":"G"},null,{"$f":"+Instructions!$C$21","v":0},{"$f":"IF(Instructions!$C$21=\"Group\",#REF!,IF(Instructions!$C$21=\"Carter\",#REF!,ROUNDUP($AA754*(1-W754),2)))","v":13.45},null,"",13.45,0,13.45,{"$f":"(AG754-AC754)/AG754","v":0},null,1,{"$f":"SUM(AI754:AK754)+AE754","v":13.45},null,{"$f":"ROUND(AC754/(1-VLOOKUP(AF754,Group,2,FALSE)),2)","v":13.45},{"$f":"IF(VLOOKUP(AF754,Group,5,FALSE)=\"YES\",VLOOKUP(ROUND(ROUND(AI754,1)-AI754,2),Round,2,FALSE)+VLOOKUP(AF754,Group,6,FALSE),0)","v":0},{"$f":"IF(VLOOKUP(AF754,Group,7,FALSE)=\"\",0,ROUND(AI754-0.04999,1)-AI754+AL754)","v":0},{"$f":"IF(VLOOKUP(AF754,Group,7,FALSE)=\"\",\"\",VLOOKUP(AF754,Group,7,FALSE))","v":""},null,"X"]
[null,null,null,null,null,null,null,null,null,null,null,null,null,null,null,null,null,null,null,null,null,null,null,null,null,null,null,null,null,null,null,null,null,null,null,null,null,null,null,"X"]
[null,"Decos",null,null,"12\" x 12\" x 10.5 mm",null,"M12",null,"Mosaic 2\" x 2\" Mesh-Mounted",null,null,null,null,null,null,"5 EA/CTN",null,null,{"$f":"IF(Suggested=\"Yes\",AA756,AG756)","v":34},"EA",{"$f":"+Instructions!$B$21","v":"G"},null,{"$f":"+Instructions!$C$21","v":0},{"$f":"IF(Instructions!$C$21=\"Group\",#REF!,IF(Instructions!$C$21=\"Carter\",#REF!,ROUNDUP($AA756*(1-W756),2)))","v":34},null,"",34,{"$f":"+W756","v":0},{"$f":"+X756","v":34},{"$f":"(AG756-AC756)/AG756","v":0},null,3,{"$f":"SUM(AI756:AK756)+AE756","v":34},null,{"$f":"ROUND(AC756/(1-VLOOKUP(AF756,Group,2,FALSE)),2)","v":34},{"$f":"IF(VLOOKUP(AF756,Group,5,FALSE)=\"YES\",VLOOKUP(ROUND(ROUND(AI756,1)-AI756,2),Round,2,FALSE)+VLOOKUP(AF756,Group,6,FALSE),0)","v":0},{"$f":"IF(VLOOKUP(AF756,Group,7,FALSE)=\"\",0,ROUND(AI756-0.04999,1)-AI756+AL756)","v":0},{"$f":"IF(VLOOKUP(AF756,Group,7,FALSE)=\"\",\"\",VLOOKUP(AF756,Group,7,FALSE))","v":""},null,"X"]
[null,null,null,null,null,null,null,null,null,null,null,null,null,null,null,null,null,null,null,null,null,null,null,null,null,null,null,null,null,null,null,null,null,null,null,null,null,null,null,"X"]
[null,"Trim",null,null,"3\" x 12\"",null,"P43C9",null,"Bullnose",null,null,null,null,null,null,null,null,null,{"$f":"IF(Suggested=\"Yes\",AA758,AG758)","v":11.65},"EA",{"$f":"+Instructions!$B$21","v":"G"},null,{"$f":"+Instructions!$C$21","v":0},{"$f":"IF(Instructions!$C$21=\"Group\",#REF!,IF(Instructions!$C$21=\"Carter\",#REF!,ROUNDUP($AA758*(1-W758),2)))","v":11.65},null,"",11.65,{"$f":"+W758","v":0},{"$f":"+X758","v":11.65},{"$f":"(AG758-AC758)/AG758","v":0},null,2,{"$f":"SUM(AI758:AK758)+AE758","v":11.65},null,{"$f":"ROUND(AC758/(1-VLOOKUP(AF758,Group,2,FALSE)),2)","v":11.65},{"$f":"IF(VLOOKUP(AF758,Group,5,FALSE)=\"YES\",VLOOKUP(ROUND(ROUND(AI758,1)-AI758,2),Round,2,FALSE)+VLOOKUP(AF758,Group,6,FALSE),0)","v":0},{"$f":"IF(VLOOKUP(AF758,Group,7,FALSE)=\"\",0,ROUND(AI758-0.04999,1)-AI758+AL758)","v":0},{"$f":"IF(VLOOKUP(AF758,Group,7,FALSE)=\"\",\"\",VLOOKUP(AF758,Group,7,FALSE))","v":""},null,"X"]
[null,null,null,null,null,null,null,null,null,null,null,null,null,null,null,null,null,null,null,null,null,null,null,null,null,null,null,null,null,null,null,null,null,null,null,null,null,null,null,"X"]
[null,"Trim"," ",null,"6\" x 12\"",null,"P36C9",null,"Cove Base",null,null,null,null,null,null,null,null,null,{"$f":"IF(Suggested=\"Yes\",AA760,AG760)","v":32.65},"EA",{"$f":"+Instructions!$B$21","v":"G"},null,{"$f":"+Instructions!$C$21","v":0},{"$f":"IF(Instructions!$C$21=\"Group\",#REF!,IF(Instructions!$C$21=\"Carter\",#REF!,ROUNDUP($AA760*(1-W760),2)))","v":32.65},null,"",32.65,{"$f":"+W760","v":0},{"$f":"+X760","v":32.65},{"$f":"(AG760-AC760)/AG760","v":0},null,2,{"$f":"SUM(AI760:AK760)+AE760","v":32.65},null,{"$f":"ROUND(AC760/(1-VLOOKUP(AF760,Group,2,FALSE)),2)","v":32.65},{"$f":"IF(VLOOKUP(AF760,Group,5,FALSE)=\"YES\",VLOOKUP(ROUND(ROUND(AI760,1)-AI760,2),Round,2,FALSE)+VLOOKUP(AF760,Group,6,FALSE),0)","v":0},{"$f":"IF(VLOOKUP(AF760,Group,7,FALSE)=\"\",0,ROUND(AI760-0.04999,1)-AI760+AL760)","v":0},{"$f":"IF(VLOOKUP(AF760,Group,7,FALSE)=\"\",\"\",VLOOKUP(AF760,Group,7,FALSE))","v":""},null,"X"]
[null,"Trim",null,null,"1\" x 6\"",null,"PB3169",null,"Cove Base Outside Corner",null,null,null,null,null,null,null,null,null,{"$f":"IF(Suggested=\"Yes\",AA761,AG761)","v":20.85},"EA",{"$f":"+Instructions!$B$21","v":"G"},null,{"$f":"+Instructions!$C$21","v":0},{"$f":"IF(Instructions!$C$21=\"Group\",#REF!,IF(Instructions!$C$21=\"Carter\",#REF!,ROUNDUP($AA761*(1-W761),2)))","v":20.85},null,"",20.85,{"$f":"+W761","v":0},{"$f":"+X761","v":20.85},{"$f":"(AG761-AC761)/AG761","v":0},null,2,{"$f":"SUM(AI761:AK761)+AE761","v":20.85},null,{"$f":"ROUND(AC761/(1-VLOOKUP(AF761,Group,2,FALSE)),2)","v":20.85},{"$f":"IF(VLOOKUP(AF761,Group,5,FALSE)=\"YES\",VLOOKUP(ROUND(ROUND(AI761,1)-AI761,2),Round,2,FALSE)+VLOOKUP(AF761,Group,6,FALSE),0)","v":0},{"$f":"IF(VLOOKUP(AF761,Group,7,FALSE)=\"\",0,ROUND(AI761-0.04999,1)-AI761+AL761)","v":0},{"$f":"IF(VLOOKUP(AF761,Group,7,FALSE)=\"\",\"\",VLOOKUP(AF761,Group,7,FALSE))","v":""},null,"X"]
[null,null,null,null,null,null,null,null,null,null,null,null,null,null,null,null,null,null,null,null,null,null,null,null,null,null,null,null,null,null,null,null,null,null,null,null,null,null,null,"X"]
[null,null,"TIME 2.0 - Through-Body Porcelain - Polished (Rectified)",null,null,null,null,null,null,null,null,null,null,null,null,null,null,"Item # Lookup:","FTT2"]
[null,null,null,null,null,null,null,null,null,null,null,null,null,null,null,null,null,null,null,null,null,null,null,null,null,null,null,null,null,null,null,null,null,null,null,null,null,null,null,"X"]
[null,null,null,"Color:","T2161 Snow",null,null,null,null,null,null,null,null,null,null,null,null,null,null,null,null,null,null,null,null,null,null,null,null,null,null,null,null,null,null," ",null,null,null,"X"]
[null,null,null,null,null,null,null,null,null,null,null,null,null,null,null,null,null,null,null,null,null,null,null,null,null,null,null,null,null,null,null,null,null,null,null,null,null,null,null,"X"]
[null,"Field Tile",null,null,"3.75\" x 12\" x 10 mm",null,"Field",null,null,null,null,null,null,null,null,"6.12 SF/CTN",null,null,{"$f":"IF(Suggested=\"Yes\",AA767,AG767)","v":21.2},"SF",{"$f":"+Instructions!$B$21","v":"G"},null,{"$f":"+Instructions!$C$21","v":0},{"$f":"IF(Instructions!$C$21=\"Group\",#REF!,IF(Instructions!$C$21=\"Carter\",#REF!,ROUNDUP($AA767*(1-W767),2)))","v":21.2},null,"",21.2,{"$f":"+W767","v":0},{"$f":"+X767","v":21.2},{"$f":"(AG767-AC767)/AG767","v":0},null,1,{"$f":"SUM(AI767:AK767)+AE767","v":21.2},null,{"$f":"ROUND(AC767/(1-VLOOKUP(AF767,Group,2,FALSE)),2)","v":21.2},{"$f":"IF(VLOOKUP(AF767,Group,5,FALSE)=\"YES\",VLOOKUP(ROUND(ROUND(AI767,1)-AI767,2),Round,2,FALSE)+VLOOKUP(AF767,Group,6,FALSE),0)","v":0},{"$f":"IF(VLOOKUP(AF767,Group,7,FALSE)=\"\",0,ROUND(AI767-0.04999,1)-AI767+AL767)","v":0},{"$f":"IF(VLOOKUP(AF767,Group,7,FALSE)=\"\",\"\",VLOOKUP(AF767,Group,7,FALSE))","v":""},null,"X"]
[null,"Field Tile",null,null,"12\" x 24\" x 10 mm",null,"Field",null,null,null,null,null,null,null,null,"9.65 SF/CTN",null,null,{"$f":"IF(Suggested=\"Yes\",AA768,AG768)","v":19.149999999999999},"SF",{"$f":"+Instructions!$B$21","v":"G"},null,{"$f":"+Instructions!$C$21","v":0},{"$f":"IF(Instructions!$C$21=\"Group\",#REF!,IF(Instructions!$C$21=\"Carter\",#REF!,ROUNDUP($AA768*(1-W768),2)))","v":19.149999999999999},null,"",19.149999999999999,{"$f":"+W768","v":0},{"$f":"+X768","v":19.149999999999999},{"$f":"(AG768-AC768)/AG768","v":0},null,1,{"$f":"SUM(AI768:AK768)+AE768","v":19.149999999999999},null,{"$f":"ROUND(AC768/(1-VLOOKUP(AF768,Group,2,FALSE)),2)","v":19.149999999999999},{"$f":"IF(VLOOKUP(AF768,Group,5,FALSE)=\"YES\",VLOOKUP(ROUND(ROUND(AI768,1)-AI768,2),Round,2,FALSE)+VLOOKUP(AF768,Group,6,FALSE),0)","v":0},{"$f":"IF(VLOOKUP(AF768,Group,7,FALSE)=\"\",0,ROUND(AI768-0.04999,1)-AI768+AL768)","v":0},{"$f":"IF(VLOOKUP(AF768,Group,7,FALSE)=\"\",\"\",VLOOKUP(AF768,Group,7,FALSE))","v":""},null,"X"]
[null,null,null,null,null,null,null,null,null,null,null,null,null,null,null,null,null,null,null,null,null,null,null,null,null,null,null,null,null,null,null,null,null,null,null,null,null,null,null,"X"]
[null,"Trim",null,null,"3\" x 12\"",null,"P43C9",null,"Bullnose",null,null,null,null,null,null,null,null,null,{"$f":"IF(Suggested=\"Yes\",AA770,AG770)","v":13.45},"EA",{"$f":"+Instructions!$B$21","v":"G"},null,{"$f":"+Instructions!$C$21","v":0},{"$f":"IF(Instructions!$C$21=\"Group\",#REF!,IF(Instructions!$C$21=\"Carter\",#REF!,ROUNDUP($AA770*(1-W770),2)))","v":13.45},null,"",13.45,{"$f":"+W770","v":0},{"$f":"+X770","v":13.45},{"$f":"(AG770-AC770)/AG770","v":0},null,2,{"$f":"SUM(AI770:AK770)+AE770","v":13.45},null,{"$f":"ROUND(AC770/(1-VLOOKUP(AF770,Group,2,FALSE)),2)","v":13.45},{"$f":"IF(VLOOKUP(AF770,Group,5,FALSE)=\"YES\",VLOOKUP(ROUND(ROUND(AI770,1)-AI770,2),Round,2,FALSE)+VLOOKUP(AF770,Group,6,FALSE),0)","v":0},{"$f":"IF(VLOOKUP(AF770,Group,7,FALSE)=\"\",0,ROUND(AI770-0.04999,1)-AI770+AL770)","v":0},{"$f":"IF(VLOOKUP(AF770,Group,7,FALSE)=\"\",\"\",VLOOKUP(AF770,Group,7,FALSE))","v":""},null,"X"]
[null,null,null,null,null,null,null,null,null,null,null,null,null,null,null,null,null,null,null,null,null,null,null,null,null,null,null,null,null,null,null,null,null,null,null,null,null,null,null,"X"]
[null,null,null,"Colors:","T2361 Cream         T2461 Beige         T2661 Silver         T2861 Carbon         T2961 Black",null,null,null,null,null,null,null,null,null,null,null,null,null,null,null,null,null,null,null,null,null,null,null,null,null,null,null,null,null,null," ",null,null,null,"X"]
[null,null,null,null,null,null,null,null,null,null,null,null,null,null,null,null,null,null,null,null,null,null,null,null,null,null,null,null,null,null,null,null,null,null,null,null,null,null,null,"X"]
[null,"Field Tile",null,null,"3.75\" x 12\" x 10 mm",null,"Field",null,null,null,null,null,null,null,null,"6.12 SF/CTN",null,null,{"$f":"IF(Suggested=\"Yes\",AA774,AG774)","v":21.2},"SF",{"$f":"+Instructions!$B$21","v":"G"},null,{"$f":"+Instructions!$C$21","v":0},{"$f":"IF(Instructions!$C$21=\"Group\",#REF!,IF(Instructions!$C$21=\"Carter\",#REF!,ROUNDUP($AA774*(1-W774),2)))","v":21.2},null,"",21.2,{"$f":"+W774","v":0},{"$f":"+X774","v":21.2},{"$f":"(AG774-AC774)/AG774","v":0},null,1,{"$f":"SUM(AI774:AK774)+AE774","v":21.2},null,{"$f":"ROUND(AC774/(1-VLOOKUP(AF774,Group,2,FALSE)),2)","v":21.2},{"$f":"IF(VLOOKUP(AF774,Group,5,FALSE)=\"YES\",VLOOKUP(ROUND(ROUND(AI774,1)-AI774,2),Round,2,FALSE)+VLOOKUP(AF774,Group,6,FALSE),0)","v":0},{"$f":"IF(VLOOKUP(AF774,Group,7,FALSE)=\"\",0,ROUND(AI774-0.04999,1)-AI774+AL774)","v":0},{"$f":"IF(VLOOKUP(AF774,Group,7,FALSE)=\"\",\"\",VLOOKUP(AF774,Group,7,FALSE))","v":""},null,"X"]
[null,"Field Tile",null,null,"12\" x 24\" x 10 mm",null,"Field",null,null,null,null,null,null,null,null,"9.65 SF/CTN",null,null,{"$f":"IF(Suggested=\"Yes\",AA775,AG775)","v":18.05},"SF",{"$f":"+Instructions!$B$21","v":"G"},null,{"$f":"+Instructions!$C$21","v":0},{"$f":"IF(Instructions!$C$21=\"Group\",#REF!,IF(Instructions!$C$21=\"Carter\",#REF!,ROUNDUP($AA775*(1-W775),2)))","v":18.05},null,"",18.05,{"$f":"+W775","v":0},{"$f":"+X775","v":18.05},{"$f":"(AG775-AC775)/AG775","v":0},null,1,{"$f":"SUM(AI775:AK775)+AE775","v":18.05},null,{"$f":"ROUND(AC775/(1-VLOOKUP(AF775,Group,2,FALSE)),2)","v":18.05},{"$f":"IF(VLOOKUP(AF775,Group,5,FALSE)=\"YES\",VLOOKUP(ROUND(ROUND(AI775,1)-AI775,2),Round,2,FALSE)+VLOOKUP(AF775,Group,6,FALSE),0)","v":0},{"$f":"IF(VLOOKUP(AF775,Group,7,FALSE)=\"\",0,ROUND(AI775-0.04999,1)-AI775+AL775)","v":0},{"$f":"IF(VLOOKUP(AF775,Group,7,FALSE)=\"\",\"\",VLOOKUP(AF775,Group,7,FALSE))","v":""},null,"X"]
[null,null,null,null,null,null,null,null,null,null,null," ",null,null,null,null,null,null,null,null,null,null,null,null,null,null,null,null,null,null,null,null,null,null,null,null,null,null,null,"X"]
[null,"Trim",null,null,"3\" x 12\"",null,"P43C9",null,"Bullnose",null,null,null,null,null,null,null,null,null,{"$f":"IF(Suggested=\"Yes\",AA777,AG777)","v":13.45},"EA",{"$f":"+Instructions!$B$21","v":"G"},null,{"$f":"+Instructions!$C$21","v":0},{"$f":"IF(Instructions!$C$21=\"Group\",#REF!,IF(Instructions!$C$21=\"Carter\",#REF!,ROUNDUP($AA777*(1-W777),2)))","v":13.45},null,"",13.45,{"$f":"+W777","v":0},{"$f":"+X777","v":13.45},{"$f":"(AG777-AC777)/AG777","v":0},null,2,{"$f":"SUM(AI777:AK777)+AE777","v":13.45},null,{"$f":"ROUND(AC777/(1-VLOOKUP(AF777,Group,2,FALSE)),2)","v":13.45},{"$f":"IF(VLOOKUP(AF777,Group,5,FALSE)=\"YES\",VLOOKUP(ROUND(ROUND(AI777,1)-AI777,2),Round,2,FALSE)+VLOOKUP(AF777,Group,6,FALSE),0)","v":0},{"$f":"IF(VLOOKUP(AF777,Group,7,FALSE)=\"\",0,ROUND(AI777-0.04999,1)-AI777+AL777)","v":0},{"$f":"IF(VLOOKUP(AF777,Group,7,FALSE)=\"\",\"\",VLOOKUP(AF777,Group,7,FALSE))","v":""},null,"X"]
[null,null,null,null,null,null,null,null,null,null,null,null,null,null,null,null,null,null,null,null,null,null,null,null,null,null,null,null,null,null,null,null,null,null,null," ",null,null,null,"X"]
[null,null,"TUSCAN VILLAHDP - Glazed Porcelain Floor & Wall",null,null,null,null,null,null,null,null," ",null,null,null,null,null,"Item # Lookup:","FTTUV",null,null,null,null,null,null,null,null,null,null,null,null,null,null,null,null," ",null,null,null,"X"]
[null,null,null,null,null,null,null,null,null,null,null,null,null,null,null,null,null,null,null,null,null,null,null,null,null,null,null,null,null,null,null,null,null,null,null,null,null,null,null,"X"]
[null,null,null,"Colors:","TUV10 Arezzo Ivory         TUV20 Cortona Beige         TUV30 Florence Silver",null,null,null,null,null,null,null,null,null,null,null,null,null,null,null,null,null,null,null,null,null,null,null,null,null,null,null,null,null,null," ",null,null,null,"X"]
[null,null,null,null,null,null,null,null,null,null,null,null,null,null,null,null,null,null,null,null,null,null,null,null,null,null,null,null,null,null,null,null,null,null,null,null,null,null,null,"X"]
[null,"Field Tile",null,null,"12\" x 12\"",null,"Field",null,null,null,null,null,null,null,null,"16.00 SF/CTN","Stock",null,{"$f":"IF(Suggested=\"Yes\",AA783,AG783)","v":3.65},"SF",{"$f":"+Instructions!$B$21","v":"G"},null,{"$f":"+Instructions!$C$21","v":0},{"$f":"IF(Instructions!$C$21=\"Group\",#REF!,IF(Instructions!$C$21=\"Carter\",#REF!,ROUNDUP($AA783*(1-W783),2)))","v":3.65},null,"YES",3.65,{"$f":"+W783","v":0},3.65,{"$f":"(AG783-AC783)/AG783","v":0},null,1,{"$f":"SUM(AI783:AK783)+AE783","v":3.65},null,{"$f":"ROUND(AC783/(1-VLOOKUP(AF783,Group,2,FALSE)),2)","v":3.65},{"$f":"IF(VLOOKUP(AF783,Group,5,FALSE)=\"YES\",VLOOKUP(ROUND(ROUND(AI783,1)-AI783,2),Round,2,FALSE)+VLOOKUP(AF783,Group,6,FALSE),0)","v":0},{"$f":"IF(VLOOKUP(AF783,Group,7,FALSE)=\"\",0,ROUND(AI783-0.04999,1)-AI783+AL783)","v":0},{"$f":"IF(VLOOKUP(AF783,Group,7,FALSE)=\"\",\"\",VLOOKUP(AF783,Group,7,FALSE))","v":""},null,"X"]
[null,"Field Tile",null,null,"12\" x 24\"",null,"Field",null,null,null,null,null,null,null,null,"15.30 SF/CTN","Stock",null,{"$f":"IF(Suggested=\"Yes\",AA784,AG784)","v":4.0999999999999996},"SF",{"$f":"+Instructions!$B$21","v":"G"},null,{"$f":"+Instructions!$C$21","v":0},{"$f":"IF(Instructions!$C$21=\"Group\",#REF!,IF(Instructions!$C$21=\"Carter\",#REF!,ROUNDUP($AA784*(1-W784),2)))","v":4.0999999999999996},null,"YES",4.0999999999999996,0,4.0999999999999996,{"$f":"(AG784-AC784)/AG784","v":0},null,1,{"$f":"SUM(AI784:AK784)+AE784","v":4.0999999999999996},null,{"$f":"ROUND(AC784/(1-VLOOKUP(AF784,Group,2,FALSE)),2)","v":4.0999999999999996},{"$f":"IF(VLOOKUP(AF784,Group,5,FALSE)=\"YES\",VLOOKUP(ROUND(ROUND(AI784,1)-AI784,2),Round,2,FALSE)+VLOOKUP(AF784,Group,6,FALSE),0)","v":0},{"$f":"IF(VLOOKUP(AF784,Group,7,FALSE)=\"\",0,ROUND(AI784-0.04999,1)-AI784+AL784)","v":0},{"$f":"IF(VLOOKUP(AF784,Group,7,FALSE)=\"\",\"\",VLOOKUP(AF784,Group,7,FALSE))","v":""},null,"X"]
[null,null,null,null,null,null,null,null,null,null,null,null,null,null,null,null,null,null,null,null,null,null,null,null,null,null,null,null,null,null,null,null,null,null,null,null,null,null,null,"X"]
[null,"Decos",null,null,"12\" x 12\"",null,"M122",null,"Mosaic 2\" x 2\" Mesh-Mounted ",null,null,null,null,null,null,null,"Stock",null,{"$f":"IF(Suggested=\"Yes\",AA786,AG786)","v":23.05},"EA",{"$f":"+Instructions!$B$21","v":"G"},null,{"$f":"+Instructions!$C$21","v":0},{"$f":"IF(Instructions!$C$21=\"Group\",#REF!,IF(Instructions!$C$21=\"Carter\",#REF!,ROUNDUP($AA786*(1-W786),2)))","v":23.05},null,"YES",23.05,{"$f":"+W786","v":0},{"$f":"+X786","v":23.05},{"$f":"(AG786-AC786)/AG786","v":0},null,3,{"$f":"SUM(AI786:AK786)+AE786","v":23.05},null,{"$f":"ROUND(AC786/(1-VLOOKUP(AF786,Group,2,FALSE)),2)","v":23.05},{"$f":"IF(VLOOKUP(AF786,Group,5,FALSE)=\"YES\",VLOOKUP(ROUND(ROUND(AI786,1)-AI786,2),Round,2,FALSE)+VLOOKUP(AF786,Group,6,FALSE),0)","v":0},{"$f":"IF(VLOOKUP(AF786,Group,7,FALSE)=\"\",0,ROUND(AI786-0.04999,1)-AI786+AL786)","v":0},{"$f":"IF(VLOOKUP(AF786,Group,7,FALSE)=\"\",\"\",VLOOKUP(AF786,Group,7,FALSE))","v":""},null,"X"]
[null,null,null,null,null,null,null,null,null,null,null," ",null,null,null,null,null,null,null,null,null,null,null,null,null,null,null,null,null,null,null,null,null,null,null,null,null,null,null,"X"]
[null,"Trim",null,null,"3\" x 12\"",null,"P43C9",null,"Bullnose",null,null,null,null,null,null,null,"Stock",null,{"$f":"IF(Suggested=\"Yes\",AA788,AG788)","v":8},"EA",{"$f":"+Instructions!$B$21","v":"G"},null,{"$f":"+Instructions!$C$21","v":0},{"$f":"IF(Instructions!$C$21=\"Group\",#REF!,IF(Instructions!$C$21=\"Carter\",#REF!,ROUNDUP($AA788*(1-W788),2)))","v":8},null,"YES",8,{"$f":"+W788","v":0},{"$f":"+X788","v":8},{"$f":"(AG788-AC788)/AG788","v":0},null,2,{"$f":"SUM(AI788:AK788)+AE788","v":8},null,{"$f":"ROUND(AC788/(1-VLOOKUP(AF788,Group,2,FALSE)),2)","v":8},{"$f":"IF(VLOOKUP(AF788,Group,5,FALSE)=\"YES\",VLOOKUP(ROUND(ROUND(AI788,1)-AI788,2),Round,2,FALSE)+VLOOKUP(AF788,Group,6,FALSE),0)","v":0},{"$f":"IF(VLOOKUP(AF788,Group,7,FALSE)=\"\",0,ROUND(AI788-0.04999,1)-AI788+AL788)","v":0},{"$f":"IF(VLOOKUP(AF788,Group,7,FALSE)=\"\",\"\",VLOOKUP(AF788,Group,7,FALSE))","v":""},null,"X"]
[null,null,null,null,null,null,null,null,null,null,null,null,null,null,null,null,null,null,null,null,null,null,null,null,null,null,null,null,null,null,null,null,null,null,null,null,null,null,null,"X"]
[null,null,"URBAN FOUNDRYHDP - Color Body Glazed Porcelain",null,null,null,null,null,null,null,null,null,null,null,null,null,null,"Item # Lookup:","FTFDY"]
[null,null,null,null,null,null,null,null,null,null,null,null,null,null,null,null,null,null,null,null,null,null,null,null,null,null,null,null,null,null,null,null,null,null,null,null,null,null,null,"X"]
[null,null,null,"Colors:","FDY10 Alumina*         FDY20 Cast Nickel         FDY30 Graphite         FDY40 Iron Oxide",null,null,null,null,null,null,null,null,null,null,null,null,null,null,null,null,null,null,null,null,null,null,null,null,null,null,null,null,null,null," ",null,null,null,"X"]
[null,null,null,null,null,null,null,null,null,null,null,null,null,null,null,null,null,null,null,null,null,null,null,null,null,null,null,null,null,null,null,null,null,null,null,null,null,null,null,"X"]
[null,"Field Tile",null,null,"12\" x 24\"",null,"Field",null,null,null,null,null,null,null,null,"15.30 SF/CTN",null,null,{"$f":"IF(Suggested=\"Yes\",AA794,AG794)","v":6.5},"SF",{"$f":"+Instructions!$B$21","v":"G"},null,{"$f":"+Instructions!$C$21","v":0},{"$f":"IF(Instructions!$C$21=\"Group\",#REF!,IF(Instructions!$C$21=\"Carter\",#REF!,ROUNDUP($AA794*(1-W794),2)))","v":6.5},null,"YES",6.5,{"$f":"+W794","v":0},{"$f":"+X794","v":6.5},{"$f":"(AG794-AC794)/AG794","v":0},null,1,{"$f":"SUM(AI794:AK794)+AE794","v":6.5},null,{"$f":"ROUND(AC794/(1-VLOOKUP(AF794,Group,2,FALSE)),2)","v":6.5},{"$f":"IF(VLOOKUP(AF794,Group,5,FALSE)=\"YES\",VLOOKUP(ROUND(ROUND(AI794,1)-AI794,2),Round,2,FALSE)+VLOOKUP(AF794,Group,6,FALSE),0)","v":0},{"$f":"IF(VLOOKUP(AF794,Group,7,FALSE)=\"\",0,ROUND(AI794-0.04999,1)-AI794+AL794)","v":0},{"$f":"IF(VLOOKUP(AF794,Group,7,FALSE)=\"\",\"\",VLOOKUP(AF794,Group,7,FALSE))","v":""},null,"X"]
[]
[null,"Decos",null,null,"12\" x 12\"",null,"M12",null,"Mosaic 2-1/4\" x 2-1/4\" Mesh-Mounted ",null,null,null,null,null,null,"5 EA/CTN",null,null,{"$f":"IF(Suggested=\"Yes\",AA796,AG796)","v":23.55},"EA",{"$f":"+Instructions!$B$21","v":"G"},null,{"$f":"+Instructions!$C$21","v":0},{"$f":"IF(Instructions!$C$21=\"Group\",#REF!,IF(Instructions!$C$21=\"Carter\",#REF!,ROUNDUP($AA796*(1-W796),2)))","v":23.55},null,"YES",23.55,{"$f":"+W796","v":0},{"$f":"+X796","v":23.55},{"$f":"(AG796-AC796)/AG796","v":0},null,3,{"$f":"SUM(AI796:AK796)+AE796","v":23.55},null,{"$f":"ROUND(AC796/(1-VLOOKUP(AF796,Group,2,FALSE)),2)","v":23.55},{"$f":"IF(VLOOKUP(AF796,Group,5,FALSE)=\"YES\",VLOOKUP(ROUND(ROUND(AI796,1)-AI796,2),Round,2,FALSE)+VLOOKUP(AF796,Group,6,FALSE),0)","v":0},{"$f":"IF(VLOOKUP(AF796,Group,7,FALSE)=\"\",0,ROUND(AI796-0.04999,1)-AI796+AL796)","v":0},{"$f":"IF(VLOOKUP(AF796,Group,7,FALSE)=\"\",\"\",VLOOKUP(AF796,Group,7,FALSE))","v":""},null,"X"]
[]
[null,"Trim",null,null,"3\" x 24\"",null,"P43N9",null,"Bullnose",null,null,null,null,null,null,null,null,null,{"$f":"IF(Suggested=\"Yes\",AA798,AG798)","v":14.45},"EA",{"$f":"+Instructions!$B$21","v":"G"},null,{"$f":"+Instructions!$C$21","v":0},{"$f":"IF(Instructions!$C$21=\"Group\",#REF!,IF(Instructions!$C$21=\"Carter\",#REF!,ROUNDUP($AA798*(1-W798),2)))","v":14.45},null,"YES",14.45,{"$f":"+W798","v":0},{"$f":"+X798","v":14.45},{"$f":"(AG798-AC798)/AG798","v":0},null,2,{"$f":"SUM(AI798:AK798)+AE798","v":14.45},null,{"$f":"ROUND(AC798/(1-VLOOKUP(AF798,Group,2,FALSE)),2)","v":14.45},{"$f":"IF(VLOOKUP(AF798,Group,5,FALSE)=\"YES\",VLOOKUP(ROUND(ROUND(AI798,1)-AI798,2),Round,2,FALSE)+VLOOKUP(AF798,Group,6,FALSE),0)","v":0},{"$f":"IF(VLOOKUP(AF798,Group,7,FALSE)=\"\",0,ROUND(AI798-0.04999,1)-AI798+AL798)","v":0},{"$f":"IF(VLOOKUP(AF798,Group,7,FALSE)=\"\",\"\",VLOOKUP(AF798,Group,7,FALSE))","v":""},null,"X"]
[null,null,null,null,null,null,null,null,null,null,null,null,null,null,null,null,null,null,null,null,null,null,null,null,null,null,null,null,null,null,null,null,null,null,null,null,null,null,null,"X"]
[null,null," ","Note:","*The color FDY10 Alumina is manufactured utilizing a standard body in order to maintain the integrity of this lighter color.",null,null,null,null,null,null,null,null,null,null,null,null,null,null,null,null,null,null,null,null,null,null,null,null,null,null,null,null,null,null," ",null,null,null,"X"]
[null,null,null,null,null,null,null,null,null,null,null,null,null,null,null,null,null,null,null,null,null,null,null,null,null,null,null,null,null,null,null,null,null,null,null,null,null,null,null,"X"]
[null,null,null,null,null,null,null,null,null,null,null,null,null,null,null,null,null,null,null,null,null,null,null,null,null,null,null,null,null,null,null,null,null,null,null,null,null,null,null,"X"]
[null,null,null,null,null,null,null,null,null,null,null,null,null,null,null,null,null,null,null,null,null,null,null,null,null,null,null,null,null,null,null,null,null,null,null,null,null,null,null,"X"]
[null,null,null,null,null,null,null,null,null,null,null,null,null,null,null,null,null,null,null,null,null,null,null,null,null,null,null,null,null,null,null,null,null,null,null,null,null,null,null,"X"]
[null,null,null,null,null,null,null,null,null,null,null,null,null,null,null,null,null,null,null,null,null,null,null,null,null,null,null,null,null,null,null,null,null,null,null,null,null,null,null,"X"]
[null,null,null,null,null,null,null,null,null,null,null,null,null,null,null,null,null,null,null,null,null,null,null,null,null,null,null,null,null,null,null,null,null,null,null,null,null,null,null,"X"]
[null,null,null,null,null,null,null,null,null,null,null,null,null,null,null,null,null,null,null,null,null,null,null,null,null,null,null,null,null,null,null,null,null,null,null,null,null,null,null,"X"]
[null,null,null,null,null,null,null,null,null,null,null,null,null,null,null,null,null,null,null,null,null,null,null,null,null,null,null,null,null,null,null,null,null,null,null,null,null,null,null,"X"]
[null,null,null,null,null,null,null,null,null,null,null,null,null,null,null,null,null,null,null,null,null,null,null,null,null,null,null,null,null,null,null,null,null,null,null,null,null,null,null,"X"]
[null,null,null,null,null,null,null,null,null,null,null,null,null,null,null,null,null,null,null,null,null,null,null,null,null,null,null,null,null,null,null,null,null,null,null,null,null,null,null,"X"]
[null,null,null,null,null,null,null,null,null,null,null,null,null,null,null,null,null,null,null,null,null,null,null,null,null,null,null,null,null,null,null,null,null,null,null,null,null,null,null,"X"]
[null,null,null,null,null,null,null,null,null,null,null,null,null,null,null,null,null,null,null,null,null,null,null,null,null,null,null,null,null,null,null,null,null,null,null,null,null,null,null,"X"]
[null,null,null,null,null,null,null,null,null,null,null,null,null,null,null,null,null,null,null,null,null,null,null,null,null,null,null,null,null,null,null,null,null,null,null,null,null,null,null,"X"]
[null,null,null,null,null,null,null,null,null,null,null,null,null,null,null,null,null,null,null,null,null,null,null,null,null,null,null,null,null,null,null,null,null,null,null,null,null,null,null,"X"]
[null,null,null,null,null,null,null,null,null,null,null,null,null,null,null,null,null,null,null,null,null,null,null,null,null,null,null,null,null,null,null,null,null,null,null,null,null,null,null,"X"]
[null,null,null,null,null,null,null,null,null,null,null,null,null,null,null,null,null,null,null,null,null,null,null,null,null,null,null,null,null,null,null,null,null,null,null,null,null,null,null,"X"]
[null,null,null,null,null,null,null,null,null,null,null,null,null,null,null,null,null,null,null,null,null,null,null,null,null,null,null,null,null,null,null,null,null,null,null,null,null,null,null,"X"]
[null,null,null,null,null,null,null,null,null,null,null,null,null,null,null,null,null,null,null,null,null,null,null,null,null,null,null,null,null,null,null,null,null,null,null,null,null,null,null,"X"]
[null,null,null,null,null,null,null,null,null,null,null,null,null,null,null,null,null,null,null,null,null,null,null,null,null,null,null,null,null,null,null,null,null,null,null,null,null,null,null,"X"]
[null,null,null,null,null,null,null,null,null,null,null,null,null,null,null,null,null,null,null,null,null,null,null,null,null,null,null,null,null,null,null,null,null,null,null,null,null,null,null,"X"]
[null,null,null,null,null,null,null,null,null,null,null,null,null,null,null,null,null,null,null,null,null,null,null,null,null,null,null,null,null,null,null,null,null,null,null,null,null,null,null,"X"]
[null,null,null,null,null,null,null,null,null,null,null,null,null,null,null,null,null,null,null,null,null,null,null,null,null,null,null,null,null,null,null,null,null,null,null,null,null,null,null,"X"]
[null,null,null,null,null,null,null,null,null,null,null,null,null,null,null,null,null,null,null,null,null,null,null,null,null,null,null,null,null,null,null,null,null,null,null,null,null,null,null,"X"]
[null,null,null,null,null,null,null,null,null,null,null,null,null,null,null,null,null,null,null,null,null,null,null,null,null,null,null,null,null,null,null,null,null,null,null,null,null,null,null,"X"]
[null,null,null,null,null,null,null,null,null,null,null,null,null,null,null,null,null,null,null,null,null,null,null,null,null,null,null,null,null,null,null,null,null,null,null,null,null,null,null,"X"]
[null,null,null,null,"  ",null,null,null,null,null,null,null,null,null,null,null,null,null,null,null,null,null,null,null,null,null,null,null,null,null,null,null,null,null,null,null,null,null,null,"X"]
[null,null,"This price list is available electronically on an Excel spreadsheet at www.conestogatile.com/pricelists.",null,null,null,null,null,null,null,null,null,null,null,null,null,null,null,null,null,null,null,null,null,null,null,null,null,null,null,null,null,null,null,null,null,null,null,null,"X"]
[null,null,null,null,null,null,null,null,null,null,null,null,null,null,null,null,null,null,null,null,null,null,null,null,null,null,null,null,null,null,null,null,null,null,null,null,null,null,null,"X"]
[null,null,"The spreadsheet has many special features to assist you.  Apply your discount to generate your net costs for your purchasing department.  Apply your standard gross margin percentage or custom prices to generate your own custom price list for your showroom.  Print out individual price list for each series that can be attached to the back of your sample boards for easy reference.",null,null,null,null,null,null,null,null,null,null,null,null,null,null,null,null,null,null,null,null,null,null,null,null,null,null,null,null,null,null,null,null,null,null,null,null,"X"]
["X","X","X","X","X","X","X","X","X","X","X","X","X","X","X","X","X","X","X","X","X","X","X","X","X","X","X","X","X","X","X","X","X","X","X","X","X","X","X","X"]
[]
[null,null,null,"$.05 Round Matrix"]
[null,null,null,-0.04,0.01]
[null,null,null,-0.03,0.02]
[null,null,null,-0.02,0.03]
[null,null,null,-0.01,-0.01]
[null,null,null,0,0]
[null,null,null,0.01,1.0000000000005116E-2]
[null,null,null,0.02,2.0000000000003126E-2]
[null,null,null,0.03,3.0000000000001137E-2]
[null,null,null,0.04,-0.01]
[null,null,null,0.05,0]

{"sheet":"Websites","index":3,"n_rows":46,"n_cols":10,"rows_kept":46,"cut":false,"hidden":false,"merged":[]}
["Easy Access Website links"]
[null,null,null," "]
["ConestogaTile's Website","www.conestogatile.com"]
[null,null,null,null,null,null,null,null,null," "]
["Manufacturer's Home Page","www.floridatile.com"]
[]
[]
["Product","Direct Website Link"]
["Ainslee ParkHDP","http://www.floridatile.com/products/ainslee-park"]
["AlustraHDP","https://www.floridatile.com/products/alustra/"]
["Amplify","https://www.floridatile.com/products/amplify/"]
["Artecrete","https://www.floridatile.com/products/artecrete/"]
["Aura","https://www.floridatile.com/products/aura/"]
["Bellanova","https://www.floridatile.com/products/bellanova/"]
["BerkshireHDP","http://www.floridatile.com/products/berkshire"]
["BlueRunHDP","https://www.floridatile.com/products/bluerun/"]
["Canal StreetHDP","https://www.floridatile.com/products/canalstreet/"]
["CellarHDP","http://www.floridatile.com/products/cellar"]
["Claymont","https://www.floridatile.com/products/claymont/"]
["Comfort","https://www.floridatile.com/products/comfort/"]
["ContinentDP","http://www.floridatile.com/products/continent"]
["Emotive","https://www.floridatile.com/products/emotive/"]
["EnchantHDP","https://www.floridatile.com/products/enchant/"]
["ExcursionHDP","https://www.floridatile.com/products/excursion/"]
["Fluent","https://www.floridatile.com/products/fluent/"]
["GravitateHDP","https://www.floridatile.com/products/gravitate/"]
["High RidgeHDP","https://www.floridatile.com/products/highridge/"]
["Indulge","https://www.floridatile.com/products/indulge/"]
["MagnoliaHDP","http://www.floridatile.com/products/magnolia"]
["MineralHDP","https://www.floridatile.com/products/2cm-porcelain-pavers-mineral/"]
["NY2LAHDP","http://www.floridatile.com/products/ny2la"]
["PassengerHDP","https://www.floridatile.com/products/passenger/"]
["PietraArt Pebbles","http://www.floridatile.com/products/pietra-art-pebbles"]
["PreciousHDP ","http://www.floridatile.com/products/precious"]
["Rhyme","http://floridatile.com/products/rhyme"]
["SequenceHDP","http://www.floridatile.com/products/sequence"]
["SerendipityHDP ","https://www.floridatile.com/products/serendipity/"]
["Soho","https://www.floridatile.com/products/soho/"]
["Songbird","https://www.floridatile.com/products/songbird/"]
["SpanHDP","https://www.floridatile.com/products/2cm-porcelain-pavers-span/"]
["Storied","https://www.floridatile.com/products/storied/"]
["Tempo","https://www.floridatile.com/products/tempo/"]
["TidesHDP","https://floridatile.com/products/tides/"]
["Time 2.0","http://www.floridatile.com/products/time2_0"]
["Tuscan VillaHDP","https://www.floridatile.com/products/tuscan-villa/"]
["Urban FoundryHDP","https://www.floridatile.com/products/urban-foundry/"]

{"sheet":"Changes","index":4,"n_rows":660,"n_cols":3,"rows_kept":660,"cut":false,"hidden":false,"merged":[[0,2,1,2]]}
["Date",null,"Description"]
["Announced","Series"]
["New Products"]
["2006-02-27","Retroclassic","S4369 & SN4369"]
["2006-03-01","Hamlet Manor"]
["2006-03-01","Horizon"]
["2006-03-01","Pinecrest"]
["2006-06-06","Stonehenge"]
["2006-04-17","Livingston"]
["2006-04-27","Scottish"]
["2006-04-27","Pietra Art Chiseled Edge Travertine"]
["2006-04-27","Pietra Art Mosaics"]
["2006-05-15","Hamlet Wall Tile"]
["2006-05-15","Terrace"]
["2006-05-24","Las Olas","added 13\"x13\", P43D9"]
["2006-08-10","Cotto"]
["2008-01-01","Urbanite","Throughbody Porcelain"]
["2008-01-01","Phoenix"]
["2008-12-01","Ashton"]
["2008-12-01","Cast Stone Fixtures"]
["2008-12-01","Millenia","Glazed Porcelain"]
["2008-12-01","Pietra Art Granite & Marble","GM024 - Teos Green & GM025 - Emperador Light colors in 12\"x12\" added."]
["2008-12-01","Pietra Art Mexican Travertine Planks"]
["2008-12-01","Pietra Art Tumbled Marble"]
["2009-04-01","Renaissance","Glazed Porcelain Floor Satin Finish & Glazed Ceramic Wall Gloss Finish"]
["2009-04-01","Progetto Casa","Throughbody Porcelain"]
["2009-04-01","Savannah","Glazed Porcelain floor & Ceramic wall"]
["2009-04-01","Soul","Glazed Porcelain"]
["2009-04-01","Taconic Slate","Glazed Porcelain "]
["2009-05-21","Metal Art Signature","Cast Metal Decorative Accents"]
["2009-07-02","Metal Art Matrix","Stainless Steel Decorative Accents"]
["2009-07-02","Taconic Slate","Cove Base and Cove Base Corners added to Series"]
["2009-07-21","Fontana","Glazed Porcelain"]
["2009-08-14","Formations","Through-Body Porcelain"]
["2009-09-15","LegendHDP","Color-Body Glazed Porcelain (High Definition Porcelain)"]
["2009-12-01","Metal Art Ornaments","Metallic Resin Accents"]
["2010-01-04","Pietra Art Slate & Tumbled Slate","Ledger Stone 6” x 24” panels in colors NS300 Ash, NS302 Ember, NS304 Coal  and NS306 Smoke.  Also ¾” x 12” Liners in colors African Gold, California Gold,  Copper, Indian Autumn and Multi."]
["2010-02-25","Mosaic Art Fresco","Glazed Porcelain Mosaics"]
["2010-06-28","ParamountHDP","Color-Body Glazed Porcelain (High Definition Porcelain)"]
["2010-06-28","Streamline","Ceramic Wall Tile"]
["2010-10-25","QuartezHDP","Color-Body Glazed Porcelain (High Definition Porcelain)"]
["2010-11-23","VitraArt Harmony","Glass"]
["2010-11-23","VitraArt Tranquil","Glass"]
["2011-01-17","PietraArt Bliss","Natural Stone & Glass"]
["2011-01-17","PietraArt Slate","Addition of 6\" x 24\" Ledger Stone Corners."]
["2011-03-04","Pristine","Glazed Porcelain Floor & Ceramic Wall"]
["2011-06-24","Grandeur","Color-Body Glazed Porcelain (High Definition Porcelain)"]
["2011-06-24","Berkshire","Color-Body Glazed Porcelain (High Definition Porcelain)"]
["2011-06-24","PietraArt Travertine","Addition of colors P010 Silver and P040 Scabos."]
["2011-06-24","Formations","Addition of 12\" x 24\" Field Tile size."]
["2011-06-24","LegendHDP","Addition of 12\" x 24\" Field Tile size."]
["2011-06-24","Progetto Casa","Addition of 12\" x 24\" Field Tile size."]
["2011-06-24","Soul","Addition of 12\" x 24\" Field Tile size."]
["2011-07-07","Pietra Art Polished Travertine","Addition of colors 90410 Silver Travertine and 90440 Scabos Travertine, (Noce color  replaced with 90490 Walnut Travertine color), Noce color 12\" x 12\", 18\" x 18\" field tile sizes and 2\" x 4\"  polished and beveled mosaics."]
["2011-07-07","Pietra Art Chiseled Edge Travertine","Color Scabos added to line, (Noce color replaced with Walnut color), Straight Edge/Brushed  finish added to line as well as a Random Sized Pattern mosaic. "]
["2011-08-08","STELLARHDP","Through-Body Glazed Porcelain (High Definition Porcelain)"]
["2012-01-10","PIETRA ART BLISS","Six new colors added to each of the 2 mosaic formats."]
["2012-03-10","GallantHDP","Glazed Porcelain Floor & Ceramic Wall (High Definition Porcelain)"]
["2012-05-31","Pietra Art Mexican Travertine","18\" x 18\" Field tile size. (replaces 16\" x 16\" size)"]
["2012-05-31","Pietra Art Mexican Travertine","L3x12 3\" x 12\" Listello Filled & Honed available in colors 90301 Desert Cream Blend,  90302 Noce Blend & 90303 Desert Cream/Noce Blend."]
["2012-05-31","Pietra Art Mexican Travertine","Porcelain I4x4 4\" x 4\" 3 Piece Deco Set & I2x2 2\" x 2\" 4 Piece Deco Set available in  color 90303 Desert Cream/Noce."]
["2012-05-31","Pietra Art Mexican Travertine","FP12 Fireplace Mosaic, SFM1x2 1\" x 2\" Split Face Mosaic, CR2x12 2\" x 12\" Chair Rail  Molding & MR3/4x12 4\" x 12\" Pencil Molding available in colors 90325 Noce & 90333  Desert Cream Imperial.  These items are Filled & Honed."]
["2012-05-31","Pietra Art Mexican Travertine","Domed Field tile sizes 3\" x 6\", 4\" x 4\" & 6\" x 6\" and DM4x9 Domed 4\" x 9\" Diamond  Mosaic & DBW12 Domed Basketweave Mosaic.  These items are Filled & Honed and  available in colors D90325 Noce & D90333 Desert Cream Imperial."]
["2012-05-31","Pietra Art Mexican Travertine","M125/8 P90300 Fusion 5/8\" x 5/8\" Mosaic."]
["2012-05-31","Pietra Art Mexican Travertine","Vein Cut Field tile sizes 3\" x 6\", 4\" x 4\", 6\" x 6\" & 12\" x 12\" and M122 Vein Cut 2\" x 2\"  Mosaic  & 1x2 Vein Cut Mosaic.  Also CR1x12 Chair Rail 1\" x 12\" Molding Vein Cut  & CR2.5x12 Chair Rail 2-1/2\" x 12\" Molding Vein Cut.  All items available in colors  P90325 Noce & P90333 Desert Cream Imperial and are Filled & Polished. "]
["2012-08-06","Cinema","Glazed Porcelain Floor & Ceramic Wall (High Definition Porcelain)"]
["2012-10-24","CraftsmanDP","Glazed Porcelain Floor & Wall (Digital Porcelain)"]
["2012-11-19","NaturaHDP","Color-Body Glazed Porcelain (High Definition Porcelain)"]
["2013-02-19","CliffsideHDP","Color-Body Glazed Porcelain (High Definition Porcelain)"]
["2013-02-19","Savannah","6\" x 12\" P36C9 Cove Base and 1\" x 6\" PB3169 Cove Base Corner added to line in  colors 24301 Magnolia White, 24324 Cobblestone Taupe & 24330 Plantation Beige only."]
["2013-02-19","Streamline New","Glazed Ceramic"]
["2013-02-19","TidesHDP","Glazed Porcelain (High Definition Porcelain)"]
["2013-03-25","Aventis","Through Body Procelain"]
["2013-06-27","MagnoliaHDP","Color-Body Glazed Porcelain (High Definition Porcelain)"]
["2013-06-27","MingleHDP","Glazed Porcelain  (High Definition Porcelain)"]
["2013-07-11","Time 2.0","Through Body Porcelain"]
["2014-04-01","PietraArt Bliss","8 colors added to the RSP5/8 Random Size Linear Mosaics."]
["2014-05-13","Pietra Art Pebbles","5 colors of Flat Pebbles Mosaics on a 12\" x 12\" Mesh-Mounted Interlocking Sheet have been added to line:  FP102 Black Pearl, FP103 White Snowball, FP104 Mixed Salad, FP105 Redwood and FP306 Cotton.  (Color SP104 Rainbow 4\" x 12\" Standing Pebbles Mosaic has been renamed SP104 Mixed Salad.)"]
["2014-09-02","MalteseDP","Glazed Porcelain Floor & Ceramic Wall (Digital Porcelain)"]
["2014-09-02","MarquisDP","Glazed Porcelain Floor & Ceramic Wall (High Definition Porcelain)"]
["2014-09-04","ContinentDP","Glazed Porcelain Floor & Wall (Digital Porcelain)"]
["2015-02-26","VitraArt Fusion","Glass 5/8\" Random Strip Mosaic pattern available in eight colors."]
["2015-02-26","VitraArt Stained Glass","Three mosaic patterns available in seven colors."]
["2015-02-26","BerkshireHDP","8\" x 36\" Field Tile size and 12\" x 12\" Parquet Mosaic added and are available in all colors."]
["2015-03-30","Aventis Thinner","Thin (3.5 mm) Through-Body Porcelain "]
["2015-03-30","EarthstoneHDP","Glazed Porcelain (High Definition Porcelain)"]
["2015-03-30","RestoreHDP Thinner","Thin (5.5 mm) Through-Body Porcelain (High Definition Porcelain)"]
["2015-03-30","Time 2.0 Thinner","Thin (3.5 mm) Through-Body Porcelain"]
["2015-04-29","Rhyme","Color-Body Glazed Porcelain Floor & Wall Tile"]
["2015-05-05","Level 10HDP","Color-Body Glazed Porcelain Floor & Wall Tile (High Definition Porcelain)"]
["2015-10-27","AlavaHDP","Glazed Porcelain Floor & Wall (High Definition Porcelain)"]
["2015-10-27","ImperoHDP","Glazed Porcelain Wall Tile (High Definition Porcelain)"]
["2015-10-27","MosaicArt Epic","Glazed Porcelain Floor & Wall Mosaics"]
["2015-10-27","ReliveHDP","Glazed Porcelain Floor & Wall (High Definition Porcelain)"]
["2015-10-27","Retroclassique","Glazed Ceramic Wall Tile"]
["2016-01-05","MyBrickHDP","Glazed Porcelain Wall Tile (High Definition Porcelain)"]
["2016-03-02","KeralaHDP","Color Body Porcelain Floor & Wall Tile (High Definition Porcelain)"]
["2016-03-02","CellarHDP","Color Body Porcelain (High Definition Porcelain)"]
["2016-07-28","SpanHDP","Color Body Porcelain Floor & Wall Tile (High Definition Porcelain)"]
["2016-09-13","NexaHDP","Color Body Porcelain Floor & Wall Tile (High Definition Porcelain)"]
["2016-10-31","PietraArt Ledgerstone","A hand-assembled, three-dimensional panel made from Slate, Marble and vein-cut Marble and Travertine.  The long, linear pieces of varying heights and textures combine to create a product that blends old-world character with modern design.  (Four of the Slate L6x24 Ledgerstone panels are being moved into this series from the series formally known as Pietra Art Slate & Tumbled Slate.)"]
["2016-11-21","SequenceHDP","Color Body Porcelain Floor & Wall Tile (High Definition Porcelain)"]
["2017-03-13","Glamour","Glazed Porcelain Floor & Ceramic Wall Tile"]
["2017-03-13","PreciousHDP","Glazed Porcelain Floor & Ceramic Wall Tile (High Definition Porcelain)"]
["2017-09-12","DistilleryHDP","Glazed Porcelain Floor & Wall Tile (High Definition Porcelain)"]
["2017-09-12","Edge","Through-Body Porcelain"]
["2017-09-12","NY2LAHDP","Color Body Porcelain Floor & Wall Tile (High Definition Porcelain)"]
["2017-09-12","WexfordHDP","Color Body Porcelain Floor & Wall Tile (High Definition Porcelain)"]
["2018-01-03","Ainslee ParkHDP","Glazed Porcelain Floor & Ceramic Wall (High Definition Porcelain)"]
["2018-01-03","GenesisHDP","Glazed Porcelain Floor & Wall Tile (High Definition Porcelain)"]
["2018-02-28","VitraArt Peace of Mind","Glass Field Tiles and Mosaics"]
["2018-03-23","MingleHDP","3.75\" x 12\" Field Tile format added."]
["2018-03-23","Rhyme","3.75\" x 12\" Field Tile format added."]
["2018-03-23","SequenceHDP","3.75\" x 12\" Field Tile format added."]
["2018-03-23","TidesHDP","3.75\" x 12\" Field Tile format added."]
["2018-03-23","Time 2.0","3.75\" x 12\" Field Tile format added to both Natural & Polished finishes."]
["2018-08-20","DivinityHDP","Color Body Glazed Porcelain Floor & Wall (High Definition Porcelain)"]
["2018-08-20","LocalHDP","Glazed Porcelain Floor & Wall (High Definition Porcelain)"]
["2018-08-20","Thicker Collections","Ultra-Thick Outdoor Porcelain Pavers (High Definition Porcelain).  Available in the following Series:  CadoreHDP, MineralHDP, QuestHDP, ReliveHDP and SpanHDP."]
["2018-09-27","Pietra Art Premier Marble","Natural Stone"]
["2019-03-01","EnchantHDP","Glazed Porcelain Floor & Wall (High Definition Porcelain)"]
["2019-03-01","Soul","P43N9 3\" x 24\" Bullnose in all colors added."]
["2019-06-28","Tuscan VillaHDP","Glazed Porcelain Floor & Wall (High Definition Porcelain)"]
["2019-07-24","ExcursionHDP","Glazed Porcelain Floor & Wall (High Definition Porcelain)"]
["2019-10-08","PietraArt Travertine","This series has been updated."]
["2020-03-06","ModtiqueHDP","Color Body Glazed Porcelain Floor & Wall Tile (High Definition Porcelain)"]
["2020-04-23","Lost RiverHDP","Color Body Porcelain Floor & Wall Tile (High Definition Porcelain)"]
["2020-05-07","Stark","Glazed Porcelain Floor & Ceramic Wall"]
["2020-06-11","Urban FoundryHDP","Color Body Porcelain Floor & Wall Tile (High Definition Porcelain)"]
["2020-09-24","Amplify","Glazed Ceramic Wall Tile (Rectified)."]
["2020-09-24","Emotive","Glazed Ceramic Wall Tile."]
["2020-11-10","East VillageHDP","Color Body Porcelain Floor & Wall Tile (High Definition Porcelain)."]
["2021-01-26","Lost RiverHDP","Color LRV80 Silver L1/4x24 Metal Wall Liner added."]
["2021-04-13","CraftsmanDP","24\" x 24\" Field Tile format added and is available in all colors."]
["2021-07-15","Pietra Art Pebbles","4 colors of Flat Pebbles Mosaics have been added to line:  FP201 Rustic Birch, FP203R Island White, SACP002 Navajo White and SACP004 Silver Quartz.  1 color of Round Pebbles Mosaic has been added, PT316 Orion."]
["2021-07-15","SequenceHDP","24\" x 48\" Field Tile format added and is currently available in colors 34901 Breeze, 34915 Current and 34938 Drift."]
["2021-08-13","PreciousHDP","24\" x 48\" x 9mm Floor Field Tile format added in color 35001 Calacatta."]
["2021-10-01","SerendipityHDP","Color Body Porcelain Floor & Wall Tile (High Definition Porcelain)"]
["2022-01-07","SequenceHDP","8\" x 48\" x 9mm Field Tile format added and is available in colors 34901 Breeze, 34915 Current and 34938 Drift only."]
["2022-08-12","High RidgeHDP","Glazed Porcelain Floor & Wall Tile (High Definition Porcelain)."]
["2022-08-12","Songbird","Glazed Ceramic Wall Tile."]
["2022-09-27","AlustraHDP","Color Body Porcelain Floor & Wall Tile (High Definition Porcelain)"]
["2022-09-27","Aura","Glazed Porcelain Floor & Wall Tile"]
["2022-09-27","GravitateHDP","Glazed Porcelain Floor Tile (High Definition Porcelain)"]
["2022-09-27","NY2LAHDP 2CM","Ultra-Thick Outdoor Porcelain Paver"]
["2022-09-27","Soho","Glazed Ceramic Wall Tile & Porcelain Mosaics"]
["2022-09-27","Tempo","Glazed Porcelain Floor & Ceramic Wall Tile"]
["2022-10-05","Memorable","Unglazed Porcelain Floor & Wall Tile"]
["2023-04-13","BlueRunHDP","Color Body Porcelain & 2cm Pavers."]
["2023-04-13","Canal StreetHDP","Color Body Porcelain."]
["2023-04-13","Emotive","Colors True White Glossy and True White Silk added to all formats."]
["2023-04-13","High RidgeHDP","24\" x 36\" Pressed 2cm Porcelain Pavers added.  Also a 12\" x 24\" x 2cm Step Tread format added that is special order with a minimum order quantity of 50 pieces per item."]
["2023-04-13","PassengerHDP","Color Body Porcelain & 2cm Pavers."]
["2023-04-13","Storied","Glazed Ceramic Wall."]
["2023-07-13","Emotive","Colors EMV0G True White Glossy and EMV0S True White Silk added."]
["2023-07-25","Fluent","Glazed Ceramic Wall."]
["2024-07-31","Bellanova","Color Body Glazed Porcelain."]
["2024-07-31","Indulge","Color Body Glazed Porcelain."]
["2024-11-07","Comfort","Glazed Porcelain 10\" x 60\" \"Wood Look\" Planks."]
["2024-11-07","AlustraHDP","2-1/4\" x 2-1/4\" Mosaic format has been added to the Alustra collection.  This mesh-mounted mosaic is available in all five colors in the matte finish only."]
["2025-04-10","Artecrete","Color Body Glazed Porcelain."]
["2025-09-05","Claymont","Glazed Porcelain."]
["2025-09-05","PassengerHDP","24\" x 48\" x 9mm Rectified Floor Field Tile format added and is available in all colors."]
[" "," "]
[null," "]
["Discontinued Products"]
["2006-01-13","Biscayne","Entire Series."]
["2006-01-13","Carmel","Entire Series."]
["2006-01-13","Crystal","Entire Series."]
["2006-01-13","Miner's Mark","Entire Series."]
["2006-01-13","Proselect","Entire Series."]
["2006-01-13","Old World","Entire Series. except L2x13/50900B"]
["2006-01-13","Yukon","Entire Series. except MCR2x12/1803 & MCRS2x12/1803"]
["2006-01-13","Glacier","6x8 and 8x8"]
["2006-01-13","Las Olas","A108, AC108, A8282E & AC8282E"]
["2006-01-13","Bright","A3602 & AN3602"]
["2006-01-13","Matte","A3602 & AN3602"]
["2006-02-27","Retroclassic","S4269 & SN4269"]
["2006-03-17","Ariostea Geo Natura","Color 151A India"]
["2006-03-27","Appalachian Slate","A106 & AC106"]
["2006-03-30","Ariostea Geo Natura","Color 115A Epiro"]
["2006-04-27","Premium Blend","Entire Series."]
["2006-10-03","Belvitra","Entire Series."]
["2006-10-03","Bright","Various Trim Shapes"]
["2006-10-03","Cornerstones","Entire Series."]
["2006-10-03","Designline","Entire Series."]
["2006-10-03","Dots, Ropes, & Rounded Moldings"]
["2006-10-03","EpicStone","Entire Series."]
["2006-10-03","Madeira","Entire Series."]
["2006-10-03","Maison","Entire Series."]
["2006-10-03","Perfect Partners","Entire Series."]
["2006-10-03","Perfect Partners Prem","Entire Series."]
["2006-10-03","Potter's Choice","Entire Series."]
["2006-10-03","Potter's Touch","Entire Series."]
["2006-10-03","Quebec","Entire Series."]
["2006-10-03","Solano","Entire Series."]
["2006-10-03","Stonegate","Entire Series."]
["2006-10-03","TileArt Listellos","Entire Series."]
["2006-10-03","Vessel Art Listellos","Entire Series."]
["2006-10-03","Matte","Various Trim Shapes"]
["2006-10-03","RetroClassic Flair","13\" x 13\" floor tiles"]
["2008-01-01","Ariostea Geo Natura","Entire Series."]
["2008-01-01","Botanical","Entire Series."]
["2008-01-01","Musica","Entire Series."]
["2008-03-18","Metal and Cast Decor","Floral design only 1\"x1\", 2\"x2\" & 1-1/4\"x8 all finishes."]
["2008-12-01","Reno","Entire Series."]
["2008-12-01","PietraArt Limestone","Color Alexandria Beige discontinued in 12x12, 18x18 & 24x24 sizes."]
["2008-12-01","Abilene","Entire Series."]
["2008-12-01","Basalto","Entire Series."]
["2008-12-01","Cheyenne","Entire Series."]
["2008-12-01","Frontier","Entire Series."]
["2008-12-01","Playful","Entire Series."]
["2008-12-01","Tivoli","Entire Series."]
["2008-12-19","Islands","Entire Series."]
["2009-03-15","Creekside","I2.7x2.7 Cool & Warm Fossil Inserts"]
["2009-03-15","Creekside","MCR2x8 & MCRS2x1 in Cool & Warm Fossil & Papyrus Chair Rails & Stops"]
["2009-04-30","Loft","Entire Series."]
["2009-04-30","Metrofusion","Entire Series."]
["2010-01-04","Artsy","Florida Tile is however retaining the following select MRP2x6 Ropes and "]
["   \"","   \"","have made them exclusively part of the RetroClassic Wall series:"]
["   \"","   \"","A001 White, A002 Biscuit, A004 Parchment, A005 Black, A029 Sand Beige, "]
["   \"","   \"","A041 Mellow Gold, A050 Green, A056 Burgundy & A069 Cobalt."]
["2010-01-04","Glass Mosaics - Frosted Dimensions","Entire Series."]
["2010-01-04","Glass Mosaics - Platinum","Entire Series."]
["2010-01-04","Metal and Cast Décor","Entire Series."]
["2010-01-04","Metal Art","Entire Series."]
["2010-01-04","Ozark","Entire Series."]
["2010-01-04","Pietra Art Slate   ","Now known as “Slate & Tumbled Slate”.  The following have been "]
["   \"","   \"","discontinued:  MCR1.5x8 Chair Rails, MR1x12 Pencils, and the colors S006 "]
["   \"","   \"","Peacock, S016 Autumn and S057 Multi in the 4” x 4” and 12” x 12” sizes "]
["   \"","   \"","have been discontinued.  These 4”x4” & 12”x12” sizes can be cross-"]
["   \"","   \"","referenced to existing colors from previously known as line Slate II, now in "]
["   \"","   \"","“Slate & Tumbled Slate”.  Closest crossovers are:  S006 Peacock – 12x12 = "]
["   \"","   \"","IS001 Peacock and 4x4 = IS402 California Gold, S016 Autumn – 12x12 ="]
["   \"","   \""," IS003 Indian Autumn and 4x4 = IS401 Indian Autumn and S057 Multi – "]
["   \"","   \"","12x12 = IS002 Kund Multi and 4x4 = IS400 Kund Multi. "]
["2010-01-04","Pietra Art Slate II & Tumbled Slate   ","Now known as “Slate & Tumbled Slate”.  The following items have been "]
["   \"","   \"","discontinued:  IS007 Multi Pink, IS008 Gold Green, IS009 Ocean Natural &"]
["   \"","   \"","IS010 Zerra 12” x 12” field tiles.  Field tile sizes 8” x 8” and 8” x 16” have "]
["   \"","   \"","been discontinued.  IS610, IS611, IS612, IS613 and IS614 4” x 12” Listello, "]
["   \"","   \"","all 4” x 8” Listello & the M121 1” x 1” mosaics are all discontinued as well."]
["2010-01-04","Resin Art","Entire Series."]
["2010-01-04","RetroClassic","L3x6 Classic Vine Listellos in the Metallic colors:  A011 Metallic Pewter, "]
["   \"","        \"","A013 Metallic Bronze, A040 Metallic Gold, A048 Metallic Haze & "]
["   \"","        \"","A068 Metallic Blue"]
["2010-01-04","Scottish","Entire Series."]
["2010-01-04","Stonehenge","Entire Series."]
["2010-01-04","Villa Antica","Entire Series."]
["2010-01-04","Vitra Art","Entire Series."]
["2010-01-04","Washington","Entire Series."]
["2010-02-25","Mosaic Art","Entire Series. (Being replaced by Mosaic Art Fresco)"]
["2010-10-25","Bright and Matte","Trim shapes S4669 6” x 6” bullnose and SN4669 6” x 6” corner."]
["2010-10-25","Caldera","Entire Series."]
["2010-10-25","Pinecrest","Entire Series."]
["2010-10-25","VITRA ART DIMENSIONS","Entire Series."]
["2011-01-17","VITRA ART MOSAICS","Entire Series."]
["2011-04-11","Bright and Matte","2\"x 6\" and 3\" x 8\" 3077K Provincial Rust and 3030G Vintage Cremo listello.  Also the  "]
["     \"","    \"       \"       \"","3\" x 8\" 3010H Lotus Gris listello. "]
["2011-04-11","Creekside","Color 23194 Russet Brown in the 8\" x 12\" Wall field tile, S4289 & SN4269 Bullnose "]
["     \"","       \"","and Corner."]
["2011-04-11","Gran Canyon","In all Colors; 10\" x 13\" Wall Field tile, S43A9 & SN4339 Bullnose and Corner."]
["2011-04-11","Las Olas","LS5524 Tidewater 19\" x 19\" size of Field Tile."]
["2011-04-11","Livingston","All colors in the 19\" x 19\" size of Field Tile. "]
["2011-04-11","Terrace","Color 23397 Hearthstone Brick in the 8\" x 12\" Wall field tile, CR1x8 & CRS1x1 Chair "]
["     \"","     \"","Rail & Stop, S4289 & SN4269 Bullnose & Corner and the A108 & AZ108 Bead/Quarter "]
["     \"","     \"","Round and Out Angle."]
["2011-04-11","PIETRA ART SLATE & TUMBLED SLATE","2\" x 8\" & 5\" x 12\" Listellos in colors:  S006 Peacock, S016 Autumn, S057 Multi & "]
["     \"","    \"         \"         \"      \"        \"             \"","S077 Copper."]
["2011-05-24","Cotto Series","Entire Series."]
["2011-05-31","Gran Canyon","GC99 Strata L1.5x10 Listello."]
["2011-06-24","GRAN CANYON","Entire Series."]
["2011-06-24","Tuscania","The following shapes in all colors:  A8262 Counter Rail, AC8262 Counter Rail Out Angle, "]
["    \"","      \"","A106 Bead/Quarter Round & AZ106 Bead/Quarter Round Out Angle."]
["2011-06-24","PietraArt Travertine","Colors P048 Giallo and P082 Rojo in all items.  24x24 field tile size in all colors."]
["2011-06-24","Pietra Art Accents","All items discontinued except for the following items which will be moved to the "]
["   \"","    \"       \"        \"","Pietra Art Travertine Series:  P151 Grape Cluster 4\" x 4\" Insert, P192 Grape Vine "]
["   \"","    \"       \"        \"","4\" x 12\" Listello, P343 Spice Rack 16\" x 16\" Mural & P183 Wine Basket 16\" x 24\" Mural.  "]
["2011-07-07","Pietra Art Polished Travertine","Colors 90412 Argento Polished and P0412 Argento Filled & Honed. "]
["2014-07-08","PIETRA ART STONE MOSAICS","The following items have been discontinued:  2\" x 4\" Chair Rail (CR2X4) and the 1\" x 4\" Pencil (RM1X4) in all colors. "]
["2011-07-18","Mendocino","4-3/8\" x 4-3/8\" field, S4449 Bullnose, SN4449 Bullnose Corner, I43/8 Insert 800A Light "]
["   \"","       \"","Trailstones, I43/8 Insert 800B Dark Trailstones, L43/8x13 Listello 800E Grapevine and "]
["   \"","       \"","I43/8 Insert 800E Grapevine.     "]
["2011-07-27","Las Olas","Entire Series."]
["2011-08-05","PIETRA ART SLATE & TUMBLED SLATE","4\" Octagon all colors; S006 Peacock, S016 Autumn, S057 Multi & S077 Copper."]
["2011-10-17","RetroClassic Wall","All items in colors 50841W Mellow Gold & 50856W Burgundy and all items in colors "]
["     \"","          \"            \"","A041 Mellow Gold & A056 Burgundy."]
["2012-01-10","Mendocino","L43/8x13 4000A Light Trailstones and 4000B Dark Trailstones listellos. "]
["2012-01-10","PROGETTO CASA","18\" x 18\" Textured Field in all colors. "]
["2012-01-10","Horizon"," 60278P Terra Red 18\" x 18\" field. "]
["2012-01-10","PIETRA ART MEDALLIONS","Slate M18x18 Medallions, colors S006 Peacock, S016 Autumn & S057 Multi."]
["2012-01-10","Ankara","MCR2x13 50200D Cornice Chair Rail"]
["2012-01-10","PIETRA ART LIMESTONE","24\" x 24\" Field in all colors."]
["2012-05-31","Pietra Art Mexican Travertine","Color Amber in all formats."]
["     \"","Pietra Art Mexican Travertine","16\" x 16\" Field tile discontinued. (now being produced in 18\" x 18\" size)"]
["     \"","Pietra Art Mexican Travertine","The following Mosaics in all colors:  M12D Mini Diamond Tumbled, M125/8 5/8\" Tumbled & "]
["     \"","    \"      \"        \"            \"","Modular Pattern Mini Versailles.  "]
["     \"","Pietra Art Mexican Travertine","The following Listellos:  L4x12 90300A Star Noce & 90300B Star Rust.  L5x12 90300C "]
["     \"","    \"      \"        \"            \"","Chevron, 90300D Heather, 90300E Melissa, 90300F Michelle & 90300G Tiarra Rust."]
["2012-05-31","Pietra Art Mexican Travertine Planks","Color Amber in all formats."]
["2012-07-02","Ankara","Color 5648P Deep Gold in the 12\" x 12\" field tile size only."]
["    \"","    \"","Color 5624P Noce in the 18\" x 18\" field tile size only."]
["    \"","    \"","Color 1624 Noce in the 4-3/8\" x 4-3/8\" field tile size, S4449 Bullnose & SN4449 "]
["    \"","    \"","Bullnose Corner only."]
["2012-07-02","Contessa","22900 Classic Motif Decoratives:  I12x12 Insert, L2.75x12 Listello & I2.7x2.7 Insert."]
["2012-07-02","Hamlet Manor","Color 23250W Moss in the 8\" x 12\" field tile size, S4289 Bullnose, SN4269 Bullnose "]
["    \"","     \"          \"","Corner and L2x8 2\" x 8\" Crest Listello.  "]
["2012-07-02","Horizon","Color 60246P Temple Gold in the 18\" x 18\" field tile size only."]
["2012-07-02","Millenia","Colors 24023 Aura & 24093 LaTerra in the 18\" x 18\" field tile size only. "]
["2012-07-02","Montana","Colors 23640P Gold & 23650P Green in the 18\" x 18\" field tile size only. "]
["2012-07-02","Tuscania","Color 6142AP Verde in the 18\" x 18\" field tile size only.  50200B Frieze Decoratives:  "]
["2012-07-02","Tuscania","L4x13 and L2.75x8 Listellos & I4x4 and I2.7x2.7 Inserts.  50250B Sage Decoratives:      "]
["    \"","      \"","L4x13 Listello & I4x4 Insert.      "]
["2012-09-19","Ankara","Entire Series."]
["2012-09-19","Ashton","23942 Camel Haze 10\" x 13\" & 18\" x 18\" Field.  23990 Light Walnut 10\" x 13\" Field."]
["2012-09-19","Bright Glaze","Entire Series."]
["2012-09-19","Contessa","22915E Royale I8x12 Insert/Deco Shell."]
["2012-09-19","Hamlet Manor","All \"Wall\" items:  8\" x 12\" Field, L2x8 Crest Listello, S4289 Bullnose & SN4269 B/N Corner."]
["2012-09-19","Horizon","Entire Series."]
["2012-09-19","Matte Glaze","Entire Series."]
["2012-09-19","Terrace","Entire Series."]
["2012-09-19","Topeka","4-3/8\" x 4-3/8\" \"Wall\" Field in all colors. "]
["2012-12-04","RetroClassic Wall","Entire Series."]
["2012-12-04","Streamline","Entire Series. (being updated and will be re-introduced at a later time)"]
["2012-12-05","Contessa","Entire Series."]
["2012-12-05","Mendocino","Entire Series."]
["2012-12-05","Montana","Color 23630 Almond in the following formats only:  10\" x 13\" Field, S43A9 3\" x 10\" "]
["    \"","      \"","Bullnose, SN4339 3\" x 3\" Bullnose Corner and the L2x10 2\" x 10\" Listello."]
["2012-12-05","Montana","10\" x 13\" Field, L2x10 Listello, S43A9 3\" x 10\" Bullnose & SN4339 3\" x 3\" Bullnose Corner "]
["    \"","      \"","in all colors.  Also, 23605 Warm and 23606 Cool L1.25x10 1-1/4\" x 10\" Butte Listellos.  "]
["2013-12-05","Phoenix","Color 24224 Noce in the following formats only:  6\" x 6\" Field, S4269 Bullnose, "]
["    \"","      \"","SN4269 Bullnose Corner and the L2x6 2\" x 6\" Listello."]
["2013-02-20","Ashton","S43A9 3\" x 10\" Bullnose & SN4339 3\" x 3\" Bullnose Corner in colors 23942 Camel "]
["   \"","    \"","Haze & 23990 Light Walnut."]
["2013-02-20","Creekside","Entire Series."]
["2013-02-20","Montana","18\" x 18\" Field tile size only in all colors. "]
["2013-02-20","Phoenix","All \"Wall\" items:  6\" x 6\" Field, L2x6 Listello, S4269 Bullnose & SN4269 B/N Corner."]
["2013-02-20","Pietra Art Granite","Color GM019 Tropical Brown 12\" x 12\" Field. "]
["2013-02-20","Pietra Art Limestone","18\" x 18\" Field tile, 2\" x 2\" Mosaic, Mini Versailles Modular Pattern Mosaic and the "]
["   \"","    \"      \"          \"","2-1/2\" x 12\" L2.5x12 Listello in all colors. "]
["2013-02-20","Pietra Art Marble & Tumbled Marble","2\" x 2\" Mosaic and the 3\" x 12\" L3x12 Listello in all colors. "]
["2013-02-20","QuartezHDP","Color 26045 Citadel in all formats and P43N9 3\" x 24\" Bullnose in all colors."]
["2013-02-20","Retroclassic Floor","P001 Classic Octagon & P005 Elegant Octagon Mosaics. "]
["2013-02-20","Topeka","S4449 4\" x 4\" Bullnose & SN4449 4\" x 4\" Bullnose Corner in all colors."]
["2013-02-20","Tuscania","18\" x 18\" Field tile size only in all colors. "]
["2013-03-22","Renaissance","3\" x 6\" Field tile size only in all colors."]
["2013-05-16","Highlands","12\" x 18\" Field Tile in all colors."]
["2013-05-16","Livingston","10\" x 13\" Field Tile in all colors.  Also in all colors:  2-1/2\" x 13\" L2.5x13 Listello, 1-1/4\" x 13\" "]
["    \"","    \"","L1.25x13 Listello/Liner, 1-1/2\" x 13\" CR1.5x13 Chair Rail, 3/4\" x 13\" MR3/4x13 Rounded "]
["    \"","    \"","Molding, 3\" x 10\" S43A9 Bullnose & 3\" x 3\" SN4339 Bullnose Corner.       "]
["2013-05-16","Paramount","9\" x 18\" I9x18 Insert in all colors."]
["2013-05-16","Pristine","9\" x 18\" I9x18 Insert in all colors."]
["2013-05-16","Topeka","8\" x 12\" Field Tile in all colors.  Also in all colors:  3\" x 8\" L3x8 Listello, 2\" x 8\" S4289 "]
["    \"","    \"","Bullnose and 2\" x 2\" SN4269 Bullnose Corner.  "]
["2013-06-27","LegendHDP","24\" x 24\" Field tile (Pressed), Rectified Field tile sizes 12\" x 24\" & 24\" x 24\" and the Rectified "]
["    \"","    \"","3\" x 24\" P43N9 Bullnose in all colors.   "]
["2013-06-27","Millenia","18\" x 18\" Field tile size only in all colors."]
["2013-06-27","Retroclassic Floor","Entire Series."]
["2013-06-27","Savannah","Color 24348 Carriage Gold Wall formats: 8\" x 12\" Field tile, L2x8 Listello, S4289 Bullnose & "]
["    \"","    \"","SN4269 Bullnose Corner.  "]
["2013-06-27","Topeka","Entire Series."]
["2013-10-15","Highlands","Entire Series."]
["2013-10-15","Livingston","Entire Series."]
["2013-10-15","Millenia","Entire Series."]
["2013-10-15","Tuscania","Entire Series."]
["2013-10-28","Montana","Entire Series."]
["2013-10-28","QuartezHDP","Entire Series."]
["2014-04-01","Pietra Art Marble & Tumbled Marble","Color GM025 Emperador Light 12\" x 12\" Field only."]
["2014-04-01","Pietra Art Medallions","Entire Series."]
["2014-04-01","Renaissance","S4369 3\" x 6\" Bullnose only in all colors."]
["2014-05-13","Pietra Art Pebbles","Colors PT101 Yellow Stone, PT102 Black Pearl and PT103 White Snowball in the 6\" x 12\" Mosaic size.  Colors SP101 Dawn, SP102 Eclipse and SP103 Cloud in the 4\" x 12\" Mosaic size. "]
["2014-10-08","GrandeurHDP (Natural & Polished)","Entire Series."]
["2014-10-08","Progetta Casa","Entire Series."]
["2014-10-08","StellarHDP","Entire Series."]
["2014-10-08","Urbanite","18\" x 18\" Field Tile and P43H9 3\" x 18\" Bullnose only in all colors."]
["2015-02-26","Ashton","The following formats in colors 23942 Camel Haze and 23990 Light Walnut:  2\" x 2\" Mosaic, L2x10 Palisade Listello, L2.75x10 Reflections Listello, CR2x10 Chair Rail and CRS2x1 Chair Rail Stop. "]
["2015-02-26","Pietra Art Marble & Tumbled Marble","12\" x 12\" Field Tile format in color GM006 Calacatta T only."]
["2015-02-26","Pietra Art Slate & Tumbled Slate","12\" x 12\" Field Tile format in colors IS001 Peacock and IS002 Kund Multi only."]
["2015-02-26","Pietra Art Stone Mosaics","The following mosaic patterns only:  MS832 Yellow M122 2\" x 2\" Mosaic, MS772 Yellow M12D 2\" x 2\" Diamond Mosaic, MS732 Yellow M12HEX 1.25\" Hexagon Mosaic, MS742 Yellow M12HERR 1\" x 2\" Herringbone Mosaic, MS702 Yellow M125/8 5/8\" x 5/8\" Mosaic, MS762 Yellow M12STRIP 5/8\" Random Strip Mosaic and MS752 Yellow M12ROMAN Roman Pattern Mosaic."]
["2015-04-01","Cast Stone Fixtures","Entire Series."]
["2015-04-01","Pietra Art Granite","Entire Series."]
["2015-04-01","Pietra Art Limestone","Entire Series."]
["2015-04-01","Pietra Art Marble & Tumbled Marble","Entire Series."]
["2015-04-01","Pietra Art Medallions II ","Entire Series."]
["2015-05-07","Pietra Art Slate & Tumbled Slate","12\" x 12\" Field Tile format in the following colors:  IS500 Zerra Polished, IS501 Silver Gray Polished and IS502 Copper Polished.  The following L4x12 4\" x 12\" Listellos: African Gold color - IS633 and IS643, California Gold color - IS632 and IS642, Copper color - IS634 and IS644, Indian Autumn color - IS631 and IS641 and Kund Multi color - IS630 and IS640.     "]
["2015-11-17","Phoenix","Entire Series."]
["2015-11-17","VitraArt Harmony","Entire Series."]
["2015-11-17","VitraArt Tranquil","Entire Series."]
["2016-01-01","MetalArt Ornaments","Entire Series."]
["2016-01-01","MetalArt Signature","Entire Series."]
["2016-04-14","Ashton","Entire Series."]
["2016-04-14","CliffsideHDP","18\" x 18\" Field Tile format only in all colors."]
["2016-04-14","Fontana","Entire Series."]
["2016-04-14","Mosaic Art Fresco","Entire Series."]
["2016-04-14","Pietra Art Classic Mosaics","Entire Series."]
["2016-04-14","Pietra Art Rustic Travertine","Modular Field Tile format only in all colors in both Chiseled Edge and Straight Edge/Brushed."]
["2016-04-14","Pietra Art Slate & Tumbled Slate","IS011 Silver Gray 12\" x 12\" Field Tile format, 3\" x 13\" 4501 Pinwheel (Slate w/Glass) Listello and 3\" x 13\" 4502 Pinwheel (Slate/Travertine) Listello.  All formats in the following colors:  African Gold, California Gold, Copper, Copper Slate, Indian Autumn, Kund Multi and Multi."]
["2016-04-14","Pietra Art Travertine","4\" x 4\" P151 Grape Cluster Insert, 4\" x 12\" P192 Grape Vine Border, 16\" x 16\" P343 Spice Rack Mural and 16\" x 24\" P183 Wine Basket Mural."]
["2016-04-14","Urbanite","Color Clay in all formats.  The following formats in all colors:  8\" x 24\" Field Tile, 8\" x 24\" Moon Listello, 6\" x 18\" Stratus Listello, 3-1/2\" x 24\" Rays Listello, 1-1/4\" x 12\" Reed Listello, 1-1/4\" x 12\" Trek Listello and the 1/2\" x 24\" 23800 Metalico Liner/Listello. "]
["2016-10-20","LegendHDP","Color Olympic in all formats."]
["2016-10-20","Pietra Art Stone Mosaics","M2x8 2\" x 8\" Mosaic, M12PW 3-D Pinwheel w/Dot Mosaic, M12BW Basketweave w/Dot Mosaic and SFMPS Splitface Piano Strip Mosaic in all colors.  L2x12 2\" x 12\" Strip Listello in all colors."]
["2016-10-20","Pristine","Entire Series."]
["2016-10-20","Renaissance","18\" x 18\" Field Tile format in all colors."]
["2016-10-20","Taconic Slate","18\" x 18\" Field Tile format in all colors."]
["2016-10-31","Pietra Art Slate & Tumbled Slate","The C6x24 Corners, NS301 Ash, NS303 Ember, NS305 Coal & NS307 Smoke are discontinued and are being replaced with a preassembled \"L\" shaped 6\" x 18\" corner found in the new PietraArt Ledgerstone series.  (The four slate L6x24 Ledger Stone panels are being moved from this series into the new PietraArt Ledgerstone series.)  No items remain in the Pietra Art Slate & Tumbled Slate series any longer."]
["2017-03-13","Formations","18\" x 18\" Field Tile format in all colors."]
["2017-03-13","MarquisHDP","Color 28695 Light Emperador only in all formats."]
["2017-07-11","Cinema","2\" x 12\" Hollywood Listello and the 2-1/2\" x 12\" Vintage Listello in all colors."]
["2017-07-11","Hamlet Manor","18\" x 18\" Field Tile format in all colors.  Color 23250P Moss in all formats.  L4x12 Crest Listello and C4x4 Crest Corner in all colors."]
["2017-07-11","MingleHDP","18\" x 18\" Field Tile format only in all colors."]
["2017-07-11","Savannah","Color 24348 Carriage Gold only in all formats."]
["2017-07-11","Taconic Slate","Entire Series."]
["2017-09-06","AlavaHDP","The following formats in all colors with the Stone Graphics:  12\" x 12\" and 12\" x 24\" Field Tile, 2\" x 2\" Mosaic, Rhombus Mosaic & P43C9 3\" x 12\" Bullnose."]
["2017-09-06","EarthstoneHDP","Entire Series."]
["2017-09-06","GallantHDP","Entire Series."]
["2017-09-06","LegendHDP","The following formats in all colors:  6\" x 6\" and 12\" x 24\" Field Tile, 12\" x 18\" Split Face Mosaic, S4669 6\" x 6\" Bullnose, SN4669 6\" x 6\" Bullnose Corner, P36C9 6\" x 12\" Cove Base & PB3169 1\" x 6\" Cove Base Outside Corner. "]
["2017-11-16","Renaissance","Entire Series."]
["2017-12-04","Hamlet Manor","Entire Series."]
["2017-12-04","MingleHDP","6\" x 24\" Field Tile format only in all colors."]
["2017-12-04","Soul","13\" x 13\" and 20\" x 20\" Field Tile formats in all colors and P43D9 3\" x 13\" Bullnose in color 24939 Motion Beige only."]
["2018-03-23","Ainslee ParkHDP","SN4339 3\" x 3\" Bullnose Corner in color AIN30 Zebrino Taupe only."]
["2018-04-12","ContinentDP","L1x8.75 29900 Artesian Glass 1\" x 8-3/4\" Listello only."]
["2018-04-12","MarquisHDP","L2.5x12 Perlite 2-1/2\" x 12\" Listello in colors 28611 Carrara & 28632 Crema Marfil only."]
["2018-04-12","Urbanite","12\" x 12\" Field Tile format in all colors only."]
["2018-06-06","Formations","Color 25282 Boulder only in all formats. "]
["2018-07-23","MyBrickHDP","Entire Series."]
["2018-10-03","CinemaHDP","18\" x 18\" Field Tile format only in all colors."]
["2018-10-03","Soul","L2x19 2\" x 19\" 24900A Interlude and 24900B Traffic Listellos only. "]
["2018-10-03","SpanHDP","12\" x 24\" Textured (Pressed) Field Tile format only in both 34501T Snow and 34513T Silver colors."]
["2018-10-19","Formations","6\" x 6\" Field Tile format only in all colors."]
["2018-12-17","CinemaHDP","Entire Series."]
["2018-12-17","CliffsideHDP","Entire Series."]
["2018-12-17","Formations","I6x6 2522B Geyser Cold 6\" x 6\" Insert and L1.25x12 2522B Geyser Cold 1.25\" x 12\" Listello only."]
["2018-12-17","ImperoHDP","Entire Series."]
["2018-12-17","Level 10HDP","18\" x 18\" and 18\" x 36\" Field Tile formats in all colors, I9x9 33301A Ornament Warm and I9x9 33301B Ornament Cool 9\" x 9\" Inserts,  L3x12 33300A Ornament Warm and  L3x12 33300B Ornament Cool 3\" x 12\" Listellos."]
["2018-12-17","MalteseDP","10\" x 13\" Field Tile format, S43A9 3\" x 10\" Bullnose and SN4339 3\" x 3\" Bullnose Corner only in all colors."]
["2018-12-17","Pietra Art Mexican Travertine","Entire Series."]
["2018-12-17","Pietra Art Polished Travertine","Entire Series."]
["2018-12-17","Pietra Art Stone Mosaics","Entire Series."]
["2018-12-17","SpanHDP","Entire Series."]
["2018-12-17","Streamline","M1/2x1/2 Glass 1/2\" x 1/2\" Mosaic only in colors 313 Polar, 323 Desert, 352 Tropical and 395 Monsoon."]
["2018-12-17","VitraArt Fusion","Entire Series."]
["2018-12-17","VitraArt Stained Glass","Entire Series."]
["2019-03-01","Formations","S4669 6\" x 6\" Bullnose and SN4669 6\" x 6\" Bullnose Corner in all colors and the I6x6 2521B Geyser Hot 6\" x 6\" Insert only."]
["2019-03-01","Pietra Art Rustic Travertine","Entire Series."]
["2019-03-01","Soul","P43D9 3\" x 13\" Bullnose in all colors."]
["2019-04-02","Pietra Art Travertine","Color P090 Walnut only in all formats."]
["2019-04-02","Urbanite","P43N9 3\" x 24\" Bullnose only in all colors."]
["2019-05-21","Glamour","The following 14\" x 39\" Decorative Patterns Field Tile formats:  34402 White Softness, 34407 White Lineup, 34408 White Pyramid, 34409 White Enigma, 34418 Mirror Pyramid, 34419 Mirror Enigma & 34448 Gold Pyramid."]
["2019-05-21","Level 10HDP","Colors 33310 Pearl Atrium and 33341 Mezzanine Gold only in all formats."]
["2019-05-21","MalteseDP","Color 29626 Palma Brown only in all formats. "]
["2019-05-21","NexaHDP","Entire Series."]
["2019-05-21","Retroclassique","M12BULB Bulb Mosaic only in all colors."]
["2019-05-21","Time 2.0","6\" x 24\" x 10.5 mm Natural finish Field Tile format in all colors.  12\" x 12\" x 10 mm Polished finish Field Tile format in all colors."]
["2019-07-15","Aventis Thinner","Entire Series."]
["2019-07-15","RestoreHDP Thinner","Entire Series."]
["2019-07-15","Time 2.0 Thinner","Entire Series."]
["2019-08-19","Pietra Art Travertine","The following formats in Color P003 Light Travertine:  6\" x 6\" Tumbled Field, 18\" x 18\" Filled & Honed Field, 1\" x 2\" Tumbled Mosaic, DBW2x4 Domed Mosaic, L7x21 Cambria Strips, MR1x12 Pencil Liner & MCR2.5x12 Chair Rail Molding.  "]
["2019-08-19","Pietra Art Travertine","The following formats in Color P010 Silver:  6\" x 6\" Tumbled Field, 1\" x 2\" Tumbled Mosaic, DBW2x4 Domed Mosaic & L7x21 Cambria Strips, MR1x12 Pencil Liner & MCR2.5x12 Chair Rail Molding."]
["2019-08-19","Pietra Art Travertine","Colors P024 Noce and P040 Scabos in all formats."]
["2019-08-19","Pietra Art Travertine","The following formats in Color P0444 Picasso:  6\" x 6\" Tumbled Field, 1\" x 2\" Tumbled Mosaic, DBW2x4 Domed Mosaic, L7x21 Cambria Strips, MR1x12 Pencil Liner & MCR2.5x12 Chair Rail Molding.  "]
["2019-10-08","Formations","L1.25x12 2521B Geyser Hot Listello."]
["2019-10-08","LegendHDP","Entire Series."]
["2019-10-08","Level 10HDP","L1.25x12 25756 Nebula Cool and 25778 Nebula Warm Listellos, L2x12 25757 Comet Cool and 25779 Comet Warm Listellos."]
["2019-10-08","MalteseDP","L2x10 29600A Roundabout Warm and 29600B Roundabout Cool Listellos.  CR2x10 Chair Rail and CRS2x1 Chair Rail Stop in all colors."]
["2019-10-08","MarquisHDP","18\" x 18\" Field Tile format in colors 28613 Grey Breccia, 28631 Beige Breccia and 28632 Crema Marfil only.  All Wall Tile formats:  9\" x 18\" Field Tile, L2.5x12 Perlite Listello, CR2x9 Chair Rail, CRS2x1 Chair Rail Stop, S4399 Bullnose and SN4339 Bullnose Corner in all colors.  L2x9 28600A Optical Warm and 28600B Optical Cool Listellos, L1.75x9 28601A Lineage Warm and 28601B Lineage Cool Listellos."]
["2019-10-08","MingleHDP","I6x6 28400B Warm (Set of 2 Designs) 6\" x 6\" Insert."]
["2019-10-08","Streamline","4\" x 4\" Field Tile and S4449 Bullnose formats in all Bright and Matte colors.  Colors 325 Fawn, 330 Earth and 350 Camo in all formats."]
["2019-10-08","Time 2.0 (Textured)","12\" x 12\" and 12\" x 24\" format in the Textured surface only in all colors."]
["2019-10-08","Urbanite","Entire Series."]
["2020-01-16","AlavaHDP","Entire Series."]
["2020-01-16","Formations","12\" x 12\" Field Tile format in Color 25213 Gravel only."]
["2020-01-16","MarquisHDP","Entire Series."]
["2020-01-16","Pietra Art Bliss","Glass, Stone & Stainless Steel Blend Colors NS380 Twilight Mist, NS383 Woodland Park, NS384 Sea Coast, NS385 Fossil Rock, NS386 Deep Grotto, NS387 Nature Trail, NS388 Nordic Storm & NS389 Arctic Night only."]
["2020-01-16","Soul","Entire Series."]
["2020-01-16","Time 2.0","24\" x 24\" x 10 mm Polished finish Field Tile format in all colors."]
["2020-03-10","Glamour","Entire Series."]
["2020-03-10","TIME 2.0 - Through-Body Porcelain - Natural (Rectified)","RSP12x24 12\" x 24\" Random Stack Mosaic in colors T2126 Dawn, T2345 Dusk and T2789 Midnight. "]
["2020-07-13","GenesisHDP","Entire Series."]
["2020-07-13","MagnoliaHDP","P44N9 4\" x 24\" Bullnose in all colors."]
["2020-07-13","MingleHDP","CR2x12 2\" x 12\" Chair Rail and CRS2x1 2\" x 1\" Chair Rail Stop in all colors. "]
["2020-07-13","Streamline","OC3169 1\" x 6\" Cove Base Outside Corner in all colors.  L1/2x6 1/2\" x 6\" Pencil Liner in colors 340 Curry, 355 Envy, 375 Cardinal & 385 Royal only.  L2x8 2\" x 8\" 519B Gemstone Warm Gemstone Listello.  L3x6 3\" x 6\" 518 Ivy Shadow Gray & 538 Ivy Shadow Beige Ivy Listellos."]
["2020-07-13","TIME 2.0 - Through-Body Porcelain - Polished","12\" x 24\" x 10 mm Polished Field Tile in colors T2261 White,T2561 Dove and T2761 Grey only."]
["2020-08-13","CadoreHDP","Entire Series."]
["2020-12-21","Formations","Colors 25204 Quartz and 25205 Flint in all formats.  2\" x 12\" 2520A L2x12 Lava Listello."]
["2020-12-21","Level 10HDP","Entire Series."]
["2020-12-21","Savannah","10\" x 13\" Field Tile, 3\" x 10\" S43A9 Bullnose and 3\" x 3\" SN4339 Bullnose Corner in all colors."]
["2021-01-21","CraftsmanDP","18\" x 18\" x 8.5 mm Field Tile format only in all colors."]
["2021-01-21","MalteseDP","18\" x 18\" Field Tile format only in all colors."]
["2021-01-21","ParamountHDP","The following formats in all colors:  9\" x 18\" and 18\" x 18\" Field Tile and the S4399 3\" x 9\" Bullnose."]
["2021-01-21","PreciousHDP","18\" x 36\" Field Tile format only in color 35001 Calacatta."]
["2021-01-21","Savannah","18\" x 18\" Field Tile format only in all colors."]
["2021-01-21","SequenceHDP","9\" x 36\" and 18\" x 36\" Field Tile formats only in all colors."]
["2021-03-09","MosaicArt Epic","Colors 805 Black, 812 Biscuit, 822 Linen and 815 Black & White in all formats.  M2x2HEX 2\" x 2\" Hexagon Mosaic, M12BW Basketweave Mosaic and the M12PW Pinwheel Mosaic in color 815 Black & White.  M1x1HEX 1\" x 1\" Hexagon Mosaic, M2x2OCT 2\" x 2\" Octagon Mosaic and the M4x4OCT 4\" x 4\" Octagon Mosaic in all colors.  M1x3BRICK 1\" x 3\" Brick Mosaic, M12BULB Arabesque Mosaic and the M12CONVEX Convex Hex Mosaic in all colors."]
["2021-03-15","Pietra Art Pebbles","Color FP105 Redwood Flat Pebbles Mosaic.  Colors PT101 Yellow Stone, PT102 Black Pearl and PT103 White Snowball Round Pebbles Mosaics.  PT104 Mixed Salad 6\" x 12 Round Pebbles Mosaic.  SP104 Mixed Salad 4\" x 12\" Standing Pebbles Mosaic."]
["2021-03-15","Savannah"," Color 24330 Plantation Beige 8\" x 12\" Field Tile format.  L2x10 Listello in all colors."]
["2021-04-13","Formations","12\" x 12\" Field Tile format in Color 25296 Dark Pebble."]
["2021-04-13","MingleHDP","3.75\" x 12\" and 12\" x 12\" Field Tile formats in all colors.  28400A Warm, 28401A Cool and 28401B Cool 6\" x 6\" Insert sets.  28400A Warm and 28401A Cool 1-1/2\" x 12\" Listello's. "]
["2021-04-13","ParamountHDP","Entire Series."]
["2021-04-13","WexfordHDP","Entire Series."]
["2021-08-27","MosaicArt Epic","Entire Series."]
["2021-08-27","Savannah","Entire Series."]
["2021-10-01","Stark","14x39L Structure Rectified 14\" x 39\" Field Tile in all colors."]
["2022-02-15","Formations","Entire Series."]
["2022-02-15","Metal Art Matrix","Entire Series."]
["2022-02-15","Pietra Art Premier Marble","All formats in the following colors:  MAR36 Dahlia Polished, MAR50 Crema Honed, MAR56 Crema Polished and MAR66 Argento Polished."]
["2022-07-13","MalteseDP","Color 29622 Porto Cream only in all formats."]
["2022-07-13","MingleHDP","Color 28412 Cool Summer Mix only in all formats."]
["2022-07-13","Pietra Art Premier Marble","All formats in the following colors only:  MAR40 Giallo Honed, MAR46 Giallo Polished, MAR60 Argento Honed, MAR76 Babeto Polished and MAR86 Silver Veincut Polished."]
["2022-07-13","Retroclassique","Entire Series."]
["2022-07-13","Stark","Entire Series."]
["2022-10-05","KeralaHDP","Entire Series."]
["2022-12-15","CraftsmanDP","6\" x 6\" and 24\" x 24\" Field Tile formats in all colors, all formats in the color 27224 Rye and the 27200A Prairie Light and 27200B Prairie Dark L1.5x12 Listellos only."]
["2022-12-15","Edge","Entire Series"]
["2022-12-15","ModtiqueHDP","Entire Series."]
["2022-12-15","TidesHDP","All formats in colors 28155 Waters Edge & 28190 Coconut Shell only."]
["2023-04-13","ContinentDP","6\" x 6\" Field Tile, S4669 Bullnose and SN4669 Bullnose Corner formats only in all colors."]
["2023-04-13","DivinityHDP","24\" x 24\" Field Tile format only in all colors."]
["2023-04-13","Pietra Art Premier Marble","Entire Series."]
["2023-04-13","SequenceHDP","24\" x 24\" and 8\" x 48\" Field Tile formats only in all colors."]
["2023-04-13","Streamline","Entire Series."]
["2023-04-13","Tuscan VillaHDP","6\" x 6\" Field Tile format only in all colors."]
["2023-08-07","East Village","Color EVG30 Potter's Red Clay in all Field Tile formats, M122 2\" x 2\" Mosaic and P43N9 3\" x 24\" Bullnose formats only.  (The EVG123 Warm Mix M7x7HEX Mosaic will remain part of this collection.)"]
["2023-08-07","MalteseDP","Entire Series"]
["2023-08-07","MingleHDP","Entire Series."]
["2023-08-07","Pietra Art Travertine","Entire Series."]
["2023-10-11","DistilleryHDP","Entire Series."]
["2023-10-11","EnchantHDP","24\" x 24\" Field Tile format in the Matte finish only in all colors."]
["2023-10-11","Lost RiverHDP","24\" x 24\" Field Tile format only in all colors."]
["2023-10-11","QuestHDP","Entire Series."]
["2023-10-11","ReliveHDP Glazed Porcelain Floor & Wall","Entire Series.  (Relive 2cm Porcelain Pavers is NOT being discontinued!)"]
["2023-10-11","VitraArt Peace of Mind","Entire Series."]
["2024-01-24","CraftsmanDP","6\" x 6\" S4669 Bullnose and SN4669 Bullnose Corner only in all colors."]
["2024-01-24","ContinentDP","Color 29927 Sierra Clay only in all formats."]
["2024-01-24","EnchantHDP","8\" x 24\" Field Tile format in the Matte finish only in all colors."]
["2024-01-24","ReliveHDP","Entire Series."]
["2024-08-21","Aventis","The 24\" x 24\" Field Tile format only in all colors."]
["2024-08-21","CraftsmanDP","Entire Series."]
["2024-08-21","East VillageHDP","The 24\" x 24\" Field Tile format only in all colors."]
["2024-08-21","EnchantHDP","The 8\" x 24\" Polished and 24\" x 24\" Polished Field Tile formats only in all colors."]
["2024-08-21","Lost RiverHDP","Entire Series."]
["2016-10-31","PietraArt Ledgerstone","Entire Series."]
["2024-08-21","PreciousHDP","The 24\" x 24\" Field Tile format only."]
["2024-08-21","SerendipityHDP","The 24\" x 24\" and 18\" x 31\" Diamond Field Tile formats only in all colors."]
["2024-12-06","BlueRunHDP","Color Fossil Black only in all formats.  24\" x 24\" Deco Field, Mosaic Mix, Offset Basketweave Mosaic and the P43N9 3\" x 24\" Bullnose, in all colors."]
["2024-12-06","ExcursionHDP","Colors EXN20 Denali and EXN40 Sequoia only in the 8\" x 36\" Field Tile format.  8\" x 8\" Parquet Mosaic in all colors."]
["2024-12-06","LocalHDP","Entire Series."]
["2024-12-06","Memorable","Entire Series."]
["2024-12-06","TidesHDP","Colors 28115 Marine Fog and 28130 Sand Castle only in all formats.  3.75\" x 12\" Field Tile format in all colors, including 28110 Sea Salt."]
["2024-12-06","TIME 2.0 - Through-Body Porcelain - Natural (Rectified)","12\" x 12\" Field Tile format only in all colors."]
["2025-03-21","East VillageHDP","Entire Series."]
["2025-05-29","Aventis","Entire Series."]
["2025-08-08","ContinentDP","6\" x 12\" P36C9 Cove Base and 1\" x 6\" PB3169 Cove Base Outside Corner only in all colors."]
["2025-08-08","DivinityHDP","Entire Series."]
["2025-08-08","Emotive","4\" x 9\" Trapezoid Field and 3\" x 12\" L3x12 Listello only in all colors."]
["2025-08-08","NaturaHDP","Entire Series."]
["2025-08-08","Pietra Art Bliss","Entire Series."]
["2025-08-15","Tempo","12\" x 35\" Flat Glossy Wall Field Tile and 12\" x 35\" Curve Glossy Wall Field Tile formats in all colors only."]
[" "," "]
[]
[" "," "]
["Changes"]
["2006-02-13","New Chair Rail Shapes in the following lines:"]
[null,"Moldings - Chair Rails"]
[null,"Retroclassic"]
[null,"Retroclassic Flair"]
[null,"Ravenna"]
[null,"Playful"]
[null,"CR2x8 & CR2x1 replace the MCR items"]
["2006-10-03","Bright and Matte Color Revisions"]
["2008-01-01","Botanical listellos, inserts moved into Creekside series (except the I8x12 Deco Shell which is discontinued)"]
["2008-09-26","Horizon","M122 Mosaics change in appearance made.  Cannot use old mosaics w/the new."]
["2008-12-01","Pietra Art Travertine","3\"x6\", 6\"x6\" & 24\"x24\" sizes added to line in select colors."]
["2008-12-01","Pietra Art Travertine","18\"x18\" packaged and sold by carton, 5 pcs/carton, 11.25 sf/carton."]
["2008-12-01","Topeka","Floor products now Glazed Porcelain."]
["2009-06-23","Tuscania","Florida Tile is beginning production of the 18\" x 18\" field in their Lawrenceburg "]
["   \"","     \"","plant.  The SF/CTN of this newly produced item will now be 15.58."]
["2009-08-25","PIETRA ART MEDALLIONS","The following Travertine Medallions were changed to \"Non-Stock\":  MS5202, "]
["   \"","\"","MS5203, MS5204 18\" x 18\" Medallions, MS6002, MS6003, MS6004 24\" Round "]
["   \"","\"","Medallions & MS6202, MS6203, MS6204 36\" Round Medallions.     "]
["2010-01-04","Glass Mosaics Dimensions & Mosaic","Formally found under the heading of “Glass Mosaics” now fall under the "]
["   \"","\"","heading of “Vitra Art”.  (Not to be confused with the now discontinued "]
["   \"","\"","Vitra Art Glass Tile Accents line.)"]
["2010-01-04","Pietra Art Slate II","The name Slate II has been eliminated.  These items will now be a part of "]
["   \"","\"","the  “Slate & Tumbled Slate” section."]
["2010-01-04","RetroClassic","The porcelain floor tile and accessories as noted below will be known as:  "]
["   \"","\"","“RetroClassic” (Floor).  This line now consists of the 13” x 13” field tile, "]
["   \"","\"","P43D9 3” x 13” bullnose, 50600D 2-1/2” x 13” Checkerboard Listello, and "]
["   \"","\"","the two 12 inch Hex mosaics P001 Classic Octagon & P005 Elegant Octagon. "]
["2010-01-04","RetroClassic Flair","Has been has been renamed and incorporated in the section "]
["   \"","\"","“RetroClassic Wall” line.  RetroClassic Wall now contains all the wall tiles "]
["   \"","\"","and accessories from the previously known as RetroClassic line and all "]
["   \"","\"","items from the previously known as RetroClassic Flair line."]
["2010-03-05","Pietra Art Slate & Tumbled Slate","Ledger Stone 6” x 24” panels now sold full carton only. (6 EACH/CTN)"]
["2010-09-15","Phoenix","The 12\" x 12\" field tile is now 8MM thick instead of 7.5MM.  The 8MM version will "]
["   \"","\"","be differentiated by having a \"K\" added to the end of the color number and will "]
["   \"","\"","now come 16SF per carton.  The M12 mosaic and P43C9 bullnose is made from "]
["   \"","\"","the 12\" x 12\" field so it will change in thickness as well but packaging will "]
["   \"","\"","remain the same."]
["2010-11-15","Renaissance","A113 1\" x 13\" Quarter Round and AZ108 1\" x 1\" Quarter Round Corner added to line."]
["2010-11-15","Streamline","A106 3/4\" x 6\" Quarter Round and AC106 3/4\" x 6\" Quarter Round Corner added to line in "]
["     \"","       \"","colors 60502 Barely Beige, 60504 Smooth Satin & 60524 Classic Taupe.  For Crisp White  "]
["     \"","       \"","60501, please use Bright Glaze Cotton Color 10 and Pearl Color 19 for Simply Gray 60519.   "]
["2011-06-24","Pietra Art Accents","From this discontinued line the following items will remain current and will be found in "]
["   \"","    \"       \"        \"","the Pietra Art Travertine Series:  P151 Grape Cluster 4\" x 4\" Insert, P192 Grape Vine "]
["   \"","    \"       \"        \"","4\" x 12\" Listello, P343 Spice Rack 16\" x 16\" Mural & P183 Wine Basket 16\" x 24\" Mural.  "]
["2011-06-24","Pietra Art Travertine","12\"x12\" & 18\"x18\" field tile in color P024 Noce has now changed to color P090 Walnut."]
["2011-06-24","Pietra Art Polished Travertine","P0444 Picasso Filled&Honed 12\"x12\" & 18\"x18\" Field moved to \"Pietra Art Travertine\"."]
["2011-07-07","Fontana & Taconic Slate","The 6\" x 6\" field tile will be transitioning from a pressed 6\" x 6\" tile to a scored and cut 6\" x 6\" "]
["   \"","     \"","as inventory in the pressed version is depleted.  The scored and cut 6\" x 6\" field tile will contain "]
["   \"","     \"","10.83 S.F. per carton."]
["2011-07-07","Pietra Art Polished Travertine","90424 Noce 12\" x 12\" & 18\" x 18\" changed to:  90490 - Walnut Travertine."]
["2011-07-07","Pietra Art Chiseled Edge Travertine","Color Noce changed to Walnut."]
["2012-05-31","Pietra Art Mexican Travertine Planks ","Now included in the \"Pietra Art Mexican Travertine\" series."]
["2012-11-19","BerkshireHDP","The pressed P44N9 4\" x 24\" Bullnose is being replaced with the P43N9 3\" x 24\" Bullnose that is "]
["     \"","      \"","made by cutting the 6\" x 24\" field tile in half and profiling & glazing the radius."]
["2012-12-05","Renaissance","S4369 Bullnose and SN4339 Bullnose Corner will be transitioned into a cut bullnose from "]
["     \"","        \"","the field tile as inventory levels of the pressed version are depleted. "]
["2013-06-27","Savannah","8\" x 12\" Field tile size will be transitioning to a 10\" x 13\" size.  Also transitioning will be the S4289 "]
["   \"","      \"","2\" x 8\" Bullnose to a S43A9 3\" x 10\" size & the SN4269 2\" x 2\" Bullnose Corner to a SN4339 "]
["   \"","      \"","3\" x 3\" size.  (The color 24348 Carriage Gold will be discontinued in all \"Wall\" formats.)   "]
["2014-05-13","Pietra Art Pebbles","Color SP104 Rainbow 4\" x 12\" Standing Pebbles Mosaic has been renamed SP104 Mixed Salad."]
["2016-10-31","Pietra Art Slate & Tumbled Slate","The four slate L6x24 Ledger Stone panels are being moved from this series into the new PietraArt Ledgerstone series.  (The C6x24 Corners are discontinued and are being replaced with a preassembled \"L\" shaped 6\" x 18\" corner found in the new PietraArt Ledgerstone series.)  No items remain in the Pietra Art Slate & Tumbled Slate series any longer.  "]
["2017-12-12","Glamour","Packaging will be changing in the 34401 White Brilliant 9\" x 18\" Field Tile from 17.43 SF/CTN to 20.70 SF/CTN as inventory with old packaging is depleted.  Check with Customer Service to be sure which packaging you will be receiving."]
["2017-12-12","PreciousHDP","Packaging will be changing in the 35001 Calacatta 5\" x 14\"Field Tile from 16.27 SF/CTN to 8.14 SF/CTN as inventory with old packaging is depleted.  Check with Customer Service to be sure which packaging you will be receiving."]
["2018-03-01","Glamour","The 14\" x 39\" Metallic Decorative Pattern Field Tile 34418 Mirror Pyramid, 34419 Mirror Enigma and 34448 Gold Pyramid may not be used where there is moisture or in wet areas such as shower walls, steam showers, saunas etc.."]
["2018-10-17","SequenceHDP","M4x4HEX Hexagon Mosaic has 0.79 SF/SHEET (MOUNTED ON 11-3/4x9-3/4 SHEET).  Florida Tile had given us the wrong amount of 1.07 SF/SHEET when product was originally launched."]
["2019-05-21","Time 2.0","RSP12x24 Random Stack Mosaics will no longer be stocked by Florida Tile.  After Florida Tiles inventory is depleted these items will be Special Order.  A minimum order of 240 Each per sku required & cannot be canceled or returned.  Check with Customer Service to determine availability."]
["2019-05-21","Time 2.0","12\" x 12\" x 10.5 mm and 12\" x 24\" x 10.5 mm Textured finish formats will no longer be stocked by Florida Tile.  After Florida Tiles inventory is depleted these items will be Special Order.  A minimum order of two pallets per sku required & cannot be canceled or returned.  Each pallet of the 12\" x 12\" Field Tile contains 507.36 SF and each pallet of the 12\" x 24\" Field Tile contains 463.20 SF.  Check with Customer Service to determine availability."]
["2019-10-08","Pietra Art Travertine","Color Light Travertine is changing to \"Ivory\" and color Silver is changing to \"Silver Ash\"."]
["2019-12-09","Thicker Collections","Now known as Ecoscape.  (Available in the following Series:  CadoreHDP, MineralHDP, QuestHDP, ReliveHDP and SpanHDP.)"]
["2020-09-08","BerkshireHDP","Florida Tile is transitioning the 6\" x 24\" and 8\" x 36\" Field Tile formats from 11mm to 9mm in thickness as inventories of the old thickness are depleted.  With this running change, trims and mosaics will also transition to 9mm in thickness as the inventories of the old thickness are depleted."]
["2020-09-08","CellarHDP","Florida Tile is transitioning the 8\" x 36\" Field Tile format from 10mm to 9mm in thickness as inventories of the old thickness are depleted.  With this running change, mosaics will also transition to 9mm in thickness as the inventories of the old thickness are depleted."]
["2020-09-08","ExcursionHDP","Florida Tile is transitioning the 8\" x 36\" Field Tile format from 10mm to 9mm in thickness as inventories of the old thickness are depleted.  With this running change, the Parquet mosaic will also transition to 9mm in thickness as the inventories of the old thickness are depleted."]
["2020-09-08","KeralaHDP","Florida Tile is transitioning the 6\" x 24\" and 8\" x 36\" Field Tile formats from 10mm to 9mm in thickness as inventories of the old thickness are depleted.  With this running change, the Basketweave mosaic will also transition to 9mm in thickness as the inventories of the old thickness are depleted."]
["2020-09-08","LocalHDP","Florida Tile is transitioning the 8\" x 36\" Field Tile format from 10mm to 9mm in thickness as inventories of the old thickness are depleted.  With this running change, mosaics will also transition to 9mm in thickness as the inventories of the old thickness are depleted."]
["2020-09-08","MagnoliaHDP","Florida Tile is transitioning the 8\" x 36\" Field Tile format from 11mm to 9mm in thickness as inventories of the old thickness are depleted."]
["2020-09-08","NaturaHDP","Florida Tile is transitioning the 6\" x 24\" Field Tile format from 11mm to 9mm in thickness as inventories of the old thickness are depleted.  With this running change, trims will also transition to 9mm in thickness as the inventories of the old thickness are depleted."]
["2020-09-24","DistilleryHDP","The 8\" x 48\" Field Tile format is changing from a Pressed to a Rectified product and from 10.5mm to 10mm in thickness.  Packaging will be changing from 13.07 SF/CTN to 12.81 SF/CTN as the inventory with the pressed old packaging is depleted.  Check with Customer Service to be sure which packaging and format/thickness you will be receiving."]
["2021-08-13","Aventis","The 12\" x 24\" and 24\" x 24\" Field Tile formats, Mosaics and Bullnose is transitioning from 10mm to 9mm in thickness as inventories of the old thickness are depleted.  Packaging of the 12\" x 24\" x 9mm Field Tile will be 15.500 SF/CTN.  The 24\" x 24\" Field Tile format packaging will remain the same."]
["2021-08-13","DivinityHDP","The 12\" x 24\" and 24\" x 24\" Field Tile formats, Mosaics and Bullnose is transitioning from 10mm to 9mm in thickness as inventories of the old thickness are depleted.  Packaging of the 12\" x 24\" x 9mm Field Tile will be 15.62 SF/CTN.  The 24\" x 24\" Field Tile format packaging will remain the same."]
["2021-08-13","East VillageHDP","The 3.75\" x 12\", 12\" x 24\", 24\" x 24\", 24\" x 48\" and 22.5\" x 22.5\" Hexagon Field Tile formats, Mosaics and Bullnose is transitioning from 10mm to 9mm in thickness as inventories of the old thickness are depleted.  Packaging of the 12\" x 24\" x 9mm Field Tile will be 15.62 SF/CTN.  All other Field Tile formats packaging will remain the same."]
["2021-08-13","EnchantHDP","The Matte finish 3.75\" x 12\", 8\" x 24\", 12\" x 24\" and 24\" x 24\" Field Tile formats, Mosaics and Bullnose is transitioning from 10mm to 9mm in thickness as inventories of the old thickness are depleted.  Packaging of the 12\" x 24\" x 9mm Field Tile will be 15.62 SF/CTN.  All other Field Tile formats packaging will remain the same."]
["2021-08-13","Lost RiverHDP","The 12\" x 24\" and 24\" x 24\" Field Tile formats, Mosaics and Bullnose is transitioning from 10mm to 9mm in thickness as inventories of the old thickness are depleted.  Packaging of the 12\" x 24\" x 9mm Field Tile will be 15.62 SF/CTN.  The 24\" x 24\" Field Tile format packaging will remain the same."]
["2021-08-13","ModtiqueHDP","The 12\" x 24\" and 24\" x 24\" Field Tile formats, Mosaics and Bullnose is transitioning from 10mm to 9mm in thickness as inventories of the old thickness are depleted.  Packaging of the 12\" x 24\" x 9mm Field Tile will be 15.62 SF/CTN.  All other Field Tile formats packaging will remain the same."]
["2021-08-13","NY2LAHDP","The 3.75\" x 12\", 12\" x 24\", 24\" x 24\" and 21.5\" x 29.5\" Polygon Field Tile formats, Mosaics and Bullnose is transitioning from 10mm to 9mm in thickness as inventories of the old thickness are depleted.  Packaging of the 12\" x 24\" x 9mm Field Tile will be 15.62 SF/CTN.  All other Field Tile formats packaging will remain the same."]
["2021-08-13","ModtiqueHDP","The 12\" x 24\" and 24\" x 24\" Field Tile formats, M1x4HER Herringbone Mosaic and P43C9 Floor Bullnose is transitioning from 10mm to 9mm in thickness as inventories of the old thickness are depleted.  Packaging of the 12\" x 24\" x 9mm Field Tile will be 15.62 SF/CTN.  All other Field Tile formats packaging will remain the same."]
["2021-08-13","SequenceHDP","The 3.75\" x 12\", 12\" x 24\" and 24\" x 24\" Field Tile formats, Mosaics and Bullnose is transitioning from 10mm to 9mm in thickness as inventories of the old thickness are depleted.  Packaging of the 12\" x 24\" x 9mm Field Tile will be 15.62 SF/CTN.  All other Field Tile formats packaging will remain the same."]
["2021-10-01","DistilleryHDP","The 8\" x 48\" Field Tile format is now changing from the Rectified 10mm and 10.5 mm thick product to 8.5mm thickness.  Packaging will be changing from 13.07 SF/CTN for the 10.5mm thick product to 12.81 SF/CTN as the inventory with the pressed old packaging is depleted.  Packaging for the old 10mm Rectified items and the new 8.5mm is also packaged at 12.81 SF/CTN."]
["2021-10-01","ReliveHDP","The 8\" x 48\" Field Tile format is now changing from the Rectified 10mm and 10.5 mm thick product to 8.5mm thickness.  Packaging for either of these three thicknesses is packaged at 12.81 SF/CTN.   "]
["2021-10-11","MineralHDP, QuestHDP, ReliveHDP and SpanHDP Ecoscape Ultra-Thick Outdoor Porcelain Paver","The Ecoscape Field Tile will be transitioning from a non-rectified pressed format to a rectified format as inventories of the old pressed format are depleted.  Packaging for the new rectified format will be 8.00 SF/CTN.  Pricing has also changed.  Refer to the Florida Tile 20210801 Updated Price List found on the Pricelist page @ https://www.conestogatile.com/pricelists."]
["2022-10-20","MingleHDP","All formats will be transitioning from 10mm to 9mm in thickness as inventories of the old thickness are depleted.  Packaging of the 12\" x 24\" x 9mm Field Tile will be 16.00 SF/CTN.  Check with Customer Service to be sure which packaging amount you will be receiving."]
["2022-11-10","PreciousHDP","The following formats will be transitioning to 8mm thickness as inventories of the old thickness are depleted:  5\" x 14\", 14\" x 27\", 14\" x 27\" Curl Deco and 14\" x 39\" Field Tile, CR1.7x14 Chair Rail, S43E9 Bullnose and the SN4339 Bullnose Corner.    Packaging will change for these formats and will be as follows:  5\" x 14\" x 8mm Field will be 9.49 SF/CTN, 14\" x 27\" x 8mm Field and the 14\" x 27\" x 8mm Curl Deco Field will be 15.82 SF/CTN and the 14\" x 39\" x 8mm Field wil be 15.07 SF/CTN.  Check with Customer Service to be sure which packaging amount you will be receiving."]
["2023-12-11","EnchantHDP","The thickness of the 12\" x 24\" Polished Field Tile format is transitioning from 10mm to 8mm in thickness as inventories of the old thickness are depleted.  Currently, only the color ENC1P Honesty is available in the new thickness from Florida Tile.  Packaging of the 12\" x 24\" x 8mm Polished Field Tile will be 9.62 SF/CTN.  (Packaging for the Polished 12\" x 24\" x 10mm is 15.62 SF/CTN.)  Check with Customer Service to be sure which packaging amount you will be receiving."]
["2024-09-27","NY2LAHDP","12\" x 24\" Field Tile format in color NY220 Brentwood Beige only now being \"Stocked\"."]
["2024-09-27","Ainslee ParkHDP","Color Emperador Beige no longer being \"Stocked\" in any formats.  3.75\" x 12\" Field Tile format no longer being \"Stocked\" in any color. "]
["2024-09-27","Songbird","5\" x 5\" Field Tile format no longer being \"Stocked\" in any colors.  3\" x 12\" Field Tile format no longer being \"Stocked\" in colors SBD60 Plumage Dark Pink and SBD70 Birds Eye Blue. "]
["2025-02-27","PreciousHDP","Packaging for the M12HEX Hexagon Mosaic in color 35001 Calacatta has changed from 4 EA/CTN to 5 EA/CTN."]
["2025-04-18","Ainslee ParkHDP","The 12.1\" x 24.4\" ceramic wall tile size is changing to 12\" x 24\" as inventories of the previous size at Florida Tile are sold.  The new 12\" x 24\" x 7mm packaging will be 15.50 SF/CTN. "]
["2025-04-18","AlustraHDP","Now stocking the 24\" x 48\" Matte Field Tile in colors ALU10 Majestic White Lasa and ALU20 Imperial Gold Calacatta only."]
["2025-04-18","Indulge","Now stocking the following fomats:  12\" x 24\" Matte and Polished Field Tile in all colors.  24\" x 48\" Matte and Polished Field Tile in colors IND50 Breccia Capraia and IND50P Breccia Capraia only.  The Matte M12 2-1/2\" x 2-1/2\" Mosaic in all colors.  The Polished P43N9 3\" x 24\" Bullnose in all colors. "]